Workbook

Sheet MASTER
Z1: =_xll.BDP($A$2,Z2) -> 7.988233
A2: SPX Index | B2: #N/A N Ap | D2: NAME | E2: CPN | F2: MATURITY | G2: NXT_PUT_DT | H2: NXT_CALL_DT | L2: =M2+SUM(R2:U2) -> 50 | M2: 25 | N2: 0.5 | O2: 0.5 | P2: 10 | R2: 5 | S2: 5 | T2: 5 | U2: 10 | V2: =_xll.BDP($A$2,V3) -> -5.474072 | W2: =_xll.BDP($A$2,W3) -> 13.04115 | Y2: CHG_PCT_1M | Z2: CHG_PCT_3M | AA2: CHG_PCT_YTD | AB2: TICKER_AND_EXCH_CODE | AC2: UNDL_ID_BB_UNIQUE | AD2: LAST_PRICE | AG2: CRNCY | AH2: AMT_OUTSTANDING | AN2: BB_COMPOSITE | AO2: RTG_MOODY_LONG_TERM | AP2: RTG_SP_LT_LC_ISSUER_CREDIT | AQ2: DEFAULTED | AR2: CV_MANDATORY_CNVS | AS2: IS_SUBORDINATED | AT2: CHNG_OF_CONTROL_COVENANT | AU2: POISON_PILL_RIGHTS | AV2: CALLABLE | AW2: ULT_PARENT_CNTRY_OF_RISK | AX2: GICS_SECTOR_NAME | AY2: GICS_INDUSTRY_GROUP_NAME | AZ2: GICS_INDUSTRY_NAME | BC2: DUR_ADJ_MID | BD2: CV_MODEL_EFF_DUR | BE2: YAS_ZSPREAD | BF2: YAS_BOND_YLD | BG2: CHG_PCT_5D | BH2: CHG_PCT_1M | BI2: CHG_PCT_3M | BK2: PX_LAST | BL2: CV_BOND_%_PAR_PRICE_NET | BM2: CV_MODEL_DELTA_S | BN2: CV_MODEL_GAMMA_V | BO2: CV_PCT_PREMIUM | BP2: EQY_DVD_YLD_IND | BQ2: EXPECTED_REPORT_DT | BR2: VOLATILITY_90D
A3: ISIN | B3: Bezeichnung | C3: Description | D3: Issuer | E3: Coupon | F3: Maturity | G3: Next Put | H3: Next Call | I3: Update | J3: Kommentar | K3: FAM CB Rating | L3: Calc. CB Rating | M3: CB Skill | N3: Vola | O3: Gamma | P3: ICV | Q3: Last Update | R3: Credit Quality | S3: Makro | T3: MACD | U3: Rel. Strength | V3: MACD2 | W3: VOLATILITY_60D | X3: Berechnung | Y3: 1 mth | Z3: 3 mth | AA3: YTD | AB3: Aktie | AC3: Aktie | AD3: Kurs | AE3: Alert up | AF3: Alert down | AG3: Curr | AH3: Outstanding | AI3: Fisch Holding | AJ3: UBS Global Foc (%) | AK3: UBS Global Foc IG (%) | AL3: Implied Rating | AM3: ICV Rating | AN3: BB Comp | AO3: Moodys | AP3: S&P | AQ3: Default | AR3: Mandatory | AS3: Sub | AT3: COC | AU3: PP | AV3: Callable | AW3: Country | AX3: Industry | AY3: Sektor | AZ3: Subsektor | BB3: Yield Score | BC3: Duration | BD3: Eff. Duration | BE3: YAS Spread | BF3: Yield | BG3: 5d | BH3: 1m | BI3: 3m | BK3: CB Preis | BL3: CB Preis % | BM3: Delta | BN3: Gamma | BO3: Premium | BP3: Div Yield | BQ3: Earnings Date | BR3: Hist. Vola | BT3: old update
A4: US007903AK33 | B4: =A4 & " Corp" -> US007903AK33 Corp | C4: ADVANCED MICRO DEVICES | D4: =_xll.BDP(B4,$D$2) -> ADVANCED MICRO DEVICES | E4: =_xll.BDP(B4,$E$2) -> 6 | F4: =_xll.BDP(B4,$F$2) -> 01.05.2015 | G4: =_xll.BDP(B4,$G$2) -> #N/A Field Not Applicable | H4: =_xll.BDP(B4,$H$2) -> #N/A Field Not Applicable | I4: 2012-11-26 | K4: -2 | L4: =IF(R4="NG","NG",ROUND((M4*M$2+R4*R$2+S4*S$2+T4*$T$2+U4*U$2)/(L$2),0)) -> -1 | M4: =ROUND((N4*$N$2+O4*$O$2)/($N$2+$O$2),0) -> -1 | N4: 0 | O4: -2 | P4: NR | Q4: 2012-11-26 | R4: -1 | S4: =VLOOKUP(AX4,[1]Sheet1!$C$8:$D$23,2,FALSE) -> 1 | T4: =MIN(ROUND(ABS(V4/AD4)*200,0),2)*SIGN(V4) -> 0 | U4: =MIN(ROUND(ABS(X4),0),2)*IFERROR(SIGN(X4),0) -> -1 | V4: =_xll.BDP(AC4 & " Equity",$V$3) -> 0.006405426189 | W4: =_xll.BDP(AC4 & " Equity",$W$3) -> 28.99968794 | X4: =IFERROR(10*LN((100+Z4)/(100+$Z$1))+2*LN((100+$W$2)/(100+W4)),0) -> -0.9563003092 | Y4: =_xll.BDP(AC4 & " Equity",$Y$2) -> 6.477732 | Z4: =_xll.BDP(AC4 & " Equity",$Z$2) -> 0.7662876 | AA4: =_xll.BDP(AC4 & " Equity",$AA$2) -> -1.49813 | AB4: =_xll.BDP(AC4 & " Equity",$AB$2) -> AMD US | AC4: =_xll.BDP(B4,$AC$2) -> EQ0010001000001000 | AD4: =_xll.BDP(AC4 & " Equity",$AD$2) -> 2.585 | AE4: 3.5 | AF4: 2.2 | AG4: =_xll.BDP(B4,$AG$2) -> USD | AH4: =_xll.BDP(B4,$AH$2) -> 42310000 | AI4: =IFERROR(VLOOKUP(A4,'Fisch Holding'!$A$5:$C$1245,3,FALSE)/AH4,"-") -> - | AJ4: =IFERROR(VLOOKUP(A4,'BM Weight'!$A$7:$D$1020,3,FALSE),"-") -> - | AK4: =IFERROR(VLOOKUP(A4,'BM Weight'!$A$7:$D$1020,4,FALSE),"- ") -> - | AL4: =IFERROR(VLOOKUP(A4,'Implied Rating'!$B$7:$C$1179,2,FALSE),"-") -> - | AM4: =IFERROR(VLOOKUP(A4,'ICV Rating'!$B$5:$E$1306,2,FALSE),"-") -> - | AN4: =_xll.BDP(B4,$AN$2) -> B- | AO4: =_xll.BDP(B4,$AO$2) -> B2 | AP4: =_xll.BDP(B4,$AP$2) -> B | AQ4: =_xll.BDP(B4,$AQ$2) -> N | AR4: =_xll.BDP(B4,$AR$2) -> Optionally | AS4: =_xll.BDP(B4,$AS$2) -> N | AT4: =_xll.BDP(B4,$AT$2) -> Y | AU4: =_xll.BDP(B4,$AU$2) -> N | AV4: =_xll.BDP(B4,$AV$2) -> N | AW4: =_xll.BDP(B4,$AW$2) -> US | AX4: =_xll.BDP(AC4 & " Equity",$AX$2) -> Information Technology | AY4: =_xll.BDP(AC4 & " Equity",$AY$2) -> Semiconductors & Semiconductor | AZ4: =_xll.BDP(AC4 & " Equity",$AZ$2) -> Semiconductors & Semiconductor | BB4: 0 | BC4: =_xll.BDP(B4,$BC$2) -> 0.2758382778 | BD4: =_xll.BDP(B4,$BD$2) -> 0.2760549706 | BE4: =_xll.BDP(B4,$BE$2) -> 24.22979189 | BF4: =_xll.BDP(B4,$BF$2) -> 0.496 | BG4: =_xll.BDP(B4,$BG$2) -> 0.07558894682 | BH4: =_xll.BDP(B4,$BH$2) -> 0.1240401316 | BI4: =_xll.BDP(B4,$BI$2) -> -1.762291285 | BK4: =_xll.BDP(B4,$BK$2) -> 100.9477 | BL4: =_xll.BDP(B4,$BL$2) -> #N/A Field Not Applicable | BM4: =_xll.BDP(B4,$BM$2) -> 2.168705451e-11 | BN4: =_xll.BDP(B4,$BN$2) -> -7.085101523e-14 | BO4: =_xll.BDP(B4,$BO$2) -> 983.9637744 | BP4: =_xll.BDP(AC4 & " Equity",$BP$2) -> #N/A N/A | BQ4: =_xll.BDP(AC4 & " Equity",$BQ$2) -> 20.01.2015 | BR4: =_xll.BDP(AC4 & " Equity",$BR$2) -> 36.74960362
A5: US00971TAF84 | B5: =A5 & " Corp" -> US00971TAF84 Corp | C5: WEBMD HEALTH CORP | D5: =_xll.BDP(B5,$D$2) -> AKAMAI TECHNOLOGIES INC | E5: =_xll.BDP(B5,$E$2) -> 0 | F5: =_xll.BDP(B5,$F$2) -> 15.02.2019 | G5: =_xll.BDP(B5,$G$2) -> #N/A Field Not Applicable | H5: =_xll.BDP(B5,$H$2) -> #N/A Field Not Applicable | I5: 2014-11-27 | J5: NE Febr. 14 | K5: 1 | L5: =IF(R5="NG","NG",ROUND((M5*M$2+R5*R$2+S5*S$2+T5*$T$2+U5*U$2)/(L$2),0)) -> 1 | M5: 1 | N5: -1 | O5: 0 | Q5: 2014-03-10 | R5: 0 | S5: =VLOOKUP(AX5,[1]Sheet1!$C$8:$D$23,2,FALSE) -> 1 | T5: =MIN(ROUND(ABS(V5/AD5)*200,0),2)*SIGN(V5) -> -1 | U5: =MIN(ROUND(ABS(X5),0),2)*IFERROR(SIGN(X5),0) -> 0 | V5: =_xll.BDP(AC5 & " Equity",$V$3) -> -0.3831175566 | W5: =_xll.BDP(AC5 & " Equity",$W$3) -> 26.7692124 | X5: =IFERROR(10*LN((100+Z5)/(100+$Z$1))+2*LN((100+$W$2)/(100+W5)),0) -> -0.1085903098 | Y5: =_xll.BDP(AC5 & " Equity",$Y$2) -> -1.322093 | Z5: =_xll.BDP(AC5 & " Equity",$Z$2) -> 9.298918 | AA5: =_xll.BDP(AC5 & " Equity",$AA$2) -> -5.162006 | AB5: =_xll.BDP(AC5 & " Equity",$AB$2) -> AKAM US | AC5: =_xll.BDP(B5,$AC$2) -> EQ0039337400001000 | AD5: =_xll.BDP(AC5 & " Equity",$AD$2) -> 58.93 | AE5: 64 | AF5: 59 | AG5: =_xll.BDP(B5,$AG$2) -> USD | AH5: =_xll.BDP(B5,$AH$2) -> 690000000 | AI5: =IFERROR(VLOOKUP(A5,'Fisch Holding'!$A$5:$C$1245,3,FALSE)/AH5,"-") -> 0.002898550725 | AJ5: =IFERROR(VLOOKUP(A5,'BM Weight'!$A$7:$D$1020,3,FALSE),"-") -> 0.6296011107 | AK5: =IFERROR(VLOOKUP(A5,'BM Weight'!$A$7:$D$1020,4,FALSE),"- ") -> 0 | AL5: =IFERROR(VLOOKUP(A5,'Implied Rating'!$B$7:$C$1179,2,FALSE),"-") -> A- | AM5: =IFERROR(VLOOKUP(A5,'ICV Rating'!$B$5:$E$1306,2,FALSE),"-") -> 0 | AN5: =_xll.BDP(B5,$AN$2) -> #N/A N/A | AO5: =_xll.BDP(B5,$AO$2) -> #N/A N/A | AP5: =_xll.BDP(B5,$AP$2) -> NR | AQ5: =_xll.BDP(B5,$AQ$2) -> N | AR5: =_xll.BDP(B5,$AR$2) -> Optionally | AS5: =_xll.BDP(B5,$AS$2) -> N | AT5: =_xll.BDP(B5,$AT$2) -> #N/A N/A | AU5: =_xll.BDP(B5,$AU$2) -> N | AV5: =_xll.BDP(B5,$AV$2) -> N | AW5: =_xll.BDP(B5,$AW$2) -> US | AX5: =_xll.BDP(AC5 & " Equity",$AX$2) -> Information Technology | AY5: =_xll.BDP(AC5 & " Equity",$AY$2) -> Software & Services | AZ5: =_xll.BDP(AC5 & " Equity",$AZ$2) -> Internet Software & Services | BB5: 0 | BC5: =_xll.BDP(B5,$BC$2) -> 4.078870404 | BD5: =_xll.BDP(B5,$BD$2) -> 3.126169372 | BE5: =_xll.BDP(B5,$BE$2) -> -197.4418415 | BF5: =_xll.BDP(B5,$BF$2) -> -0.634 | BG5: =_xll.BDP(B5,$BG$2) -> -0.6645083656 | BH5: =_xll.BDP(B5,$BH$2) -> 0.7292831663 | BI5: =_xll.BDP(B5,$BI$2) -> 6.441209974 | BK5: =_xll.BDP(B5,$BK$2) -> 102.4671 | BL5: =_xll.BDP(B5,$BL$2) -> #N/A Field Not Applicable | BM5: =_xll.BDP(B5,$BM$2) -> 42.51511853 | BN5: =_xll.BDP(B5,$BN$2) -> 0.006045372034 | BO5: =_xll.BDP(B5,$BO$2) -> 53.92366658 | BP5: =_xll.BDP(AC5 & " Equity",$BP$2) -> #N/A N/A | BQ5: =_xll.BDP(AC5 & " Equity",$BQ$2) -> 10.02.2015 | BR5: =_xll.BDP(AC5 & " Equity",$BR$2) -> 27.77182777
A6: US00184XAA37 | B6: =A6 & " Corp" -> US00184XAA37 Corp | C6: AOL Inc. | D6: =_xll.BDP(B6,$D$2) -> AOL INC | E6: =_xll.BDP(B6,$E$2) -> 0.75 | F6: =_xll.BDP(B6,$F$2) -> 01.09.2019 | G6: =_xll.BDP(B6,$G$2) -> #N/A Field Not Applicable | H6: =_xll.BDP(B6,$H$2) -> #N/A Field Not Applicable | I6: 2015-01-08 | K6: 1 | L6: =IF(R6="NG","NG",ROUND((M6*M$2+R6*R$2+S6*S$2+T6*$T$2+U6*U$2)/(L$2),0)) -> 1 | M6: 1 | N6: -1 | O6: 0 | P6: 0 | Q6: 2014-08-18 | R6: -1 | S6: =VLOOKUP(AX6,[1]Sheet1!$C$8:$D$23,2,FALSE) -> 1 | T6: =MIN(ROUND(ABS(V6/AD6)*200,0),2)*SIGN(V6) -> 0 | U6: =MIN(ROUND(ABS(X6),0),2)*IFERROR(SIGN(X6),0) -> 1 | V6: =_xll.BDP(AC6 & " Equity",$V$3) -> 0.06018340588 | W6: =_xll.BDP(AC6 & " Equity",$W$3) -> 34.19228676 | X6: =IFERROR(10*LN((100+Z6)/(100+$Z$1))+2*LN((100+$W$2)/(100+W6)),0) -> 0.7743060559 | Y6: =_xll.BDP(AC6 & " Equity",$Y$2) -> 8.862833 | Z6: =_xll.BDP(AC6 & " Equity",$Z$2) -> 20.75422 | AA6: =_xll.BDP(AC6 & " Equity",$AA$2) -> 0.5631402 | AB6: =_xll.BDP(AC6 & " Equity",$AB$2) -> AOL US | AC6: =_xll.BDP(B6,$AC$2) -> EQ0000000008417856 | AD6: =_xll.BDP(AC6 & " Equity",$AD$2) -> 46.46 | AE6: 50 | AF6: 45 | AG6: =_xll.BDP(B6,$AG$2) -> USD | AH6: =_xll.BDP(B6,$AH$2) -> 379500000 | AI6: =IFERROR(VLOOKUP(A6,'Fisch Holding'!$A$5:$C$1245,3,FALSE)/AH6,"-") -> 0.02292490119 | AJ6: =IFERROR(VLOOKUP(A6,'BM Weight'!$A$7:$D$1020,3,FALSE),"-") -> - | AK6: =IFERROR(VLOOKUP(A6,'BM Weight'!$A$7:$D$1020,4,FALSE),"- ") -> - | AL6: =IFERROR(VLOOKUP(A6,'Implied Rating'!$B$7:$C$1179,2,FALSE),"-") -> BB+ | AM6: =IFERROR(VLOOKUP(A6,'ICV Rating'!$B$5:$E$1306,2,FALSE),"-") -> BB | AN6: =_xll.BDP(B6,$AN$2) -> #N/A N/A | AO6: =_xll.BDP(B6,$AO$2) -> #N/A N/A | AP6: =_xll.BDP(B6,$AP$2) -> #N/A N/A | AQ6: =_xll.BDP(B6,$AQ$2) -> N | AR6: =_xll.BDP(B6,$AR$2) -> Optionally | AS6: =_xll.BDP(B6,$AS$2) -> N | AT6: =_xll.BDP(B6,$AT$2) -> N | AU6: =_xll.BDP(B6,$AU$2) -> N | AV6: =_xll.BDP(B6,$AV$2) -> N | AW6: =_xll.BDP(B6,$AW$2) -> US | AX6: =_xll.BDP(AC6 & " Equity",$AX$2) -> Information Technology | AY6: =_xll.BDP(AC6 & " Equity",$AY$2) -> Software & Services | AZ6: =_xll.BDP(AC6 & " Equity",$AZ$2) -> Internet Software & Services | BB6: 0 | BC6: =_xll.BDP(B6,$BC$2) -> 4.549710444 | BD6: =_xll.BDP(B6,$BD$2) -> 2.458241574 | BE6: =_xll.BDP(B6,$BE$2) -> -230.7028671 | BF6: =_xll.BDP(B6,$BF$2) -> -0.87 | BG6: =_xll.BDP(B6,$BG$2) -> 0.281646034 | BH6: =_xll.BDP(B6,$BH$2) -> 4.498097476 | BI6: =_xll.BDP(B6,$BI$2) -> 10.73377179 | BK6: =_xll.BDP(B6,$BK$2) -> 107.4448 | BL6: =_xll.BDP(B6,$BL$2) -> #N/A Field Not Applicable | BM6: =_xll.BDP(B6,$BM$2) -> 63.78905403 | BN6: =_xll.BDP(B6,$BN$2) -> 0.005131891102 | BO6: =_xll.BDP(B6,$BO$2) -> 32.88654881 | BP6: =_xll.BDP(AC6 & " Equity",$BP$2) -> #N/A N/A | BQ6: =_xll.BDP(AC6 & " Equity",$BQ$2) -> 06.02.2015 | BR6: =_xll.BDP(AC6 & " Equity",$BR$2) -> 33.55986416
A7: US095229AB69 | B7: =A7 & " Corp" -> US095229AB69 Corp | C7: BLUCORA INC | D7: =_xll.BDP(B7,$D$2) -> BLUCORA INC | E7: =_xll.BDP(B7,$E$2) -> 4.25 | F7: =_xll.BDP(B7,$F$2) -> 01.04.2019 | G7: =_xll.BDP(B7,$G$2) -> #N/A Field Not Applicable | H7: =_xll.BDP(B7,$H$2) -> 06.04.2016 | I7: 2013-11-12 | J7: NE 3.2013; USD 200 Mio; PP; I-CV 6.13 | K7: -1 | L7: =ROUND((T7*T$2+U7*U$2+S7*S$2+IF(P7="NR",0,P7^2*SIGN(P7))+M7*M$2)/(L$2-IF(P7="NR",0,P$2)-IF(S7,0,S$2)),0) -> -1 | M7: 0 | N7: 0 | O7: 1 | P7: -1 | Q7: 2013-11-12 | R7: -2 | S7: =VLOOKUP(AX7,[1]Sheet1!$C$8:$D$23,2,FALSE) -> 1 | T7: =MIN(ROUND(ABS(V7/AD7)*200,0),2)*SIGN(V7) -> -1 | U7: =MIN(ROUND(ABS(X7),0),2)*IFERROR(SIGN(X7),0) -> -2 | V7: =_xll.BDP(AC7 & " Equity",$V$3) -> -0.03618972003 | W7: =_xll.BDP(AC7 & " Equity",$W$3) -> 38.70542978 | X7: =IFERROR(10*LN((100+Z7)/(100+$Z$1))+2*LN((100+$W$2)/(100+W7)),0) -> -2.751119703 | Y7: =_xll.BDP(AC7 & " Equity",$Y$2) -> -1.143292 | Z7: =_xll.BDP(AC7 & " Equity",$Z$2) -> -14.55863 | AA7: =_xll.BDP(AC7 & " Equity",$AA$2) -> -6.353793 | AB7: =_xll.BDP(AC7 & " Equity",$AB$2) -> BCOR US | AC7: =_xll.BDP(B7,$AC$2) -> EQ0034880100001000 | AD7: =_xll.BDP(AC7 & " Equity",$AD$2) -> 12.65 | AE7: 15.5 | AF7: 12 | AG7: =_xll.BDP(B7,$AG$2) -> USD | AH7: =_xll.BDP(B7,$AH$2) -> 201250000 | AI7: =IFERROR(VLOOKUP(A7,'Fisch Holding'!$A$5:$C$1245,3,FALSE)/AH7,"-") -> - | AJ7: =IFERROR(VLOOKUP(A7,'BM Weight'!$A$7:$D$1020,3,FALSE),"-") -> - | AK7: =IFERROR(VLOOKUP(A7,'BM Weight'!$A$7:$D$1020,4,FALSE),"- ") -> - | AL7: =IFERROR(VLOOKUP(A7,'Implied Rating'!$B$7:$C$1179,2,FALSE),"-") -> CCC | AM7: =IFERROR(VLOOKUP(A7,'ICV Rating'!$B$5:$E$1306,2,FALSE),"-") -> B- | AN7: =_xll.BDP(B7,$AN$2) -> #N/A N/A | AO7: =_xll.BDP(B7,$AO$2) -> #N/A N/A | AP7: =_xll.BDP(B7,$AP$2) -> #N/A N/A | AQ7: =_xll.BDP(B7,$AQ$2) -> N | AR7: =_xll.BDP(B7,$AR$2) -> Optionally | AS7: =_xll.BDP(B7,$AS$2) -> N | AT7: =_xll.BDP(B7,$AT$2) -> N | AU7: =_xll.BDP(B7,$AU$2) -> N | AV7: =_xll.BDP(B7,$AV$2) -> Y | AW7: =_xll.BDP(B7,$AW$2) -> US | AX7: =_xll.BDP(AC7 & " Equity",$AX$2) -> Information Technology | AY7: =_xll.BDP(AC7 & " Equity",$AY$2) -> Software & Services | AZ7: =_xll.BDP(AC7 & " Equity",$AZ$2) -> Internet Software & Services | BB7: 0 | BC7: =_xll.BDP(B7,$BC$2) -> 3.704302042 | BD7: =_xll.BDP(B7,$BD$2) -> 2.248167467 | BE7: =_xll.BDP(B7,$BE$2) -> 478.3845261 | BF7: =_xll.BDP(B7,$BF$2) -> 6.112 | BG7: =_xll.BDP(B7,$BG$2) -> -1.25115077 | BH7: =_xll.BDP(B7,$BH$2) -> -1.119088149 | BI7: =_xll.BDP(B7,$BI$2) -> -6.815833795 | BK7: =_xll.BDP(B7,$BK$2) -> 92.77158 | BL7: =_xll.BDP(B7,$BL$2) -> #N/A Field Not Applicable | BM7: =_xll.BDP(B7,$BM$2) -> 42.56419513 | BN7: =_xll.BDP(B7,$BN$2) -> 0.005703234118 | BO7: =_xll.BDP(B7,$BO$2) -> 55.62037546 | BP7: =_xll.BDP(AC7 & " Equity",$BP$2) -> #N/A N/A | BQ7: =_xll.BDP(AC7 & " Equity",$BQ$2) -> 20.02.2015 | BR7: =_xll.BDP(AC7 & " Equity",$BR$2) -> 33.61666031
A8: US101388AA48 | B8: =A8 & " Corp" -> US101388AA48 Corp | C8: BOTTOMLINE TECHNOLOGIES | D8: =_xll.BDP(B8,$D$2) -> BOTTOMLINE TECHNOLOGIES | E8: =_xll.BDP(B8,$E$2) -> 1.5 | F8: =_xll.BDP(B8,$F$2) -> 01.12.2017 | G8: =_xll.BDP(B8,$G$2) -> #N/A Field Not Applicable | H8: =_xll.BDP(B8,$H$2) -> #N/A Field Not Applicable | I8: 2014-10-29 | J8: 190 Mio; implied B | K8: -1 | L8: =ROUND((T8*T$2+U8*U$2+S8*S$2+IF(P8="NR",0,P8^2*SIGN(P8))+M8*M$2)/(L$2-IF(P8="NR",0,P$2)-IF(S8,0,S$2)),0) -> -1 | M8: 0 | N8: 0 | O8: 1 | P8: NR | Q8: 2014-03-03 | R8: 1 | S8: =VLOOKUP(AX8,[1]Sheet1!$C$8:$D$23,2,FALSE) -> 1 | T8: =MIN(ROUND(ABS(V8/AD8)*200,0),2)*SIGN(V8) -> -2 | U8: =MIN(ROUND(ABS(X8),0),2)*IFERROR(SIGN(X8),0) -> -2 | V8: =_xll.BDP(AC8 & " Equity",$V$3) -> -0.3354155719 | W8: =_xll.BDP(AC8 & " Equity",$W$3) -> 53.22119195 | X8: =IFERROR(10*LN((100+Z8)/(100+$Z$1))+2*LN((100+$W$2)/(100+W8)),0) -> -3.904632664 | Y8: =_xll.BDP(AC8 & " Equity",$Y$2) -> -6.127888 | Z8: =_xll.BDP(AC8 & " Equity",$Z$2) -> -22.33652 | AA8: =_xll.BDP(AC8 & " Equity",$AA$2) -> -16.37658 | AB8: =_xll.BDP(AC8 & " Equity",$AB$2) -> EPAY US | AC8: =_xll.BDP(B8,$AC$2) -> EQ0038610300001000 | AD8: =_xll.BDP(AC8 & " Equity",$AD$2) -> 22 | AE8: 26 | AF8: 20 | AG8: =_xll.BDP(B8,$AG$2) -> USD | AH8: =_xll.BDP(B8,$AH$2) -> 189750000 | AI8: =IFERROR(VLOOKUP(A8,'Fisch Holding'!$A$5:$C$1245,3,FALSE)/AH8,"-") -> - | AJ8: =IFERROR(VLOOKUP(A8,'BM Weight'!$A$7:$D$1020,3,FALSE),"-") -> - | AK8: =IFERROR(VLOOKUP(A8,'BM Weight'!$A$7:$D$1020,4,FALSE),"- ") -> - | AL8: =IFERROR(VLOOKUP(A8,'Implied Rating'!$B$7:$C$1179,2,FALSE),"-") -> BB- | AM8: =IFERROR(VLOOKUP(A8,'ICV Rating'!$B$5:$E$1306,2,FALSE),"-") -> 0 | AN8: =_xll.BDP(B8,$AN$2) -> #N/A N/A | AO8: =_xll.BDP(B8,$AO$2) -> #N/A N/A | AP8: =_xll.BDP(B8,$AP$2) -> #N/A N/A | AQ8: =_xll.BDP(B8,$AQ$2) -> N | AR8: =_xll.BDP(B8,$AR$2) -> Optionally | AS8: =_xll.BDP(B8,$AS$2) -> N | AT8: =_xll.BDP(B8,$AT$2) -> N | AU8: =_xll.BDP(B8,$AU$2) -> N | AV8: =_xll.BDP(B8,$AV$2) -> N | AW8: =_xll.BDP(B8,$AW$2) -> US | AX8: =_xll.BDP(AC8 & " Equity",$AX$2) -> Information Technology | AY8: =_xll.BDP(AC8 & " Equity",$AY$2) -> Software & Services | AZ8: =_xll.BDP(AC8 & " Equity",$AZ$2) -> Software | BB8: 0 | BC8: =_xll.BDP(B8,$BC$2) -> 2.779275542 | BD8: =_xll.BDP(B8,$BD$2) -> 1.644412157 | BE8: =_xll.BDP(B8,$BE$2) -> 78.09754518 | BF8: =_xll.BDP(B8,$BF$2) -> 1.814 | BG8: =_xll.BDP(B8,$BG$2) -> -6.3971462 | BH8: =_xll.BDP(B8,$BH$2) -> -2.819743454 | BI8: =_xll.BDP(B8,$BI$2) -> -11.96034735 | BK8: =_xll.BDP(B8,$BK$2) -> 98.93505 | BL8: =_xll.BDP(B8,$BL$2) -> #N/A Field Not Applicable | BM8: =_xll.BDP(B8,$BM$2) -> 58.05847836 | BN8: =_xll.BDP(B8,$BN$2) -> 0.005493368891 | BO8: =_xll.BDP(B8,$BO$2) -> 40.79808524 | BP8: =_xll.BDP(AC8 & " Equity",$BP$2) -> #N/A N/A | BQ8: =_xll.BDP(AC8 & " Equity",$BQ$2) -> 30.01.2015 | BR8: =_xll.BDP(AC8 & " Equity",$BR$2) -> 46.22446696 | BT8: 2013-11-05
A9: US11133BAB80 | B9: =A9 & " Corp" -> US11133BAB80 Corp | C9: BROADSOFT INC | D9: =_xll.BDP(B9,$D$2) -> BROADSOFT INC | E9: =_xll.BDP(B9,$E$2) -> 1.5 | F9: =_xll.BDP(B9,$F$2) -> 01.07.2018 | G9: =_xll.BDP(B9,$G$2) -> #N/A Field Not Applicable | H9: =_xll.BDP(B9,$H$2) -> #N/A Field Not Applicable | I9: 2014-02-03 | J9: USD 120 Mio; Voice-Internet(Cloud)-Provider | K9: 0 | L9: =ROUND((T9*T$2+U9*U$2+S9*S$2+IF(P9="NR",0,P9^2*SIGN(P9))+M9*M$2)/(L$2-IF(P9="NR",0,P$2)-IF(S9,0,S$2)),0) -> 0 | M9: 0 | N9: 0 | O9: -1 | P9: NR | Q9: 2014-02-03 | R9: 1 | S9: =VLOOKUP(AX9,[1]Sheet1!$C$8:$D$23,2,FALSE) -> 1 | T9: =MIN(ROUND(ABS(V9/AD9)*200,0),2)*SIGN(V9) -> -1 | U9: =MIN(ROUND(ABS(X9),0),2)*IFERROR(SIGN(X9),0) -> 2 | V9: =_xll.BDP(AC9 & " Equity",$V$3) -> -0.1268191636 | W9: =_xll.BDP(AC9 & " Equity",$W$3) -> 48.6320327 | X9: =IFERROR(10*LN((100+Z9)/(100+$Z$1))+2*LN((100+$W$2)/(100+W9)),0) -> 2.531242558 | Y9: =_xll.BDP(AC9 & " Equity",$Y$2) -> 5.805988 | Z9: =_xll.BDP(AC9 & " Equity",$Z$2) -> 46.92039 | AA9: =_xll.BDP(AC9 & " Equity",$AA$2) -> 1.102686 | AB9: =_xll.BDP(AC9 & " Equity",$AB$2) -> BSFT US | AC9: =_xll.BDP(B9,$AC$2) -> EQ0088175000001000 | AD9: =_xll.BDP(AC9 & " Equity",$AD$2) -> 28.505 | AE9: 29.5 | AF9: 27 | AG9: =_xll.BDP(B9,$AG$2) -> USD | AH9: =_xll.BDP(B9,$AH$2) -> 120000000 | AI9: =IFERROR(VLOOKUP(A9,'Fisch Holding'!$A$5:$C$1245,3,FALSE)/AH9,"-") -> - | AJ9: =IFERROR(VLOOKUP(A9,'BM Weight'!$A$7:$D$1020,3,FALSE),"-") -> - | AK9: =IFERROR(VLOOKUP(A9,'BM Weight'!$A$7:$D$1020,4,FALSE),"- ") -> - | AL9: =IFERROR(VLOOKUP(A9,'Implied Rating'!$B$7:$C$1179,2,FALSE),"-") -> B+ | AM9: =IFERROR(VLOOKUP(A9,'ICV Rating'!$B$5:$E$1306,2,FALSE),"-") -> 0 | AN9: =_xll.BDP(B9,$AN$2) -> #N/A N/A | AO9: =_xll.BDP(B9,$AO$2) -> #N/A N/A | AP9: =_xll.BDP(B9,$AP$2) -> #N/A N/A | AQ9: =_xll.BDP(B9,$AQ$2) -> N | AR9: =_xll.BDP(B9,$AR$2) -> Optionally | AS9: =_xll.BDP(B9,$AS$2) -> N | AT9: =_xll.BDP(B9,$AT$2) -> N | AU9: =_xll.BDP(B9,$AU$2) -> N | AV9: =_xll.BDP(B9,$AV$2) -> N | AW9: =_xll.BDP(B9,$AW$2) -> US | AX9: =_xll.BDP(AC9 & " Equity",$AX$2) -> Information Technology | AY9: =_xll.BDP(AC9 & " Equity",$AY$2) -> Software & Services | AZ9: =_xll.BDP(AC9 & " Equity",$AZ$2) -> Software | BB9: 0 | BC9: =_xll.BDP(B9,$BC$2) -> 3.366383727 | BD9: =_xll.BDP(B9,$BD$2) -> 2.069197759 | BE9: =_xll.BDP(B9,$BE$2) -> -113.7418101 | BF9: =_xll.BDP(B9,$BF$2) -> 0.048 | BG9: =_xll.BDP(B9,$BG$2) -> 1.225630101 | BH9: =_xll.BDP(B9,$BH$2) -> 2.003589062 | BI9: =_xll.BDP(B9,$BI$2) -> 7.171853154 | BK9: =_xll.BDP(B9,$BK$2) -> 104.5442 | BL9: =_xll.BDP(B9,$BL$2) -> #N/A Field Not Applicable | BM9: =_xll.BDP(B9,$BM$2) -> 53.16371257 | BN9: =_xll.BDP(B9,$BN$2) -> 0.003917958482 | BO9: =_xll.BDP(B9,$BO$2) -> 50.28446795 | BP9: =_xll.BDP(AC9 & " Equity",$BP$2) -> #N/A N/A | BQ9: =_xll.BDP(AC9 & " Equity",$BQ$2) -> 27.02.2015 | BR9: =_xll.BDP(AC9 & " Equity",$BR$2) -> 42.86138994
A10: US111621AP39 | B10: =A10 & " Corp" -> US111621AP39 Corp | C10: ENVESTNET INC | D10: =_xll.BDP(B10,$D$2) -> BROCADE COMMUNICATIONS | E10: =_xll.BDP(B10,$E$2) -> 1.375 | F10: =_xll.BDP(B10,$F$2) -> 01.01.2020 | G10: =_xll.BDP(B10,$G$2) -> #N/A Field Not Applicable | H10: =_xll.BDP(B10,$H$2) -> #N/A Field Not Applicable | I10: 2015-01-15 | J10: NE Dez. 14 | K10: 1 | L10: =ROUND((T10*T$2+U10*U$2+S10*S$2+IF(P10="NR",0,P10^2*SIGN(P10))+M10*M$2)/(L$2-IF(P10="NR",0,P$2)-IF(S10,0,S$2)),0) -> 1 | M10: 1 | N10: -1 | O10: 0 | P10: NR | Q10: 2014-04-22 | R10: 0 | S10: =VLOOKUP(AX10,[1]Sheet1!$C$8:$D$23,2,FALSE) -> 1 | T10: =MIN(ROUND(ABS(V10/AD10)*200,0),2)*SIGN(V10) -> 0 | U10: =MIN(ROUND(ABS(X10),0),2)*IFERROR(SIGN(X10),0) -> 2 | V10: =_xll.BDP(AC10 & " Equity",$V$3) -> 0.009041666985 | W10: =_xll.BDP(AC10 & " Equity",$W$3) -> 24.3159972 | X10: =IFERROR(10*LN((100+Z10)/(100+$Z$1))+2*LN((100+$W$2)/(100+W10)),0) -> 1.62651998 | Y10: =_xll.BDP(AC10 & " Equity",$Y$2) -> 8.054297 | Z10: =_xll.BDP(AC10 & " Equity",$Z$2) -> 29.50108 | AA10: =_xll.BDP(AC10 & " Equity",$AA$2) -> 0.8445933 | AB10: =_xll.BDP(AC10 & " Equity",$AB$2) -> BRCD US | AC10: =_xll.BDP(B10,$AC$2) -> EQ0035600800001000 | AD10: =_xll.BDP(AC10 & " Equity",$AD$2) -> 11.88 | AE10: 12.2 | AF10: 11.5 | AG10: =_xll.BDP(B10,$AG$2) -> USD | AH10: =_xll.BDP(B10,$AH$2) -> 500000000 | AI10: =IFERROR(VLOOKUP(A10,'Fisch Holding'!$A$5:$C$1245,3,FALSE)/AH10,"-") -> 0.029 | AJ10: =IFERROR(VLOOKUP(A10,'BM Weight'!$A$7:$D$1020,3,FALSE),"-") -> - | AK10: =IFERROR(VLOOKUP(A10,'BM Weight'!$A$7:$D$1020,4,FALSE),"- ") -> - | AL10: =IFERROR(VLOOKUP(A10,'Implied Rating'!$B$7:$C$1179,2,FALSE),"-") -> BB+ | AM10: =IFERROR(VLOOKUP(A10,'ICV Rating'!$B$5:$E$1306,2,FALSE),"-") -> 0 | AN10: =_xll.BDP(B10,$AN$2) -> BB | AO10: =_xll.BDP(B10,$AO$2) -> Ba2 | AP10: =_xll.BDP(B10,$AP$2) -> BB+ | AQ10: =_xll.BDP(B10,$AQ$2) -> N | AR10: =_xll.BDP(B10,$AR$2) -> Optionally | AS10: =_xll.BDP(B10,$AS$2) -> N | AT10: =_xll.BDP(B10,$AT$2) -> #N/A N/A | AU10: =_xll.BDP(B10,$AU$2) -> N | AV10: =_xll.BDP(B10,$AV$2) -> N | AW10: =_xll.BDP(B10,$AW$2) -> US | AX10: =_xll.BDP(AC10 & " Equity",$AX$2) -> Information Technology | AY10: =_xll.BDP(AC10 & " Equity",$AY$2) -> Technology Hardware & Equipmen | AZ10: =_xll.BDP(AC10 & " Equity",$AZ$2) -> Communications Equipment | BB10: 0 | BC10: =_xll.BDP(B10,$BC$2) -> 4.787055505 | BD10: =_xll.BDP(B10,$BD$2) -> 2.956193921 | BE10: =_xll.BDP(B10,$BE$2) -> -100.9497826 | BF10: =_xll.BDP(B10,$BF$2) -> 0.484 | BG10: =_xll.BDP(B10,$BG$2) -> #N/A N/A | BH10: =_xll.BDP(B10,$BH$2) -> #N/A N/A | BI10: =_xll.BDP(B10,$BI$2) -> #N/A N/A | BK10: =_xll.BDP(B10,$BK$2) -> 104.171 | BL10: =_xll.BDP(B10,$BL$2) -> #N/A Field Not Applicable | BM10: =_xll.BDP(B10,$BM$2) -> 57.21038231 | BN10: =_xll.BDP(B10,$BN$2) -> 0.005534421298 | BO10: =_xll.BDP(B10,$BO$2) -> 39.21548344 | BP10: =_xll.BDP(AC10 & " Equity",$BP$2) -> 1.172529318 | BQ10: =_xll.BDP(AC10 & " Equity",$BQ$2) -> 13.02.2015 | BR10: =_xll.BDP(AC10 & " Equity",$BR$2) -> 28.36926537
A11: US127387AJ78 | B11: =A11 & " Corp" -> US127387AJ78 Corp | C11: CADENCE DESIGN SYS INC | D11: =_xll.BDP(B11,$D$2) -> CADENCE DESIGN SYS INC | E11: =_xll.BDP(B11,$E$2) -> 2.625 | F11: =_xll.BDP(B11,$F$2) -> 01.06.2015 | G11: =_xll.BDP(B11,$G$2) -> #N/A Field Not Applicable | H11: =_xll.BDP(B11,$H$2) -> #N/A Field Not Applicable | I11: 2013-02-11 | K11: 0 | L11: =ROUND((T11*T$2+U11*U$2+S11*S$2+IF(P11="NR",0,P11^2*SIGN(P11))+M11*M$2)/(L$2-IF(P11="NR",0,P$2)-IF(S11,0,S$2)),0) -> -1 | M11: -1 | N11: -1 | O11: -2 | P11: NR | Q11: 2013-02-11 | R11: 1 | S11: =VLOOKUP(AX11,[1]Sheet1!$C$8:$D$23,2,FALSE) -> 1 | T11: =MIN(ROUND(ABS(V11/AD11)*200,0),2)*SIGN(V11) -> -1 | U11: =MIN(ROUND(ABS(X11),0),2)*IFERROR(SIGN(X11),0) -> 0 | V11: =_xll.BDP(AC11 & " Equity",$V$3) -> -0.07702220231 | W11: =_xll.BDP(AC11 & " Equity",$W$3) -> 21.90996764 | X11: =IFERROR(10*LN((100+Z11)/(100+$Z$1))+2*LN((100+$W$2)/(100+W11)),0) -> 0.3989203328 | Y11: =_xll.BDP(AC11 & " Equity",$Y$2) -> 2.383624 | Z11: =_xll.BDP(AC11 & " Equity",$Z$2) -> 14.09375 | AA11: =_xll.BDP(AC11 & " Equity",$AA$2) -> -3.769106 | AB11: =_xll.BDP(AC11 & " Equity",$AB$2) -> CDNS US | AC11: =_xll.BDP(B11,$AC$2) -> EQ0010025400001000 | AD11: =_xll.BDP(AC11 & " Equity",$AD$2) -> 18.19 | AE11: 19 | AF11: 16 | AG11: =_xll.BDP(B11,$AG$2) -> USD | AH11: =_xll.BDP(B11,$AH$2) -> 350000000 | AI11: =IFERROR(VLOOKUP(A11,'Fisch Holding'!$A$5:$C$1245,3,FALSE)/AH11,"-") -> - | AJ11: =IFERROR(VLOOKUP(A11,'BM Weight'!$A$7:$D$1020,3,FALSE),"-") -> - | AK11: =IFERROR(VLOOKUP(A11,'BM Weight'!$A$7:$D$1020,4,FALSE),"- ") -> - | AL11: =IFERROR(VLOOKUP(A11,'Implied Rating'!$B$7:$C$1179,2,FALSE),"-") -> B+ | AM11: =IFERROR(VLOOKUP(A11,'ICV Rating'!$B$5:$E$1306,2,FALSE),"-") -> 0 | AN11: =_xll.BDP(B11,$AN$2) -> #N/A N/A | AO11: =_xll.BDP(B11,$AO$2) -> Baa2 | AP11: =_xll.BDP(B11,$AP$2) -> BBB- | AQ11: =_xll.BDP(B11,$AQ$2) -> N | AR11: =_xll.BDP(B11,$AR$2) -> Optionally | AS11: =_xll.BDP(B11,$AS$2) -> N | AT11: =_xll.BDP(B11,$AT$2) -> Y | AU11: =_xll.BDP(B11,$AU$2) -> N | AV11: =_xll.BDP(B11,$AV$2) -> N | AW11: =_xll.BDP(B11,$AW$2) -> US | AX11: =_xll.BDP(AC11 & " Equity",$AX$2) -> Information Technology | AY11: =_xll.BDP(AC11 & " Equity",$AY$2) -> Software & Services | AZ11: =_xll.BDP(AC11 & " Equity",$AZ$2) -> Software | BB11: 0 | BC11: =_xll.BDP(B11,$BC$2) -> 0.8647440145 | BD11: =_xll.BDP(B11,$BD$2) -> -0.01470164257 | BE11: =_xll.BDP(B11,$BE$2) -> -14076.97112 | BF11: =_xll.BDP(B11,$BF$2) -> -161.566 | BG11: =_xll.BDP(B11,$BG$2) -> -0.9110608759 | BH11: =_xll.BDP(B11,$BH$2) -> 2.469961548 | BI11: =_xll.BDP(B11,$BI$2) -> 14.01309549 | BK11: =_xll.BDP(B11,$BK$2) -> 242.2458 | BL11: =_xll.BDP(B11,$BL$2) -> #N/A Field Not Applicable | BM11: =_xll.BDP(B11,$BM$2) -> 100 | BN11: =_xll.BDP(B11,$BN$2) -> -5.080740749e-14 | BO11: =_xll.BDP(B11,$BO$2) -> 0.3835371582 | BP11: =_xll.BDP(AC11 & " Equity",$BP$2) -> #N/A N/A | BQ11: =_xll.BDP(AC11 & " Equity",$BQ$2) -> 04.02.2015 | BR11: =_xll.BDP(AC11 & " Equity",$BR$2) -> 23.87482023
A12: US136635AD18 | B12: =A12 & " Corp" -> US136635AD18 Corp | C12: Canadian Solar | D12: =_xll.BDP(B12,$D$2) -> CANADIAN SOLAR INC | E12: =_xll.BDP(B12,$E$2) -> 4.25 | F12: =_xll.BDP(B12,$F$2) -> 15.02.2019 | G12: =_xll.BDP(B12,$G$2) -> #N/A Field Not Applicable | H12: =_xll.BDP(B12,$H$2) -> #N/A Field Not Applicable | I12: 2014-09-11 | J12: NE Febr. 14; USD 150 Mio | K12: 1 | L12: =ROUND((T12*T$2+U12*U$2+S12*S$2+IF(P12="NR",0,P12^2*SIGN(P12))+M12*M$2)/(L$2-IF(P12="NR",0,P$2)-IF(S12,0,S$2)),0) -> 0 | M12: 1 | N12: -1 | O12: 0 | P12: 0 | Q12: 2014-08-18 | R12: -2 | S12: =VLOOKUP(AX12,[1]Sheet1!$C$8:$D$23,2,FALSE) -> 1 | T12: =MIN(ROUND(ABS(V12/AD12)*200,0),2)*SIGN(V12) -> 1 | U12: =MIN(ROUND(ABS(X12),0),2)*IFERROR(SIGN(X12),0) -> -2 | V12: =_xll.BDP(AC12 & " Equity",$V$3) -> 0.0725774169 | W12: =_xll.BDP(AC12 & " Equity",$W$3) -> 63.7032952 | X12: =IFERROR(10*LN((100+Z12)/(100+$Z$1))+2*LN((100+$W$2)/(100+W12)),0) -> -3.469781937 | Y12: =_xll.BDP(AC12 & " Equity",$Y$2) -> -0.5386027 | Z12: =_xll.BDP(AC12 & " Equity",$Z$2) -> -17.80415 | AA12: =_xll.BDP(AC12 & " Equity",$AA$2) -> -8.3919 | AB12: =_xll.BDP(AC12 & " Equity",$AB$2) -> CSIQ US | AC12: =_xll.BDP(B12,$AC$2) -> EQ0000000002925337 | AD12: =_xll.BDP(AC12 & " Equity",$AD$2) -> 22.02 | AE12: 25 | AF12: 20 | AG12: =_xll.BDP(B12,$AG$2) -> USD | AH12: =_xll.BDP(B12,$AH$2) -> 150000000 | AI12: =IFERROR(VLOOKUP(A12,'Fisch Holding'!$A$5:$C$1245,3,FALSE)/AH12,"-") -> - | AJ12: =IFERROR(VLOOKUP(A12,'BM Weight'!$A$7:$D$1020,3,FALSE),"-") -> - | AK12: =IFERROR(VLOOKUP(A12,'BM Weight'!$A$7:$D$1020,4,FALSE),"- ") -> - | AL12: =IFERROR(VLOOKUP(A12,'Implied Rating'!$B$7:$C$1179,2,FALSE),"-") -> CCC+ | AM12: =IFERROR(VLOOKUP(A12,'ICV Rating'!$B$5:$E$1306,2,FALSE),"-") -> B | AN12: =_xll.BDP(B12,$AN$2) -> #N/A N/A | AO12: =_xll.BDP(B12,$AO$2) -> #N/A N/A | AP12: =_xll.BDP(B12,$AP$2) -> #N/A N/A | AQ12: =_xll.BDP(B12,$AQ$2) -> N | AR12: =_xll.BDP(B12,$AR$2) -> Optionally | AS12: =_xll.BDP(B12,$AS$2) -> N | AT12: =_xll.BDP(B12,$AT$2) -> #N/A N/A | AU12: =_xll.BDP(B12,$AU$2) -> N | AV12: =_xll.BDP(B12,$AV$2) -> N | AW12: =_xll.BDP(B12,$AW$2) -> CA | AX12: =_xll.BDP(AC12 & " Equity",$AX$2) -> Information Technology | AY12: =_xll.BDP(AC12 & " Equity",$AY$2) -> Semiconductors & Semiconductor | AZ12: =_xll.BDP(AC12 & " Equity",$AZ$2) -> Semiconductors & Semiconductor | BB12: 0 | BC12: =_xll.BDP(B12,$BC$2) -> 3.532888647 | BD12: =_xll.BDP(B12,$BD$2) -> 2.284814558 | BE12: =_xll.BDP(B12,$BE$2) -> 666.6694624 | BF12: =_xll.BDP(B12,$BF$2) -> 7.973 | BG12: =_xll.BDP(B12,$BG$2) -> -0.2468912457 | BH12: =_xll.BDP(B12,$BH$2) -> -0.5614987838 | BI12: =_xll.BDP(B12,$BI$2) -> -11.496527 | BK12: =_xll.BDP(B12,$BK$2) -> 87.03993 | BL12: =_xll.BDP(B12,$BL$2) -> #N/A Field Not Applicable | BM12: =_xll.BDP(B12,$BM$2) -> 61.86655468 | BN12: =_xll.BDP(B12,$BN$2) -> 0.003672642532 | BO12: =_xll.BDP(B12,$BO$2) -> 77.23641492 | BP12: =_xll.BDP(AC12 & " Equity",$BP$2) -> #N/A N/A | BQ12: =_xll.BDP(AC12 & " Equity",$BQ$2) -> 05.03.2015 | BR12: =_xll.BDP(AC12 & " Equity",$BR$2) -> 63.2782382
A13: US14161HAG39 | B13: =A13 & " Corp" -> US14161HAG39 Corp | C13: CARDTRONICS INC | D13: =_xll.BDP(B13,$D$2) -> CARDTRONICS INC | E13: =_xll.BDP(B13,$E$2) -> 1 | F13: =_xll.BDP(B13,$F$2) -> 01.12.2020 | G13: =_xll.BDP(B13,$G$2) -> #N/A Field Not Applicable | H13: =_xll.BDP(B13,$H$2) -> #N/A Field Not Applicable | I13: 2014-07-28 | J13: NE Nov. 13; 288 Mio; BB+; ATM-Operator | K13: 1 | L13: =ROUND((T13*T$2+U13*U$2+S13*S$2+IF(P13="NR",0,P13^2*SIGN(P13))+M13*M$2)/(L$2-IF(P13="NR",0,P$2)-IF(S13,0,S$2)),0) -> 0 | M13: 1 | N13: 0 | O13: 0 | P13: 0 | Q13: 2014-07-28 | R13: -1 | S13: =VLOOKUP(AX13,[1]Sheet1!$C$8:$D$23,2,FALSE) -> 1 | T13: =MIN(ROUND(ABS(V13/AD13)*200,0),2)*SIGN(V13) -> -1 | U13: =MIN(ROUND(ABS(X13),0),2)*IFERROR(SIGN(X13),0) -> -1 | V13: =_xll.BDP(AC13 & " Equity",$V$3) -> -0.1941755265 | W13: =_xll.BDP(AC13 & " Equity",$W$3) -> 26.44139057 | X13: =IFERROR(10*LN((100+Z13)/(100+$Z$1))+2*LN((100+$W$2)/(100+W13)),0) -> -0.5872081196 | Y13: =_xll.BDP(AC13 & " Equity",$Y$2) -> -0.7477947 | Z13: =_xll.BDP(AC13 & " Equity",$Z$2) -> 4.136949 | AA13: =_xll.BDP(AC13 & " Equity",$AA$2) -> -5.391399 | AB13: =_xll.BDP(AC13 & " Equity",$AB$2) -> CATM US | AC13: =_xll.BDP(B13,$AC$2) -> EQ0725889700001000 | AD13: =_xll.BDP(AC13 & " Equity",$AD$2) -> 35.4035 | AE13: 40 | AF13: 36 | AG13: =_xll.BDP(B13,$AG$2) -> USD | AH13: =_xll.BDP(B13,$AH$2) -> 287500000 | AI13: =IFERROR(VLOOKUP(A13,'Fisch Holding'!$A$5:$C$1245,3,FALSE)/AH13,"-") -> - | AJ13: =IFERROR(VLOOKUP(A13,'BM Weight'!$A$7:$D$1020,3,FALSE),"-") -> - | AK13: =IFERROR(VLOOKUP(A13,'BM Weight'!$A$7:$D$1020,4,FALSE),"- ") -> - | AL13: =IFERROR(VLOOKUP(A13,'Implied Rating'!$B$7:$C$1179,2,FALSE),"-") -> BB+ | AM13: =IFERROR(VLOOKUP(A13,'ICV Rating'!$B$5:$E$1306,2,FALSE),"-") -> BB- | AN13: =_xll.BDP(B13,$AN$2) -> NR | AO13: =_xll.BDP(B13,$AO$2) -> Ba2 | AP13: =_xll.BDP(B13,$AP$2) -> BB+ | AQ13: =_xll.BDP(B13,$AQ$2) -> N | AR13: =_xll.BDP(B13,$AR$2) -> Optionally | AS13: =_xll.BDP(B13,$AS$2) -> N | AT13: =_xll.BDP(B13,$AT$2) -> N | AU13: =_xll.BDP(B13,$AU$2) -> N | AV13: =_xll.BDP(B13,$AV$2) -> N | AW13: =_xll.BDP(B13,$AW$2) -> US | AX13: =_xll.BDP(AC13 & " Equity",$AX$2) -> Information Technology | AY13: =_xll.BDP(AC13 & " Equity",$AY$2) -> Software & Services | AZ13: =_xll.BDP(AC13 & " Equity",$AZ$2) -> IT Services | BB13: 0 | BC13: =_xll.BDP(B13,$BC$2) -> 5.649692701 | BD13: =_xll.BDP(B13,$BD$2) -> 3.017065544 | BE13: =_xll.BDP(B13,$BE$2) -> -3.489122355 | BF13: =_xll.BDP(B13,$BF$2) -> 1.6 | BG13: =_xll.BDP(B13,$BG$2) -> -0.5276240766 | BH13: =_xll.BDP(B13,$BH$2) -> -1.036928516 | BI13: =_xll.BDP(B13,$BI$2) -> 2.466383508 | BK13: =_xll.BDP(B13,$BK$2) -> 96.4744 | BL13: =_xll.BDP(B13,$BL$2) -> #N/A Field Not Applicable | BM13: =_xll.BDP(B13,$BM$2) -> 66.68876888 | BN13: =_xll.BDP(B13,$BN$2) -> 0.004379441959 | BO13: =_xll.BDP(B13,$BO$2) -> 38.62564493 | BP13: =_xll.BDP(AC13 & " Equity",$BP$2) -> #N/A N/A | BQ13: =_xll.BDP(AC13 & " Equity",$BQ$2) -> 06.02.2015 | BR13: =_xll.BDP(AC13 & " Equity",$BR$2) -> 25.10889002
A14: US171779AE10 | B14: =A14 & " Corp" -> US171779AE10 Corp | C14: CIENA CORP | D14: =_xll.BDP(B14,$D$2) -> CIENA CORP | E14: =_xll.BDP(B14,$E$2) -> 0.875 | F14: =_xll.BDP(B14,$F$2) -> 15.06.2017 | G14: =_xll.BDP(B14,$G$2) -> #N/A Field Not Applicable | H14: =_xll.BDP(B14,$H$2) -> #N/A Field Not Applicable | I14: 2014-06-12 | J14: USD 500; I-CV Dez. 2010 (0.4% BM) | K14: -1 | L14: =ROUND((T14*T$2+U14*U$2+S14*S$2+IF(P14="NR",0,P14^2*SIGN(P14))+M14*M$2)/(L$2-IF(P14="NR",0,P$2)-IF(S14,0,S$2)),0) -> 0 | M14: -1 | N14: 0 | O14: 0 | P14: 0 | Q14: 2014-06-12 | R14: -1 | S14: =VLOOKUP(AX14,[1]Sheet1!$C$8:$D$23,2,FALSE) -> 1 | T14: =MIN(ROUND(ABS(V14/AD14)*200,0),2)*SIGN(V14) -> -1 | U14: =MIN(ROUND(ABS(X14),0),2)*IFERROR(SIGN(X14),0) -> 2 | V14: =_xll.BDP(AC14 & " Equity",$V$3) -> -0.1357170343 | W14: =_xll.BDP(AC14 & " Equity",$W$3) -> 39.11989002 | X14: =IFERROR(10*LN((100+Z14)/(100+$Z$1))+2*LN((100+$W$2)/(100+W14)),0) -> 1.70000646 | Y14: =_xll.BDP(AC14 & " Equity",$Y$2) -> 7.004969 | Z14: =_xll.BDP(AC14 & " Equity",$Z$2) -> 33.42503 | AA14: =_xll.BDP(AC14 & " Equity",$AA$2) -> -0.05151905 | AB14: =_xll.BDP(AC14 & " Equity",$AB$2) -> CIEN US | AC14: =_xll.BDP(B14,$AC$2) -> EQ0021104000001000 | AD14: =_xll.BDP(AC14 & " Equity",$AD$2) -> 19 | AE14: 19.5 | AF14: 18.5 | AG14: =_xll.BDP(B14,$AG$2) -> USD | AH14: =_xll.BDP(B14,$AH$2) -> 500000000 | AI14: =IFERROR(VLOOKUP(A14,'Fisch Holding'!$A$5:$C$1245,3,FALSE)/AH14,"-") -> - | AJ14: =IFERROR(VLOOKUP(A14,'BM Weight'!$A$7:$D$1020,3,FALSE),"-") -> - | AK14: =IFERROR(VLOOKUP(A14,'BM Weight'!$A$7:$D$1020,4,FALSE),"- ") -> - | AL14: =IFERROR(VLOOKUP(A14,'Implied Rating'!$B$7:$C$1179,2,FALSE),"-") -> BB | AM14: =IFERROR(VLOOKUP(A14,'ICV Rating'!$B$5:$E$1306,2,FALSE),"-") -> B- | AN14: =_xll.BDP(B14,$AN$2) -> NR | AO14: =_xll.BDP(B14,$AO$2) -> B2 | AP14: =_xll.BDP(B14,$AP$2) -> B | AQ14: =_xll.BDP(B14,$AQ$2) -> N | AR14: =_xll.BDP(B14,$AR$2) -> Optionally | AS14: =_xll.BDP(B14,$AS$2) -> N | AT14: =_xll.BDP(B14,$AT$2) -> N | AU14: =_xll.BDP(B14,$AU$2) -> N | AV14: =_xll.BDP(B14,$AV$2) -> N | AW14: =_xll.BDP(B14,$AW$2) -> US | AX14: =_xll.BDP(AC14 & " Equity",$AX$2) -> Information Technology | AY14: =_xll.BDP(AC14 & " Equity",$AY$2) -> Technology Hardware & Equipmen | AZ14: =_xll.BDP(AC14 & " Equity",$AZ$2) -> Communications Equipment | BB14: 0 | BC14: =_xll.BDP(B14,$BC$2) -> 2.366685315 | BD14: =_xll.BDP(B14,$BD$2) -> 2.15129308 | BE14: =_xll.BDP(B14,$BE$2) -> 0.208292619 | BF14: =_xll.BDP(B14,$BF$2) -> 0.891 | BG14: =_xll.BDP(B14,$BG$2) -> 0.2986089739 | BH14: =_xll.BDP(B14,$BH$2) -> 0.5920740762 | BI14: =_xll.BDP(B14,$BI$2) -> 3.541509718 | BK14: =_xll.BDP(B14,$BK$2) -> 99.75131 | BL14: =_xll.BDP(B14,$BL$2) -> #N/A Field Not Applicable | BM14: =_xll.BDP(B14,$BM$2) -> 19.48842946 | BN14: =_xll.BDP(B14,$BN$2) -> 0.005140251396 | BO14: =_xll.BDP(B14,$BO$2) -> 96.55363107 | BP14: =_xll.BDP(AC14 & " Equity",$BP$2) -> #N/A N/A | BQ14: =_xll.BDP(AC14 & " Equity",$BQ$2) -> 06.03.2015 | BR14: =_xll.BDP(AC14 & " Equity",$BR$2) -> 39.95433496
A15: US171779AK79 | B15: =A15 & " Corp" -> US171779AK79 Corp | C15: CIENA CORP | D15: =_xll.BDP(B15,$D$2) -> CIENA CORP | E15: =_xll.BDP(B15,$E$2) -> 4 | F15: =_xll.BDP(B15,$F$2) -> 15.12.2020 | G15: =_xll.BDP(B15,$G$2) -> #N/A Field Not Applicable | H15: =_xll.BDP(B15,$H$2) -> #N/A Field Not Applicable | I15: 2013-07-24 | J15: USD 187; I-CV Dez. 2010 | K15: 0 | L15: =ROUND((T15*T$2+U15*U$2+S15*S$2+IF(P15="NR",0,P15^2*SIGN(P15))+M15*M$2)/(L$2-IF(P15="NR",0,P$2)-IF(S15,0,S$2)),0) -> 1 | M15: 0 | N15: -1 | O15: -1 | P15: 0 | Q15: 2013-07-24 | R15: -2 | S15: =VLOOKUP(AX15,[1]Sheet1!$C$8:$D$23,2,FALSE) -> 1 | T15: =MIN(ROUND(ABS(V15/AD15)*200,0),2)*SIGN(V15) -> -1 | U15: =MIN(ROUND(ABS(X15),0),2)*IFERROR(SIGN(X15),0) -> 2 | V15: =_xll.BDP(AC15 & " Equity",$V$3) -> -0.1357170343 | W15: =_xll.BDP(AC15 & " Equity",$W$3) -> 39.11989002 | X15: =IFERROR(10*LN((100+Z15)/(100+$Z$1))+2*LN((100+$W$2)/(100+W15)),0) -> 1.70000646 | Y15: =_xll.BDP(AC15 & " Equity",$Y$2) -> 7.004969 | Z15: =_xll.BDP(AC15 & " Equity",$Z$2) -> 33.42503 | AA15: =_xll.BDP(AC15 & " Equity",$AA$2) -> -0.05151905 | AB15: =_xll.BDP(AC15 & " Equity",$AB$2) -> CIEN US | AC15: =_xll.BDP(B15,$AC$2) -> EQ0021104000001000 | AD15: =_xll.BDP(AC15 & " Equity",$AD$2) -> 19 | AE15: 19.5 | AF15: 18.5 | AG15: =_xll.BDP(B15,$AG$2) -> USD | AH15: =_xll.BDP(B15,$AH$2) -> 187500000 | AI15: =IFERROR(VLOOKUP(A15,'Fisch Holding'!$A$5:$C$1245,3,FALSE)/AH15,"-") -> - | AJ15: =IFERROR(VLOOKUP(A15,'BM Weight'!$A$7:$D$1020,3,FALSE),"-") -> - | AK15: =IFERROR(VLOOKUP(A15,'BM Weight'!$A$7:$D$1020,4,FALSE),"- ") -> - | AL15: =IFERROR(VLOOKUP(A15,'Implied Rating'!$B$7:$C$1179,2,FALSE),"-") -> - | AM15: =IFERROR(VLOOKUP(A15,'ICV Rating'!$B$5:$E$1306,2,FALSE),"-") -> - | AN15: =_xll.BDP(B15,$AN$2) -> #N/A N/A | AO15: =_xll.BDP(B15,$AO$2) -> B2 | AP15: =_xll.BDP(B15,$AP$2) -> B | AQ15: =_xll.BDP(B15,$AQ$2) -> N | AR15: =_xll.BDP(B15,$AR$2) -> Optionally | AS15: =_xll.BDP(B15,$AS$2) -> N | AT15: =_xll.BDP(B15,$AT$2) -> Y | AU15: =_xll.BDP(B15,$AU$2) -> N | AV15: =_xll.BDP(B15,$AV$2) -> N | AW15: =_xll.BDP(B15,$AW$2) -> US | AX15: =_xll.BDP(AC15 & " Equity",$AX$2) -> Information Technology | AY15: =_xll.BDP(AC15 & " Equity",$AY$2) -> Technology Hardware & Equipmen | AZ15: =_xll.BDP(AC15 & " Equity",$AZ$2) -> Communications Equipment | BB15: 0 | BC15: =_xll.BDP(B15,$BC$2) -> 5.340159784 | BD15: =_xll.BDP(B15,$BD$2) -> 1.667694818 | BE15: =_xll.BDP(B15,$BE$2) -> 40.59529417 | BF15: =_xll.BDP(B15,$BF$2) -> 2.019 | BG15: =_xll.BDP(B15,$BG$2) -> 1.333359948 | BH15: =_xll.BDP(B15,$BH$2) -> 3.255085961 | BI15: =_xll.BDP(B15,$BI$2) -> 11.05361458 | BK15: =_xll.BDP(B15,$BK$2) -> 124.871 | BL15: =_xll.BDP(B15,$BL$2) -> #N/A Field Not Applicable | BM15: =_xll.BDP(B15,$BM$2) -> 77.86672228 | BN15: =_xll.BDP(B15,$BN$2) -> 0.004040764183 | BO15: =_xll.BDP(B15,$BO$2) -> 31.34239059 | BP15: =_xll.BDP(AC15 & " Equity",$BP$2) -> #N/A N/A | BQ15: =_xll.BDP(AC15 & " Equity",$BQ$2) -> 06.03.2015 | BR15: =_xll.BDP(AC15 & " Equity",$BR$2) -> 39.95433496
A16: US171779AG67 | B16: =A16 & " Corp" -> US171779AG67 Corp | C16: CIENA CORP | D16: =_xll.BDP(B16,$D$2) -> CIENA CORP | E16: =_xll.BDP(B16,$E$2) -> 3.75 | F16: =_xll.BDP(B16,$F$2) -> 15.10.2018 | G16: =_xll.BDP(B16,$G$2) -> #N/A Field Not Applicable | H16: =_xll.BDP(B16,$H$2) -> #N/A Field Not Applicable | I16: 2014-12-16 | J16: USD 350; I-CV Dez. 2010 | K16: 1 | L16: =ROUND((T16*T$2+U16*U$2+S16*S$2+IF(P16="NR",0,P16^2*SIGN(P16))+M16*M$2)/(L$2-IF(P16="NR",0,P$2)-IF(S16,0,S$2)),0) -> 1 | M16: 1 | N16: 0 | O16: -1 | P16: 0 | Q16: 2013-10-22 | R16: -2 | S16: =VLOOKUP(AX16,[1]Sheet1!$C$8:$D$23,2,FALSE) -> 1 | T16: =MIN(ROUND(ABS(V16/AD16)*200,0),2)*SIGN(V16) -> -1 | U16: =MIN(ROUND(ABS(X16),0),2)*IFERROR(SIGN(X16),0) -> 2 | V16: =_xll.BDP(AC16 & " Equity",$V$3) -> -0.1357170343 | W16: =_xll.BDP(AC16 & " Equity",$W$3) -> 39.11989002 | X16: =IFERROR(10*LN((100+Z16)/(100+$Z$1))+2*LN((100+$W$2)/(100+W16)),0) -> 1.70000646 | Y16: =_xll.BDP(AC16 & " Equity",$Y$2) -> 7.004969 | Z16: =_xll.BDP(AC16 & " Equity",$Z$2) -> 33.42503 | AA16: =_xll.BDP(AC16 & " Equity",$AA$2) -> -0.05151905 | AB16: =_xll.BDP(AC16 & " Equity",$AB$2) -> CIEN US | AC16: =_xll.BDP(B16,$AC$2) -> EQ0021104000001000 | AD16: =_xll.BDP(AC16 & " Equity",$AD$2) -> 19 | AE16: 19.5 | AF16: 18.5 | AG16: =_xll.BDP(B16,$AG$2) -> USD | AH16: =_xll.BDP(B16,$AH$2) -> 350000000 | AI16: =IFERROR(VLOOKUP(A16,'Fisch Holding'!$A$5:$C$1245,3,FALSE)/AH16,"-") -> - | AJ16: =IFERROR(VLOOKUP(A16,'BM Weight'!$A$7:$D$1020,3,FALSE),"-") -> - | AK16: =IFERROR(VLOOKUP(A16,'BM Weight'!$A$7:$D$1020,4,FALSE),"- ") -> - | AL16: =IFERROR(VLOOKUP(A16,'Implied Rating'!$B$7:$C$1179,2,FALSE),"-") -> B | AM16: =IFERROR(VLOOKUP(A16,'ICV Rating'!$B$5:$E$1306,2,FALSE),"-") -> B- | AN16: =_xll.BDP(B16,$AN$2) -> NR | AO16: =_xll.BDP(B16,$AO$2) -> B2 | AP16: =_xll.BDP(B16,$AP$2) -> B | AQ16: =_xll.BDP(B16,$AQ$2) -> N | AR16: =_xll.BDP(B16,$AR$2) -> Optionally | AS16: =_xll.BDP(B16,$AS$2) -> N | AT16: =_xll.BDP(B16,$AT$2) -> N | AU16: =_xll.BDP(B16,$AU$2) -> N | AV16: =_xll.BDP(B16,$AV$2) -> N | AW16: =_xll.BDP(B16,$AW$2) -> US | AX16: =_xll.BDP(AC16 & " Equity",$AX$2) -> Information Technology | AY16: =_xll.BDP(AC16 & " Equity",$AY$2) -> Technology Hardware & Equipmen | AZ16: =_xll.BDP(AC16 & " Equity",$AZ$2) -> Communications Equipment | BB16: 0 | BC16: =_xll.BDP(B16,$BC$2) -> 3.548714139 | BD16: =_xll.BDP(B16,$BD$2) -> 1.448559936 | BE16: =_xll.BDP(B16,$BE$2) -> -321.1808085 | BF16: =_xll.BDP(B16,$BF$2) -> -1.972 | BG16: =_xll.BDP(B16,$BG$2) -> 0.5585354891 | BH16: =_xll.BDP(B16,$BH$2) -> 3.553310571 | BI16: =_xll.BDP(B16,$BI$2) -> 12.02797507 | BK16: =_xll.BDP(B16,$BK$2) -> 122.0178 | BL16: =_xll.BDP(B16,$BL$2) -> #N/A Field Not Applicable | BM16: =_xll.BDP(B16,$BM$2) -> 73.91364331 | BN16: =_xll.BDP(B16,$BN$2) -> 0.005061168927 | BO16: =_xll.BDP(B16,$BO$2) -> 27.11440748 | BP16: =_xll.BDP(AC16 & " Equity",$BP$2) -> #N/A N/A | BQ16: =_xll.BDP(AC16 & " Equity",$BQ$2) -> 06.03.2015 | BR16: =_xll.BDP(AC16 & " Equity",$BR$2) -> 39.95433496
A17: US171779AF84 | B17: =A17 & " Corp" -> US171779AF84 Corp | C17: CIENA CORP | D17: =_xll.BDP(B17,$D$2) -> CIENA CORP | E17: =_xll.BDP(B17,$E$2) -> 4 | F17: =_xll.BDP(B17,$F$2) -> 15.03.2015 | G17: =_xll.BDP(B17,$G$2) -> #N/A Field Not Applicable | H17: =_xll.BDP(B17,$H$2) -> #N/A Field Not Applicable | I17: 2013-07-24 | J17: USD 187; I-CV Dez. 2010 | K17: 0 | L17: =ROUND((T17*T$2+U17*U$2+S17*S$2+IF(P17="NR",0,P17^2*SIGN(P17))+M17*M$2)/(L$2-IF(P17="NR",0,P$2)-IF(S17,0,S$2)),0) -> 1 | M17: 0 | N17: -1 | O17: 2 | P17: 0 | Q17: 2013-07-24 | R17: -2 | S17: =VLOOKUP(AX17,[1]Sheet1!$C$8:$D$23,2,FALSE) -> 1 | T17: =MIN(ROUND(ABS(V17/AD17)*200,0),2)*SIGN(V17) -> -1 | U17: =MIN(ROUND(ABS(X17),0),2)*IFERROR(SIGN(X17),0) -> 2 | V17: =_xll.BDP(AC17 & " Equity",$V$3) -> -0.1357170343 | W17: =_xll.BDP(AC17 & " Equity",$W$3) -> 39.11989002 | X17: =IFERROR(10*LN((100+Z17)/(100+$Z$1))+2*LN((100+$W$2)/(100+W17)),0) -> 1.70000646 | Y17: =_xll.BDP(AC17 & " Equity",$Y$2) -> 7.004969 | Z17: =_xll.BDP(AC17 & " Equity",$Z$2) -> 33.42503 | AA17: =_xll.BDP(AC17 & " Equity",$AA$2) -> -0.05151905 | AB17: =_xll.BDP(AC17 & " Equity",$AB$2) -> CIEN US | AC17: =_xll.BDP(B17,$AC$2) -> EQ0021104000001000 | AD17: =_xll.BDP(AC17 & " Equity",$AD$2) -> 19 | AE17: 19.5 | AF17: 18.5 | AG17: =_xll.BDP(B17,$AG$2) -> USD | AH17: =_xll.BDP(B17,$AH$2) -> 187500000 | AI17: =IFERROR(VLOOKUP(A17,'Fisch Holding'!$A$5:$C$1245,3,FALSE)/AH17,"-") -> - | AJ17: =IFERROR(VLOOKUP(A17,'BM Weight'!$A$7:$D$1020,3,FALSE),"-") -> - | AK17: =IFERROR(VLOOKUP(A17,'BM Weight'!$A$7:$D$1020,4,FALSE),"- ") -> - | AL17: =IFERROR(VLOOKUP(A17,'Implied Rating'!$B$7:$C$1179,2,FALSE),"-") -> B | AM17: =IFERROR(VLOOKUP(A17,'ICV Rating'!$B$5:$E$1306,2,FALSE),"-") -> B- | AN17: =_xll.BDP(B17,$AN$2) -> #N/A N/A | AO17: =_xll.BDP(B17,$AO$2) -> B2 | AP17: =_xll.BDP(B17,$AP$2) -> B | AQ17: =_xll.BDP(B17,$AQ$2) -> N | AR17: =_xll.BDP(B17,$AR$2) -> Optionally | AS17: =_xll.BDP(B17,$AS$2) -> N | AT17: =_xll.BDP(B17,$AT$2) -> Y | AU17: =_xll.BDP(B17,$AU$2) -> N | AV17: =_xll.BDP(B17,$AV$2) -> N | AW17: =_xll.BDP(B17,$AW$2) -> US | AX17: =_xll.BDP(AC17 & " Equity",$AX$2) -> Information Technology | AY17: =_xll.BDP(AC17 & " Equity",$AY$2) -> Technology Hardware & Equipmen | AZ17: =_xll.BDP(AC17 & " Equity",$AZ$2) -> Communications Equipment | BB17: 0 | BC17: =_xll.BDP(B17,$BC$2) -> 0.1558580883 | BD17: =_xll.BDP(B17,$BD$2) -> 0.1000522446 | BE17: =_xll.BDP(B17,$BE$2) -> -2686.523917 | BF17: =_xll.BDP(B17,$BF$2) -> -27.959 | BG17: =_xll.BDP(B17,$BG$2) -> 0.7381026414 | BH17: =_xll.BDP(B17,$BH$2) -> 1.6577579 | BI17: =_xll.BDP(B17,$BI$2) -> 2.469575409 | BK17: =_xll.BDP(B17,$BK$2) -> 104.5838 | BL17: =_xll.BDP(B17,$BL$2) -> #N/A Field Not Applicable | BM17: =_xll.BDP(B17,$BM$2) -> 32.49890568 | BN17: =_xll.BDP(B17,$BN$2) -> 0.02717728722 | BO17: =_xll.BDP(B17,$BO$2) -> 10.39943892 | BP17: =_xll.BDP(AC17 & " Equity",$BP$2) -> #N/A N/A | BQ17: =_xll.BDP(AC17 & " Equity",$BQ$2) -> 06.03.2015 | BR17: =_xll.BDP(AC17 & " Equity",$BR$2) -> 39.95433496
A18: US177376AC40 | B18: =A18 & " Corp" -> US177376AC40 Corp | C18: Citrix | D18: =_xll.BDP(B18,$D$2) -> CITRIX SYSTEMS INC | E18: =_xll.BDP(B18,$E$2) -> 0.5 | F18: =_xll.BDP(B18,$F$2) -> 15.04.2019 | G18: =_xll.BDP(B18,$G$2) -> #N/A Field Not Applicable | H18: =_xll.BDP(B18,$H$2) -> #N/A Field Not Applicable | I18: 2015-01-15 | J18: NE April 14; BBBu ab Juni 14 | K18: -1 | L18: =ROUND((T18*T$2+U18*U$2+S18*S$2+IF(P18="NR",0,P18^2*SIGN(P18))+M18*M$2)/(L$2-IF(P18="NR",0,P$2)-IF(S18,0,S$2)),0) -> -1 | M18: -1 | N18: -1 | O18: 0 | P18: NR | Q18: 2014-07-28 | R18: 0 | S18: =VLOOKUP(AX18,[1]Sheet1!$C$8:$D$23,2,FALSE) -> 1 | T18: =MIN(ROUND(ABS(V18/AD18)*200,0),2)*SIGN(V18) -> -2 | U18: =MIN(ROUND(ABS(X18),0),2)*IFERROR(SIGN(X18),0) -> -2 | V18: =_xll.BDP(AC18 & " Equity",$V$3) -> -0.4550913572 | W18: =_xll.BDP(AC18 & " Equity",$W$3) -> 25.42154484 | X18: =IFERROR(10*LN((100+Z18)/(100+$Z$1))+2*LN((100+$W$2)/(100+W18)),0) -> -2.187950807 | Y18: =_xll.BDP(AC18 & " Equity",$Y$2) -> -4.562042 | Z18: =_xll.BDP(AC18 & " Equity",$Z$2) -> -11.41054 | AA18: =_xll.BDP(AC18 & " Equity",$AA$2) -> -9.827585 | AB18: =_xll.BDP(AC18 & " Equity",$AB$2) -> CTXS US | AC18: =_xll.BDP(B18,$AC$2) -> EQ0017137800001000 | AD18: =_xll.BDP(AC18 & " Equity",$AD$2) -> 57.32 | AE18: 63 | AF18: 57 | AG18: =_xll.BDP(B18,$AG$2) -> USD | AH18: =_xll.BDP(B18,$AH$2) -> 1437500000 | AI18: =IFERROR(VLOOKUP(A18,'Fisch Holding'!$A$5:$C$1245,3,FALSE)/AH18,"-") -> 0.09168695652 | AJ18: =IFERROR(VLOOKUP(A18,'BM Weight'!$A$7:$D$1020,3,FALSE),"-") -> 1.304169656 | AK18: =IFERROR(VLOOKUP(A18,'BM Weight'!$A$7:$D$1020,4,FALSE),"- ") -> 4.621604748 | AL18: =IFERROR(VLOOKUP(A18,'Implied Rating'!$B$7:$C$1179,2,FALSE),"-") -> A+ | AM18: =IFERROR(VLOOKUP(A18,'ICV Rating'!$B$5:$E$1306,2,FALSE),"-") -> 0 | AN18: =_xll.BDP(B18,$AN$2) -> NR | AO18: =_xll.BDP(B18,$AO$2) -> #N/A N/A | AP18: =_xll.BDP(B18,$AP$2) -> BBBu | AQ18: =_xll.BDP(B18,$AQ$2) -> N | AR18: =_xll.BDP(B18,$AR$2) -> Optionally | AS18: =_xll.BDP(B18,$AS$2) -> N | AT18: =_xll.BDP(B18,$AT$2) -> N | AU18: =_xll.BDP(B18,$AU$2) -> N | AV18: =_xll.BDP(B18,$AV$2) -> N | AW18: =_xll.BDP(B18,$AW$2) -> US | AX18: =_xll.BDP(AC18 & " Equity",$AX$2) -> Information Technology | AY18: =_xll.BDP(AC18 & " Equity",$AY$2) -> Software & Services | AZ18: =_xll.BDP(AC18 & " Equity",$AZ$2) -> Software | BB18: 0 | BC18: =_xll.BDP(B18,$BC$2) -> 4.190951168 | BD18: =_xll.BDP(B18,$BD$2) -> 3.399853658 | BE18: =_xll.BDP(B18,$BE$2) -> -148.0150491 | BF18: =_xll.BDP(B18,$BF$2) -> -0.114 | BG18: =_xll.BDP(B18,$BG$2) -> -2.195586311 | BH18: =_xll.BDP(B18,$BH$2) -> 0.2356543538 | BI18: =_xll.BDP(B18,$BI$2) -> -1.093199904 | BK18: =_xll.BDP(B18,$BK$2) -> 102.4312 | BL18: =_xll.BDP(B18,$BL$2) -> #N/A Field Not Applicable | BM18: =_xll.BDP(B18,$BM$2) -> 37.32406078 | BN18: =_xll.BDP(B18,$BN$2) -> 0.006273373104 | BO18: =_xll.BDP(B18,$BO$2) -> 60.51867601 | BP18: =_xll.BDP(AC18 & " Equity",$BP$2) -> #N/A N/A | BQ18: =_xll.BDP(AC18 & " Equity",$BQ$2) -> 28.01.2015 | BR18: =_xll.BDP(AC18 & " Equity",$BR$2) -> 23.84784851
A19: US21925YAB92 | B19: =A19 & " Corp" -> US21925YAB92 Corp | C19: CORNERSTONE ONDEMAND INC | D19: =_xll.BDP(B19,$D$2) -> CORNERSTONE ONDEMAND INC | E19: =_xll.BDP(B19,$E$2) -> 1.5 | F19: =_xll.BDP(B19,$F$2) -> 01.07.2018 | G19: =_xll.BDP(B19,$G$2) -> #N/A Field Not Applicable | H19: =_xll.BDP(B19,$H$2) -> #N/A Field Not Applicable | I19: 2014-07-21 | J19: NE + I-CV 6.13; USD 253; div. Software | K19: 0 | L19: =ROUND((T19*T$2+U19*U$2+S19*S$2+IF(P19="NR",0,P19^2*SIGN(P19))+M19*M$2)/(L$2-IF(P19="NR",0,P$2)-IF(S19,0,S$2)),0) -> 0 | M19: 0 | N19: -1 | O19: 0 | P19: -1 | Q19: 2014-07-21 | R19: -1 | S19: =VLOOKUP(AX19,[1]Sheet1!$C$8:$D$23,2,FALSE) -> 1 | T19: =MIN(ROUND(ABS(V19/AD19)*200,0),2)*SIGN(V19) -> -2 | U19: =MIN(ROUND(ABS(X19),0),2)*IFERROR(SIGN(X19),0) -> -1 | V19: =_xll.BDP(AC19 & " Equity",$V$3) -> -0.3533724248 | W19: =_xll.BDP(AC19 & " Equity",$W$3) -> 56.30267114 | X19: =IFERROR(10*LN((100+Z19)/(100+$Z$1))+2*LN((100+$W$2)/(100+W19)),0) -> -1.358810432 | Y19: =_xll.BDP(AC19 & " Equity",$Y$2) -> -1.728761 | Z19: =_xll.BDP(AC19 & " Equity",$Z$2) -> 0.5796255 | AA19: =_xll.BDP(AC19 & " Equity",$AA$2) -> -6.335229 | AB19: =_xll.BDP(AC19 & " Equity",$AB$2) -> CSOD US | AC19: =_xll.BDP(B19,$AC$2) -> EQ0000000011371914 | AD19: =_xll.BDP(AC19 & " Equity",$AD$2) -> 31.7 | AE19: 36 | AF19: 32 | AG19: =_xll.BDP(B19,$AG$2) -> USD | AH19: =_xll.BDP(B19,$AH$2) -> 253000000 | AI19: =IFERROR(VLOOKUP(A19,'Fisch Holding'!$A$5:$C$1245,3,FALSE)/AH19,"-") -> - | AJ19: =IFERROR(VLOOKUP(A19,'BM Weight'!$A$7:$D$1020,3,FALSE),"-") -> - | AK19: =IFERROR(VLOOKUP(A19,'BM Weight'!$A$7:$D$1020,4,FALSE),"- ") -> - | AL19: =IFERROR(VLOOKUP(A19,'Implied Rating'!$B$7:$C$1179,2,FALSE),"-") -> BBB- | AM19: =IFERROR(VLOOKUP(A19,'ICV Rating'!$B$5:$E$1306,2,FALSE),"-") -> CC | AN19: =_xll.BDP(B19,$AN$2) -> #N/A N/A | AO19: =_xll.BDP(B19,$AO$2) -> #N/A N/A | AP19: =_xll.BDP(B19,$AP$2) -> #N/A N/A | AQ19: =_xll.BDP(B19,$AQ$2) -> N | AR19: =_xll.BDP(B19,$AR$2) -> Optionally | AS19: =_xll.BDP(B19,$AS$2) -> N | AT19: =_xll.BDP(B19,$AT$2) -> #N/A N/A | AU19: =_xll.BDP(B19,$AU$2) -> N | AV19: =_xll.BDP(B19,$AV$2) -> N | AW19: =_xll.BDP(B19,$AW$2) -> US | AX19: =_xll.BDP(AC19 & " Equity",$AX$2) -> Information Technology | AY19: =_xll.BDP(AC19 & " Equity",$AY$2) -> Software & Services | AZ19: =_xll.BDP(AC19 & " Equity",$AZ$2) -> Internet Software & Services | BB19: 0 | BC19: =_xll.BDP(B19,$BC$2) -> 3.328101008 | BD19: =_xll.BDP(B19,$BD$2) -> 2.101395125 | BE19: =_xll.BDP(B19,$BE$2) -> 105.7327619 | BF19: =_xll.BDP(B19,$BF$2) -> 2.242 | BG19: =_xll.BDP(B19,$BG$2) -> -0.9562364777 | BH19: =_xll.BDP(B19,$BH$2) -> 0.8553752951 | BI19: =_xll.BDP(B19,$BI$2) -> 2.498805887 | BK19: =_xll.BDP(B19,$BK$2) -> 97.44068 | BL19: =_xll.BDP(B19,$BL$2) -> #N/A Field Not Applicable | BM19: =_xll.BDP(B19,$BM$2) -> 60.70646174 | BN19: =_xll.BDP(B19,$BN$2) -> 0.004094109779 | BO19: =_xll.BDP(B19,$BO$2) -> 59.89924624 | BP19: =_xll.BDP(AC19 & " Equity",$BP$2) -> #N/A N/A | BQ19: =_xll.BDP(AC19 & " Equity",$BQ$2) -> 11.02.2015 | BR19: =_xll.BDP(AC19 & " Equity",$BR$2) -> 55.66200922 | BT19: 2014-02-03
A20: US126349AC33 | B20: =A20 & " Corp" -> US126349AC33 Corp | C20: CSG SYSTEMS INTL INC | D20: =_xll.BDP(B20,$D$2) -> CSG SYSTEMS INTL INC | E20: =_xll.BDP(B20,$E$2) -> 3 | F20: =_xll.BDP(B20,$F$2) -> 01.03.2017 | G20: =_xll.BDP(B20,$G$2) -> #N/A Field Not Applicable | H20: =_xll.BDP(B20,$H$2) -> #N/A Field Not Applicable | I20: 2014-08-28 | J20: USD 150 Mio ; B ; PP; TV billing solutions | K20: 0 | L20: =ROUND((T20*T$2+U20*U$2+S20*S$2+IF(P20="NR",0,P20^2*SIGN(P20))+M20*M$2)/(L$2-IF(P20="NR",0,P$2)-IF(S20,0,S$2)),0) -> 0 | M20: 0 | N20: 0 | O20: 1 | P20: NR | Q20: 2014-01-21 | R20: -2 | S20: =VLOOKUP(AX20,[1]Sheet1!$C$8:$D$23,2,FALSE) -> 1 | T20: =MIN(ROUND(ABS(V20/AD20)*200,0),2)*SIGN(V20) -> 1 | U20: =MIN(ROUND(ABS(X20),0),2)*IFERROR(SIGN(X20),0) -> -1 | V20: =_xll.BDP(AC20 & " Equity",$V$3) -> 0.07568489015 | W20: =_xll.BDP(AC20 & " Equity",$W$3) -> 18.75944694 | X20: =IFERROR(10*LN((100+Z20)/(100+$Z$1))+2*LN((100+$W$2)/(100+W20)),0) -> -0.8276440417 | Y20: =_xll.BDP(AC20 & " Equity",$Y$2) -> 3.136459 | Z20: =_xll.BDP(AC20 & " Equity",$Z$2) -> 0.3965134 | AA20: =_xll.BDP(AC20 & " Equity",$AA$2) -> 0.997209 | AB20: =_xll.BDP(AC20 & " Equity",$AB$2) -> CSGS US | AC20: =_xll.BDP(B20,$AC$2) -> EQ0017149000001000 | AD20: =_xll.BDP(AC20 & " Equity",$AD$2) -> 25.1 | AE20: 27 | AF20: 23 | AG20: =_xll.BDP(B20,$AG$2) -> USD | AH20: =_xll.BDP(B20,$AH$2) -> 150000000 | AI20: =IFERROR(VLOOKUP(A20,'Fisch Holding'!$A$5:$C$1245,3,FALSE)/AH20,"-") -> - | AJ20: =IFERROR(VLOOKUP(A20,'BM Weight'!$A$7:$D$1020,3,FALSE),"-") -> - | AK20: =IFERROR(VLOOKUP(A20,'BM Weight'!$A$7:$D$1020,4,FALSE),"- ") -> - | AL20: =IFERROR(VLOOKUP(A20,'Implied Rating'!$B$7:$C$1179,2,FALSE),"-") -> B | AM20: =IFERROR(VLOOKUP(A20,'ICV Rating'!$B$5:$E$1306,2,FALSE),"-") -> 0 | AN20: =_xll.BDP(B20,$AN$2) -> #N/A N/A | AO20: =_xll.BDP(B20,$AO$2) -> Ba3 | AP20: =_xll.BDP(B20,$AP$2) -> BB+ | AQ20: =_xll.BDP(B20,$AQ$2) -> N | AR20: =_xll.BDP(B20,$AR$2) -> Optionally | AS20: =_xll.BDP(B20,$AS$2) -> Y | AT20: =_xll.BDP(B20,$AT$2) -> N | AU20: =_xll.BDP(B20,$AU$2) -> N | AV20: =_xll.BDP(B20,$AV$2) -> N | AW20: =_xll.BDP(B20,$AW$2) -> US | AX20: =_xll.BDP(AC20 & " Equity",$AX$2) -> Information Technology | AY20: =_xll.BDP(AC20 & " Equity",$AY$2) -> Software & Services | AZ20: =_xll.BDP(AC20 & " Equity",$AZ$2) -> IT Services | BB20: 0 | BC20: =_xll.BDP(B20,$BC$2) -> 2.107665437 | BD20: =_xll.BDP(B20,$BD$2) -> 0.6848853438 | BE20: =_xll.BDP(B20,$BE$2) -> -685.9964819 | BF20: =_xll.BDP(B20,$BF$2) -> -6.077 | BG20: =_xll.BDP(B20,$BG$2) -> 2.426680907 | BH20: =_xll.BDP(B20,$BH$2) -> 2.031760753 | BI20: =_xll.BDP(B20,$BI$2) -> 0.9677224196 | BK20: =_xll.BDP(B20,$BK$2) -> 119.9852 | BL20: =_xll.BDP(B20,$BL$2) -> #N/A Field Not Applicable | BM20: =_xll.BDP(B20,$BM$2) -> 73.51307197 | BN20: =_xll.BDP(B20,$BN$2) -> 0.008903199488 | BO20: =_xll.BDP(B20,$BO$2) -> 11.87648787 | BP20: =_xll.BDP(AC20 & " Equity",$BP$2) -> 2.48815164 | BQ20: =_xll.BDP(AC20 & " Equity",$BQ$2) -> 04.02.2015 | BR20: =_xll.BDP(AC20 & " Equity",$BR$2) -> 17.83843679
A21: US242309AB86 | B21: =A21 & " Corp" -> US242309AB86 Corp | C21: DEALERTRACK TECHNOLOGIES | D21: =_xll.BDP(B21,$D$2) -> DEALERTRACK TECHNOLOGIES | E21: =_xll.BDP(B21,$E$2) -> 1.5 | F21: =_xll.BDP(B21,$F$2) -> 15.03.2017 | G21: =_xll.BDP(B21,$G$2) -> #N/A Field Not Applicable | H21: =_xll.BDP(B21,$H$2) -> #N/A Field Not Applicable | I21: 2014-11-27 | J21: USD 200; BB; Software-Produzent für Autoverkäufer | K21: 1 | L21: =ROUND((T21*T$2+U21*U$2+S21*S$2+IF(P21="NR",0,P21^2*SIGN(P21))+M21*M$2)/(L$2-IF(P21="NR",0,P$2)-IF(S21,0,S$2)),0) -> 0 | M21: 0 | N21: 0 | O21: 0 | P21: NR | Q21: 2014-03-10 | R21: -1 | S21: =VLOOKUP(AX21,[1]Sheet1!$C$8:$D$23,2,FALSE) -> 1 | T21: =MIN(ROUND(ABS(V21/AD21)*200,0),2)*SIGN(V21) -> -2 | U21: =MIN(ROUND(ABS(X21),0),2)*IFERROR(SIGN(X21),0) -> -1 | V21: =_xll.BDP(AC21 & " Equity",$V$3) -> -0.3561009765 | W21: =_xll.BDP(AC21 & " Equity",$W$3) -> 38.02342689 | X21: =IFERROR(10*LN((100+Z21)/(100+$Z$1))+2*LN((100+$W$2)/(100+W21)),0) -> -1.340154469 | Y21: =_xll.BDP(AC21 & " Equity",$Y$2) -> -6.521235 | Z21: =_xll.BDP(AC21 & " Equity",$Z$2) -> -1.708149 | AA21: =_xll.BDP(AC21 & " Equity",$AA$2) -> -9.095015 | AB21: =_xll.BDP(AC21 & " Equity",$AB$2) -> TRAK US | AC21: =_xll.BDP(B21,$AC$2) -> EQ0000000001903277 | AD21: =_xll.BDP(AC21 & " Equity",$AD$2) -> 40.21 | AE21: 45 | AF21: 40 | AG21: =_xll.BDP(B21,$AG$2) -> USD | AH21: =_xll.BDP(B21,$AH$2) -> 200000000 | AI21: =IFERROR(VLOOKUP(A21,'Fisch Holding'!$A$5:$C$1245,3,FALSE)/AH21,"-") -> - | AJ21: =IFERROR(VLOOKUP(A21,'BM Weight'!$A$7:$D$1020,3,FALSE),"-") -> - | AK21: =IFERROR(VLOOKUP(A21,'BM Weight'!$A$7:$D$1020,4,FALSE),"- ") -> - | AL21: =IFERROR(VLOOKUP(A21,'Implied Rating'!$B$7:$C$1179,2,FALSE),"-") -> BB | AM21: =IFERROR(VLOOKUP(A21,'ICV Rating'!$B$5:$E$1306,2,FALSE),"-") -> 0 | AN21: =_xll.BDP(B21,$AN$2) -> #N/A N/A | AO21: =_xll.BDP(B21,$AO$2) -> Ba3 | AP21: =_xll.BDP(B21,$AP$2) -> B+ | AQ21: =_xll.BDP(B21,$AQ$2) -> N | AR21: =_xll.BDP(B21,$AR$2) -> Optionally | AS21: =_xll.BDP(B21,$AS$2) -> N | AT21: =_xll.BDP(B21,$AT$2) -> #N/A N/A | AU21: =_xll.BDP(B21,$AU$2) -> N | AV21: =_xll.BDP(B21,$AV$2) -> N | AW21: =_xll.BDP(B21,$AW$2) -> US | AX21: =_xll.BDP(AC21 & " Equity",$AX$2) -> Information Technology | AY21: =_xll.BDP(AC21 & " Equity",$AY$2) -> Software & Services | AZ21: =_xll.BDP(AC21 & " Equity",$AZ$2) -> Internet Software & Services | BB21: 0 | BC21: =_xll.BDP(B21,$BC$2) -> 2.201354122 | BD21: =_xll.BDP(B21,$BD$2) -> 0.6018735664 | BE21: =_xll.BDP(B21,$BE$2) -> -845.6407807 | BF21: =_xll.BDP(B21,$BF$2) -> -7.656 | BG21: =_xll.BDP(B21,$BG$2) -> -2.768100781 | BH21: =_xll.BDP(B21,$BH$2) -> -4.836696012 | BI21: =_xll.BDP(B21,$BI$2) -> -2.468401396 | BK21: =_xll.BDP(B21,$BK$2) -> 121.7053 | BL21: =_xll.BDP(B21,$BL$2) -> #N/A Field Not Applicable | BM21: =_xll.BDP(B21,$BM$2) -> 80.11429998 | BN21: =_xll.BDP(B21,$BN$2) -> 0.004191798877 | BO21: =_xll.BDP(B21,$BO$2) -> 13.04538582 | BP21: =_xll.BDP(AC21 & " Equity",$BP$2) -> #N/A N/A | BQ21: =_xll.BDP(AC21 & " Equity",$BQ$2) -> 19.02.2015 | BR21: =_xll.BDP(AC21 & " Equity",$BR$2) -> 36.42158996 | BT21: 2014-01-07
A22: US25388BAD64 | B22: =A22 & " Corp" -> US25388BAD64 Corp | C22: DIGITAL RIVER INC | D22: =_xll.BDP(B22,$D$2) -> DIGITAL RIVER INC | E22: =_xll.BDP(B22,$E$2) -> 2 | F22: =_xll.BDP(B22,$F$2) -> 01.11.2030 | G22: =_xll.BDP(B22,$G$2) -> 01.11.2015 | H22: =_xll.BDP(B22,$H$2) -> 01.11.2015 | I22: 2012-02-13 | J22: übernommen durch Siris Capital | K22: -1 | L22: =ROUND((T22*T$2+U22*U$2+S22*S$2+IF(P22="NR",0,P22^2*SIGN(P22))+M22*M$2)/(L$2-IF(P22="NR",0,P$2)-IF(S22,0,S$2)),0) -> 0 | M22: -1 | N22: 0 | O22: -2 | P22: 1 | Q22: 2012-02-13 | R22: -2 | S22: =VLOOKUP(AX22,[1]Sheet1!$C$8:$D$23,2,FALSE) -> 1 | T22: =MIN(ROUND(ABS(V22/AD22)*200,0),2)*SIGN(V22) -> 1 | U22: =MIN(ROUND(ABS(X22),0),2)*IFERROR(SIGN(X22),0) -> 2 | V22: =_xll.BDP(AC22 & " Equity",$V$3) -> 0.1306661367 | W22: =_xll.BDP(AC22 & " Equity",$W$3) -> 127.3900281 | X22: =IFERROR(10*LN((100+Z22)/(100+$Z$1))+2*LN((100+$W$2)/(100+W22)),0) -> 2.126406609 | Y22: =_xll.BDP(AC22 & " Equity",$Y$2) -> 52.23881 | Z22: =_xll.BDP(AC22 & " Equity",$Z$2) -> 53.61445 | AA22: =_xll.BDP(AC22 & " Equity",$AA$2) -> 3.113629 | AB22: =_xll.BDP(AC22 & " Equity",$AB$2) -> DRIV US | AC22: =_xll.BDP(B22,$AC$2) -> EQ0034835600001000 | AD22: =_xll.BDP(AC22 & " Equity",$AD$2) -> 25.44 | AE22: 25.5 | AF22: 23 | AG22: =_xll.BDP(B22,$AG$2) -> USD | AH22: =_xll.BDP(B22,$AH$2) -> 145750000 | AI22: =IFERROR(VLOOKUP(A22,'Fisch Holding'!$A$5:$C$1245,3,FALSE)/AH22,"-") -> - | AJ22: =IFERROR(VLOOKUP(A22,'BM Weight'!$A$7:$D$1020,3,FALSE),"-") -> - | AK22: =IFERROR(VLOOKUP(A22,'BM Weight'!$A$7:$D$1020,4,FALSE),"- ") -> - | AL22: =IFERROR(VLOOKUP(A22,'Implied Rating'!$B$7:$C$1179,2,FALSE),"-") -> - | AM22: =IFERROR(VLOOKUP(A22,'ICV Rating'!$B$5:$E$1306,2,FALSE),"-") -> - | AN22: =_xll.BDP(B22,$AN$2) -> #N/A N/A | AO22: =_xll.BDP(B22,$AO$2) -> #N/A N/A | AP22: =_xll.BDP(B22,$AP$2) -> #N/A N/A | AQ22: =_xll.BDP(B22,$AQ$2) -> N | AR22: =_xll.BDP(B22,$AR$2) -> Optionally | AS22: =_xll.BDP(B22,$AS$2) -> N | AT22: =_xll.BDP(B22,$AT$2) -> N | AU22: =_xll.BDP(B22,$AU$2) -> N | AV22: =_xll.BDP(B22,$AV$2) -> Y | AW22: =_xll.BDP(B22,$AW$2) -> US | AX22: =_xll.BDP(AC22 & " Equity",$AX$2) -> Information Technology | AY22: =_xll.BDP(AC22 & " Equity",$AY$2) -> Software & Services | AZ22: =_xll.BDP(AC22 & " Equity",$AZ$2) -> Internet Software & Services | BB22: 0 | BC22: =_xll.BDP(B22,$BC$2) -> 0.7658832698 | BD22: =_xll.BDP(B22,$BD$2) -> 0.7795468392 | BE22: =_xll.BDP(B22,$BE$2) -> 85.73860452 | BF22: =_xll.BDP(B22,$BF$2) -> 1.192 | BG22: =_xll.BDP(B22,$BG$2) -> 0.04532374027 | BH22: =_xll.BDP(B22,$BH$2) -> 0.3625194475 | BI22: =_xll.BDP(B22,$BI$2) -> 0.4972786528 | BK22: =_xll.BDP(B22,$BK$2) -> 100.1412 | BL22: =_xll.BDP(B22,$BL$2) -> #N/A Field Not Applicable | BM22: =_xll.BDP(B22,$BM$2) -> 0.9841495181 | BN22: =_xll.BDP(B22,$BN$2) -> 0.0005216500543 | BO22: =_xll.BDP(B22,$BO$2) -> 93.87138456 | BP22: =_xll.BDP(AC22 & " Equity",$BP$2) -> #N/A N/A | BQ22: =_xll.BDP(AC22 & " Equity",$BQ$2) -> 05.02.2015 | BR22: =_xll.BDP(AC22 & " Equity",$BR$2) -> 107.3516838
A23: US285512AA71 | B23: =A23 & " Corp" -> US285512AA71 Corp | C23: ELECTRONIC ARTS INC | D23: =_xll.BDP(B23,$D$2) -> ELECTRONIC ARTS INC | E23: =_xll.BDP(B23,$E$2) -> 0.75 | F23: =_xll.BDP(B23,$F$2) -> 15.07.2016 | G23: =_xll.BDP(B23,$G$2) -> #N/A Field Not Applicable | H23: =_xll.BDP(B23,$H$2) -> #N/A Field Not Applicable | I23: 2014-11-20 | J23: 0.6% in BM | K23: 0 | L23: =ROUND((T23*T$2+U23*U$2+S23*S$2+IF(P23="NR",0,P23^2*SIGN(P23))+M23*M$2)/(L$2-IF(P23="NR",0,P$2)-IF(S23,0,S$2)),0) -> 1 | M23: 0 | N23: 0 | O23: 0 | P23: 0 | Q23: 2014-06-19 | R23: 1 | S23: =VLOOKUP(AX23,[1]Sheet1!$C$8:$D$23,2,FALSE) -> 1 | T23: =MIN(ROUND(ABS(V23/AD23)*200,0),2)*SIGN(V23) -> -1 | U23: =MIN(ROUND(ABS(X23),0),2)*IFERROR(SIGN(X23),0) -> 2 | V23: =_xll.BDP(AC23 & " Equity",$V$3) -> -0.2538431883 | W23: =_xll.BDP(AC23 & " Equity",$W$3) -> 23.98223445 | X23: =IFERROR(10*LN((100+Z23)/(100+$Z$1))+2*LN((100+$W$2)/(100+W23)),0) -> 2.447313628 | Y23: =_xll.BDP(AC23 & " Equity",$Y$2) -> 3.190317 | Z23: =_xll.BDP(AC23 & " Equity",$Z$2) -> 40.50329 | AA23: =_xll.BDP(AC23 & " Equity",$AA$2) -> -0.2446015 | AB23: =_xll.BDP(AC23 & " Equity",$AB$2) -> EA US | AC23: =_xll.BDP(B23,$AC$2) -> EQ0010367800001000 | AD23: =_xll.BDP(AC23 & " Equity",$AD$2) -> 46.5 | AE23: 47.6 | AF23: 45 | AG23: =_xll.BDP(B23,$AG$2) -> USD | AH23: =_xll.BDP(B23,$AH$2) -> 632500000 | AI23: =IFERROR(VLOOKUP(A23,'Fisch Holding'!$A$5:$C$1245,3,FALSE)/AH23,"-") -> 0.01106719368 | AJ23: =IFERROR(VLOOKUP(A23,'BM Weight'!$A$7:$D$1020,3,FALSE),"-") -> - | AK23: =IFERROR(VLOOKUP(A23,'BM Weight'!$A$7:$D$1020,4,FALSE),"- ") -> - | AL23: =IFERROR(VLOOKUP(A23,'Implied Rating'!$B$7:$C$1179,2,FALSE),"-") -> A+ | AM23: =IFERROR(VLOOKUP(A23,'ICV Rating'!$B$5:$E$1306,2,FALSE),"-") -> BB | AN23: =_xll.BDP(B23,$AN$2) -> #N/A N/A | AO23: =_xll.BDP(B23,$AO$2) -> #N/A N/A | AP23: =_xll.BDP(B23,$AP$2) -> #N/A N/A | AQ23: =_xll.BDP(B23,$AQ$2) -> N | AR23: =_xll.BDP(B23,$AR$2) -> Optionally | AS23: =_xll.BDP(B23,$AS$2) -> N | AT23: =_xll.BDP(B23,$AT$2) -> N | AU23: =_xll.BDP(B23,$AU$2) -> N | AV23: =_xll.BDP(B23,$AV$2) -> N | AW23: =_xll.BDP(B23,$AW$2) -> US | AX23: =_xll.BDP(AC23 & " Equity",$AX$2) -> Information Technology | AY23: =_xll.BDP(AC23 & " Equity",$AY$2) -> Software & Services | AZ23: =_xll.BDP(AC23 & " Equity",$AZ$2) -> Software | BB23: 0 | BC23: =_xll.BDP(B23,$BC$2) -> 1.693415691 | BD23: =_xll.BDP(B23,$BD$2) -> 0.1135767035 | BE23: =_xll.BDP(B23,$BE$2) -> -2596.082649 | BF23: =_xll.BDP(B23,$BF$2) -> -25.4 | BG23: =_xll.BDP(B23,$BG$2) -> 0.323725644 | BH23: =_xll.BDP(B23,$BH$2) -> 2.579154319 | BI23: =_xll.BDP(B23,$BI$2) -> 27.78948987 | BK23: =_xll.BDP(B23,$BK$2) -> 150.927 | BL23: =_xll.BDP(B23,$BL$2) -> #N/A Field Not Applicable | BM23: =_xll.BDP(B23,$BM$2) -> 93.28257629 | BN23: =_xll.BDP(B23,$BN$2) -> 0.002929711293 | BO23: =_xll.BDP(B23,$BO$2) -> 2.24390347 | BP23: =_xll.BDP(AC23 & " Equity",$BP$2) -> #N/A N/A | BQ23: =_xll.BDP(AC23 & " Equity",$BQ$2) -> 27.01.2015 | BR23: =_xll.BDP(AC23 & " Equity",$BR$2) -> 26.79107436 | BT23: 2014-02-03
A24: US286082AB86 | B24: =A24 & " Corp" -> US286082AB86 Corp | C24: Electronics for Imaging | D24: =_xll.BDP(B24,$D$2) -> ELECTRONICS FOR IMAGING | E24: =_xll.BDP(B24,$E$2) -> 0.75 | F24: =_xll.BDP(B24,$F$2) -> 01.09.2019 | G24: =_xll.BDP(B24,$G$2) -> #N/A Field Not Applicable | H24: =_xll.BDP(B24,$H$2) -> #N/A Field Not Applicable | I24: 2015-01-08 | K24: 0 | L24: =ROUND((T24*T$2+U24*U$2+S24*S$2+IF(P24="NR",0,P24^2*SIGN(P24))+M24*M$2)/(L$2-IF(P24="NR",0,P$2)-IF(S24,0,S$2)),0) -> 0 | M24: 1 | N24: 1 | O24: -2 | P24: 0 | Q24: 2013-05-27 | R24: -1 | S24: =VLOOKUP(AX24,[1]Sheet1!$C$8:$D$23,2,FALSE) -> 1 | T24: =MIN(ROUND(ABS(V24/AD24)*200,0),2)*SIGN(V24) -> -2 | U24: =MIN(ROUND(ABS(X24),0),2)*IFERROR(SIGN(X24),0) -> -2 | V24: =_xll.BDP(AC24 & " Equity",$V$3) -> -0.4972268939 | W24: =_xll.BDP(AC24 & " Equity",$W$3) -> 25.96203391 | X24: =IFERROR(10*LN((100+Z24)/(100+$Z$1))+2*LN((100+$W$2)/(100+W24)),0) -> -1.724134908 | Y24: =_xll.BDP(AC24 & " Equity",$Y$2) -> -14.98856 | Z24: =_xll.BDP(AC24 & " Equity",$Z$2) -> -7.125 | AA24: =_xll.BDP(AC24 & " Equity",$AA$2) -> -13.26174 | AB24: =_xll.BDP(AC24 & " Equity",$AB$2) -> EFII US | AC24: =_xll.BDP(B24,$AC$2) -> EQ0010357300001000 | AD24: =_xll.BDP(AC24 & " Equity",$AD$2) -> 36.76 | AE24: 43 | AF24: 37 | AG24: =_xll.BDP(B24,$AG$2) -> USD | AH24: =_xll.BDP(B24,$AH$2) -> 345000000 | AI24: =IFERROR(VLOOKUP(A24,'Fisch Holding'!$A$5:$C$1245,3,FALSE)/AH24,"-") -> - | AJ24: =IFERROR(VLOOKUP(A24,'BM Weight'!$A$7:$D$1020,3,FALSE),"-") -> - | AK24: =IFERROR(VLOOKUP(A24,'BM Weight'!$A$7:$D$1020,4,FALSE),"- ") -> - | AL24: =IFERROR(VLOOKUP(A24,'Implied Rating'!$B$7:$C$1179,2,FALSE),"-") -> BB+ | AM24: =IFERROR(VLOOKUP(A24,'ICV Rating'!$B$5:$E$1306,2,FALSE),"-") -> 0 | AN24: =_xll.BDP(B24,$AN$2) -> #N/A N/A | AO24: =_xll.BDP(B24,$AO$2) -> #N/A N/A | AP24: =_xll.BDP(B24,$AP$2) -> #N/A N/A | AQ24: =_xll.BDP(B24,$AQ$2) -> N | AR24: =_xll.BDP(B24,$AR$2) -> Optionally | AS24: =_xll.BDP(B24,$AS$2) -> N | AT24: =_xll.BDP(B24,$AT$2) -> N | AU24: =_xll.BDP(B24,$AU$2) -> N | AV24: =_xll.BDP(B24,$AV$2) -> N | AW24: =_xll.BDP(B24,$AW$2) -> US | AX24: =_xll.BDP(AC24 & " Equity",$AX$2) -> Information Technology | AY24: =_xll.BDP(AC24 & " Equity",$AY$2) -> Technology Hardware & Equipmen | AZ24: =_xll.BDP(AC24 & " Equity",$AZ$2) -> Technology Hardware, Storage & | BB24: 0 | BC24: =_xll.BDP(B24,$BC$2) -> 4.488178879 | BD24: =_xll.BDP(B24,$BD$2) -> 2.693803148 | BE24: =_xll.BDP(B24,$BE$2) -> 22.04495696 | BF24: =_xll.BDP(B24,$BF$2) -> 1.657 | BG24: =_xll.BDP(B24,$BG$2) -> -2.774579669 | BH24: =_xll.BDP(B24,$BH$2) -> -7.145077217 | BI24: =_xll.BDP(B24,$BI$2) -> -1.196868374 | BK24: =_xll.BDP(B24,$BK$2) -> 95.8296 | BL24: =_xll.BDP(B24,$BL$2) -> #N/A Field Not Applicable | BM24: =_xll.BDP(B24,$BM$2) -> 58.70157447 | BN24: =_xll.BDP(B24,$BN$2) -> 0.005757985157 | BO24: =_xll.BDP(B24,$BO$2) -> 36.22798472 | BP24: =_xll.BDP(AC24 & " Equity",$BP$2) -> #N/A N/A | BQ24: =_xll.BDP(AC24 & " Equity",$BQ$2) -> 29.01.2015 | BR24: =_xll.BDP(AC24 & " Equity",$BR$2) -> 27.54831091
A25: US292475AF77 | B25: =A25 & " Corp" -> US292475AF77 Corp | C25: EMULEX CORPORATION | D25: =_xll.BDP(B25,$D$2) -> EMULEX CORPORATION | E25: =_xll.BDP(B25,$E$2) -> 1.75 | F25: =_xll.BDP(B25,$F$2) -> 15.11.2018 | G25: =_xll.BDP(B25,$G$2) -> #N/A Field Not Applicable | H25: =_xll.BDP(B25,$H$2) -> #N/A Field Not Applicable | I25: 2015-01-15 | K25: 0 | L25: =ROUND((T25*T$2+U25*U$2+S25*S$2+IF(P25="NR",0,P25^2*SIGN(P25))+M25*M$2)/(L$2-IF(P25="NR",0,P$2)-IF(S25,0,S$2)),0) -> 1 | M25: 0 | N25: 1 | O25: 0 | P25: NR | Q25: 2013-11-12 | R25: -1 | S25: =VLOOKUP(AX25,[1]Sheet1!$C$8:$D$23,2,FALSE) -> 1 | T25: =MIN(ROUND(ABS(V25/AD25)*200,0),2)*SIGN(V25) -> 2 | U25: =MIN(ROUND(ABS(X25),0),2)*IFERROR(SIGN(X25),0) -> 2 | V25: =_xll.BDP(AC25 & " Equity",$V$3) -> 0.1251989007 | W25: =_xll.BDP(AC25 & " Equity",$W$3) -> 50.88496547 | X25: =IFERROR(10*LN((100+Z25)/(100+$Z$1))+2*LN((100+$W$2)/(100+W25)),0) -> 1.73170589 | Y25: =_xll.BDP(AC25 & " Equity",$Y$2) -> 29.86768 | Z25: =_xll.BDP(AC25 & " Equity",$Z$2) -> 36.0396 | AA25: =_xll.BDP(AC25 & " Equity",$AA$2) -> 21.16402 | AB25: =_xll.BDP(AC25 & " Equity",$AB$2) -> ELX US | AC25: =_xll.BDP(B25,$AC$2) -> EQ0010361900001000 | AD25: =_xll.BDP(AC25 & " Equity",$AD$2) -> 6.73 | AE25: 7 | AF25: 6.2 | AG25: =_xll.BDP(B25,$AG$2) -> USD | AH25: =_xll.BDP(B25,$AH$2) -> 175000000 | AI25: =IFERROR(VLOOKUP(A25,'Fisch Holding'!$A$5:$C$1245,3,FALSE)/AH25,"-") -> - | AJ25: =IFERROR(VLOOKUP(A25,'BM Weight'!$A$7:$D$1020,3,FALSE),"-") -> - | AK25: =IFERROR(VLOOKUP(A25,'BM Weight'!$A$7:$D$1020,4,FALSE),"- ") -> - | AL25: =IFERROR(VLOOKUP(A25,'Implied Rating'!$B$7:$C$1179,2,FALSE),"-") -> - | AM25: =IFERROR(VLOOKUP(A25,'ICV Rating'!$B$5:$E$1306,2,FALSE),"-") -> - | AN25: =_xll.BDP(B25,$AN$2) -> #N/A N/A | AO25: =_xll.BDP(B25,$AO$2) -> #N/A N/A | AP25: =_xll.BDP(B25,$AP$2) -> #N/A N/A | AQ25: =_xll.BDP(B25,$AQ$2) -> N | AR25: =_xll.BDP(B25,$AR$2) -> Optionally | AS25: =_xll.BDP(B25,$AS$2) -> N | AT25: =_xll.BDP(B25,$AT$2) -> #N/A N/A | AU25: =_xll.BDP(B25,$AU$2) -> N | AV25: =_xll.BDP(B25,$AV$2) -> N | AW25: =_xll.BDP(B25,$AW$2) -> US | AX25: =_xll.BDP(AC25 & " Equity",$AX$2) -> Information Technology | AY25: =_xll.BDP(AC25 & " Equity",$AY$2) -> Technology Hardware & Equipmen | AZ25: =_xll.BDP(AC25 & " Equity",$AZ$2) -> Communications Equipment | BB25: 0 | BC25: =_xll.BDP(B25,$BC$2) -> 3.646548825 | BD25: =_xll.BDP(B25,$BD$2) -> 2.203326146 | BE25: =_xll.BDP(B25,$BE$2) -> 135.2830739 | BF25: =_xll.BDP(B25,$BF$2) -> 2.624 | BG25: =_xll.BDP(B25,$BG$2) -> 4.9672956 | BH25: =_xll.BDP(B25,$BH$2) -> 7.952012208 | BI25: =_xll.BDP(B25,$BI$2) -> 9.241364208 | BK25: =_xll.BDP(B25,$BK$2) -> 96.77282 | BL25: =_xll.BDP(B25,$BL$2) -> #N/A Field Not Applicable | BM25: =_xll.BDP(B25,$BM$2) -> 60.91162405 | BN25: =_xll.BDP(B25,$BN$2) -> 0.004955971944 | BO25: =_xll.BDP(B25,$BO$2) -> 45.13001771 | BP25: =_xll.BDP(AC25 & " Equity",$BP$2) -> #N/A N/A | BQ25: =_xll.BDP(AC25 & " Equity",$BQ$2) -> 29.01.2015 | BR25: =_xll.BDP(AC25 & " Equity",$BR$2) -> 50.10339358
A26: US29404KAA43 | B26: =A26 & " Corp" -> US29404KAA43 Corp | C26: ENVESTNET INC | D26: =_xll.BDP(B26,$D$2) -> ENVESTNET INC | E26: =_xll.BDP(B26,$E$2) -> 1.75 | F26: =_xll.BDP(B26,$F$2) -> 15.12.2019 | G26: =_xll.BDP(B26,$G$2) -> #N/A Field Not Applicable | H26: =_xll.BDP(B26,$H$2) -> #N/A Field Not Applicable | I26: 2014-11-27 | J26: NE Dez. 14 | K26: 1 | L26: =ROUND((T26*T$2+U26*U$2+S26*S$2+IF(P26="NR",0,P26^2*SIGN(P26))+M26*M$2)/(L$2-IF(P26="NR",0,P$2)-IF(S26,0,S$2)),0) -> 1 | M26: 1 | N26: -1 | O26: 0 | P26: NR | Q26: 2014-04-22 | R26: 0 | S26: =VLOOKUP(AX26,[1]Sheet1!$C$8:$D$23,2,FALSE) -> 1 | T26: =MIN(ROUND(ABS(V26/AD26)*200,0),2)*SIGN(V26) -> 1 | U26: =MIN(ROUND(ABS(X26),0),2)*IFERROR(SIGN(X26),0) -> 1 | V26: =_xll.BDP(AC26 & " Equity",$V$3) -> 0.1485097408 | W26: =_xll.BDP(AC26 & " Equity",$W$3) -> 45.01845385 | X26: =IFERROR(10*LN((100+Z26)/(100+$Z$1))+2*LN((100+$W$2)/(100+W26)),0) -> 1.135153842 | Y26: =_xll.BDP(AC26 & " Equity",$Y$2) -> 7.547971 | Z26: =_xll.BDP(AC26 & " Equity",$Z$2) -> 27.14898 | AA26: =_xll.BDP(AC26 & " Equity",$AA$2) -> 2.645504 | AB26: =_xll.BDP(AC26 & " Equity",$AB$2) -> ENV US | AC26: =_xll.BDP(B26,$AC$2) -> EQ0000000010023063 | AD26: =_xll.BDP(AC26 & " Equity",$AD$2) -> 49.28 | AE26: 52 | AF26: 48 | AG26: =_xll.BDP(B26,$AG$2) -> USD | AH26: =_xll.BDP(B26,$AH$2) -> 172500000 | AI26: =IFERROR(VLOOKUP(A26,'Fisch Holding'!$A$5:$C$1245,3,FALSE)/AH26,"-") -> - | AJ26: =IFERROR(VLOOKUP(A26,'BM Weight'!$A$7:$D$1020,3,FALSE),"-") -> - | AK26: =IFERROR(VLOOKUP(A26,'BM Weight'!$A$7:$D$1020,4,FALSE),"- ") -> - | AL26: =IFERROR(VLOOKUP(A26,'Implied Rating'!$B$7:$C$1179,2,FALSE),"-") -> - | AM26: =IFERROR(VLOOKUP(A26,'ICV Rating'!$B$5:$E$1306,2,FALSE),"-") -> - | AN26: =_xll.BDP(B26,$AN$2) -> #N/A N/A | AO26: =_xll.BDP(B26,$AO$2) -> #N/A N/A | AP26: =_xll.BDP(B26,$AP$2) -> #N/A N/A | AQ26: =_xll.BDP(B26,$AQ$2) -> N | AR26: =_xll.BDP(B26,$AR$2) -> Optionally | AS26: =_xll.BDP(B26,$AS$2) -> N | AT26: =_xll.BDP(B26,$AT$2) -> N | AU26: =_xll.BDP(B26,$AU$2) -> N | AV26: =_xll.BDP(B26,$AV$2) -> N | AW26: =_xll.BDP(B26,$AW$2) -> US | AX26: =_xll.BDP(AC26 & " Equity",$AX$2) -> Information Technology | AY26: =_xll.BDP(AC26 & " Equity",$AY$2) -> Software & Services | AZ26: =_xll.BDP(AC26 & " Equity",$AZ$2) -> Internet Software & Services | BB26: 0 | BC26: =_xll.BDP(B26,$BC$2) -> 4.70011746 | BD26: =_xll.BDP(B26,$BD$2) -> 2.051961304 | BE26: =_xll.BDP(B26,$BE$2) -> -84.54362798 | BF26: =_xll.BDP(B26,$BF$2) -> 0.636 | BG26: =_xll.BDP(B26,$BG$2) -> 2.036811267 | BH26: =_xll.BDP(B26,$BH$2) -> 4.73170094 | BI26: =_xll.BDP(B26,$BI$2) -> #N/A N/A | BK26: =_xll.BDP(B26,$BK$2) -> 105.2915 | BL26: =_xll.BDP(B26,$BL$2) -> #N/A Field Not Applicable | BM26: =_xll.BDP(B26,$BM$2) -> 74.56828039 | BN26: =_xll.BDP(B26,$BN$2) -> 0.003628904155 | BO26: =_xll.BDP(B26,$BO$2) -> 31.36278211 | BP26: =_xll.BDP(AC26 & " Equity",$BP$2) -> #N/A N/A | BQ26: =_xll.BDP(AC26 & " Equity",$BQ$2) -> 20.02.2015 | BR26: =_xll.BDP(AC26 & " Equity",$BR$2) -> 44.08850504
A27: US29444UAH95 | B27: =A27 & " Corp" -> US29444UAH95 Corp | C27: EQUINIX INC | D27: =_xll.BDP(B27,$D$2) -> EQUINIX INC | E27: =_xll.BDP(B27,$E$2) -> 4.75 | F27: =_xll.BDP(B27,$F$2) -> 15.06.2016 | G27: =_xll.BDP(B27,$G$2) -> #N/A Field Not Applicable | H27: =_xll.BDP(B27,$H$2) -> #N/A Field Not Applicable | I27: 2013-07-23 | K27: 0 | L27: =ROUND((T27*T$2+U27*U$2+S27*S$2+IF(P27="NR",0,P27^2*SIGN(P27))+M27*M$2)/(L$2-IF(P27="NR",0,P$2)-IF(S27,0,S$2)),0) -> -1 | M27: -2 | N27: 0 | O27: -2 | P27: NR | Q27: 2013-07-23 | R27: -2 | S27: =VLOOKUP(AX27,[1]Sheet1!$C$8:$D$23,2,FALSE) -> 1 | T27: =MIN(ROUND(ABS(V27/AD27)*200,0),2)*SIGN(V27) -> -1 | U27: =MIN(ROUND(ABS(X27),0),2)*IFERROR(SIGN(X27),0) -> 1 | V27: =_xll.BDP(AC27 & " Equity",$V$3) -> -1.528053522 | W27: =_xll.BDP(AC27 & " Equity",$W$3) -> 25.40908583 | X27: =IFERROR(10*LN((100+Z27)/(100+$Z$1))+2*LN((100+$W$2)/(100+W27)),0) -> 0.6465917004 | Y27: =_xll.BDP(AC27 & " Equity",$Y$2) -> -1.34319 | Z27: =_xll.BDP(AC27 & " Equity",$Z$2) -> 17.61861 | AA27: =_xll.BDP(AC27 & " Equity",$AA$2) -> -3.462266 | AB27: =_xll.BDP(AC27 & " Equity",$AB$2) -> EQIX US | AC27: =_xll.BDP(B27,$AC$2) -> EQ0000000000446719 | AD27: =_xll.BDP(AC27 & " Equity",$AD$2) -> 218.33 | AE27: 230 | AF27: 200 | AG27: =_xll.BDP(B27,$AG$2) -> USD | AH27: =_xll.BDP(B27,$AH$2) -> 157887000 | AI27: =IFERROR(VLOOKUP(A27,'Fisch Holding'!$A$5:$C$1245,3,FALSE)/AH27,"-") -> - | AJ27: =IFERROR(VLOOKUP(A27,'BM Weight'!$A$7:$D$1020,3,FALSE),"-") -> - | AK27: =IFERROR(VLOOKUP(A27,'BM Weight'!$A$7:$D$1020,4,FALSE),"- ") -> - | AL27: =IFERROR(VLOOKUP(A27,'Implied Rating'!$B$7:$C$1179,2,FALSE),"-") -> B | AM27: =IFERROR(VLOOKUP(A27,'ICV Rating'!$B$5:$E$1306,2,FALSE),"-") -> 0 | AN27: =_xll.BDP(B27,$AN$2) -> NR | AO27: =_xll.BDP(B27,$AO$2) -> Ba3 | AP27: =_xll.BDP(B27,$AP$2) -> BB | AQ27: =_xll.BDP(B27,$AQ$2) -> N | AR27: =_xll.BDP(B27,$AR$2) -> Optionally | AS27: =_xll.BDP(B27,$AS$2) -> Y | AT27: =_xll.BDP(B27,$AT$2) -> Y | AU27: =_xll.BDP(B27,$AU$2) -> N | AV27: =_xll.BDP(B27,$AV$2) -> N | AW27: =_xll.BDP(B27,$AW$2) -> US | AX27: =_xll.BDP(AC27 & " Equity",$AX$2) -> Information Technology | AY27: =_xll.BDP(AC27 & " Equity",$AY$2) -> Software & Services | AZ27: =_xll.BDP(AC27 & " Equity",$AZ$2) -> Internet Software & Services | BB27: 0 | BC27: =_xll.BDP(B27,$BC$2) -> 1.939247566 | BD27: =_xll.BDP(B27,$BD$2) -> 0.0005795363052 | BE27: =_xll.BDP(B27,$BE$2) -> -5833.592425 | BF27: =_xll.BDP(B27,$BF$2) -> -57.806 | BG27: =_xll.BDP(B27,$BG$2) -> -0.812921448 | BH27: =_xll.BDP(B27,$BH$2) -> -1.4122841 | BI27: =_xll.BDP(B27,$BI$2) -> 15.33743391 | BK27: =_xll.BDP(B27,$BK$2) -> 272.1348 | BL27: =_xll.BDP(B27,$BL$2) -> #N/A Field Not Applicable | BM27: =_xll.BDP(B27,$BM$2) -> 99.83658135 | BN27: =_xll.BDP(B27,$BN$2) -> 8.689521704e-05 | BO27: =_xll.BDP(B27,$BO$2) -> 1.664071352 | BP27: =_xll.BDP(AC27 & " Equity",$BP$2) -> #N/A N/A | BQ27: =_xll.BDP(AC27 & " Equity",$BQ$2) -> 19.02.2015 | BR27: =_xll.BDP(AC27 & " Equity",$BR$2) -> 28.09657011
A28: US298736AG45 | B28: =A28 & " Corp" -> US298736AG45 Corp | C28: ENVESTNET INC | D28: =_xll.BDP(B28,$D$2) -> EURONET WORLDWIDE INC | E28: =_xll.BDP(B28,$E$2) -> 1.5 | F28: =_xll.BDP(B28,$F$2) -> 01.10.2044 | G28: =_xll.BDP(B28,$G$2) -> 01.10.2020 | H28: =_xll.BDP(B28,$H$2) -> 05.10.2020 | I28: 2015-01-15 | J28: NE Okt. 14 | K28: 0 | L28: =ROUND((T28*T$2+U28*U$2+S28*S$2+IF(P28="NR",0,P28^2*SIGN(P28))+M28*M$2)/(L$2-IF(P28="NR",0,P$2)-IF(S28,0,S$2)),0) -> 1 | M28: 1 | N28: -1 | O28: 0 | P28: NR | Q28: 2014-04-22 | R28: 0 | S28: =VLOOKUP(AX28,[1]Sheet1!$C$8:$D$23,2,FALSE) -> 1 | T28: =MIN(ROUND(ABS(V28/AD28)*200,0),2)*SIGN(V28) -> -1 | U28: =MIN(ROUND(ABS(X28),0),2)*IFERROR(SIGN(X28),0) -> 0 | V28: =_xll.BDP(AC28 & " Equity",$V$3) -> -0.2844235897 | W28: =_xll.BDP(AC28 & " Equity",$W$3) -> 31.95579177 | X28: =IFERROR(10*LN((100+Z28)/(100+$Z$1))+2*LN((100+$W$2)/(100+W28)),0) -> 0.2411015588 | Y28: =_xll.BDP(AC28 & " Equity",$Y$2) -> -5.647658 | Z28: =_xll.BDP(AC28 & " Equity",$Z$2) -> 14.10002 | AA28: =_xll.BDP(AC28 & " Equity",$AA$2) -> -5.664848 | AB28: =_xll.BDP(AC28 & " Equity",$AB$2) -> EEFT US | AC28: =_xll.BDP(B28,$AC$2) -> EQ0020257900001000 | AD28: =_xll.BDP(AC28 & " Equity",$AD$2) -> 50.7 | AE28: 53 | AF28: 50 | AG28: =_xll.BDP(B28,$AG$2) -> USD | AH28: =_xll.BDP(B28,$AH$2) -> 402500000 | AI28: =IFERROR(VLOOKUP(A28,'Fisch Holding'!$A$5:$C$1245,3,FALSE)/AH28,"-") -> 0.02260869565 | AJ28: =IFERROR(VLOOKUP(A28,'BM Weight'!$A$7:$D$1020,3,FALSE),"-") -> - | AK28: =IFERROR(VLOOKUP(A28,'BM Weight'!$A$7:$D$1020,4,FALSE),"- ") -> - | AL28: =IFERROR(VLOOKUP(A28,'Implied Rating'!$B$7:$C$1179,2,FALSE),"-") -> BB | AM28: =IFERROR(VLOOKUP(A28,'ICV Rating'!$B$5:$E$1306,2,FALSE),"-") -> 0 | AN28: =_xll.BDP(B28,$AN$2) -> NR | AO28: =_xll.BDP(B28,$AO$2) -> #N/A N/A | AP28: =_xll.BDP(B28,$AP$2) -> BBB- | AQ28: =_xll.BDP(B28,$AQ$2) -> N | AR28: =_xll.BDP(B28,$AR$2) -> Optionally | AS28: =_xll.BDP(B28,$AS$2) -> N | AT28: =_xll.BDP(B28,$AT$2) -> N | AU28: =_xll.BDP(B28,$AU$2) -> N | AV28: =_xll.BDP(B28,$AV$2) -> Y | AW28: =_xll.BDP(B28,$AW$2) -> US | AX28: =_xll.BDP(AC28 & " Equity",$AX$2) -> Information Technology | AY28: =_xll.BDP(AC28 & " Equity",$AY$2) -> Software & Services | AZ28: =_xll.BDP(AC28 & " Equity",$AZ$2) -> IT Services | BB28: 0 | BC28: =_xll.BDP(B28,$BC$2) -> 5.433089655 | BD28: =_xll.BDP(B28,$BD$2) -> 3.049871671 | BE28: =_xll.BDP(B28,$BE$2) -> -11.91680166 | BF28: =_xll.BDP(B28,$BF$2) -> 1.429 | BG28: =_xll.BDP(B28,$BG$2) -> 0.3536594382 | BH28: =_xll.BDP(B28,$BH$2) -> -1.66892945 | BI28: =_xll.BDP(B28,$BI$2) -> #N/A N/A | BK28: =_xll.BDP(B28,$BK$2) -> 100.227 | BL28: =_xll.BDP(B28,$BL$2) -> #N/A Field Not Applicable | BM28: =_xll.BDP(B28,$BM$2) -> 60.7696779 | BN28: =_xll.BDP(B28,$BN$2) -> 0.004855652903 | BO28: =_xll.BDP(B28,$BO$2) -> 39.91851365 | BP28: =_xll.BDP(AC28 & " Equity",$BP$2) -> #N/A N/A | BQ28: =_xll.BDP(AC28 & " Equity",$BQ$2) -> 11.02.2015 | BR28: =_xll.BDP(AC28 & " Equity",$BR$2) -> 31.49165772
A29: US31787AAM36 | B29: =A29 & " Corp" -> US31787AAM36 Corp | C29: FINISAR CORP | D29: =_xll.BDP(B29,$D$2) -> FINISAR CORP | E29: =_xll.BDP(B29,$E$2) -> 0.5 | F29: =_xll.BDP(B29,$F$2) -> 15.12.2033 | G29: =_xll.BDP(B29,$G$2) -> 15.12.2018 | H29: =_xll.BDP(B29,$H$2) -> 22.12.2018 | I29: 2014-12-16 | K29: 0 | L29: =ROUND((T29*T$2+U29*U$2+S29*S$2+IF(P29="NR",0,P29^2*SIGN(P29))+M29*M$2)/(L$2-IF(P29="NR",0,P$2)-IF(S29,0,S$2)),0) -> 0 | M29: 0 | N29: -1 | O29: 0 | P29: NR | Q29: 2014-05-05 | R29: -2 | S29: =VLOOKUP(AX29,[1]Sheet1!$C$8:$D$23,2,FALSE) -> 1 | T29: =MIN(ROUND(ABS(V29/AD29)*200,0),2)*SIGN(V29) -> -2 | U29: =MIN(ROUND(ABS(X29),0),2)*IFERROR(SIGN(X29),0) -> 1 | V29: =_xll.BDP(AC29 & " Equity",$V$3) -> -0.1676949859 | W29: =_xll.BDP(AC29 & " Equity",$W$3) -> 31.47419734 | X29: =IFERROR(10*LN((100+Z29)/(100+$Z$1))+2*LN((100+$W$2)/(100+W29)),0) -> 0.8709218064 | Y29: =_xll.BDP(AC29 & " Equity",$Y$2) -> -0.5901255 | Z29: =_xll.BDP(AC29 & " Equity",$Z$2) -> 21.42857 | AA29: =_xll.BDP(AC29 & " Equity",$AA$2) -> -4.533745 | AB29: =_xll.BDP(AC29 & " Equity",$AB$2) -> FNSR US | AC29: =_xll.BDP(B29,$AC$2) -> EQ0088345000001000 | AD29: =_xll.BDP(AC29 & " Equity",$AD$2) -> 18.35 | AE29: 20 | AF29: 18 | AG29: =_xll.BDP(B29,$AG$2) -> USD | AH29: =_xll.BDP(B29,$AH$2) -> 258750000 | AI29: =IFERROR(VLOOKUP(A29,'Fisch Holding'!$A$5:$C$1245,3,FALSE)/AH29,"-") -> 0.00193236715 | AJ29: =IFERROR(VLOOKUP(A29,'BM Weight'!$A$7:$D$1020,3,FALSE),"-") -> - | AK29: =IFERROR(VLOOKUP(A29,'BM Weight'!$A$7:$D$1020,4,FALSE),"- ") -> - | AL29: =IFERROR(VLOOKUP(A29,'Implied Rating'!$B$7:$C$1179,2,FALSE),"-") -> BB+ | AM29: =IFERROR(VLOOKUP(A29,'ICV Rating'!$B$5:$E$1306,2,FALSE),"-") -> 0 | AN29: =_xll.BDP(B29,$AN$2) -> #N/A N/A | AO29: =_xll.BDP(B29,$AO$2) -> #N/A N/A | AP29: =_xll.BDP(B29,$AP$2) -> #N/A N/A | AQ29: =_xll.BDP(B29,$AQ$2) -> N | AR29: =_xll.BDP(B29,$AR$2) -> Optionally | AS29: =_xll.BDP(B29,$AS$2) -> N | AT29: =_xll.BDP(B29,$AT$2) -> Y | AU29: =_xll.BDP(B29,$AU$2) -> N | AV29: =_xll.BDP(B29,$AV$2) -> Y | AW29: =_xll.BDP(B29,$AW$2) -> US | AX29: =_xll.BDP(AC29 & " Equity",$AX$2) -> Information Technology | AY29: =_xll.BDP(AC29 & " Equity",$AY$2) -> Technology Hardware & Equipmen | AZ29: =_xll.BDP(AC29 & " Equity",$AZ$2) -> Communications Equipment | BB29: 0 | BC29: =_xll.BDP(B29,$BC$2) -> 3.833087267 | BD29: =_xll.BDP(B29,$BD$2) -> 2.667379938 | BE29: =_xll.BDP(B29,$BE$2) -> 29.08013392 | BF29: =_xll.BDP(B29,$BF$2) -> 1.589 | BG29: =_xll.BDP(B29,$BG$2) -> 0.7715205734 | BH29: =_xll.BDP(B29,$BH$2) -> 0.9526727921 | BI29: =_xll.BDP(B29,$BI$2) -> 6.989086489 | BK29: =_xll.BDP(B29,$BK$2) -> 95.75471 | BL29: =_xll.BDP(B29,$BL$2) -> #N/A Field Not Applicable | BM29: =_xll.BDP(B29,$BM$2) -> 53.23671272 | BN29: =_xll.BDP(B29,$BN$2) -> 0.00497658378 | BO29: =_xll.BDP(B29,$BO$2) -> 56.20765405 | BP29: =_xll.BDP(AC29 & " Equity",$BP$2) -> #N/A N/A | BQ29: =_xll.BDP(AC29 & " Equity",$BQ$2) -> 06.03.2015 | BR29: =_xll.BDP(AC29 & " Equity",$BR$2) -> 34.60175437
A30: US36191UAB26 | B30: =A30 & " Corp" -> US36191UAB26 Corp | C30: GT ADV TECHNOLOGIES INC | D30: =_xll.BDP(B30,$D$2) -> GT ADV TECHNOLOGIES INC | E30: =_xll.BDP(B30,$E$2) -> 3 | F30: =_xll.BDP(B30,$F$2) -> 15.12.2020 | G30: =_xll.BDP(B30,$G$2) -> #N/A Field Not Applicable | H30: =_xll.BDP(B30,$H$2) -> #N/A Field Not Applicable | I30: 2014-10-07 | J30: Default | K30: -2 | L30: =ROUND((T30*T$2+U30*U$2+S30*S$2+IF(P30="NR",0,P30^2*SIGN(P30))+M30*M$2)/(L$2-IF(P30="NR",0,P$2)-IF(S30,0,S$2)),0) -> -1 | M30: -1 | N30: 0 | O30: -1 | P30: 0 | Q30: 2014-06-03 | R30: -2 | S30: =VLOOKUP(AX30,[1]Sheet1!$C$8:$D$23,2,FALSE) -> 1 | T30: =MIN(ROUND(ABS(V30/AD30)*200,0),2)*SIGN(V30) -> 2 | U30: =MIN(ROUND(ABS(X30),0),2)*IFERROR(SIGN(X30),0) -> -2 | V30: =_xll.BDP(AC30 & " Equity",$V$3) -> 0.0310113579 | W30: =_xll.BDP(AC30 & " Equity",$W$3) -> 197.2410583 | X30: =IFERROR(10*LN((100+Z30)/(100+$Z$1))+2*LN((100+$W$2)/(100+W30)),0) -> -3.847117786 | Y30: =_xll.BDP(AC30 & " Equity",$Y$2) -> -4.411763 | Z30: =_xll.BDP(AC30 & " Equity",$Z$2) -> -10.81893 | AA30: =_xll.BDP(AC30 & " Equity",$AA$2) -> 17.82477 | AB30: =_xll.BDP(AC30 & " Equity",$AB$2) -> GTATQ US | AC30: =_xll.BDP(B30,$AC$2) -> EQ0000000003481843 | AD30: =_xll.BDP(AC30 & " Equity",$AD$2) -> 0.409 | AE30: 5 | AF30: 0.2 | AG30: =_xll.BDP(B30,$AG$2) -> USD | AH30: =_xll.BDP(B30,$AH$2) -> 214000000 | AI30: =IFERROR(VLOOKUP(A30,'Fisch Holding'!$A$5:$C$1245,3,FALSE)/AH30,"-") -> - | AJ30: =IFERROR(VLOOKUP(A30,'BM Weight'!$A$7:$D$1020,3,FALSE),"-") -> - | AK30: =IFERROR(VLOOKUP(A30,'BM Weight'!$A$7:$D$1020,4,FALSE),"- ") -> - | AL30: =IFERROR(VLOOKUP(A30,'Implied Rating'!$B$7:$C$1179,2,FALSE),"-") -> B | AM30: =IFERROR(VLOOKUP(A30,'ICV Rating'!$B$5:$E$1306,2,FALSE),"-") -> 0 | AN30: =_xll.BDP(B30,$AN$2) -> #N/A N/A | AO30: =_xll.BDP(B30,$AO$2) -> #N/A N/A | AP30: =_xll.BDP(B30,$AP$2) -> #N/A N/A | AQ30: =_xll.BDP(B30,$AQ$2) -> Y | AR30: =_xll.BDP(B30,$AR$2) -> Optionally | AS30: =_xll.BDP(B30,$AS$2) -> N | AT30: =_xll.BDP(B30,$AT$2) -> N | AU30: =_xll.BDP(B30,$AU$2) -> N | AV30: =_xll.BDP(B30,$AV$2) -> N | AW30: =_xll.BDP(B30,$AW$2) -> US | AX30: =_xll.BDP(AC30 & " Equity",$AX$2) -> Information Technology | AY30: =_xll.BDP(AC30 & " Equity",$AY$2) -> Semiconductors & Semiconductor | AZ30: =_xll.BDP(AC30 & " Equity",$AZ$2) -> Semiconductors & Semiconductor | BB30: 0 | BC30: =_xll.BDP(B30,$BC$2) -> 4.873484746 | BD30: =_xll.BDP(B30,$BD$2) -> 5.171076756 | BE30: =_xll.BDP(B30,$BE$2) -> #N/A N/A | BF30: =_xll.BDP(B30,$BF$2) -> 17.369 | BG30: =_xll.BDP(B30,$BG$2) -> -5.063291139 | BH30: =_xll.BDP(B30,$BH$2) -> 6.534090909 | BI30: =_xll.BDP(B30,$BI$2) -> 147.5247525 | BK30: =_xll.BDP(B30,$BK$2) -> 46.875 | BL30: =_xll.BDP(B30,$BL$2) -> #N/A Field Not Applicable | BM30: =_xll.BDP(B30,$BM$2) -> 91.17667838 | BN30: =_xll.BDP(B30,$BN$2) -> 0.0004111762093 | BO30: =_xll.BDP(B30,$BO$2) -> 1363.291422 | BP30: =_xll.BDP(AC30 & " Equity",$BP$2) -> #N/A N/A | BQ30: =_xll.BDP(AC30 & " Equity",$BQ$2) -> #N/A N/A | BR30: =_xll.BDP(AC30 & " Equity",$BR$2) -> 516.4280412 | BT30: 2014-02-24
A31: US36191UAA43 | B31: =A31 & " Corp" -> US36191UAA43 Corp | C31: GT ADV TECHNOLOGIES INC | D31: =_xll.BDP(B31,$D$2) -> GT ADV TECHNOLOGIES INC | E31: =_xll.BDP(B31,$E$2) -> 3 | F31: =_xll.BDP(B31,$F$2) -> 01.10.2017 | G31: =_xll.BDP(B31,$G$2) -> #N/A Field Not Applicable | H31: =_xll.BDP(B31,$H$2) -> #N/A Field Not Applicable | I31: 2014-10-07 | J31: Default | K31: -2 | L31: =ROUND((T31*T$2+U31*U$2+S31*S$2+IF(P31="NR",0,P31^2*SIGN(P31))+M31*M$2)/(L$2-IF(P31="NR",0,P$2)-IF(S31,0,S$2)),0) -> -1 | M31: -1 | N31: 0 | O31: -1 | P31: 0 | Q31: 2014-02-03 | R31: -2 | S31: =VLOOKUP(AX31,[1]Sheet1!$C$8:$D$23,2,FALSE) -> 1 | T31: =MIN(ROUND(ABS(V31/AD31)*200,0),2)*SIGN(V31) -> 2 | U31: =MIN(ROUND(ABS(X31),0),2)*IFERROR(SIGN(X31),0) -> -2 | V31: =_xll.BDP(AC31 & " Equity",$V$3) -> 0.0310113579 | W31: =_xll.BDP(AC31 & " Equity",$W$3) -> 197.2410583 | X31: =IFERROR(10*LN((100+Z31)/(100+$Z$1))+2*LN((100+$W$2)/(100+W31)),0) -> -3.847117786 | Y31: =_xll.BDP(AC31 & " Equity",$Y$2) -> -4.411763 | Z31: =_xll.BDP(AC31 & " Equity",$Z$2) -> -10.81893 | AA31: =_xll.BDP(AC31 & " Equity",$AA$2) -> 17.82477 | AB31: =_xll.BDP(AC31 & " Equity",$AB$2) -> GTATQ US | AC31: =_xll.BDP(B31,$AC$2) -> EQ0000000003481843 | AD31: =_xll.BDP(AC31 & " Equity",$AD$2) -> 0.409 | AE31: 5 | AF31: 0.2 | AG31: =_xll.BDP(B31,$AG$2) -> USD | AH31: =_xll.BDP(B31,$AH$2) -> 220000000 | AI31: =IFERROR(VLOOKUP(A31,'Fisch Holding'!$A$5:$C$1245,3,FALSE)/AH31,"-") -> - | AJ31: =IFERROR(VLOOKUP(A31,'BM Weight'!$A$7:$D$1020,3,FALSE),"-") -> - | AK31: =IFERROR(VLOOKUP(A31,'BM Weight'!$A$7:$D$1020,4,FALSE),"- ") -> - | AL31: =IFERROR(VLOOKUP(A31,'Implied Rating'!$B$7:$C$1179,2,FALSE),"-") -> - | AM31: =IFERROR(VLOOKUP(A31,'ICV Rating'!$B$5:$E$1306,2,FALSE),"-") -> - | AN31: =_xll.BDP(B31,$AN$2) -> #N/A N/A | AO31: =_xll.BDP(B31,$AO$2) -> #N/A N/A | AP31: =_xll.BDP(B31,$AP$2) -> #N/A N/A | AQ31: =_xll.BDP(B31,$AQ$2) -> Y | AR31: =_xll.BDP(B31,$AR$2) -> Optionally | AS31: =_xll.BDP(B31,$AS$2) -> N | AT31: =_xll.BDP(B31,$AT$2) -> N | AU31: =_xll.BDP(B31,$AU$2) -> N | AV31: =_xll.BDP(B31,$AV$2) -> N | AW31: =_xll.BDP(B31,$AW$2) -> US | AX31: =_xll.BDP(AC31 & " Equity",$AX$2) -> Information Technology | AY31: =_xll.BDP(AC31 & " Equity",$AY$2) -> Semiconductors & Semiconductor | AZ31: =_xll.BDP(AC31 & " Equity",$AZ$2) -> Semiconductors & Semiconductor | BB31: 0 | BC31: =_xll.BDP(B31,$BC$2) -> 2.218487818 | BD31: =_xll.BDP(B31,$BD$2) -> 2.434707093 | BE31: =_xll.BDP(B31,$BE$2) -> #N/A N/A | BF31: =_xll.BDP(B31,$BF$2) -> 33.103 | BG31: =_xll.BDP(B31,$BG$2) -> 0.78125 | BH31: =_xll.BDP(B31,$BH$2) -> 1.308900524 | BI31: =_xll.BDP(B31,$BI$2) -> 141.875 | BK31: =_xll.BDP(B31,$BK$2) -> 48.375 | BL31: =_xll.BDP(B31,$BL$2) -> #N/A Field Not Applicable | BM31: =_xll.BDP(B31,$BM$2) -> 64.24082668 | BN31: =_xll.BDP(B31,$BN$2) -> 0.001525065662 | BO31: =_xll.BDP(B31,$BO$2) -> 856.2126149 | BP31: =_xll.BDP(AC31 & " Equity",$BP$2) -> #N/A N/A | BQ31: =_xll.BDP(AC31 & " Equity",$BQ$2) -> #N/A N/A | BR31: =_xll.BDP(AC31 & " Equity",$BR$2) -> 516.4280412
A32: US83415UAA60 | B32: =A32 & " Corp" -> US83415UAA60 Corp | C32: HANWHA SOLARONE CO LTD | D32: =_xll.BDP(B32,$D$2) -> HANWHA SOLARONE CO LTD | E32: =_xll.BDP(B32,$E$2) -> 3.5 | F32: =_xll.BDP(B32,$F$2) -> 15.01.2018 | G32: =_xll.BDP(B32,$G$2) -> #N/A Field Not Applicable | H32: =_xll.BDP(B32,$H$2) -> #N/A Field Not Applicable | I32: 2013-10-01 | J32: NO GO KUF; nur 100 Mio Outst.; Put Jan. 15 ; I-CV Sept. 13 CCC | K32: -1 | L32: =ROUND((T32*T$2+U32*U$2+S32*S$2+IF(P32="NR",0,P32^2*SIGN(P32))+M32*M$2)/(L$2-IF(P32="NR",0,P$2)-IF(S32,0,S$2)),0) -> 0 | M32: 0 | N32: -1 | O32: -2 | P32: -1 | Q32: 2013-10-01 | R32: -2 | S32: =VLOOKUP(AX32,[1]Sheet1!$C$8:$D$23,2,FALSE) -> 1 | T32: =MIN(ROUND(ABS(V32/AD32)*200,0),2)*SIGN(V32) -> 2 | U32: =MIN(ROUND(ABS(X32),0),2)*IFERROR(SIGN(X32),0) -> -2 | V32: =_xll.BDP(AC32 & " Equity",$V$3) -> 0.007510736585 | W32: =_xll.BDP(AC32 & " Equity",$W$3) -> 68.36183816 | X32: =IFERROR(10*LN((100+Z32)/(100+$Z$1))+2*LN((100+$W$2)/(100+W32)),0) -> -8.192127986 | Y32: =_xll.BDP(AC32 & " Equity",$Y$2) -> -22.48062 | Z32: =_xll.BDP(AC32 & " Equity",$Z$2) -> -48.45361 | AA32: =_xll.BDP(AC32 & " Equity",$AA$2) -> -9.090911 | AB32: =_xll.BDP(AC32 & " Equity",$AB$2) -> HSOL US | AC32: =_xll.BDP(B32,$AC$2) -> EQ0000000003065564 | AD32: =_xll.BDP(AC32 & " Equity",$AD$2) -> 0.98 | AE32: 3 | AF32: 1 | AG32: =_xll.BDP(B32,$AG$2) -> USD | AH32: =_xll.BDP(B32,$AH$2) -> 86100000 | AI32: =IFERROR(VLOOKUP(A32,'Fisch Holding'!$A$5:$C$1245,3,FALSE)/AH32,"-") -> - | AJ32: =IFERROR(VLOOKUP(A32,'BM Weight'!$A$7:$D$1020,3,FALSE),"-") -> - | AK32: =IFERROR(VLOOKUP(A32,'BM Weight'!$A$7:$D$1020,4,FALSE),"- ") -> - | AL32: =IFERROR(VLOOKUP(A32,'Implied Rating'!$B$7:$C$1179,2,FALSE),"-") -> - | AM32: =IFERROR(VLOOKUP(A32,'ICV Rating'!$B$5:$E$1306,2,FALSE),"-") -> - | AN32: =_xll.BDP(B32,$AN$2) -> #N/A N/A | AO32: =_xll.BDP(B32,$AO$2) -> #N/A N/A | AP32: =_xll.BDP(B32,$AP$2) -> #N/A N/A | AQ32: =_xll.BDP(B32,$AQ$2) -> N | AR32: =_xll.BDP(B32,$AR$2) -> Optionally | AS32: =_xll.BDP(B32,$AS$2) -> N | AT32: =_xll.BDP(B32,$AT$2) -> N | AU32: =_xll.BDP(B32,$AU$2) -> N | AV32: =_xll.BDP(B32,$AV$2) -> N | AW32: =_xll.BDP(B32,$AW$2) -> KR | AX32: =_xll.BDP(AC32 & " Equity",$AX$2) -> Information Technology | AY32: =_xll.BDP(AC32 & " Equity",$AY$2) -> Semiconductors & Semiconductor | AZ32: =_xll.BDP(AC32 & " Equity",$AZ$2) -> Semiconductors & Semiconductor | BB32: 0 | BC32: =_xll.BDP(B32,$BC$2) -> 2.775978921 | BD32: =_xll.BDP(B32,$BD$2) -> 2.808145428 | BE32: =_xll.BDP(B32,$BE$2) -> 410.0905525 | BF32: =_xll.BDP(B32,$BF$2) -> 5.16 | BG32: =_xll.BDP(B32,$BG$2) -> -3.981293148 | BH32: =_xll.BDP(B32,$BH$2) -> -3.941848853 | BI32: =_xll.BDP(B32,$BI$2) -> -1.22621748 | BK32: =_xll.BDP(B32,$BK$2) -> 94.46304 | BL32: =_xll.BDP(B32,$BL$2) -> #N/A Field Not Applicable | BM32: =_xll.BDP(B32,$BM$2) -> 9.77615911 | BN32: =_xll.BDP(B32,$BN$2) -> 0.001048764744 | BO32: =_xll.BDP(B32,$BO$2) -> 1725.729236 | BP32: =_xll.BDP(AC32 & " Equity",$BP$2) -> #N/A N/A | BQ32: =_xll.BDP(AC32 & " Equity",$BQ$2) -> 13.03.2015 | BR32: =_xll.BDP(AC32 & " Equity",$BR$2) -> 64.60445325
A33: US45667GAB95 | B33: =A33 & " Corp" -> US45667GAB95 Corp | C33: INFINERA CORP | D33: =_xll.BDP(B33,$D$2) -> INFINERA CORP | E33: =_xll.BDP(B33,$E$2) -> 1.75 | F33: =_xll.BDP(B33,$F$2) -> 01.06.2018 | G33: =_xll.BDP(B33,$G$2) -> #N/A Field Not Applicable | H33: =_xll.BDP(B33,$H$2) -> #N/A Field Not Applicable | I33: 2014-10-29 | J33: digital optical telco equipment | K33: 1 | L33: =ROUND((T33*T$2+U33*U$2+S33*S$2+IF(P33="NR",0,P33^2*SIGN(P33))+M33*M$2)/(L$2-IF(P33="NR",0,P$2)-IF(S33,0,S$2)),0) -> 0 | M33: 0 | N33: -1 | O33: 0 | P33: NR | Q33: 2014-03-17 | R33: -1 | S33: =VLOOKUP(AX33,[1]Sheet1!$C$8:$D$23,2,FALSE) -> 1 | T33: =MIN(ROUND(ABS(V33/AD33)*200,0),2)*SIGN(V33) -> -2 | U33: =MIN(ROUND(ABS(X33),0),2)*IFERROR(SIGN(X33),0) -> 1 | V33: =_xll.BDP(AC33 & " Equity",$V$3) -> -0.1321459115 | W33: =_xll.BDP(AC33 & " Equity",$W$3) -> 69.01512178 | X33: =IFERROR(10*LN((100+Z33)/(100+$Z$1))+2*LN((100+$W$2)/(100+W33)),0) -> 1.430596676 | Y33: =_xll.BDP(AC33 & " Equity",$Y$2) -> -0.8645541 | Z33: =_xll.BDP(AC33 & " Equity",$Z$2) -> 35.03435 | AA33: =_xll.BDP(AC33 & " Equity",$AA$2) -> -6.521741 | AB33: =_xll.BDP(AC33 & " Equity",$AB$2) -> INFN US | AC33: =_xll.BDP(B33,$AC$2) -> EQ0000000003278325 | AD33: =_xll.BDP(AC33 & " Equity",$AD$2) -> 13.29 | AE33: 15 | AF33: 12 | AG33: =_xll.BDP(B33,$AG$2) -> USD | AH33: =_xll.BDP(B33,$AH$2) -> 150000000 | AI33: =IFERROR(VLOOKUP(A33,'Fisch Holding'!$A$5:$C$1245,3,FALSE)/AH33,"-") -> - | AJ33: =IFERROR(VLOOKUP(A33,'BM Weight'!$A$7:$D$1020,3,FALSE),"-") -> - | AK33: =IFERROR(VLOOKUP(A33,'BM Weight'!$A$7:$D$1020,4,FALSE),"- ") -> - | AL33: =IFERROR(VLOOKUP(A33,'Implied Rating'!$B$7:$C$1179,2,FALSE),"-") -> BB | AM33: =IFERROR(VLOOKUP(A33,'ICV Rating'!$B$5:$E$1306,2,FALSE),"-") -> 0 | AN33: =_xll.BDP(B33,$AN$2) -> #N/A N/A | AO33: =_xll.BDP(B33,$AO$2) -> #N/A N/A | AP33: =_xll.BDP(B33,$AP$2) -> #N/A N/A | AQ33: =_xll.BDP(B33,$AQ$2) -> N | AR33: =_xll.BDP(B33,$AR$2) -> Optionally | AS33: =_xll.BDP(B33,$AS$2) -> N | AT33: =_xll.BDP(B33,$AT$2) -> #N/A N/A | AU33: =_xll.BDP(B33,$AU$2) -> N | AV33: =_xll.BDP(B33,$AV$2) -> N | AW33: =_xll.BDP(B33,$AW$2) -> US | AX33: =_xll.BDP(AC33 & " Equity",$AX$2) -> Information Technology | AY33: =_xll.BDP(AC33 & " Equity",$AY$2) -> Technology Hardware & Equipmen | AZ33: =_xll.BDP(AC33 & " Equity",$AZ$2) -> Communications Equipment | BB33: 0 | BC33: =_xll.BDP(B33,$BC$2) -> 3.378589912 | BD33: =_xll.BDP(B33,$BD$2) -> 0.8926065838 | BE33: =_xll.BDP(B33,$BE$2) -> -687.4672023 | BF33: =_xll.BDP(B33,$BF$2) -> -5.709 | BG33: =_xll.BDP(B33,$BG$2) -> 0.9684808682 | BH33: =_xll.BDP(B33,$BH$2) -> -0.1618146073 | BI33: =_xll.BDP(B33,$BI$2) -> 18.14800782 | BK33: =_xll.BDP(B33,$BK$2) -> 127.5757 | BL33: =_xll.BDP(B33,$BL$2) -> #N/A Field Not Applicable | BM33: =_xll.BDP(B33,$BM$2) -> 84.29525924 | BN33: =_xll.BDP(B33,$BN$2) -> 0.002559053796 | BO33: =_xll.BDP(B33,$BO$2) -> 17.11162429 | BP33: =_xll.BDP(AC33 & " Equity",$BP$2) -> #N/A N/A | BQ33: =_xll.BDP(AC33 & " Equity",$BQ$2) -> 22.01.2015 | BR33: =_xll.BDP(AC33 & " Equity",$BR$2) -> 60.44852853
A34: US458140AC49 | B34: =A34 & " Corp" -> US458140AC49 Corp | C34: INTEL CORP | D34: =_xll.BDP(B34,$D$2) -> INTEL CORP | E34: =_xll.BDP(B34,$E$2) -> 3.482 | F34: =_xll.BDP(B34,$F$2) -> 15.12.2035 | G34: =_xll.BDP(B34,$G$2) -> #N/A Field Not Applicable | H34: =_xll.BDP(B34,$H$2) -> #N/A Field Not Applicable | I34: 2014-11-20 | K34: 0 | L34: =ROUND((T34*T$2+U34*U$2+S34*S$2+IF(P34="NR",0,P34^2*SIGN(P34))+M34*M$2)/(L$2-IF(P34="NR",0,P$2)-IF(S34,0,S$2)),0) -> 0 | M34: 0 | N34: 0 | O34: 1 | P34: NR | Q34: 2014-07-21 | R34: 2 | S34: =VLOOKUP(AX34,[1]Sheet1!$C$8:$D$23,2,FALSE) -> 1 | T34: =MIN(ROUND(ABS(V34/AD34)*200,0),2)*SIGN(V34) -> 0 | U34: =MIN(ROUND(ABS(X34),0),2)*IFERROR(SIGN(X34),0) -> 1 | V34: =_xll.BDP(AC34 & " Equity",$V$3) -> -0.07595232129 | W34: =_xll.BDP(AC34 & " Equity",$W$3) -> 23.96042165 | X34: =IFERROR(10*LN((100+Z34)/(100+$Z$1))+2*LN((100+$W$2)/(100+W34)),0) -> 0.5508099548 | Y34: =_xll.BDP(AC34 & " Equity",$Y$2) -> 1.19711 | Z34: =_xll.BDP(AC34 & " Equity",$Z$2) -> 16.22702 | AA34: =_xll.BDP(AC34 & " Equity",$AA$2) -> 0.1653323 | AB34: =_xll.BDP(AC34 & " Equity",$AB$2) -> INTC US | AC34: =_xll.BDP(B34,$AC$2) -> EQ0010172900001000 | AD34: =_xll.BDP(AC34 & " Equity",$AD$2) -> 36.39 | AE34: 37 | AF34: 35.5 | AG34: =_xll.BDP(B34,$AG$2) -> USD | AH34: =_xll.BDP(B34,$AH$2) -> 1600000000 | AI34: =IFERROR(VLOOKUP(A34,'Fisch Holding'!$A$5:$C$1245,3,FALSE)/AH34,"-") -> - | AJ34: =IFERROR(VLOOKUP(A34,'BM Weight'!$A$7:$D$1020,3,FALSE),"-") -> - | AK34: =IFERROR(VLOOKUP(A34,'BM Weight'!$A$7:$D$1020,4,FALSE),"- ") -> - | AL34: =IFERROR(VLOOKUP(A34,'Implied Rating'!$B$7:$C$1179,2,FALSE),"-") -> - | AM34: =IFERROR(VLOOKUP(A34,'ICV Rating'!$B$5:$E$1306,2,FALSE),"-") -> - | AN34: =_xll.BDP(B34,$AN$2) -> A- | AO34: =_xll.BDP(B34,$AO$2) -> A1 | AP34: =_xll.BDP(B34,$AP$2) -> A+ | AQ34: =_xll.BDP(B34,$AQ$2) -> N | AR34: =_xll.BDP(B34,$AR$2) -> Optionally | AS34: =_xll.BDP(B34,$AS$2) -> Y | AT34: =_xll.BDP(B34,$AT$2) -> N | AU34: =_xll.BDP(B34,$AU$2) -> N | AV34: =_xll.BDP(B34,$AV$2) -> N | AW34: =_xll.BDP(B34,$AW$2) -> US | AX34: =_xll.BDP(AC34 & " Equity",$AX$2) -> Information Technology | AY34: =_xll.BDP(AC34 & " Equity",$AY$2) -> Semiconductors & Semiconductor | AZ34: =_xll.BDP(AC34 & " Equity",$AZ$2) -> Semiconductors & Semiconductor | BB34: 0 | BC34: =_xll.BDP(B34,$BC$2) -> 16.36096048 | BD34: =_xll.BDP(B34,$BD$2) -> 1.119226467 | BE34: =_xll.BDP(B34,$BE$2) -> -115.4213952 | BF34: =_xll.BDP(B34,$BF$2) -> 1.19 | BG34: =_xll.BDP(B34,$BG$2) -> 0.7223472263 | BH34: =_xll.BDP(B34,$BH$2) -> 1.18552463 | BI34: =_xll.BDP(B34,$BI$2) -> 9.094083778 | BK34: =_xll.BDP(B34,$BK$2) -> 132.4973 | BL34: =_xll.BDP(B34,$BL$2) -> #N/A Field Not Applicable | BM34: =_xll.BDP(B34,$BM$2) -> 66.61903945 | BN34: =_xll.BDP(B34,$BN$2) -> 0.004049759982 | BO34: =_xll.BDP(B34,$BO$2) -> 4.442877625 | BP34: =_xll.BDP(AC34 & " Equity",$BP$2) -> 2.640990312 | BQ34: =_xll.BDP(AC34 & " Equity",$BQ$2) -> 15.01.2015 | BR34: =_xll.BDP(AC34 & " Equity",$BR$2) -> 25.62213696
A35: US458140AF79 | B35: =A35 & " Corp" -> US458140AF79 Corp | C35: INTEL CORP | D35: =_xll.BDP(B35,$D$2) -> INTEL CORP | E35: =_xll.BDP(B35,$E$2) -> 3.25 | F35: =_xll.BDP(B35,$F$2) -> 01.08.2039 | G35: =_xll.BDP(B35,$G$2) -> #N/A Field Not Applicable | H35: =_xll.BDP(B35,$H$2) -> #N/A Field Not Applicable | I35: 2014-10-14 | K35: 0 | L35: =ROUND((T35*T$2+U35*U$2+S35*S$2+IF(P35="NR",0,P35^2*SIGN(P35))+M35*M$2)/(L$2-IF(P35="NR",0,P$2)-IF(S35,0,S$2)),0) -> 0 | M35: -1 | N35: 1 | O35: -1 | P35: NR | Q35: 2014-07-21 | R35: 2 | S35: =VLOOKUP(AX35,[1]Sheet1!$C$8:$D$23,2,FALSE) -> 1 | T35: =MIN(ROUND(ABS(V35/AD35)*200,0),2)*SIGN(V35) -> 0 | U35: =MIN(ROUND(ABS(X35),0),2)*IFERROR(SIGN(X35),0) -> 1 | V35: =_xll.BDP(AC35 & " Equity",$V$3) -> -0.07595232129 | W35: =_xll.BDP(AC35 & " Equity",$W$3) -> 23.96042165 | X35: =IFERROR(10*LN((100+Z35)/(100+$Z$1))+2*LN((100+$W$2)/(100+W35)),0) -> 0.5508099548 | Y35: =_xll.BDP(AC35 & " Equity",$Y$2) -> 1.19711 | Z35: =_xll.BDP(AC35 & " Equity",$Z$2) -> 16.22702 | AA35: =_xll.BDP(AC35 & " Equity",$AA$2) -> 0.1653323 | AB35: =_xll.BDP(AC35 & " Equity",$AB$2) -> INTC US | AC35: =_xll.BDP(B35,$AC$2) -> EQ0010172900001000 | AD35: =_xll.BDP(AC35 & " Equity",$AD$2) -> 36.39 | AE35: 37 | AF35: 35.5 | AG35: =_xll.BDP(B35,$AG$2) -> USD | AH35: =_xll.BDP(B35,$AH$2) -> 2000000000 | AI35: =IFERROR(VLOOKUP(A35,'Fisch Holding'!$A$5:$C$1245,3,FALSE)/AH35,"-") -> 0.01165 | AJ35: =IFERROR(VLOOKUP(A35,'BM Weight'!$A$7:$D$1020,3,FALSE),"-") -> - | AK35: =IFERROR(VLOOKUP(A35,'BM Weight'!$A$7:$D$1020,4,FALSE),"- ") -> - | AL35: =IFERROR(VLOOKUP(A35,'Implied Rating'!$B$7:$C$1179,2,FALSE),"-") -> AA+ | AM35: =IFERROR(VLOOKUP(A35,'ICV Rating'!$B$5:$E$1306,2,FALSE),"-") -> BBB | AN35: =_xll.BDP(B35,$AN$2) -> A- | AO35: =_xll.BDP(B35,$AO$2) -> A1 | AP35: =_xll.BDP(B35,$AP$2) -> A+ | AQ35: =_xll.BDP(B35,$AQ$2) -> N | AR35: =_xll.BDP(B35,$AR$2) -> Optionally | AS35: =_xll.BDP(B35,$AS$2) -> Y | AT35: =_xll.BDP(B35,$AT$2) -> Y | AU35: =_xll.BDP(B35,$AU$2) -> N | AV35: =_xll.BDP(B35,$AV$2) -> N | AW35: =_xll.BDP(B35,$AW$2) -> US | AX35: =_xll.BDP(AC35 & " Equity",$AX$2) -> Information Technology | AY35: =_xll.BDP(AC35 & " Equity",$AY$2) -> Semiconductors & Semiconductor | AZ35: =_xll.BDP(AC35 & " Equity",$AZ$2) -> Semiconductors & Semiconductor | BB35: 0 | BC35: =_xll.BDP(B35,$BC$2) -> 18.93441854 | BD35: =_xll.BDP(B35,$BD$2) -> 1.102615834 | BE35: =_xll.BDP(B35,$BE$2) -> -225.1094761 | BF35: =_xll.BDP(B35,$BF$2) -> 0.14 | BG35: =_xll.BDP(B35,$BG$2) -> 0.8355542535 | BH35: =_xll.BDP(B35,$BH$2) -> -0.5589920017 | BI35: =_xll.BDP(B35,$BI$2) -> 13.93087225 | BK35: =_xll.BDP(B35,$BK$2) -> 174.7893 | BL35: =_xll.BDP(B35,$BL$2) -> #N/A Field Not Applicable | BM35: =_xll.BDP(B35,$BM$2) -> 93.75264607 | BN35: =_xll.BDP(B35,$BN$2) -> 0.001331751251 | BO35: =_xll.BDP(B35,$BO$2) -> 4.494878939 | BP35: =_xll.BDP(AC35 & " Equity",$BP$2) -> 2.640990312 | BQ35: =_xll.BDP(AC35 & " Equity",$BQ$2) -> 15.01.2015 | BR35: =_xll.BDP(AC35 & " Equity",$BR$2) -> 25.62213696
A36: US458660AB32 | B36: =A36 & " Corp" -> US458660AB32 Corp | C36: INTERDIGITAL INC | D36: =_xll.BDP(B36,$D$2) -> INTERDIGITAL INC | E36: =_xll.BDP(B36,$E$2) -> 2.5 | F36: =_xll.BDP(B36,$F$2) -> 15.03.2016 | G36: =_xll.BDP(B36,$G$2) -> #N/A Field Not Applicable | H36: =_xll.BDP(B36,$H$2) -> #N/A Field Not Applicable | I36: 2014-12-04 | J36: Patent-Troll | K36: 0 | L36: =ROUND((T36*T$2+U36*U$2+S36*S$2+IF(P36="NR",0,P36^2*SIGN(P36))+M36*M$2)/(L$2-IF(P36="NR",0,P$2)-IF(S36,0,S$2)),0) -> 1 | M36: 1 | N36: 0 | O36: 1 | P36: 0 | Q36: 2014-06-12 | R36: -1 | S36: =VLOOKUP(AX36,[1]Sheet1!$C$8:$D$23,2,FALSE) -> 1 | T36: =MIN(ROUND(ABS(V36/AD36)*200,0),2)*SIGN(V36) -> -1 | U36: =MIN(ROUND(ABS(X36),0),2)*IFERROR(SIGN(X36),0) -> 1 | V36: =_xll.BDP(AC36 & " Equity",$V$3) -> -0.2563079 | W36: =_xll.BDP(AC36 & " Equity",$W$3) -> 29.16388527 | X36: =IFERROR(10*LN((100+Z36)/(100+$Z$1))+2*LN((100+$W$2)/(100+W36)),0) -> 1.392668063 | Y36: =_xll.BDP(AC36 & " Equity",$Y$2) -> 1.424174 | Z36: =_xll.BDP(AC36 & " Equity",$Z$2) -> 27.47944 | AA36: =_xll.BDP(AC36 & " Equity",$AA$2) -> -0.3780747 | AB36: =_xll.BDP(AC36 & " Equity",$AB$2) -> IDCC US | AC36: =_xll.BDP(B36,$AC$2) -> EQ0010459000001000 | AD36: =_xll.BDP(AC36 & " Equity",$AD$2) -> 51.93 | AE36: 53.5 | AF36: 49 | AG36: =_xll.BDP(B36,$AG$2) -> USD | AH36: =_xll.BDP(B36,$AH$2) -> 230000000 | AI36: =IFERROR(VLOOKUP(A36,'Fisch Holding'!$A$5:$C$1245,3,FALSE)/AH36,"-") -> - | AJ36: =IFERROR(VLOOKUP(A36,'BM Weight'!$A$7:$D$1020,3,FALSE),"-") -> - | AK36: =IFERROR(VLOOKUP(A36,'BM Weight'!$A$7:$D$1020,4,FALSE),"- ") -> - | AL36: =IFERROR(VLOOKUP(A36,'Implied Rating'!$B$7:$C$1179,2,FALSE),"-") -> BB+ | AM36: =IFERROR(VLOOKUP(A36,'ICV Rating'!$B$5:$E$1306,2,FALSE),"-") -> B | AN36: =_xll.BDP(B36,$AN$2) -> #N/A N/A | AO36: =_xll.BDP(B36,$AO$2) -> #N/A N/A | AP36: =_xll.BDP(B36,$AP$2) -> #N/A N/A | AQ36: =_xll.BDP(B36,$AQ$2) -> N | AR36: =_xll.BDP(B36,$AR$2) -> Optionally | AS36: =_xll.BDP(B36,$AS$2) -> N | AT36: =_xll.BDP(B36,$AT$2) -> Y | AU36: =_xll.BDP(B36,$AU$2) -> N | AV36: =_xll.BDP(B36,$AV$2) -> N | AW36: =_xll.BDP(B36,$AW$2) -> US | AX36: =_xll.BDP(AC36 & " Equity",$AX$2) -> Information Technology | AY36: =_xll.BDP(AC36 & " Equity",$AY$2) -> Technology Hardware & Equipmen | AZ36: =_xll.BDP(AC36 & " Equity",$AZ$2) -> Communications Equipment | BB36: 0 | BC36: =_xll.BDP(B36,$BC$2) -> 1.171332301 | BD36: =_xll.BDP(B36,$BD$2) -> 0.6120813817 | BE36: =_xll.BDP(B36,$BE$2) -> -746.1567748 | BF36: =_xll.BDP(B36,$BF$2) -> -7.021 | BG36: =_xll.BDP(B36,$BG$2) -> 1.018346346 | BH36: =_xll.BDP(B36,$BH$2) -> 0.3290053909 | BI36: =_xll.BDP(B36,$BI$2) -> 3.34554386 | BK36: =_xll.BDP(B36,$BK$2) -> 111.0218 | BL36: =_xll.BDP(B36,$BL$2) -> #N/A Field Not Applicable | BM36: =_xll.BDP(B36,$BM$2) -> 54.26787237 | BN36: =_xll.BDP(B36,$BN$2) -> 0.01029743209 | BO36: =_xll.BDP(B36,$BO$2) -> 17.9443986 | BP36: =_xll.BDP(AC36 & " Equity",$BP$2) -> 1.518026588 | BQ36: =_xll.BDP(AC36 & " Equity",$BQ$2) -> 20.02.2015 | BR36: =_xll.BDP(AC36 & " Equity",$BR$2) -> 30.58977544
A37: US46123DAB29 | B37: =A37 & " Corp" -> US46123DAB29 Corp | C37: INVENSENSE INC | D37: =_xll.BDP(B37,$D$2) -> INVENSENSE INC | E37: =_xll.BDP(B37,$E$2) -> 1.75 | F37: =_xll.BDP(B37,$F$2) -> 01.11.2018 | G37: =_xll.BDP(B37,$G$2) -> #N/A Field Not Applicable | H37: =_xll.BDP(B37,$H$2) -> #N/A Field Not Applicable | I37: 2014-06-30 | J37: NE Nov. 13; Mikro-Bewegungsmech. | K37: 0 | L37: =ROUND((T37*T$2+U37*U$2+S37*S$2+IF(P37="NR",0,P37^2*SIGN(P37))+M37*M$2)/(L$2-IF(P37="NR",0,P$2)-IF(S37,0,S$2)),0) -> 0 | M37: 1 | N37: -1 | O37: 1 | P37: NR | Q37: 2014-06-30 | R37: -1 | S37: =VLOOKUP(AX37,[1]Sheet1!$C$8:$D$23,2,FALSE) -> 1 | T37: =MIN(ROUND(ABS(V37/AD37)*200,0),2)*SIGN(V37) -> -2 | U37: =MIN(ROUND(ABS(X37),0),2)*IFERROR(SIGN(X37),0) -> -2 | V37: =_xll.BDP(AC37 & " Equity",$V$3) -> -0.2527227104 | W37: =_xll.BDP(AC37 & " Equity",$W$3) -> 79.98196667 | X37: =IFERROR(10*LN((100+Z37)/(100+$Z$1))+2*LN((100+$W$2)/(100+W37)),0) -> -5.755766178 | Y37: =_xll.BDP(AC37 & " Equity",$Y$2) -> -5.671846 | Z37: =_xll.BDP(AC37 & " Equity",$Z$2) -> -33.34923 | AA37: =_xll.BDP(AC37 & " Equity",$AA$2) -> -14.08364 | AB37: =_xll.BDP(AC37 & " Equity",$AB$2) -> INVN US | AC37: =_xll.BDP(B37,$AC$2) -> EQ0000000010533669 | AD37: =_xll.BDP(AC37 & " Equity",$AD$2) -> 13.73 | AE37: 16 | AF37: 13 | AG37: =_xll.BDP(B37,$AG$2) -> USD | AH37: =_xll.BDP(B37,$AH$2) -> 175000000 | AI37: =IFERROR(VLOOKUP(A37,'Fisch Holding'!$A$5:$C$1245,3,FALSE)/AH37,"-") -> - | AJ37: =IFERROR(VLOOKUP(A37,'BM Weight'!$A$7:$D$1020,3,FALSE),"-") -> - | AK37: =IFERROR(VLOOKUP(A37,'BM Weight'!$A$7:$D$1020,4,FALSE),"- ") -> - | AL37: =IFERROR(VLOOKUP(A37,'Implied Rating'!$B$7:$C$1179,2,FALSE),"-") -> - | AM37: =IFERROR(VLOOKUP(A37,'ICV Rating'!$B$5:$E$1306,2,FALSE),"-") -> - | AN37: =_xll.BDP(B37,$AN$2) -> #N/A N/A | AO37: =_xll.BDP(B37,$AO$2) -> #N/A N/A | AP37: =_xll.BDP(B37,$AP$2) -> #N/A N/A | AQ37: =_xll.BDP(B37,$AQ$2) -> N | AR37: =_xll.BDP(B37,$AR$2) -> Optionally | AS37: =_xll.BDP(B37,$AS$2) -> N | AT37: =_xll.BDP(B37,$AT$2) -> #N/A N/A | AU37: =_xll.BDP(B37,$AU$2) -> N | AV37: =_xll.BDP(B37,$AV$2) -> N | AW37: =_xll.BDP(B37,$AW$2) -> US | AX37: =_xll.BDP(AC37 & " Equity",$AX$2) -> Information Technology | AY37: =_xll.BDP(AC37 & " Equity",$AY$2) -> Technology Hardware & Equipmen | AZ37: =_xll.BDP(AC37 & " Equity",$AZ$2) -> Electronic Equip., Instruments | BB37: 0 | BC37: =_xll.BDP(B37,$BC$2) -> 3.583616714 | BD37: =_xll.BDP(B37,$BD$2) -> 1.788663509 | BE37: =_xll.BDP(B37,$BE$2) -> 253.1042412 | BF37: =_xll.BDP(B37,$BF$2) -> 3.793 | BG37: =_xll.BDP(B37,$BG$2) -> -5.64039168 | BH37: =_xll.BDP(B37,$BH$2) -> 0.4788131328 | BI37: =_xll.BDP(B37,$BI$2) -> -17.18723739 | BK37: =_xll.BDP(B37,$BK$2) -> 92.72046 | BL37: =_xll.BDP(B37,$BL$2) -> #N/A Field Not Applicable | BM37: =_xll.BDP(B37,$BM$2) -> 74.90624139 | BN37: =_xll.BDP(B37,$BN$2) -> 0.002793104254 | BO37: =_xll.BDP(B37,$BO$2) -> 45.52057928 | BP37: =_xll.BDP(AC37 & " Equity",$BP$2) -> #N/A N/A | BQ37: =_xll.BDP(AC37 & " Equity",$BQ$2) -> 29.01.2015 | BR37: =_xll.BDP(AC37 & " Equity",$BR$2) -> 72.82695201 | BT37: 2014-01-21
A38: US45071RAB50 | B38: =A38 & " Corp" -> US45071RAB50 Corp | C38: IXIA | D38: =_xll.BDP(B38,$D$2) -> IXIA | E38: =_xll.BDP(B38,$E$2) -> 3 | F38: =_xll.BDP(B38,$F$2) -> 15.12.2015 | G38: =_xll.BDP(B38,$G$2) -> #N/A Field Not Applicable | H38: =_xll.BDP(B38,$H$2) -> #N/A Field Not Applicable | I38: 2014-03-10 | J38: Network-Security | K38: -1 | L38: =ROUND((T38*T$2+U38*U$2+S38*S$2+IF(P38="NR",0,P38^2*SIGN(P38))+M38*M$2)/(L$2-IF(P38="NR",0,P$2)-IF(S38,0,S$2)),0) -> 0 | M38: -1 | N38: -1 | O38: -1 | P38: NR | Q38: 2014-03-10 | R38: -1 | S38: =VLOOKUP(AX38,[1]Sheet1!$C$8:$D$23,2,FALSE) -> 1 | T38: =MIN(ROUND(ABS(V38/AD38)*200,0),2)*SIGN(V38) -> -1 | U38: =MIN(ROUND(ABS(X38),0),2)*IFERROR(SIGN(X38),0) -> 1 | V38: =_xll.BDP(AC38 & " Equity",$V$3) -> -0.05526228249 | W38: =_xll.BDP(AC38 & " Equity",$W$3) -> 39.86396277 | X38: =IFERROR(10*LN((100+Z38)/(100+$Z$1))+2*LN((100+$W$2)/(100+W38)),0) -> 0.6213135531 | Y38: =_xll.BDP(AC38 & " Equity",$Y$2) -> 10.99476 | Z38: =_xll.BDP(AC38 & " Equity",$Z$2) -> 19.9095 | AA38: =_xll.BDP(AC38 & " Equity",$AA$2) -> -5.777778 | AB38: =_xll.BDP(AC38 & " Equity",$AB$2) -> XXIA US | AC38: =_xll.BDP(B38,$AC$2) -> EQ0118316400001000 | AD38: =_xll.BDP(AC38 & " Equity",$AD$2) -> 10.3 | AE38: 11.2 | AF38: 10.5 | AG38: =_xll.BDP(B38,$AG$2) -> USD | AH38: =_xll.BDP(B38,$AH$2) -> 200000000 | AI38: =IFERROR(VLOOKUP(A38,'Fisch Holding'!$A$5:$C$1245,3,FALSE)/AH38,"-") -> - | AJ38: =IFERROR(VLOOKUP(A38,'BM Weight'!$A$7:$D$1020,3,FALSE),"-") -> - | AK38: =IFERROR(VLOOKUP(A38,'BM Weight'!$A$7:$D$1020,4,FALSE),"- ") -> - | AL38: =IFERROR(VLOOKUP(A38,'Implied Rating'!$B$7:$C$1179,2,FALSE),"-") -> - | AM38: =IFERROR(VLOOKUP(A38,'ICV Rating'!$B$5:$E$1306,2,FALSE),"-") -> - | AN38: =_xll.BDP(B38,$AN$2) -> #N/A N/A | AO38: =_xll.BDP(B38,$AO$2) -> #N/A N/A | AP38: =_xll.BDP(B38,$AP$2) -> #N/A N/A | AQ38: =_xll.BDP(B38,$AQ$2) -> N | AR38: =_xll.BDP(B38,$AR$2) -> Optionally | AS38: =_xll.BDP(B38,$AS$2) -> N | AT38: =_xll.BDP(B38,$AT$2) -> Y | AU38: =_xll.BDP(B38,$AU$2) -> N | AV38: =_xll.BDP(B38,$AV$2) -> N | AW38: =_xll.BDP(B38,$AW$2) -> US | AX38: =_xll.BDP(AC38 & " Equity",$AX$2) -> Information Technology | AY38: =_xll.BDP(AC38 & " Equity",$AY$2) -> Technology Hardware & Equipmen | AZ38: =_xll.BDP(AC38 & " Equity",$AZ$2) -> Communications Equipment | BB38: 0 | BC38: =_xll.BDP(B38,$BC$2) -> 0.8809969 | BD38: =_xll.BDP(B38,$BD$2) -> 0.8314356349 | BE38: =_xll.BDP(B38,$BE$2) -> 156.2634478 | BF38: =_xll.BDP(B38,$BF$2) -> 1.926 | BG38: =_xll.BDP(B38,$BG$2) -> -0.07096732556 | BH38: =_xll.BDP(B38,$BH$2) -> 0.4110595811 | BI38: =_xll.BDP(B38,$BI$2) -> 2.677605167 | BK38: =_xll.BDP(B38,$BK$2) -> 100.3172 | BL38: =_xll.BDP(B38,$BL$2) -> #N/A Field Not Applicable | BM38: =_xll.BDP(B38,$BM$2) -> 14.43347666 | BN38: =_xll.BDP(B38,$BN$2) -> 0.005069011098 | BO38: =_xll.BDP(B38,$BO$2) -> 85.09623392 | BP38: =_xll.BDP(AC38 & " Equity",$BP$2) -> #N/A N/A | BQ38: =_xll.BDP(AC38 & " Equity",$BQ$2) -> 15.04.2015 | BR38: =_xll.BDP(AC38 & " Equity",$BR$2) -> 36.50140353 | BT38: 2013-07-10
A39: US48123VAC63 | B39: =A39 & " Corp" -> US48123VAC63 Corp | C39: j2 Global | D39: =_xll.BDP(B39,$D$2) -> J2 GLOBAL COMMUNICATIONS | E39: =_xll.BDP(B39,$E$2) -> 3.25 | F39: =_xll.BDP(B39,$F$2) -> 15.06.2029 | G39: =_xll.BDP(B39,$G$2) -> 15.06.2021 | H39: =_xll.BDP(B39,$H$2) -> 20.06.2021 | I39: 2015-01-15 | K39: 1 | L39: =ROUND((T39*T$2+U39*U$2+S39*S$2+IF(P39="NR",0,P39^2*SIGN(P39))+M39*M$2)/(L$2-IF(P39="NR",0,P$2)-IF(S39,0,S$2)),0) -> 1 | M39: 1 | N39: 0 | O39: 0 | Q39: 2014-08-12 | R39: -1 | S39: =VLOOKUP(AX39,[1]Sheet1!$C$8:$D$23,2,FALSE) -> 1 | T39: =MIN(ROUND(ABS(V39/AD39)*200,0),2)*SIGN(V39) -> -1 | U39: =MIN(ROUND(ABS(X39),0),2)*IFERROR(SIGN(X39),0) -> 1 | V39: =_xll.BDP(AC39 & " Equity",$V$3) -> -0.2921150327 | W39: =_xll.BDP(AC39 & " Equity",$W$3) -> 23.08643228 | X39: =IFERROR(10*LN((100+Z39)/(100+$Z$1))+2*LN((100+$W$2)/(100+W39)),0) -> 1.15901441 | Y39: =_xll.BDP(AC39 & " Equity",$Y$2) -> 1.241928 | Z39: =_xll.BDP(AC39 & " Equity",$Z$2) -> 23.34073 | AA39: =_xll.BDP(AC39 & " Equity",$AA$2) -> -1.387097 | AB39: =_xll.BDP(AC39 & " Equity",$AB$2) -> JCOM US | AC39: =_xll.BDP(B39,$AC$2) -> EQ0038694600001000 | AD39: =_xll.BDP(AC39 & " Equity",$AD$2) -> 60.51 | AE39: 61.5 | AF39: 58 | AG39: =_xll.BDP(B39,$AG$2) -> USD | AH39: =_xll.BDP(B39,$AH$2) -> 402500000 | AI39: =IFERROR(VLOOKUP(A39,'Fisch Holding'!$A$5:$C$1245,3,FALSE)/AH39,"-") -> 0.0101863354 | AJ39: =IFERROR(VLOOKUP(A39,'BM Weight'!$A$7:$D$1020,3,FALSE),"-") -> - | AK39: =IFERROR(VLOOKUP(A39,'BM Weight'!$A$7:$D$1020,4,FALSE),"- ") -> - | AL39: =IFERROR(VLOOKUP(A39,'Implied Rating'!$B$7:$C$1179,2,FALSE),"-") -> BB- | AM39: =IFERROR(VLOOKUP(A39,'ICV Rating'!$B$5:$E$1306,2,FALSE),"-") -> 0 | AN39: =_xll.BDP(B39,$AN$2) -> NR | AO39: =_xll.BDP(B39,$AO$2) -> B1 | AP39: =_xll.BDP(B39,$AP$2) -> NR | AQ39: =_xll.BDP(B39,$AQ$2) -> N | AR39: =_xll.BDP(B39,$AR$2) -> Optionally | AS39: =_xll.BDP(B39,$AS$2) -> N | AT39: =_xll.BDP(B39,$AT$2) -> N | AU39: =_xll.BDP(B39,$AU$2) -> N | AV39: =_xll.BDP(B39,$AV$2) -> Y | AW39: =_xll.BDP(B39,$AW$2) -> US | AX39: =_xll.BDP(AC39 & " Equity",$AX$2) -> Information Technology | AY39: =_xll.BDP(AC39 & " Equity",$AY$2) -> Software & Services | AZ39: =_xll.BDP(AC39 & " Equity",$AZ$2) -> Internet Software & Services | BB39: 0 | BC39: =_xll.BDP(B39,$BC$2) -> 5.811991468 | BD39: =_xll.BDP(B39,$BD$2) -> 2.357076979 | BE39: =_xll.BDP(B39,$BE$2) -> -19.62121229 | BF39: =_xll.BDP(B39,$BF$2) -> 1.482 | BG39: =_xll.BDP(B39,$BG$2) -> 1.048117278 | BH39: =_xll.BDP(B39,$BH$2) -> 1.250928284 | BI39: =_xll.BDP(B39,$BI$2) -> 13.29212357 | BK39: =_xll.BDP(B39,$BK$2) -> 110.2182 | BL39: =_xll.BDP(B39,$BL$2) -> #N/A Field Not Applicable | BM39: =_xll.BDP(B39,$BM$2) -> 74.6977616 | BN39: =_xll.BDP(B39,$BN$2) -> 0.004468640857 | BO39: =_xll.BDP(B39,$BO$2) -> 25.68810248 | BP39: =_xll.BDP(AC39 & " Equity",$BP$2) -> 1.864573087 | BQ39: =_xll.BDP(AC39 & " Equity",$BQ$2) -> 13.02.2015 | BR39: =_xll.BDP(AC39 & " Equity",$BR$2) -> 23.01728725
A40: US46612JAF84 | B40: =A40 & " Corp" -> US46612JAF84 Corp | C40: JDS UNIPHASE CORP | D40: =_xll.BDP(B40,$D$2) -> JDS UNIPHASE CORP | E40: =_xll.BDP(B40,$E$2) -> 0.625 | F40: =_xll.BDP(B40,$F$2) -> 15.08.2033 | G40: =_xll.BDP(B40,$G$2) -> 15.08.2018 | H40: =_xll.BDP(B40,$H$2) -> 20.08.2018 | I40: 2014-09-18 | J40: NE 8.13: 650 Mio; I-CV 9.13; 0.7% in BM | K40: 0 | L40: =ROUND((T40*T$2+U40*U$2+S40*S$2+IF(P40="NR",0,P40^2*SIGN(P40))+M40*M$2)/(L$2-IF(P40="NR",0,P$2)-IF(S40,0,S$2)),0) -> 0 | M40: 0 | N40: -1 | O40: 0 | P40: 0 | Q40: 2014-08-18 | R40: -1 | S40: =VLOOKUP(AX40,[1]Sheet1!$C$8:$D$23,2,FALSE) -> 1 | T40: =MIN(ROUND(ABS(V40/AD40)*200,0),2)*SIGN(V40) -> -1 | U40: =MIN(ROUND(ABS(X40),0),2)*IFERROR(SIGN(X40),0) -> 0 | V40: =_xll.BDP(AC40 & " Equity",$V$3) -> -0.06140284613 | W40: =_xll.BDP(AC40 & " Equity",$W$3) -> 27.80155722 | X40: =IFERROR(10*LN((100+Z40)/(100+$Z$1))+2*LN((100+$W$2)/(100+W40)),0) -> 0.2957853585 | Y40: =_xll.BDP(AC40 & " Equity",$Y$2) -> -1.903366 | Z40: =_xll.BDP(AC40 & " Equity",$Z$2) -> 13.99404 | AA40: =_xll.BDP(AC40 & " Equity",$AA$2) -> -2.332363 | AB40: =_xll.BDP(AC40 & " Equity",$AB$2) -> JDSU US | AC40: =_xll.BDP(B40,$AC$2) -> EQ0012630200001000 | AD40: =_xll.BDP(AC40 & " Equity",$AD$2) -> 13.2601 | AE40: 14 | AF40: 12 | AG40: =_xll.BDP(B40,$AG$2) -> USD | AH40: =_xll.BDP(B40,$AH$2) -> 650000000 | AI40: =IFERROR(VLOOKUP(A40,'Fisch Holding'!$A$5:$C$1245,3,FALSE)/AH40,"-") -> 0.002 | AJ40: =IFERROR(VLOOKUP(A40,'BM Weight'!$A$7:$D$1020,3,FALSE),"-") -> 0.6093340224 | AK40: =IFERROR(VLOOKUP(A40,'BM Weight'!$A$7:$D$1020,4,FALSE),"- ") -> 0 | AL40: =IFERROR(VLOOKUP(A40,'Implied Rating'!$B$7:$C$1179,2,FALSE),"-") -> BB+ | AM40: =IFERROR(VLOOKUP(A40,'ICV Rating'!$B$5:$E$1306,2,FALSE),"-") -> BB | AN40: =_xll.BDP(B40,$AN$2) -> #N/A N/A | AO40: =_xll.BDP(B40,$AO$2) -> #N/A N/A | AP40: =_xll.BDP(B40,$AP$2) -> #N/A N/A | AQ40: =_xll.BDP(B40,$AQ$2) -> N | AR40: =_xll.BDP(B40,$AR$2) -> Optionally | AS40: =_xll.BDP(B40,$AS$2) -> N | AT40: =_xll.BDP(B40,$AT$2) -> #N/A N/A | AU40: =_xll.BDP(B40,$AU$2) -> N | AV40: =_xll.BDP(B40,$AV$2) -> Y | AW40: =_xll.BDP(B40,$AW$2) -> US | AX40: =_xll.BDP(AC40 & " Equity",$AX$2) -> Information Technology | AY40: =_xll.BDP(AC40 & " Equity",$AY$2) -> Technology Hardware & Equipmen | AZ40: =_xll.BDP(AC40 & " Equity",$AZ$2) -> Communications Equipment | BB40: 0 | BC40: =_xll.BDP(B40,$BC$2) -> 3.554497348 | BD40: =_xll.BDP(B40,$BD$2) -> 2.499408774 | BE40: =_xll.BDP(B40,$BE$2) -> -216.7609857 | BF40: =_xll.BDP(B40,$BF$2) -> -0.945 | BG40: =_xll.BDP(B40,$BG$2) -> -0.1553160608 | BH40: =_xll.BDP(B40,$BH$2) -> 0.9974362191 | BI40: =_xll.BDP(B40,$BI$2) -> 6.945948495 | BK40: =_xll.BDP(B40,$BK$2) -> 105.5661 | BL40: =_xll.BDP(B40,$BL$2) -> #N/A Field Not Applicable | BM40: =_xll.BDP(B40,$BM$2) -> 46.40412086 | BN40: =_xll.BDP(B40,$BN$2) -> 0.006255215619 | BO40: =_xll.BDP(B40,$BO$2) -> 48.57726023 | BP40: =_xll.BDP(AC40 & " Equity",$BP$2) -> #N/A N/A | BQ40: =_xll.BDP(AC40 & " Equity",$BQ$2) -> 29.01.2015 | BR40: =_xll.BDP(AC40 & " Equity",$BR$2) -> 34.5195991
A41: USG51385AA32 | B41: =A41 & " Corp" -> USG51385AA32 Corp | C41: JINKOSOLAR HOLDING CO LT | D41: =_xll.BDP(B41,$D$2) -> JINKOSOLAR HOLDING CO LT | E41: =_xll.BDP(B41,$E$2) -> 4 | F41: =_xll.BDP(B41,$F$2) -> 01.02.2019 | G41: =_xll.BDP(B41,$G$2) -> 01.02.2017 | H41: =_xll.BDP(B41,$H$2) -> #N/A Field Not Applicable | I41: 2014-09-11 | J41: NE Jan. 14; USD 150; Put Febr. 17 | K41: 0 | L41: =ROUND((T41*T$2+U41*U$2+S41*S$2+IF(P41="NR",0,P41^2*SIGN(P41))+M41*M$2)/(L$2-IF(P41="NR",0,P$2)-IF(S41,0,S$2)),0) -> 0 | M41: 0 | N41: -1 | O41: 0 | P41: NR | Q41: 2014-06-03 | R41: -2 | S41: =VLOOKUP(AX41,[1]Sheet1!$C$8:$D$23,2,FALSE) -> 1 | T41: =MIN(ROUND(ABS(V41/AD41)*200,0),2)*SIGN(V41) -> 1 | U41: =MIN(ROUND(ABS(X41),0),2)*IFERROR(SIGN(X41),0) -> -2 | V41: =_xll.BDP(AC41 & " Equity",$V$3) -> 0.06690967083 | W41: =_xll.BDP(AC41 & " Equity",$W$3) -> 62.69102944 | X41: =IFERROR(10*LN((100+Z41)/(100+$Z$1))+2*LN((100+$W$2)/(100+W41)),0) -> -3.419331431 | Y41: =_xll.BDP(AC41 & " Equity",$Y$2) -> -3.222346 | Z41: =_xll.BDP(AC41 & " Equity",$Z$2) -> -17.49084 | AA41: =_xll.BDP(AC41 & " Equity",$AA$2) -> -8.574324 | AB41: =_xll.BDP(AC41 & " Equity",$AB$2) -> JKS US | AC41: =_xll.BDP(B41,$AC$2) -> EQ0000000009644822 | AD41: =_xll.BDP(AC41 & " Equity",$AD$2) -> 17.774 | AE41: 20 | AF41: 17 | AG41: =_xll.BDP(B41,$AG$2) -> USD | AH41: =_xll.BDP(B41,$AH$2) -> 150000000 | AI41: =IFERROR(VLOOKUP(A41,'Fisch Holding'!$A$5:$C$1245,3,FALSE)/AH41,"-") -> - | AJ41: =IFERROR(VLOOKUP(A41,'BM Weight'!$A$7:$D$1020,3,FALSE),"-") -> - | AK41: =IFERROR(VLOOKUP(A41,'BM Weight'!$A$7:$D$1020,4,FALSE),"- ") -> - | AL41: =IFERROR(VLOOKUP(A41,'Implied Rating'!$B$7:$C$1179,2,FALSE),"-") -> - | AM41: =IFERROR(VLOOKUP(A41,'ICV Rating'!$B$5:$E$1306,2,FALSE),"-") -> - | AN41: =_xll.BDP(B41,$AN$2) -> #N/A N/A | AO41: =_xll.BDP(B41,$AO$2) -> #N/A N/A | AP41: =_xll.BDP(B41,$AP$2) -> #N/A N/A | AQ41: =_xll.BDP(B41,$AQ$2) -> N | AR41: =_xll.BDP(B41,$AR$2) -> Optionally | AS41: =_xll.BDP(B41,$AS$2) -> N | AT41: =_xll.BDP(B41,$AT$2) -> #N/A N/A | AU41: =_xll.BDP(B41,$AU$2) -> N | AV41: =_xll.BDP(B41,$AV$2) -> N | AW41: =_xll.BDP(B41,$AW$2) -> CN | AX41: =_xll.BDP(AC41 & " Equity",$AX$2) -> Information Technology | AY41: =_xll.BDP(AC41 & " Equity",$AY$2) -> Semiconductors & Semiconductor | AZ41: =_xll.BDP(AC41 & " Equity",$AZ$2) -> Semiconductors & Semiconductor | BB41: 0 | BC41: =_xll.BDP(B41,$BC$2) -> 1.799603066 | BD41: =_xll.BDP(B41,$BD$2) -> 1.564225365 | BE41: =_xll.BDP(B41,$BE$2) -> 1224.771704 | BF41: =_xll.BDP(B41,$BF$2) -> 13.002 | BG41: =_xll.BDP(B41,$BG$2) -> -1.43825629 | BH41: =_xll.BDP(B41,$BH$2) -> -3.942695978 | BI41: =_xll.BDP(B41,$BI$2) -> -6.159855656 | BK41: =_xll.BDP(B41,$BK$2) -> 84.01566 | BL41: =_xll.BDP(B41,$BL$2) -> #N/A Field Not Applicable | BM41: =_xll.BDP(B41,$BM$2) -> 55.41181614 | BN41: =_xll.BDP(B41,$BN$2) -> 0.003807496163 | BO41: =_xll.BDP(B41,$BO$2) -> 114.6023638 | BP41: =_xll.BDP(AC41 & " Equity",$BP$2) -> #N/A N/A | BQ41: =_xll.BDP(AC41 & " Equity",$BQ$2) -> 03.03.2015 | BR41: =_xll.BDP(AC41 & " Equity",$BR$2) -> 64.03939831 | BT41: 2014-01-21
A42: US47759TAA88 | B42: =A42 & " Corp" -> US47759TAA88 Corp | C42: JINKOSOLAR HOLDING CO LT | D42: =_xll.BDP(B42,$D$2) -> JINKOSOLAR HOLDING CO LT | E42: =_xll.BDP(B42,$E$2) -> 4 | F42: =_xll.BDP(B42,$F$2) -> 15.05.2016 | G42: =_xll.BDP(B42,$G$2) -> #N/A Field Not Applicable | H42: =_xll.BDP(B42,$H$2) -> #N/A Field Not Applicable | I42: 2014-09-04 | J42: USD 123 Mio; Put Mai 14 | K42: -1 | L42: =ROUND((T42*T$2+U42*U$2+S42*S$2+IF(P42="NR",0,P42^2*SIGN(P42))+M42*M$2)/(L$2-IF(P42="NR",0,P$2)-IF(S42,0,S$2)),0) -> -1 | M42: -1 | N42: 1 | O42: 0 | P42: NR | Q42: 2014-01-07 | R42: -2 | S42: =VLOOKUP(AX42,[1]Sheet1!$C$8:$D$23,2,FALSE) -> 1 | T42: =MIN(ROUND(ABS(V42/AD42)*200,0),2)*SIGN(V42) -> 1 | U42: =MIN(ROUND(ABS(X42),0),2)*IFERROR(SIGN(X42),0) -> -2 | V42: =_xll.BDP(AC42 & " Equity",$V$3) -> 0.06690967083 | W42: =_xll.BDP(AC42 & " Equity",$W$3) -> 62.69102944 | X42: =IFERROR(10*LN((100+Z42)/(100+$Z$1))+2*LN((100+$W$2)/(100+W42)),0) -> -3.419331431 | Y42: =_xll.BDP(AC42 & " Equity",$Y$2) -> -3.222346 | Z42: =_xll.BDP(AC42 & " Equity",$Z$2) -> -17.49084 | AA42: =_xll.BDP(AC42 & " Equity",$AA$2) -> -8.574324 | AB42: =_xll.BDP(AC42 & " Equity",$AB$2) -> JKS US | AC42: =_xll.BDP(B42,$AC$2) -> EQ0000000009644822 | AD42: =_xll.BDP(AC42 & " Equity",$AD$2) -> 17.774 | AE42: 20 | AF42: 17 | AG42: =_xll.BDP(B42,$AG$2) -> USD | AH42: =_xll.BDP(B42,$AH$2) -> 123000000 | AI42: =IFERROR(VLOOKUP(A42,'Fisch Holding'!$A$5:$C$1245,3,FALSE)/AH42,"-") -> - | AJ42: =IFERROR(VLOOKUP(A42,'BM Weight'!$A$7:$D$1020,3,FALSE),"-") -> - | AK42: =IFERROR(VLOOKUP(A42,'BM Weight'!$A$7:$D$1020,4,FALSE),"- ") -> - | AL42: =IFERROR(VLOOKUP(A42,'Implied Rating'!$B$7:$C$1179,2,FALSE),"-") -> - | AM42: =IFERROR(VLOOKUP(A42,'ICV Rating'!$B$5:$E$1306,2,FALSE),"-") -> - | AN42: =_xll.BDP(B42,$AN$2) -> #N/A N/A | AO42: =_xll.BDP(B42,$AO$2) -> #N/A N/A | AP42: =_xll.BDP(B42,$AP$2) -> #N/A N/A | AQ42: =_xll.BDP(B42,$AQ$2) -> N | AR42: =_xll.BDP(B42,$AR$2) -> Optionally | AS42: =_xll.BDP(B42,$AS$2) -> N | AT42: =_xll.BDP(B42,$AT$2) -> N | AU42: =_xll.BDP(B42,$AU$2) -> N | AV42: =_xll.BDP(B42,$AV$2) -> N | AW42: =_xll.BDP(B42,$AW$2) -> CN | AX42: =_xll.BDP(AC42 & " Equity",$AX$2) -> Information Technology | AY42: =_xll.BDP(AC42 & " Equity",$AY$2) -> Semiconductors & Semiconductor | AZ42: =_xll.BDP(AC42 & " Equity",$AZ$2) -> Semiconductors & Semiconductor | BB42: 0 | BC42: =_xll.BDP(B42,$BC$2) -> 1.220614028 | BD42: =_xll.BDP(B42,$BD$2) -> 0.9716753056 | BE42: =_xll.BDP(B42,$BE$2) -> 1000.656693 | BF42: =_xll.BDP(B42,$BF$2) -> 10.505 | BG42: =_xll.BDP(B42,$BG$2) -> 1.986107302 | BH42: =_xll.BDP(B42,$BH$2) -> -1.004864852 | BI42: =_xll.BDP(B42,$BI$2) -> -6.028763094 | BK42: =_xll.BDP(B42,$BK$2) -> 91.96368 | BL42: =_xll.BDP(B42,$BL$2) -> #N/A Field Not Applicable | BM42: =_xll.BDP(B42,$BM$2) -> 42.84677397 | BN42: =_xll.BDP(B42,$BN$2) -> 0.005477453044 | BO42: =_xll.BDP(B42,$BO$2) -> 72.63755764 | BP42: =_xll.BDP(AC42 & " Equity",$BP$2) -> #N/A N/A | BQ42: =_xll.BDP(AC42 & " Equity",$BQ$2) -> 03.03.2015 | BR42: =_xll.BDP(AC42 & " Equity",$BR$2) -> 64.03939831
A43: US512807AL20 | B43: =A43 & " Corp" -> US512807AL20 Corp | C43: LAM RESEARCH CORP | D43: =_xll.BDP(B43,$D$2) -> LAM RESEARCH CORP | E43: =_xll.BDP(B43,$E$2) -> 1.25 | F43: =_xll.BDP(B43,$F$2) -> 15.05.2018 | G43: =_xll.BDP(B43,$G$2) -> #N/A Field Not Applicable | H43: =_xll.BDP(B43,$H$2) -> #N/A Field Not Applicable | I43: 2015-01-15 | J43: fällt per 10.12. aus BM | K43: 0 | L43: =ROUND((T43*T$2+U43*U$2+S43*S$2+IF(P43="NR",0,P43^2*SIGN(P43))+M43*M$2)/(L$2-IF(P43="NR",0,P$2)-IF(S43,0,S$2)),0) -> -1 | M43: -1 | N43: -1 | O43: 0 | P43: 1 | Q43: 2014-07-07 | R43: 1 | S43: =VLOOKUP(AX43,[1]Sheet1!$C$8:$D$23,2,FALSE) -> 1 | T43: =MIN(ROUND(ABS(V43/AD43)*200,0),2)*SIGN(V43) -> -1 | U43: =MIN(ROUND(ABS(X43),0),2)*IFERROR(SIGN(X43),0) -> 0 | V43: =_xll.BDP(AC43 & " Equity",$V$3) -> -0.4096599519 | W43: =_xll.BDP(AC43 & " Equity",$W$3) -> 24.46629544 | X43: =IFERROR(10*LN((100+Z43)/(100+$Z$1))+2*LN((100+$W$2)/(100+W43)),0) -> -0.1235543607 | Y43: =_xll.BDP(AC43 & " Equity",$Y$2) -> -2.910764 | Z43: =_xll.BDP(AC43 & " Equity",$Z$2) -> 8.736056 | AA43: =_xll.BDP(AC43 & " Equity",$AA$2) -> -4.146706 | AB43: =_xll.BDP(AC43 & " Equity",$AB$2) -> LRCX US | AC43: =_xll.BDP(B43,$AC$2) -> EQ0010512000001000 | AD43: =_xll.BDP(AC43 & " Equity",$AD$2) -> 76.99 | AE43: 80 | AF43: 76 | AG43: =_xll.BDP(B43,$AG$2) -> USD | AH43: =_xll.BDP(B43,$AH$2) -> 450000000 | AI43: =IFERROR(VLOOKUP(A43,'Fisch Holding'!$A$5:$C$1245,3,FALSE)/AH43,"-") -> 0.05466666667 | AJ43: =IFERROR(VLOOKUP(A43,'BM Weight'!$A$7:$D$1020,3,FALSE),"-") -> - | AK43: =IFERROR(VLOOKUP(A43,'BM Weight'!$A$7:$D$1020,4,FALSE),"- ") -> - | AL43: =IFERROR(VLOOKUP(A43,'Implied Rating'!$B$7:$C$1179,2,FALSE),"-") -> A+ | AM43: =IFERROR(VLOOKUP(A43,'ICV Rating'!$B$5:$E$1306,2,FALSE),"-") -> 0 | AN43: =_xll.BDP(B43,$AN$2) -> BBB | AO43: =_xll.BDP(B43,$AO$2) -> Baa1 | AP43: =_xll.BDP(B43,$AP$2) -> BBB | AQ43: =_xll.BDP(B43,$AQ$2) -> N | AR43: =_xll.BDP(B43,$AR$2) -> Optionally | AS43: =_xll.BDP(B43,$AS$2) -> N | AT43: =_xll.BDP(B43,$AT$2) -> N | AU43: =_xll.BDP(B43,$AU$2) -> N | AV43: =_xll.BDP(B43,$AV$2) -> N | AW43: =_xll.BDP(B43,$AW$2) -> US | AX43: =_xll.BDP(AC43 & " Equity",$AX$2) -> Information Technology | AY43: =_xll.BDP(AC43 & " Equity",$AY$2) -> Semiconductors & Semiconductor | AZ43: =_xll.BDP(AC43 & " Equity",$AZ$2) -> Semiconductors & Semiconductor | BB43: 0 | BC43: =_xll.BDP(B43,$BC$2) -> 3.40260051 | BD43: =_xll.BDP(B43,$BD$2) -> 0.9393697773 | BE43: =_xll.BDP(B43,$BE$2) -> -936.9739929 | BF43: =_xll.BDP(B43,$BF$2) -> -8.213 | BG43: =_xll.BDP(B43,$BG$2) -> -1.632936117 | BH43: =_xll.BDP(B43,$BH$2) -> -1.595311877 | BI43: =_xll.BDP(B43,$BI$2) -> 5.705984773 | BK43: =_xll.BDP(B43,$BK$2) -> 136.6931 | BL43: =_xll.BDP(B43,$BL$2) -> #N/A Field Not Applicable | BM43: =_xll.BDP(B43,$BM$2) -> 79.66180235 | BN43: =_xll.BDP(B43,$BN$2) -> 0.004573920338 | BO43: =_xll.BDP(B43,$BO$2) -> 12.64552365 | BP43: =_xll.BDP(AC43 & " Equity",$BP$2) -> 0.9467455998 | BQ43: =_xll.BDP(AC43 & " Equity",$BQ$2) -> 28.01.2015 | BR43: =_xll.BDP(AC43 & " Equity",$BR$2) -> 30.55349083
A44: US512807AJ73 | B44: =A44 & " Corp" -> US512807AJ73 Corp | C44: LAM RESEARCH CORP | D44: =_xll.BDP(B44,$D$2) -> LAM RESEARCH CORP | E44: =_xll.BDP(B44,$E$2) -> 0.5 | F44: =_xll.BDP(B44,$F$2) -> 15.05.2016 | G44: =_xll.BDP(B44,$G$2) -> #N/A Field Not Applicable | H44: =_xll.BDP(B44,$H$2) -> #N/A Field Not Applicable | I44: 2014-11-06 | K44: 0 | L44: =ROUND((T44*T$2+U44*U$2+S44*S$2+IF(P44="NR",0,P44^2*SIGN(P44))+M44*M$2)/(L$2-IF(P44="NR",0,P$2)-IF(S44,0,S$2)),0) -> -1 | M44: -1 | N44: -1 | O44: 1 | P44: 1 | Q44: 2014-07-07 | R44: 1 | S44: =VLOOKUP(AX44,[1]Sheet1!$C$8:$D$23,2,FALSE) -> 1 | T44: =MIN(ROUND(ABS(V44/AD44)*200,0),2)*SIGN(V44) -> -1 | U44: =MIN(ROUND(ABS(X44),0),2)*IFERROR(SIGN(X44),0) -> 0 | V44: =_xll.BDP(AC44 & " Equity",$V$3) -> -0.4096599519 | W44: =_xll.BDP(AC44 & " Equity",$W$3) -> 24.46629544 | X44: =IFERROR(10*LN((100+Z44)/(100+$Z$1))+2*LN((100+$W$2)/(100+W44)),0) -> -0.1235543607 | Y44: =_xll.BDP(AC44 & " Equity",$Y$2) -> -2.910764 | Z44: =_xll.BDP(AC44 & " Equity",$Z$2) -> 8.736056 | AA44: =_xll.BDP(AC44 & " Equity",$AA$2) -> -4.146706 | AB44: =_xll.BDP(AC44 & " Equity",$AB$2) -> LRCX US | AC44: =_xll.BDP(B44,$AC$2) -> EQ0010512000001000 | AD44: =_xll.BDP(AC44 & " Equity",$AD$2) -> 76.99 | AE44: 80 | AF44: 76 | AG44: =_xll.BDP(B44,$AG$2) -> USD | AH44: =_xll.BDP(B44,$AH$2) -> 450000000 | AI44: =IFERROR(VLOOKUP(A44,'Fisch Holding'!$A$5:$C$1245,3,FALSE)/AH44,"-") -> - | AJ44: =IFERROR(VLOOKUP(A44,'BM Weight'!$A$7:$D$1020,3,FALSE),"-") -> 0.5096653542 | AK44: =IFERROR(VLOOKUP(A44,'BM Weight'!$A$7:$D$1020,4,FALSE),"- ") -> 1.806099026 | AL44: =IFERROR(VLOOKUP(A44,'Implied Rating'!$B$7:$C$1179,2,FALSE),"-") -> A+ | AM44: =IFERROR(VLOOKUP(A44,'ICV Rating'!$B$5:$E$1306,2,FALSE),"-") -> 0 | AN44: =_xll.BDP(B44,$AN$2) -> BBB | AO44: =_xll.BDP(B44,$AO$2) -> Baa1 | AP44: =_xll.BDP(B44,$AP$2) -> BBB | AQ44: =_xll.BDP(B44,$AQ$2) -> N | AR44: =_xll.BDP(B44,$AR$2) -> Optionally | AS44: =_xll.BDP(B44,$AS$2) -> N | AT44: =_xll.BDP(B44,$AT$2) -> N | AU44: =_xll.BDP(B44,$AU$2) -> N | AV44: =_xll.BDP(B44,$AV$2) -> N | AW44: =_xll.BDP(B44,$AW$2) -> US | AX44: =_xll.BDP(AC44 & " Equity",$AX$2) -> Information Technology | AY44: =_xll.BDP(AC44 & " Equity",$AY$2) -> Semiconductors & Semiconductor | AZ44: =_xll.BDP(AC44 & " Equity",$AZ$2) -> Semiconductors & Semiconductor | BB44: 0 | BC44: =_xll.BDP(B44,$BC$2) -> 1.439451612 | BD44: =_xll.BDP(B44,$BD$2) -> 0.3205444113 | BE44: =_xll.BDP(B44,$BE$2) -> -1833.830334 | BF44: =_xll.BDP(B44,$BF$2) -> -17.837 | BG44: =_xll.BDP(B44,$BG$2) -> -1.345822924 | BH44: =_xll.BDP(B44,$BH$2) -> -2.565383463 | BI44: =_xll.BDP(B44,$BI$2) -> 6.151201197 | BK44: =_xll.BDP(B44,$BK$2) -> 128.0588 | BL44: =_xll.BDP(B44,$BL$2) -> #N/A Field Not Applicable | BM44: =_xll.BDP(B44,$BM$2) -> 79.31678575 | BN44: =_xll.BDP(B44,$BN$2) -> 0.007366489729 | BO44: =_xll.BDP(B44,$BO$2) -> 5.835171739 | BP44: =_xll.BDP(AC44 & " Equity",$BP$2) -> 0.9467455998 | BQ44: =_xll.BDP(AC44 & " Equity",$BQ$2) -> 28.01.2015 | BR44: =_xll.BDP(AC44 & " Equity",$BR$2) -> 30.55349083
A45: US530715AM30 | B45: =A45 & " Corp" -> US530715AM30 Corp | C45: LIBERTY INTERACTIVE LLC | D45: =_xll.BDP(B45,$D$2) -> LIBERTY INTERACTIVE LLC | E45: =_xll.BDP(B45,$E$2) -> 3.5 | F45: =_xll.BDP(B45,$F$2) -> 15.01.2031 | G45: =_xll.BDP(B45,$G$2) -> #N/A Field Not Applicable | H45: =_xll.BDP(B45,$H$2) -> 03.03.2015 | I45: 2014-09-29 | J45: USD 367 Mio; callable anytime after Juli 2013 at 60.23 | K45: 0 | L45: =ROUND((T45*T$2+U45*U$2+S45*S$2+IF(P45="NR",0,P45^2*SIGN(P45))+M45*M$2)/(L$2-IF(P45="NR",0,P$2)-IF(S45,0,S$2)),0) -> 0 | M45: 0 | N45: 0 | O45: -2 | P45: NR | Q45: 2013-11-12 | R45: -1 | S45: =VLOOKUP(AX45,[1]Sheet1!$C$8:$D$23,2,FALSE) -> 1 | T45: =MIN(ROUND(ABS(V45/AD45)*200,0),2)*SIGN(V45) -> -1 | U45: =MIN(ROUND(ABS(X45),0),2)*IFERROR(SIGN(X45),0) -> 0 | V45: =_xll.BDP(AC45 & " Equity",$V$3) -> -0.3196267784 | W45: =_xll.BDP(AC45 & " Equity",$W$3) -> 19.31214844 | X45: =IFERROR(10*LN((100+Z45)/(100+$Z$1))+2*LN((100+$W$2)/(100+W45)),0) -> -0.154708041 | Y45: =_xll.BDP(AC45 & " Equity",$Y$2) -> 2.988209 | Z45: =_xll.BDP(AC45 & " Equity",$Z$2) -> 7.484829 | AA45: =_xll.BDP(AC45 & " Equity",$AA$2) -> -4.949317 | AB45: =_xll.BDP(AC45 & " Equity",$AB$2) -> MSI US | AC45: =_xll.BDP(B45,$AC$2) -> EQ0010102100001000 | AD45: =_xll.BDP(AC45 & " Equity",$AD$2) -> 63.7 | AE45: 67.5 | AF45: 63 | AG45: =_xll.BDP(B45,$AG$2) -> USD | AH45: =_xll.BDP(B45,$AH$2) -> 350740770.2 | AI45: =IFERROR(VLOOKUP(A45,'Fisch Holding'!$A$5:$C$1245,3,FALSE)/AH45,"-") -> - | AJ45: =IFERROR(VLOOKUP(A45,'BM Weight'!$A$7:$D$1020,3,FALSE),"-") -> - | AK45: =IFERROR(VLOOKUP(A45,'BM Weight'!$A$7:$D$1020,4,FALSE),"- ") -> - | AL45: =IFERROR(VLOOKUP(A45,'Implied Rating'!$B$7:$C$1179,2,FALSE),"-") -> - | AM45: =IFERROR(VLOOKUP(A45,'ICV Rating'!$B$5:$E$1306,2,FALSE),"-") -> - | AN45: =_xll.BDP(B45,$AN$2) -> BB- | AO45: =_xll.BDP(B45,$AO$2) -> Ba3 | AP45: =_xll.BDP(B45,$AP$2) -> BB | AQ45: =_xll.BDP(B45,$AQ$2) -> N | AR45: =_xll.BDP(B45,$AR$2) -> Optionally | AS45: =_xll.BDP(B45,$AS$2) -> N | AT45: =_xll.BDP(B45,$AT$2) -> N | AU45: =_xll.BDP(B45,$AU$2) -> N | AV45: =_xll.BDP(B45,$AV$2) -> Y | AW45: =_xll.BDP(B45,$AW$2) -> US | AX45: =_xll.BDP(AC45 & " Equity",$AX$2) -> Information Technology | AY45: =_xll.BDP(AC45 & " Equity",$AY$2) -> Technology Hardware & Equipmen | AZ45: =_xll.BDP(AC45 & " Equity",$AZ$2) -> Communications Equipment | BB45: 0 | BC45: =_xll.BDP(B45,$BC$2) -> 10.32441329 | BD45: =_xll.BDP(B45,$BD$2) -> 7.46724866 | BE45: =_xll.BDP(B45,$BE$2) -> 660.2899495 | BF45: =_xll.BDP(B45,$BF$2) -> 8.772 | BG45: =_xll.BDP(B45,$BG$2) -> 1.821658585 | BH45: =_xll.BDP(B45,$BH$2) -> 1.769623688 | BI45: =_xll.BDP(B45,$BI$2) -> 1.739598353 | BK45: =_xll.BDP(B45,$BK$2) -> 54.26307 | BL45: =_xll.BDP(B45,$BL$2) -> #N/A Field Not Applicable | BM45: =_xll.BDP(B45,$BM$2) -> 25.43231026 | BN45: =_xll.BDP(B45,$BN$2) -> 0.003515116348 | BO45: =_xll.BDP(B45,$BO$2) -> -2.718562717 | BP45: =_xll.BDP(AC45 & " Equity",$BP$2) -> 2.132998768 | BQ45: =_xll.BDP(AC45 & " Equity",$BQ$2) -> 22.01.2015 | BR45: =_xll.BDP(AC45 & " Equity",$BR$2) -> 19.11882015
A46: US587200AK26 | B46: =A46 & " Corp" -> US587200AK26 Corp | C46: MENTOR GRAPHICS CORP | D46: =_xll.BDP(B46,$D$2) -> MENTOR GRAPHICS CORP | E46: =_xll.BDP(B46,$E$2) -> 4 | F46: =_xll.BDP(B46,$F$2) -> 01.04.2031 | G46: =_xll.BDP(B46,$G$2) -> 01.04.2018 | H46: =_xll.BDP(B46,$H$2) -> 05.04.2016 | I46: 2014-03-24 | K46: 0 | L46: =ROUND((T46*T$2+U46*U$2+S46*S$2+IF(P46="NR",0,P46^2*SIGN(P46))+M46*M$2)/(L$2-IF(P46="NR",0,P$2)-IF(S46,0,S$2)),0) -> 0 | M46: 0 | N46: 0 | O46: 2 | P46: 0 | Q46: 2014-03-24 | R46: -1 | S46: =VLOOKUP(AX46,[1]Sheet1!$C$8:$D$23,2,FALSE) -> 1 | T46: =MIN(ROUND(ABS(V46/AD46)*200,0),2)*SIGN(V46) -> 0 | U46: =MIN(ROUND(ABS(X46),0),2)*IFERROR(SIGN(X46),0) -> 0 | V46: =_xll.BDP(AC46 & " Equity",$V$3) -> -0.01789106056 | W46: =_xll.BDP(AC46 & " Equity",$W$3) -> 26.0553842 | X46: =IFERROR(10*LN((100+Z46)/(100+$Z$1))+2*LN((100+$W$2)/(100+W46)),0) -> 0.4620863224 | Y46: =_xll.BDP(AC46 & " Equity",$Y$2) -> 4.127135 | Z46: =_xll.BDP(AC46 & " Equity",$Z$2) -> 15.58715 | AA46: =_xll.BDP(AC46 & " Equity",$AA$2) -> 0.136861 | AB46: =_xll.BDP(AC46 & " Equity",$AB$2) -> MENT US | AC46: =_xll.BDP(B46,$AC$2) -> EQ0010174200001000 | AD46: =_xll.BDP(AC46 & " Equity",$AD$2) -> 21.7 | AE46: 22.5 | AF46: 20 | AG46: =_xll.BDP(B46,$AG$2) -> USD | AH46: =_xll.BDP(B46,$AH$2) -> 253000000 | AI46: =IFERROR(VLOOKUP(A46,'Fisch Holding'!$A$5:$C$1245,3,FALSE)/AH46,"-") -> - | AJ46: =IFERROR(VLOOKUP(A46,'BM Weight'!$A$7:$D$1020,3,FALSE),"-") -> - | AK46: =IFERROR(VLOOKUP(A46,'BM Weight'!$A$7:$D$1020,4,FALSE),"- ") -> - | AL46: =IFERROR(VLOOKUP(A46,'Implied Rating'!$B$7:$C$1179,2,FALSE),"-") -> B+ | AM46: =IFERROR(VLOOKUP(A46,'ICV Rating'!$B$5:$E$1306,2,FALSE),"-") -> B- | AN46: =_xll.BDP(B46,$AN$2) -> #N/A N/A | AO46: =_xll.BDP(B46,$AO$2) -> #N/A N/A | AP46: =_xll.BDP(B46,$AP$2) -> #N/A N/A | AQ46: =_xll.BDP(B46,$AQ$2) -> N | AR46: =_xll.BDP(B46,$AR$2) -> Optionally | AS46: =_xll.BDP(B46,$AS$2) -> Y | AT46: =_xll.BDP(B46,$AT$2) -> #N/A N/A | AU46: =_xll.BDP(B46,$AU$2) -> N | AV46: =_xll.BDP(B46,$AV$2) -> Y | AW46: =_xll.BDP(B46,$AW$2) -> US | AX46: =_xll.BDP(AC46 & " Equity",$AX$2) -> Information Technology | AY46: =_xll.BDP(AC46 & " Equity",$AY$2) -> Software & Services | AZ46: =_xll.BDP(AC46 & " Equity",$AZ$2) -> Software | BB46: 0 | BC46: =_xll.BDP(B46,$BC$2) -> 1.243213636 | BD46: =_xll.BDP(B46,$BD$2) -> 0.6231688434 | BE46: =_xll.BDP(B46,$BE$2) -> -1085.465157 | BF46: =_xll.BDP(B46,$BF$2) -> -10.394 | BG46: =_xll.BDP(B46,$BG$2) -> 1.228431817 | BH46: =_xll.BDP(B46,$BH$2) -> 1.913740218 | BI46: =_xll.BDP(B46,$BI$2) -> 8.523319685 | BK46: =_xll.BDP(B46,$BK$2) -> 120.1641 | BL46: =_xll.BDP(B46,$BL$2) -> #N/A Field Not Applicable | BM46: =_xll.BDP(B46,$BM$2) -> 75.5675689 | BN46: =_xll.BDP(B46,$BN$2) -> 0.007570353906 | BO46: =_xll.BDP(B46,$BO$2) -> 11.31127156 | BP46: =_xll.BDP(AC46 & " Equity",$BP$2) -> 0.9111617448 | BQ46: =_xll.BDP(AC46 & " Equity",$BQ$2) -> 27.02.2015 | BR46: =_xll.BDP(AC46 & " Equity",$BR$2) -> 26.00746468
A47: US595017AA24 | B47: =A47 & " Corp" -> US595017AA24 Corp | C47: MICROCHIP TECHNOLOGY INC | D47: =_xll.BDP(B47,$D$2) -> MICROCHIP TECHNOLOGY INC | E47: =_xll.BDP(B47,$E$2) -> 2.125 | F47: =_xll.BDP(B47,$F$2) -> 15.12.2037 | G47: =_xll.BDP(B47,$G$2) -> #N/A Field Not Applicable | H47: =_xll.BDP(B47,$H$2) -> #N/A Field Not Applicable | I47: 2013-08-20 | K47: 0 | L47: =ROUND((T47*T$2+U47*U$2+S47*S$2+IF(P47="NR",0,P47^2*SIGN(P47))+M47*M$2)/(L$2-IF(P47="NR",0,P$2)-IF(S47,0,S$2)),0) -> 0 | M47: -1 | N47: -1 | O47: -2 | P47: NR | Q47: 2013-08-20 | R47: -1 | S47: =VLOOKUP(AX47,[1]Sheet1!$C$8:$D$23,2,FALSE) -> 1 | T47: =MIN(ROUND(ABS(V47/AD47)*200,0),2)*SIGN(V47) -> 0 | U47: =MIN(ROUND(ABS(X47),0),2)*IFERROR(SIGN(X47),0) -> 1 | V47: =_xll.BDP(AC47 & " Equity",$V$3) -> -0.06285530329 | W47: =_xll.BDP(AC47 & " Equity",$W$3) -> 24.77873624 | X47: =IFERROR(10*LN((100+Z47)/(100+$Z$1))+2*LN((100+$W$2)/(100+W47)),0) -> 0.7981903637 | Y47: =_xll.BDP(AC47 & " Equity",$Y$2) -> 4.358912 | Z47: =_xll.BDP(AC47 & " Equity",$Z$2) -> 19.29499 | AA47: =_xll.BDP(AC47 & " Equity",$AA$2) -> -0.2216817 | AB47: =_xll.BDP(AC47 & " Equity",$AB$2) -> MCHP US | AC47: =_xll.BDP(B47,$AC$2) -> EQ0011674900001000 | AD47: =_xll.BDP(AC47 & " Equity",$AD$2) -> 45.0828 | AE47: 47 | AF47: 42 | AG47: =_xll.BDP(B47,$AG$2) -> USD | AH47: =_xll.BDP(B47,$AH$2) -> 1150000000 | AI47: =IFERROR(VLOOKUP(A47,'Fisch Holding'!$A$5:$C$1245,3,FALSE)/AH47,"-") -> - | AJ47: =IFERROR(VLOOKUP(A47,'BM Weight'!$A$7:$D$1020,3,FALSE),"-") -> - | AK47: =IFERROR(VLOOKUP(A47,'BM Weight'!$A$7:$D$1020,4,FALSE),"- ") -> - | AL47: =IFERROR(VLOOKUP(A47,'Implied Rating'!$B$7:$C$1179,2,FALSE),"-") -> - | AM47: =IFERROR(VLOOKUP(A47,'ICV Rating'!$B$5:$E$1306,2,FALSE),"-") -> - | AN47: =_xll.BDP(B47,$AN$2) -> #N/A N/A | AO47: =_xll.BDP(B47,$AO$2) -> #N/A N/A | AP47: =_xll.BDP(B47,$AP$2) -> #N/A N/A | AQ47: =_xll.BDP(B47,$AQ$2) -> N | AR47: =_xll.BDP(B47,$AR$2) -> Optionally | AS47: =_xll.BDP(B47,$AS$2) -> Y | AT47: =_xll.BDP(B47,$AT$2) -> N | AU47: =_xll.BDP(B47,$AU$2) -> N | AV47: =_xll.BDP(B47,$AV$2) -> N | AW47: =_xll.BDP(B47,$AW$2) -> US | AX47: =_xll.BDP(AC47 & " Equity",$AX$2) -> Information Technology | AY47: =_xll.BDP(AC47 & " Equity",$AY$2) -> Semiconductors & Semiconductor | AZ47: =_xll.BDP(AC47 & " Equity",$AZ$2) -> Semiconductors & Semiconductor | BB47: 0 | BC47: =_xll.BDP(B47,$BC$2) -> 19.66458598 | BD47: =_xll.BDP(B47,$BD$2) -> 2.625612945 | BE47: =_xll.BDP(B47,$BE$2) -> -331.0591032 | BF47: =_xll.BDP(B47,$BF$2) -> -0.913 | BG47: =_xll.BDP(B47,$BG$2) -> 3.376892303 | BH47: =_xll.BDP(B47,$BH$2) -> 3.232849979 | BI47: =_xll.BDP(B47,$BI$2) -> 19.35139149 | BK47: =_xll.BDP(B47,$BK$2) -> 177.4549 | BL47: =_xll.BDP(B47,$BL$2) -> #N/A Field Not Applicable | BM47: =_xll.BDP(B47,$BM$2) -> 83.41661802 | BN47: =_xll.BDP(B47,$BN$2) -> 0.002650227218 | BO47: =_xll.BDP(B47,$BO$2) -> -0.3197867649 | BP47: =_xll.BDP(AC47 & " Equity",$BP$2) -> 3.168184846 | BQ47: =_xll.BDP(AC47 & " Equity",$BQ$2) -> 30.01.2015 | BR47: =_xll.BDP(AC47 & " Equity",$BR$2) -> 34.27346471
A48: US595112AY95 | B48: =A48 & " Corp" -> US595112AY95 Corp | C48: MICRON TECHNOLOGY INC | D48: =_xll.BDP(B48,$D$2) -> MICRON TECHNOLOGY INC | E48: =_xll.BDP(B48,$E$2) -> 3 | F48: =_xll.BDP(B48,$F$2) -> 15.11.2043 | G48: =_xll.BDP(B48,$G$2) -> 15.11.2028 | H48: =_xll.BDP(B48,$H$2) -> 20.11.2018 | I48: 2014-11-27 | J48: NE Nov. 13; USD 1'025 Mrd | K48: 1 | L48: =ROUND((T48*T$2+U48*U$2+S48*S$2+IF(P48="NR",0,P48^2*SIGN(P48))+M48*M$2)/(L$2-IF(P48="NR",0,P$2)-IF(S48,0,S$2)),0) -> 0 | M48: 0 | N48: -1 | O48: -1 | P48: NR | Q48: 2014-08-05 | R48: -1 | S48: =VLOOKUP(AX48,[1]Sheet1!$C$8:$D$23,2,FALSE) -> 1 | T48: =MIN(ROUND(ABS(V48/AD48)*200,0),2)*SIGN(V48) -> -2 | U48: =MIN(ROUND(ABS(X48),0),2)*IFERROR(SIGN(X48),0) -> 0 | V48: =_xll.BDP(AC48 & " Equity",$V$3) -> -0.4914884269 | W48: =_xll.BDP(AC48 & " Equity",$W$3) -> 31.39687118 | X48: =IFERROR(10*LN((100+Z48)/(100+$Z$1))+2*LN((100+$W$2)/(100+W48)),0) -> -0.1972302679 | Y48: =_xll.BDP(AC48 & " Equity",$Y$2) -> -9.908558 | Z48: =_xll.BDP(AC48 & " Equity",$Z$2) -> 9.114012 | AA48: =_xll.BDP(AC48 & " Equity",$AA$2) -> -14.16738 | AB48: =_xll.BDP(AC48 & " Equity",$AB$2) -> MU US | AC48: =_xll.BDP(B48,$AC$2) -> EQ0010099500001000 | AD48: =_xll.BDP(AC48 & " Equity",$AD$2) -> 29.86 | AE48: 33 | AF48: 30 | AG48: =_xll.BDP(B48,$AG$2) -> USD | AH48: =_xll.BDP(B48,$AH$2) -> 1025000000 | AI48: =IFERROR(VLOOKUP(A48,'Fisch Holding'!$A$5:$C$1245,3,FALSE)/AH48,"-") -> - | AJ48: =IFERROR(VLOOKUP(A48,'BM Weight'!$A$7:$D$1020,3,FALSE),"-") -> - | AK48: =IFERROR(VLOOKUP(A48,'BM Weight'!$A$7:$D$1020,4,FALSE),"- ") -> - | AL48: =IFERROR(VLOOKUP(A48,'Implied Rating'!$B$7:$C$1179,2,FALSE),"-") -> BB- | AM48: =IFERROR(VLOOKUP(A48,'ICV Rating'!$B$5:$E$1306,2,FALSE),"-") -> 0 | AN48: =_xll.BDP(B48,$AN$2) -> NR | AO48: =_xll.BDP(B48,$AO$2) -> Ba2 | AP48: =_xll.BDP(B48,$AP$2) -> BB | AQ48: =_xll.BDP(B48,$AQ$2) -> N | AR48: =_xll.BDP(B48,$AR$2) -> Optionally | AS48: =_xll.BDP(B48,$AS$2) -> N | AT48: =_xll.BDP(B48,$AT$2) -> Y | AU48: =_xll.BDP(B48,$AU$2) -> N | AV48: =_xll.BDP(B48,$AV$2) -> Y | AW48: =_xll.BDP(B48,$AW$2) -> US | AX48: =_xll.BDP(AC48 & " Equity",$AX$2) -> Information Technology | AY48: =_xll.BDP(AC48 & " Equity",$AY$2) -> Semiconductors & Semiconductor | AZ48: =_xll.BDP(AC48 & " Equity",$AZ$2) -> Semiconductors & Semiconductor | BB48: 0 | BC48: =_xll.BDP(B48,$BC$2) -> 3.757218559 | BD48: =_xll.BDP(B48,$BD$2) -> 1.697306035 | BE48: =_xll.BDP(B48,$BE$2) -> -759.7067847 | BF48: =_xll.BDP(B48,$BF$2) -> -6.331 | BG48: =_xll.BDP(B48,$BG$2) -> -3.528434994 | BH48: =_xll.BDP(B48,$BH$2) -> -6.457925636 | BI48: =_xll.BDP(B48,$BI$2) -> 6.458797327 | BK48: =_xll.BDP(B48,$BK$2) -> 119.5 | BL48: =_xll.BDP(B48,$BL$2) -> #N/A Field Not Applicable | BM48: =_xll.BDP(B48,$BM$2) -> 83.48056584 | BN48: =_xll.BDP(B48,$BN$2) -> 0.002323564087 | BO48: =_xll.BDP(B48,$BO$2) -> 15.9605755 | BP48: =_xll.BDP(AC48 & " Equity",$BP$2) -> #N/A N/A | BQ48: =_xll.BDP(AC48 & " Equity",$BQ$2) -> 06.04.2015 | BR48: =_xll.BDP(AC48 & " Equity",$BR$2) -> 40.85700289
A49: US595112AX13 | B49: =A49 & " Corp" -> US595112AX13 Corp | C49: MICRON TECHNOLOGY INC | D49: =_xll.BDP(B49,$D$2) -> MICRON TECHNOLOGY INC | E49: =_xll.BDP(B49,$E$2) -> 3.125 | F49: =_xll.BDP(B49,$F$2) -> 01.05.2032 | G49: =_xll.BDP(B49,$G$2) -> 01.05.2021 | H49: =_xll.BDP(B49,$H$2) -> 04.05.2021 | I49: 2014-02-10 | K49: -1 | L49: =ROUND((T49*T$2+U49*U$2+S49*S$2+IF(P49="NR",0,P49^2*SIGN(P49))+M49*M$2)/(L$2-IF(P49="NR",0,P$2)-IF(S49,0,S$2)),0) -> -1 | M49: -2 | N49: -1 | O49: -2 | P49: -1 | Q49: 2014-02-10 | R49: -1 | S49: =VLOOKUP(AX49,[1]Sheet1!$C$8:$D$23,2,FALSE) -> 1 | T49: =MIN(ROUND(ABS(V49/AD49)*200,0),2)*SIGN(V49) -> -2 | U49: =MIN(ROUND(ABS(X49),0),2)*IFERROR(SIGN(X49),0) -> 0 | V49: =_xll.BDP(AC49 & " Equity",$V$3) -> -0.4914884269 | W49: =_xll.BDP(AC49 & " Equity",$W$3) -> 31.39687118 | X49: =IFERROR(10*LN((100+Z49)/(100+$Z$1))+2*LN((100+$W$2)/(100+W49)),0) -> -0.1972302679 | Y49: =_xll.BDP(AC49 & " Equity",$Y$2) -> -9.908558 | Z49: =_xll.BDP(AC49 & " Equity",$Z$2) -> 9.114012 | AA49: =_xll.BDP(AC49 & " Equity",$AA$2) -> -14.16738 | AB49: =_xll.BDP(AC49 & " Equity",$AB$2) -> MU US | AC49: =_xll.BDP(B49,$AC$2) -> EQ0010099500001000 | AD49: =_xll.BDP(AC49 & " Equity",$AD$2) -> 29.86 | AE49: 33 | AF49: 30 | AG49: =_xll.BDP(B49,$AG$2) -> USD | AH49: =_xll.BDP(B49,$AH$2) -> 312500000 | AI49: =IFERROR(VLOOKUP(A49,'Fisch Holding'!$A$5:$C$1245,3,FALSE)/AH49,"-") -> - | AJ49: =IFERROR(VLOOKUP(A49,'BM Weight'!$A$7:$D$1020,3,FALSE),"-") -> - | AK49: =IFERROR(VLOOKUP(A49,'BM Weight'!$A$7:$D$1020,4,FALSE),"- ") -> - | AL49: =IFERROR(VLOOKUP(A49,'Implied Rating'!$B$7:$C$1179,2,FALSE),"-") -> BB- | AM49: =IFERROR(VLOOKUP(A49,'ICV Rating'!$B$5:$E$1306,2,FALSE),"-") -> 0 | AN49: =_xll.BDP(B49,$AN$2) -> NR | AO49: =_xll.BDP(B49,$AO$2) -> Ba2 | AP49: =_xll.BDP(B49,$AP$2) -> BB | AQ49: =_xll.BDP(B49,$AQ$2) -> N | AR49: =_xll.BDP(B49,$AR$2) -> Optionally | AS49: =_xll.BDP(B49,$AS$2) -> N | AT49: =_xll.BDP(B49,$AT$2) -> Y | AU49: =_xll.BDP(B49,$AU$2) -> N | AV49: =_xll.BDP(B49,$AV$2) -> Y | AW49: =_xll.BDP(B49,$AW$2) -> US | AX49: =_xll.BDP(AC49 & " Equity",$AX$2) -> Information Technology | AY49: =_xll.BDP(AC49 & " Equity",$AY$2) -> Semiconductors & Semiconductor | AZ49: =_xll.BDP(AC49 & " Equity",$AZ$2) -> Semiconductors & Semiconductor | BB49: 0 | BC49: =_xll.BDP(B49,$BC$2) -> 6.503056497 | BD49: =_xll.BDP(B49,$BD$2) -> 0.08462836641 | BE49: =_xll.BDP(B49,$BE$2) -> -1713.256541 | BF49: =_xll.BDP(B49,$BF$2) -> -15.453 | BG49: =_xll.BDP(B49,$BG$2) -> -6.075400432 | BH49: =_xll.BDP(B49,$BH$2) -> -9.198923204 | BI49: =_xll.BDP(B49,$BI$2) -> 7.306493961 | BK49: =_xll.BDP(B49,$BK$2) -> 309.611 | BL49: =_xll.BDP(B49,$BL$2) -> #N/A Field Not Applicable | BM49: =_xll.BDP(B49,$BM$2) -> 99.6832092 | BN49: =_xll.BDP(B49,$BN$2) -> 6.933660118e-05 | BO49: =_xll.BDP(B49,$BO$2) -> 3.03851702 | BP49: =_xll.BDP(AC49 & " Equity",$BP$2) -> #N/A N/A | BQ49: =_xll.BDP(AC49 & " Equity",$BQ$2) -> 06.04.2015 | BR49: =_xll.BDP(AC49 & " Equity",$BR$2) -> 40.85700289
A50: US595112AW30 | B50: =A50 & " Corp" -> US595112AW30 Corp | C50: MICRON TECHNOLOGY INC | D50: =_xll.BDP(B50,$D$2) -> MICRON TECHNOLOGY INC | E50: =_xll.BDP(B50,$E$2) -> 2.375 | F50: =_xll.BDP(B50,$F$2) -> 01.05.2032 | G50: =_xll.BDP(B50,$G$2) -> 01.05.2019 | H50: =_xll.BDP(B50,$H$2) -> 04.05.2019 | I50: 2014-02-10 | K50: -1 | L50: =ROUND((T50*T$2+U50*U$2+S50*S$2+IF(P50="NR",0,P50^2*SIGN(P50))+M50*M$2)/(L$2-IF(P50="NR",0,P$2)-IF(S50,0,S$2)),0) -> -1 | M50: -2 | N50: -1 | O50: -2 | P50: -1 | Q50: 2014-02-10 | R50: -1 | S50: =VLOOKUP(AX50,[1]Sheet1!$C$8:$D$23,2,FALSE) -> 1 | T50: =MIN(ROUND(ABS(V50/AD50)*200,0),2)*SIGN(V50) -> -2 | U50: =MIN(ROUND(ABS(X50),0),2)*IFERROR(SIGN(X50),0) -> 0 | V50: =_xll.BDP(AC50 & " Equity",$V$3) -> -0.4914884269 | W50: =_xll.BDP(AC50 & " Equity",$W$3) -> 31.39687118 | X50: =IFERROR(10*LN((100+Z50)/(100+$Z$1))+2*LN((100+$W$2)/(100+W50)),0) -> -0.1972302679 | Y50: =_xll.BDP(AC50 & " Equity",$Y$2) -> -9.908558 | Z50: =_xll.BDP(AC50 & " Equity",$Z$2) -> 9.114012 | AA50: =_xll.BDP(AC50 & " Equity",$AA$2) -> -14.16738 | AB50: =_xll.BDP(AC50 & " Equity",$AB$2) -> MU US | AC50: =_xll.BDP(B50,$AC$2) -> EQ0010099500001000 | AD50: =_xll.BDP(AC50 & " Equity",$AD$2) -> 29.86 | AE50: 33 | AF50: 30 | AG50: =_xll.BDP(B50,$AG$2) -> USD | AH50: =_xll.BDP(B50,$AH$2) -> 357199000 | AI50: =IFERROR(VLOOKUP(A50,'Fisch Holding'!$A$5:$C$1245,3,FALSE)/AH50,"-") -> - | AJ50: =IFERROR(VLOOKUP(A50,'BM Weight'!$A$7:$D$1020,3,FALSE),"-") -> - | AK50: =IFERROR(VLOOKUP(A50,'BM Weight'!$A$7:$D$1020,4,FALSE),"- ") -> - | AL50: =IFERROR(VLOOKUP(A50,'Implied Rating'!$B$7:$C$1179,2,FALSE),"-") -> B+ | AM50: =IFERROR(VLOOKUP(A50,'ICV Rating'!$B$5:$E$1306,2,FALSE),"-") -> 0 | AN50: =_xll.BDP(B50,$AN$2) -> NR | AO50: =_xll.BDP(B50,$AO$2) -> Ba2 | AP50: =_xll.BDP(B50,$AP$2) -> BB | AQ50: =_xll.BDP(B50,$AQ$2) -> N | AR50: =_xll.BDP(B50,$AR$2) -> Optionally | AS50: =_xll.BDP(B50,$AS$2) -> N | AT50: =_xll.BDP(B50,$AT$2) -> Y | AU50: =_xll.BDP(B50,$AU$2) -> N | AV50: =_xll.BDP(B50,$AV$2) -> Y | AW50: =_xll.BDP(B50,$AW$2) -> US | AX50: =_xll.BDP(AC50 & " Equity",$AX$2) -> Information Technology | AY50: =_xll.BDP(AC50 & " Equity",$AY$2) -> Semiconductors & Semiconductor | AZ50: =_xll.BDP(AC50 & " Equity",$AZ$2) -> Semiconductors & Semiconductor | BB50: 0 | BC50: =_xll.BDP(B50,$BC$2) -> 4.745594047 | BD50: =_xll.BDP(B50,$BD$2) -> -0.009263673845 | BE50: =_xll.BDP(B50,$BE$2) -> -2504.025451 | BF50: =_xll.BDP(B50,$BF$2) -> -23.671 | BG50: =_xll.BDP(B50,$BG$2) -> -6.308630836 | BH50: =_xll.BDP(B50,$BH$2) -> -10.2138706 | BI50: =_xll.BDP(B50,$BI$2) -> 8.145630089 | BK50: =_xll.BDP(B50,$BK$2) -> 313.5717 | BL50: =_xll.BDP(B50,$BL$2) -> #N/A Field Not Applicable | BM50: =_xll.BDP(B50,$BM$2) -> 99.99997104 | BN50: =_xll.BDP(B50,$BN$2) -> 1.164352698e-08 | BO50: =_xll.BDP(B50,$BO$2) -> 0.5587769595 | BP50: =_xll.BDP(AC50 & " Equity",$BP$2) -> #N/A N/A | BQ50: =_xll.BDP(AC50 & " Equity",$BQ$2) -> 06.04.2015 | BR50: =_xll.BDP(AC50 & " Equity",$BR$2) -> 40.85700289
A51: US60786LAA52 | B51: =A51 & " Corp" -> US60786LAA52 Corp | C51: Moduslink Global Solutions | D51: =_xll.BDP(B51,$D$2) -> MODUSLINK GLOBAL SOLUTIO | E51: =_xll.BDP(B51,$E$2) -> 5.25 | F51: =_xll.BDP(B51,$F$2) -> 01.03.2019 | G51: =_xll.BDP(B51,$G$2) -> #N/A Field Not Applicable | H51: =_xll.BDP(B51,$H$2) -> #N/A Field Not Applicable | I51: 2014-06-28 | J51: NE März 14 - Yield-Play? (6.5%) | K51: 0 | L51: =ROUND((T51*T$2+U51*U$2+S51*S$2+IF(P51="NR",0,P51^2*SIGN(P51))+M51*M$2)/(L$2-IF(P51="NR",0,P$2)-IF(S51,0,S$2)),0) -> 0 | M51: 0 | N51: 1 | O51: 0 | P51: NR | Q51: 2014-03-03 | R51: -1 | S51: =VLOOKUP(AX51,[1]Sheet1!$C$8:$D$23,2,FALSE) -> 1 | T51: =MIN(ROUND(ABS(V51/AD51)*200,0),2)*SIGN(V51) -> 0 | U51: =MIN(ROUND(ABS(X51),0),2)*IFERROR(SIGN(X51),0) -> 1 | V51: =_xll.BDP(AC51 & " Equity",$V$3) -> -0.001214072108 | W51: =_xll.BDP(AC51 & " Equity",$W$3) -> 49.20968472 | X51: =IFERROR(10*LN((100+Z51)/(100+$Z$1))+2*LN((100+$W$2)/(100+W51)),0) -> 0.6158702366 | Y51: =_xll.BDP(AC51 & " Equity",$Y$2) -> 15.23809 | Z51: =_xll.BDP(AC51 & " Equity",$Z$2) -> 21.40468 | AA51: =_xll.BDP(AC51 & " Equity",$AA$2) -> -3.2 | AB51: =_xll.BDP(AC51 & " Equity",$AB$2) -> MLNK US | AC51: =_xll.BDP(B51,$AC$2) -> EQ0012979300001000 | AD51: =_xll.BDP(AC51 & " Equity",$AD$2) -> 3.62 | AE51: 4 | AF51: 3 | AG51: =_xll.BDP(B51,$AG$2) -> USD | AH51: =_xll.BDP(B51,$AH$2) -> 100000000 | AI51: =IFERROR(VLOOKUP(A51,'Fisch Holding'!$A$5:$C$1245,3,FALSE)/AH51,"-") -> - | AJ51: =IFERROR(VLOOKUP(A51,'BM Weight'!$A$7:$D$1020,3,FALSE),"-") -> - | AK51: =IFERROR(VLOOKUP(A51,'BM Weight'!$A$7:$D$1020,4,FALSE),"- ") -> - | AL51: =IFERROR(VLOOKUP(A51,'Implied Rating'!$B$7:$C$1179,2,FALSE),"-") -> - | AM51: =IFERROR(VLOOKUP(A51,'ICV Rating'!$B$5:$E$1306,2,FALSE),"-") -> - | AN51: =_xll.BDP(B51,$AN$2) -> #N/A N/A | AO51: =_xll.BDP(B51,$AO$2) -> #N/A N/A | AP51: =_xll.BDP(B51,$AP$2) -> #N/A N/A | AQ51: =_xll.BDP(B51,$AQ$2) -> N | AR51: =_xll.BDP(B51,$AR$2) -> Optionally | AS51: =_xll.BDP(B51,$AS$2) -> N | AT51: =_xll.BDP(B51,$AT$2) -> N | AU51: =_xll.BDP(B51,$AU$2) -> N | AV51: =_xll.BDP(B51,$AV$2) -> N | AW51: =_xll.BDP(B51,$AW$2) -> US | AX51: =_xll.BDP(AC51 & " Equity",$AX$2) -> Information Technology | AY51: =_xll.BDP(AC51 & " Equity",$AY$2) -> Software & Services | AZ51: =_xll.BDP(AC51 & " Equity",$AZ$2) -> IT Services | BB51: 0 | BC51: =_xll.BDP(B51,$BC$2) -> 3.499780851 | BD51: =_xll.BDP(B51,$BD$2) -> 1.565639334 | BE51: =_xll.BDP(B51,$BE$2) -> 688.6613636 | BF51: =_xll.BDP(B51,$BF$2) -> 8.19 | BG51: =_xll.BDP(B51,$BG$2) -> 0.002010139258 | BH51: =_xll.BDP(B51,$BH$2) -> 4.512365429 | BI51: =_xll.BDP(B51,$BI$2) -> 4.734745036 | BK51: =_xll.BDP(B51,$BK$2) -> 89.58828 | BL51: =_xll.BDP(B51,$BL$2) -> #N/A Field Not Applicable | BM51: =_xll.BDP(B51,$BM$2) -> 82.2617265 | BN51: =_xll.BDP(B51,$BN$2) -> 0.002139844802 | BO51: =_xll.BDP(B51,$BO$2) -> 48.96077947 | BP51: =_xll.BDP(AC51 & " Equity",$BP$2) -> #N/A N/A | BQ51: =_xll.BDP(AC51 & " Equity",$BQ$2) -> 03.03.2015 | BR51: =_xll.BDP(AC51 & " Equity",$BR$2) -> 47.63364099
A52: US611742AA54 | B52: =A52 & " Corp" -> US611742AA54 Corp | C52: Trina Solar | D52: =_xll.BDP(B52,$D$2) -> MONSTER WORLDWIDE INC | E52: =_xll.BDP(B52,$E$2) -> 3.5 | F52: =_xll.BDP(B52,$F$2) -> 15.10.2019 | G52: =_xll.BDP(B52,$G$2) -> #N/A Field Not Applicable | H52: =_xll.BDP(B52,$H$2) -> #N/A Field Not Applicable | I52: 2014-10-14 | J52: NE Okt. 14 | K52: 0 | L52: =ROUND((T52*T$2+U52*U$2+S52*S$2+IF(P52="NR",0,P52^2*SIGN(P52))+M52*M$2)/(L$2-IF(P52="NR",0,P$2)-IF(S52,0,S$2)),0) -> 0 | M52: 1 | N52: 1 | O52: 1 | Q52: 2014-10-13 | R52: -2 | S52: =VLOOKUP(AX52,[1]Sheet1!$C$8:$D$23,2,FALSE) -> 1 | T52: =MIN(ROUND(ABS(V52/AD52)*200,0),2)*SIGN(V52) -> 0 | U52: =MIN(ROUND(ABS(X52),0),2)*IFERROR(SIGN(X52),0) -> -2 | V52: =_xll.BDP(AC52 & " Equity",$V$3) -> -0.002111978829 | W52: =_xll.BDP(AC52 & " Equity",$W$3) -> 46.70897646 | X52: =IFERROR(10*LN((100+Z52)/(100+$Z$1))+2*LN((100+$W$2)/(100+W52)),0) -> -1.988615294 | Y52: =_xll.BDP(AC52 & " Equity",$Y$2) -> 8.056877 | Z52: =_xll.BDP(AC52 & " Equity",$Z$2) -> -6.748464 | AA52: =_xll.BDP(AC52 & " Equity",$AA$2) -> -1.298699 | AB52: =_xll.BDP(AC52 & " Equity",$AB$2) -> MWW US | AC52: =_xll.BDP(B52,$AC$2) -> EQ0019464600001000 | AD52: =_xll.BDP(AC52 & " Equity",$AD$2) -> 4.37 | AE52: 4.6 | AF52: 4 | AG52: =_xll.BDP(B52,$AG$2) -> USD | AH52: =_xll.BDP(B52,$AH$2) -> 143750000 | AI52: =IFERROR(VLOOKUP(A52,'Fisch Holding'!$A$5:$C$1245,3,FALSE)/AH52,"-") -> - | AJ52: =IFERROR(VLOOKUP(A52,'BM Weight'!$A$7:$D$1020,3,FALSE),"-") -> - | AK52: =IFERROR(VLOOKUP(A52,'BM Weight'!$A$7:$D$1020,4,FALSE),"- ") -> - | AL52: =IFERROR(VLOOKUP(A52,'Implied Rating'!$B$7:$C$1179,2,FALSE),"-") -> B- | AM52: =IFERROR(VLOOKUP(A52,'ICV Rating'!$B$5:$E$1306,2,FALSE),"-") -> 0 | AN52: =_xll.BDP(B52,$AN$2) -> #N/A N/A | AO52: =_xll.BDP(B52,$AO$2) -> #N/A N/A | AP52: =_xll.BDP(B52,$AP$2) -> #N/A N/A | AQ52: =_xll.BDP(B52,$AQ$2) -> N | AR52: =_xll.BDP(B52,$AR$2) -> Optionally | AS52: =_xll.BDP(B52,$AS$2) -> N | AT52: =_xll.BDP(B52,$AT$2) -> N | AU52: =_xll.BDP(B52,$AU$2) -> N | AV52: =_xll.BDP(B52,$AV$2) -> N | AW52: =_xll.BDP(B52,$AW$2) -> US | AX52: =_xll.BDP(AC52 & " Equity",$AX$2) -> Information Technology | AY52: =_xll.BDP(AC52 & " Equity",$AY$2) -> Software & Services | AZ52: =_xll.BDP(AC52 & " Equity",$AZ$2) -> Internet Software & Services | BB52: 0 | BC52: =_xll.BDP(B52,$BC$2) -> 4.343003757 | BD52: =_xll.BDP(B52,$BD$2) -> 1.191935644 | BE52: =_xll.BDP(B52,$BE$2) -> 37.70776211 | BF52: =_xll.BDP(B52,$BF$2) -> 1.812 | BG52: =_xll.BDP(B52,$BG$2) -> 0.4763879776 | BH52: =_xll.BDP(B52,$BH$2) -> 5.404142614 | BI52: =_xll.BDP(B52,$BI$2) -> #N/A N/A | BK52: =_xll.BDP(B52,$BK$2) -> 107.4888 | BL52: =_xll.BDP(B52,$BL$2) -> #N/A Field Not Applicable | BM52: =_xll.BDP(B52,$BM$2) -> 88.47616973 | BN52: =_xll.BDP(B52,$BN$2) -> 0.001611304966 | BO52: =_xll.BDP(B52,$BO$2) -> 25.71127054 | BP52: =_xll.BDP(AC52 & " Equity",$BP$2) -> #N/A N/A | BQ52: =_xll.BDP(AC52 & " Equity",$BQ$2) -> 06.02.2015 | BR52: =_xll.BDP(AC52 & " Equity",$BR$2) -> 54.69991543
A53: US64118QAB32 | B53: =A53 & " Corp" -> US64118QAB32 Corp | C53: NETSUITE INC | D53: =_xll.BDP(B53,$D$2) -> NETSUITE INC | E53: =_xll.BDP(B53,$E$2) -> 0.25 | F53: =_xll.BDP(B53,$F$2) -> 01.06.2018 | G53: =_xll.BDP(B53,$G$2) -> #N/A Field Not Applicable | H53: =_xll.BDP(B53,$H$2) -> #N/A Field Not Applicable | I53: 2014-10-29 | J53: NE + I-CV 6.13; USD 310 Mio; CRM + ERP | K53: 1 | L53: =ROUND((T53*T$2+U53*U$2+S53*S$2+IF(P53="NR",0,P53^2*SIGN(P53))+M53*M$2)/(L$2-IF(P53="NR",0,P$2)-IF(S53,0,S$2)),0) -> 1 | M53: 1 | N53: -1 | O53: 0 | P53: 0 | Q53: 2014-07-07 | R53: -1 | S53: =VLOOKUP(AX53,[1]Sheet1!$C$8:$D$23,2,FALSE) -> 1 | T53: =MIN(ROUND(ABS(V53/AD53)*200,0),2)*SIGN(V53) -> -1 | U53: =MIN(ROUND(ABS(X53),0),2)*IFERROR(SIGN(X53),0) -> 1 | V53: =_xll.BDP(AC53 & " Equity",$V$3) -> -0.4956442416 | W53: =_xll.BDP(AC53 & " Equity",$W$3) -> 35.00854724 | X53: =IFERROR(10*LN((100+Z53)/(100+$Z$1))+2*LN((100+$W$2)/(100+W53)),0) -> 0.7437768304 | Y53: =_xll.BDP(AC53 & " Equity",$Y$2) -> 4.287413 | Z53: =_xll.BDP(AC53 & " Equity",$Z$2) -> 20.53223 | AA53: =_xll.BDP(AC53 & " Equity",$AA$2) -> -3.746449 | AB53: =_xll.BDP(AC53 & " Equity",$AB$2) -> N US | AC53: =_xll.BDP(B53,$AC$2) -> EQ0000000002991380 | AD53: =_xll.BDP(AC53 & " Equity",$AD$2) -> 104.14 | AE53: 110 | AF53: 100 | AG53: =_xll.BDP(B53,$AG$2) -> USD | AH53: =_xll.BDP(B53,$AH$2) -> 310000000 | AI53: =IFERROR(VLOOKUP(A53,'Fisch Holding'!$A$5:$C$1245,3,FALSE)/AH53,"-") -> - | AJ53: =IFERROR(VLOOKUP(A53,'BM Weight'!$A$7:$D$1020,3,FALSE),"-") -> - | AK53: =IFERROR(VLOOKUP(A53,'BM Weight'!$A$7:$D$1020,4,FALSE),"- ") -> - | AL53: =IFERROR(VLOOKUP(A53,'Implied Rating'!$B$7:$C$1179,2,FALSE),"-") -> BB+ | AM53: =IFERROR(VLOOKUP(A53,'ICV Rating'!$B$5:$E$1306,2,FALSE),"-") -> B+ | AN53: =_xll.BDP(B53,$AN$2) -> #N/A N/A | AO53: =_xll.BDP(B53,$AO$2) -> #N/A N/A | AP53: =_xll.BDP(B53,$AP$2) -> #N/A N/A | AQ53: =_xll.BDP(B53,$AQ$2) -> N | AR53: =_xll.BDP(B53,$AR$2) -> Optionally | AS53: =_xll.BDP(B53,$AS$2) -> N | AT53: =_xll.BDP(B53,$AT$2) -> N | AU53: =_xll.BDP(B53,$AU$2) -> N | AV53: =_xll.BDP(B53,$AV$2) -> N | AW53: =_xll.BDP(B53,$AW$2) -> US | AX53: =_xll.BDP(AC53 & " Equity",$AX$2) -> Information Technology | AY53: =_xll.BDP(AC53 & " Equity",$AY$2) -> Software & Services | AZ53: =_xll.BDP(AC53 & " Equity",$AZ$2) -> Software | BB53: 0 | BC53: =_xll.BDP(B53,$BC$2) -> 3.393608066 | BD53: =_xll.BDP(B53,$BD$2) -> 1.543309938 | BE53: =_xll.BDP(B53,$BE$2) -> -396.1708286 | BF53: =_xll.BDP(B53,$BF$2) -> -2.789 | BG53: =_xll.BDP(B53,$BG$2) -> 0.3436278788 | BH53: =_xll.BDP(B53,$BH$2) -> 2.507799699 | BI53: =_xll.BDP(B53,$BI$2) -> 9.082281591 | BK53: =_xll.BDP(B53,$BK$2) -> 110.2268 | BL53: =_xll.BDP(B53,$BL$2) -> #N/A Field Not Applicable | BM53: =_xll.BDP(B53,$BM$2) -> 66.81744754 | BN53: =_xll.BDP(B53,$BN$2) -> 0.005525773706 | BO53: =_xll.BDP(B53,$BO$2) -> 22.40499957 | BP53: =_xll.BDP(AC53 & " Equity",$BP$2) -> #N/A N/A | BQ53: =_xll.BDP(AC53 & " Equity",$BQ$2) -> 30.01.2015 | BR53: =_xll.BDP(AC53 & " Equity",$BR$2) -> 36.23604128 | BT53: 2014-01-21
A54: US67020YAF79 | B54: =A54 & " Corp" -> US67020YAF79 Corp | C54: NUANCE COMMUNICATIONS | D54: =_xll.BDP(B54,$D$2) -> NUANCE COMMUNICATIONS | E54: =_xll.BDP(B54,$E$2) -> 2.75 | F54: =_xll.BDP(B54,$F$2) -> 01.11.2031 | G54: =_xll.BDP(B54,$G$2) -> 01.11.2017 | H54: =_xll.BDP(B54,$H$2) -> 06.11.2017 | I54: 2014-06-19 | J54: 690 Mio; (0.6%); Aktivist Carl Icahn hält 9.3% | K54: -1 | L54: =ROUND((T54*T$2+U54*U$2+S54*S$2+IF(P54="NR",0,P54^2*SIGN(P54))+M54*M$2)/(L$2-IF(P54="NR",0,P$2)-IF(S54,0,S$2)),0) -> -1 | M54: -1 | N54: -1 | O54: 0 | P54: NR | Q54: 2014-06-19 | R54: -1 | S54: =VLOOKUP(AX54,[1]Sheet1!$C$8:$D$23,2,FALSE) -> 1 | T54: =MIN(ROUND(ABS(V54/AD54)*200,0),2)*SIGN(V54) -> -1 | U54: =MIN(ROUND(ABS(X54),0),2)*IFERROR(SIGN(X54),0) -> -1 | V54: =_xll.BDP(AC54 & " Equity",$V$3) -> -0.05340561271 | W54: =_xll.BDP(AC54 & " Equity",$W$3) -> 22.41225398 | X54: =IFERROR(10*LN((100+Z54)/(100+$Z$1))+2*LN((100+$W$2)/(100+W54)),0) -> -1.424620838 | Y54: =_xll.BDP(AC54 & " Equity",$Y$2) -> -4.846755 | Z54: =_xll.BDP(AC54 & " Equity",$Z$2) -> -4.846755 | AA54: =_xll.BDP(AC54 & " Equity",$AA$2) -> -6.447095 | AB54: =_xll.BDP(AC54 & " Equity",$AB$2) -> NUAN US | AC54: =_xll.BDP(B54,$AC$2) -> EQ0017137300001000 | AD54: =_xll.BDP(AC54 & " Equity",$AD$2) -> 13.299 | AE54: 16 | AF54: 12 | AG54: =_xll.BDP(B54,$AG$2) -> USD | AH54: =_xll.BDP(B54,$AH$2) -> 690000000 | AI54: =IFERROR(VLOOKUP(A54,'Fisch Holding'!$A$5:$C$1245,3,FALSE)/AH54,"-") -> - | AJ54: =IFERROR(VLOOKUP(A54,'BM Weight'!$A$7:$D$1020,3,FALSE),"-") -> - | AK54: =IFERROR(VLOOKUP(A54,'BM Weight'!$A$7:$D$1020,4,FALSE),"- ") -> - | AL54: =IFERROR(VLOOKUP(A54,'Implied Rating'!$B$7:$C$1179,2,FALSE),"-") -> BB | AM54: =IFERROR(VLOOKUP(A54,'ICV Rating'!$B$5:$E$1306,2,FALSE),"-") -> 0 | AN54: =_xll.BDP(B54,$AN$2) -> NR | AO54: =_xll.BDP(B54,$AO$2) -> Ba3 | AP54: =_xll.BDP(B54,$AP$2) -> BB- | AQ54: =_xll.BDP(B54,$AQ$2) -> N | AR54: =_xll.BDP(B54,$AR$2) -> Optionally | AS54: =_xll.BDP(B54,$AS$2) -> N | AT54: =_xll.BDP(B54,$AT$2) -> N | AU54: =_xll.BDP(B54,$AU$2) -> N | AV54: =_xll.BDP(B54,$AV$2) -> Y | AW54: =_xll.BDP(B54,$AW$2) -> US | AX54: =_xll.BDP(AC54 & " Equity",$AX$2) -> Information Technology | AY54: =_xll.BDP(AC54 & " Equity",$AY$2) -> Software & Services | AZ54: =_xll.BDP(AC54 & " Equity",$AZ$2) -> Software | BB54: 0 | BC54: =_xll.BDP(B54,$BC$2) -> 2.638389859 | BD54: =_xll.BDP(B54,$BD$2) -> 2.632940992 | BE54: =_xll.BDP(B54,$BE$2) -> 188.7031538 | BF54: =_xll.BDP(B54,$BF$2) -> 2.89 | BG54: =_xll.BDP(B54,$BG$2) -> -0.3273556351 | BH54: =_xll.BDP(B54,$BH$2) -> 0.5917436687 | BI54: =_xll.BDP(B54,$BI$2) -> 1.956184499 | BK54: =_xll.BDP(B54,$BK$2) -> 99.42836 | BL54: =_xll.BDP(B54,$BL$2) -> #N/A Field Not Applicable | BM54: =_xll.BDP(B54,$BM$2) -> 6.582129539 | BN54: =_xll.BDP(B54,$BN$2) -> 0.002814202821 | BO54: =_xll.BDP(B54,$BO$2) -> 141.0353805 | BP54: =_xll.BDP(AC54 & " Equity",$BP$2) -> #N/A N/A | BQ54: =_xll.BDP(AC54 & " Equity",$BQ$2) -> 10.02.2015 | BR54: =_xll.BDP(AC54 & " Equity",$BR$2) -> 23.70608926
A55: US67066GAC87 | B55: =A55 & " Corp" -> US67066GAC87 Corp | C55: NVIDIA CORP | D55: =_xll.BDP(B55,$D$2) -> NVIDIA CORP | E55: =_xll.BDP(B55,$E$2) -> 1 | F55: =_xll.BDP(B55,$F$2) -> 01.12.2018 | G55: =_xll.BDP(B55,$G$2) -> #N/A Field Not Applicable | H55: =_xll.BDP(B55,$H$2) -> #N/A Field Not Applicable | I55: 2015-01-08 | J55: BB+u | K55: 0 | L55: =ROUND((T55*T$2+U55*U$2+S55*S$2+IF(P55="NR",0,P55^2*SIGN(P55))+M55*M$2)/(L$2-IF(P55="NR",0,P$2)-IF(S55,0,S$2)),0) -> 1 | M55: 1 | N55: 0 | O55: 0 | P55: NR | Q55: 2014-07-28 | R55: 0 | S55: =VLOOKUP(AX55,[1]Sheet1!$C$8:$D$23,2,FALSE) -> 1 | T55: =MIN(ROUND(ABS(V55/AD55)*200,0),2)*SIGN(V55) -> -1 | U55: =MIN(ROUND(ABS(X55),0),2)*IFERROR(SIGN(X55),0) -> 0 | V55: =_xll.BDP(AC55 & " Equity",$V$3) -> -0.05719240755 | W55: =_xll.BDP(AC55 & " Equity",$W$3) -> 25.78772117 | X55: =IFERROR(10*LN((100+Z55)/(100+$Z$1))+2*LN((100+$W$2)/(100+W55)),0) -> 0.2565973968 | Y55: =_xll.BDP(AC55 & " Equity",$Y$2) -> 0.8686781 | Z55: =_xll.BDP(AC55 & " Equity",$Z$2) -> 13.18807 | AA55: =_xll.BDP(AC55 & " Equity",$AA$2) -> -1.546131 | AB55: =_xll.BDP(AC55 & " Equity",$AB$2) -> NVDA US | AC55: =_xll.BDP(B55,$AC$2) -> EQ0031365700001000 | AD55: =_xll.BDP(AC55 & " Equity",$AD$2) -> 19.79 | AE55: 20 | AF55: 19 | AG55: =_xll.BDP(B55,$AG$2) -> USD | AH55: =_xll.BDP(B55,$AH$2) -> 1500000000 | AI55: =IFERROR(VLOOKUP(A55,'Fisch Holding'!$A$5:$C$1245,3,FALSE)/AH55,"-") -> 0.0142 | AJ55: =IFERROR(VLOOKUP(A55,'BM Weight'!$A$7:$D$1020,3,FALSE),"-") -> 1.519197861 | AK55: =IFERROR(VLOOKUP(A55,'BM Weight'!$A$7:$D$1020,4,FALSE),"- ") -> 0 | AL55: =IFERROR(VLOOKUP(A55,'Implied Rating'!$B$7:$C$1179,2,FALSE),"-") -> BBB- | AM55: =IFERROR(VLOOKUP(A55,'ICV Rating'!$B$5:$E$1306,2,FALSE),"-") -> 0 | AN55: =_xll.BDP(B55,$AN$2) -> NR | AO55: =_xll.BDP(B55,$AO$2) -> #N/A N/A | AP55: =_xll.BDP(B55,$AP$2) -> BB+u | AQ55: =_xll.BDP(B55,$AQ$2) -> N | AR55: =_xll.BDP(B55,$AR$2) -> Optionally | AS55: =_xll.BDP(B55,$AS$2) -> N | AT55: =_xll.BDP(B55,$AT$2) -> #N/A N/A | AU55: =_xll.BDP(B55,$AU$2) -> N | AV55: =_xll.BDP(B55,$AV$2) -> N | AW55: =_xll.BDP(B55,$AW$2) -> US | AX55: =_xll.BDP(AC55 & " Equity",$AX$2) -> Information Technology | AY55: =_xll.BDP(AC55 & " Equity",$AY$2) -> Semiconductors & Semiconductor | AZ55: =_xll.BDP(AC55 & " Equity",$AZ$2) -> Semiconductors & Semiconductor | BB55: 0 | BC55: =_xll.BDP(B55,$BC$2) -> 3.845424951 | BD55: =_xll.BDP(B55,$BD$2) -> 1.86586698 | BE55: =_xll.BDP(B55,$BE$2) -> -381.7703127 | BF55: =_xll.BDP(B55,$BF$2) -> -2.531 | BG55: =_xll.BDP(B55,$BG$2) -> 1.513221728 | BH55: =_xll.BDP(B55,$BH$2) -> 1.221479014 | BI55: =_xll.BDP(B55,$BI$2) -> 7.518095547 | BK55: =_xll.BDP(B55,$BK$2) -> 114.1914 | BL55: =_xll.BDP(B55,$BL$2) -> #N/A Field Not Applicable | BM55: =_xll.BDP(B55,$BM$2) -> 63.19451502 | BN55: =_xll.BDP(B55,$BN$2) -> 0.007062858829 | BO55: =_xll.BDP(B55,$BO$2) -> 16.86980215 | BP55: =_xll.BDP(AC55 & " Equity",$BP$2) -> 1.722391102 | BQ55: =_xll.BDP(AC55 & " Equity",$BQ$2) -> 12.02.2015 | BR55: =_xll.BDP(AC55 & " Equity",$BR$2) -> 26.776082 | BT55: 2014-02-17
A56: US682189AH82 | B56: =A56 & " Corp" -> US682189AH82 Corp | C56: ON SEMICONDUCTOR CORP | D56: =_xll.BDP(B56,$D$2) -> ON SEMICONDUCTOR CORP | E56: =_xll.BDP(B56,$E$2) -> 2.625 | F56: =_xll.BDP(B56,$F$2) -> 15.12.2026 | G56: =_xll.BDP(B56,$G$2) -> 15.12.2016 | H56: =_xll.BDP(B56,$H$2) -> 20.12.2016 | I56: 2014-12-04 | J56: USD 357 Mio; Call/Put Dez. 2016 | K56: 0 | L56: =ROUND((T56*T$2+U56*U$2+S56*S$2+IF(P56="NR",0,P56^2*SIGN(P56))+M56*M$2)/(L$2-IF(P56="NR",0,P$2)-IF(S56,0,S$2)),0) -> 0 | M56: 0 | N56: 0 | O56: 1 | P56: NR | Q56: 2014-07-07 | R56: -1 | S56: =VLOOKUP(AX56,[1]Sheet1!$C$8:$D$23,2,FALSE) -> 1 | T56: =MIN(ROUND(ABS(V56/AD56)*200,0),2)*SIGN(V56) -> -1 | U56: =MIN(ROUND(ABS(X56),0),2)*IFERROR(SIGN(X56),0) -> 2 | V56: =_xll.BDP(AC56 & " Equity",$V$3) -> -0.05555281043 | W56: =_xll.BDP(AC56 & " Equity",$W$3) -> 27.54086022 | X56: =IFERROR(10*LN((100+Z56)/(100+$Z$1))+2*LN((100+$W$2)/(100+W56)),0) -> 2.541110282 | Y56: =_xll.BDP(AC56 & " Equity",$Y$2) -> 3.423233 | Z56: =_xll.BDP(AC56 & " Equity",$Z$2) -> 42.63234 | AA56: =_xll.BDP(AC56 & " Equity",$AA$2) -> -1.579468 | AB56: =_xll.BDP(AC56 & " Equity",$AB$2) -> ONNN US | AC56: =_xll.BDP(B56,$AC$2) -> EQ0035838500001000 | AD56: =_xll.BDP(AC56 & " Equity",$AD$2) -> 9.95 | AE56: 10.2 | AF56: 9.2 | AG56: =_xll.BDP(B56,$AG$2) -> USD | AH56: =_xll.BDP(B56,$AH$2) -> 356930000 | AI56: =IFERROR(VLOOKUP(A56,'Fisch Holding'!$A$5:$C$1245,3,FALSE)/AH56,"-") -> - | AJ56: =IFERROR(VLOOKUP(A56,'BM Weight'!$A$7:$D$1020,3,FALSE),"-") -> - | AK56: =IFERROR(VLOOKUP(A56,'BM Weight'!$A$7:$D$1020,4,FALSE),"- ") -> - | AL56: =IFERROR(VLOOKUP(A56,'Implied Rating'!$B$7:$C$1179,2,FALSE),"-") -> BB+ | AM56: =IFERROR(VLOOKUP(A56,'ICV Rating'!$B$5:$E$1306,2,FALSE),"-") -> 0 | AN56: =_xll.BDP(B56,$AN$2) -> NR | AO56: =_xll.BDP(B56,$AO$2) -> #N/A N/A | AP56: =_xll.BDP(B56,$AP$2) -> BB+ | AQ56: =_xll.BDP(B56,$AQ$2) -> N | AR56: =_xll.BDP(B56,$AR$2) -> Optionally | AS56: =_xll.BDP(B56,$AS$2) -> Y | AT56: =_xll.BDP(B56,$AT$2) -> #N/A N/A | AU56: =_xll.BDP(B56,$AU$2) -> N | AV56: =_xll.BDP(B56,$AV$2) -> Y | AW56: =_xll.BDP(B56,$AW$2) -> US | AX56: =_xll.BDP(AC56 & " Equity",$AX$2) -> Information Technology | AY56: =_xll.BDP(AC56 & " Equity",$AY$2) -> Semiconductors & Semiconductor | AZ56: =_xll.BDP(AC56 & " Equity",$AZ$2) -> Semiconductors & Semiconductor | BB56: 0 | BC56: =_xll.BDP(B56,$BC$2) -> 1.941665357 | BD56: =_xll.BDP(B56,$BD$2) -> 0.9814232342 | BE56: =_xll.BDP(B56,$BE$2) -> -733.7409086 | BF56: =_xll.BDP(B56,$BF$2) -> -6.622 | BG56: =_xll.BDP(B56,$BG$2) -> -0.9489343123 | BH56: =_xll.BDP(B56,$BH$2) -> 2.298675604 | BI56: =_xll.BDP(B56,$BI$2) -> 15.25544185 | BK56: =_xll.BDP(B56,$BK$2) -> 118.9327 | BL56: =_xll.BDP(B56,$BL$2) -> #N/A Field Not Applicable | BM56: =_xll.BDP(B56,$BM$2) -> 58.11699519 | BN56: =_xll.BDP(B56,$BN$2) -> 0.007287346954 | BO56: =_xll.BDP(B56,$BO$2) -> 25.5492381 | BP56: =_xll.BDP(AC56 & " Equity",$BP$2) -> #N/A N/A | BQ56: =_xll.BDP(AC56 & " Equity",$BQ$2) -> 06.02.2015 | BR56: =_xll.BDP(AC56 & " Equity",$BR$2) -> 37.53058259 | BT56: 2014-02-17
A57: US697435AA30 | B57: =A57 & " Corp" -> US697435AA30 Corp | C57: Palo Alto Networks | D57: =_xll.BDP(B57,$D$2) -> PALO ALTO NETWORKS | E57: =_xll.BDP(B57,$E$2) -> 0 | F57: =_xll.BDP(B57,$F$2) -> 01.07.2019 | G57: =_xll.BDP(B57,$G$2) -> #N/A Field Not Applicable | H57: =_xll.BDP(B57,$H$2) -> #N/A Field Not Applicable | I57: 2014-11-27 | J57: NE Juni 14; Network Security | K57: 1 | L57: =ROUND((T57*T$2+U57*U$2+S57*S$2+IF(P57="NR",0,P57^2*SIGN(P57))+M57*M$2)/(L$2-IF(P57="NR",0,P$2)-IF(S57,0,S$2)),0) -> 1 | M57: 0 | N57: -1 | O57: 0 | Q57: 2014-06-30 | R57: -1 | S57: =VLOOKUP(AX57,[1]Sheet1!$C$8:$D$23,2,FALSE) -> 1 | T57: =MIN(ROUND(ABS(V57/AD57)*200,0),2)*SIGN(V57) -> 0 | U57: =MIN(ROUND(ABS(X57),0),2)*IFERROR(SIGN(X57),0) -> 2 | V57: =_xll.BDP(AC57 & " Equity",$V$3) -> -0.1973137856 | W57: =_xll.BDP(AC57 & " Equity",$W$3) -> 31.95978077 | X57: =IFERROR(10*LN((100+Z57)/(100+$Z$1))+2*LN((100+$W$2)/(100+W57)),0) -> 1.517247192 | Y57: =_xll.BDP(AC57 & " Equity",$Y$2) -> 6.96138 | Z57: =_xll.BDP(AC57 & " Equity",$Z$2) -> 29.63153 | AA57: =_xll.BDP(AC57 & " Equity",$AA$2) -> 3.043159 | AB57: =_xll.BDP(AC57 & " Equity",$AB$2) -> PANW US | AC57: =_xll.BDP(B57,$AC$2) -> EQ0000000010760548 | AD57: =_xll.BDP(AC57 & " Equity",$AD$2) -> 123.6813 | AE57: 128 | AF57: 118 | AG57: =_xll.BDP(B57,$AG$2) -> USD | AH57: =_xll.BDP(B57,$AH$2) -> 575000000 | AI57: =IFERROR(VLOOKUP(A57,'Fisch Holding'!$A$5:$C$1245,3,FALSE)/AH57,"-") -> 0.009304347826 | AJ57: =IFERROR(VLOOKUP(A57,'BM Weight'!$A$7:$D$1020,3,FALSE),"-") -> 0.6605260123 | AK57: =IFERROR(VLOOKUP(A57,'BM Weight'!$A$7:$D$1020,4,FALSE),"- ") -> 0 | AL57: =IFERROR(VLOOKUP(A57,'Implied Rating'!$B$7:$C$1179,2,FALSE),"-") -> BB+ | AM57: =IFERROR(VLOOKUP(A57,'ICV Rating'!$B$5:$E$1306,2,FALSE),"-") -> 0 | AN57: =_xll.BDP(B57,$AN$2) -> #N/A N/A | AO57: =_xll.BDP(B57,$AO$2) -> #N/A N/A | AP57: =_xll.BDP(B57,$AP$2) -> #N/A N/A | AQ57: =_xll.BDP(B57,$AQ$2) -> N | AR57: =_xll.BDP(B57,$AR$2) -> Optionally | AS57: =_xll.BDP(B57,$AS$2) -> N | AT57: =_xll.BDP(B57,$AT$2) -> N | AU57: =_xll.BDP(B57,$AU$2) -> N | AV57: =_xll.BDP(B57,$AV$2) -> N | AW57: =_xll.BDP(B57,$AW$2) -> US | AX57: =_xll.BDP(AC57 & " Equity",$AX$2) -> Information Technology | AY57: =_xll.BDP(AC57 & " Equity",$AY$2) -> Technology Hardware & Equipmen | AZ57: =_xll.BDP(AC57 & " Equity",$AZ$2) -> Communications Equipment | BB57: 0 | BC57: =_xll.BDP(B57,$BC$2) -> 4.573902093 | BD57: =_xll.BDP(B57,$BD$2) -> 1.195449808 | BE57: =_xll.BDP(B57,$BE$2) -> -707.1006343 | BF57: =_xll.BDP(B57,$BF$2) -> -5.661 | BG57: =_xll.BDP(B57,$BG$2) -> 0.2370185233 | BH57: =_xll.BDP(B57,$BH$2) -> 3.374332679 | BI57: =_xll.BDP(B57,$BI$2) -> #N/A N/A | BK57: =_xll.BDP(B57,$BK$2) -> 129.0735 | BL57: =_xll.BDP(B57,$BL$2) -> #N/A Field Not Applicable | BM57: =_xll.BDP(B57,$BM$2) -> 83.76888786 | BN57: =_xll.BDP(B57,$BN$2) -> 0.002711343466 | BO57: =_xll.BDP(B57,$BO$2) -> 12.69999494 | BP57: =_xll.BDP(AC57 & " Equity",$BP$2) -> #N/A N/A | BQ57: =_xll.BDP(AC57 & " Equity",$BQ$2) -> 24.02.2015 | BR57: =_xll.BDP(AC57 & " Equity",$BR$2) -> 41.71324233 | BT57: 2014-02-17
A58: US719405AH56 | B58: =A58 & " Corp" -> US719405AH56 Corp | C58: PHOTRONICS INC | D58: =_xll.BDP(B58,$D$2) -> PHOTRONICS INC | E58: =_xll.BDP(B58,$E$2) -> 3.25 | F58: =_xll.BDP(B58,$F$2) -> 01.04.2016 | G58: =_xll.BDP(B58,$G$2) -> #N/A Field Not Applicable | H58: =_xll.BDP(B58,$H$2) -> #N/A Field Not Applicable | I58: 2014-11-27 | J58: nur USD 115 Mio | K58: 0 | L58: =ROUND((T58*T$2+U58*U$2+S58*S$2+IF(P58="NR",0,P58^2*SIGN(P58))+M58*M$2)/(L$2-IF(P58="NR",0,P$2)-IF(S58,0,S$2)),0) -> 1 | M58: 1 | N58: 0 | O58: 2 | P58: NR | Q58: 2013-10-16 | R58: -2 | S58: =VLOOKUP(AX58,[1]Sheet1!$C$8:$D$23,2,FALSE) -> 1 | T58: =MIN(ROUND(ABS(V58/AD58)*200,0),2)*SIGN(V58) -> 1 | U58: =MIN(ROUND(ABS(X58),0),2)*IFERROR(SIGN(X58),0) -> -1 | V58: =_xll.BDP(AC58 & " Equity",$V$3) -> 0.02120771259 | W58: =_xll.BDP(AC58 & " Equity",$W$3) -> 24.42347536 | X58: =IFERROR(10*LN((100+Z58)/(100+$Z$1))+2*LN((100+$W$2)/(100+W58)),0) -> -1.044991887 | Y58: =_xll.BDP(AC58 & " Equity",$Y$2) -> 1.228497 | Z58: =_xll.BDP(AC58 & " Equity",$Z$2) -> -0.8423636 | AA58: =_xll.BDP(AC58 & " Equity",$AA$2) -> -0.8423636 | AB58: =_xll.BDP(AC58 & " Equity",$AB$2) -> PLAB US | AC58: =_xll.BDP(B58,$AC$2) -> EQ0010613300001000 | AD58: =_xll.BDP(AC58 & " Equity",$AD$2) -> 8.22 | AE58: 8.8 | AF58: 8 | AG58: =_xll.BDP(B58,$AG$2) -> USD | AH58: =_xll.BDP(B58,$AH$2) -> 115000000 | AI58: =IFERROR(VLOOKUP(A58,'Fisch Holding'!$A$5:$C$1245,3,FALSE)/AH58,"-") -> - | AJ58: =IFERROR(VLOOKUP(A58,'BM Weight'!$A$7:$D$1020,3,FALSE),"-") -> - | AK58: =IFERROR(VLOOKUP(A58,'BM Weight'!$A$7:$D$1020,4,FALSE),"- ") -> - | AL58: =IFERROR(VLOOKUP(A58,'Implied Rating'!$B$7:$C$1179,2,FALSE),"-") -> - | AM58: =IFERROR(VLOOKUP(A58,'ICV Rating'!$B$5:$E$1306,2,FALSE),"-") -> - | AN58: =_xll.BDP(B58,$AN$2) -> #N/A N/A | AO58: =_xll.BDP(B58,$AO$2) -> #N/A N/A | AP58: =_xll.BDP(B58,$AP$2) -> NR | AQ58: =_xll.BDP(B58,$AQ$2) -> N | AR58: =_xll.BDP(B58,$AR$2) -> Optionally | AS58: =_xll.BDP(B58,$AS$2) -> N | AT58: =_xll.BDP(B58,$AT$2) -> N | AU58: =_xll.BDP(B58,$AU$2) -> N | AV58: =_xll.BDP(B58,$AV$2) -> N | AW58: =_xll.BDP(B58,$AW$2) -> US | AX58: =_xll.BDP(AC58 & " Equity",$AX$2) -> Information Technology | AY58: =_xll.BDP(AC58 & " Equity",$AY$2) -> Semiconductors & Semiconductor | AZ58: =_xll.BDP(AC58 & " Equity",$AZ$2) -> Semiconductors & Semiconductor | BB58: 0 | BC58: =_xll.BDP(B58,$BC$2) -> 1.174204213 | BD58: =_xll.BDP(B58,$BD$2) -> 0.8122707481 | BE58: =_xll.BDP(B58,$BE$2) -> -200.4391173 | BF58: =_xll.BDP(B58,$BF$2) -> -1.547 | BG58: =_xll.BDP(B58,$BG$2) -> -0.05588780113 | BH58: =_xll.BDP(B58,$BH$2) -> -0.08093366583 | BI58: =_xll.BDP(B58,$BI$2) -> -1.116181513 | BK58: =_xll.BDP(B58,$BK$2) -> 104.4928 | BL58: =_xll.BDP(B58,$BL$2) -> #N/A Field Not Applicable | BM58: =_xll.BDP(B58,$BM$2) -> 41.8948411 | BN58: =_xll.BDP(B58,$BN$2) -> 0.009421164588 | BO58: =_xll.BDP(B58,$BO$2) -> 33.21854399 | BP58: =_xll.BDP(AC58 & " Equity",$BP$2) -> #N/A N/A | BQ58: =_xll.BDP(AC58 & " Equity",$BQ$2) -> 18.02.2015 | BR58: =_xll.BDP(AC58 & " Equity",$BR$2) -> 26.64146467
A59: US743424AB91 | B59: =A59 & " Corp" -> US743424AB91 Corp | C59: PROOFPOINT INC | D59: =_xll.BDP(B59,$D$2) -> PROOFPOINT INC | E59: =_xll.BDP(B59,$E$2) -> 1.25 | F59: =_xll.BDP(B59,$F$2) -> 15.12.2018 | G59: =_xll.BDP(B59,$G$2) -> #N/A Field Not Applicable | H59: =_xll.BDP(B59,$H$2) -> #N/A Field Not Applicable | I59: 2015-01-08 | J59: NE Dez. 13; ERP, illiquid, I-CV April 2014 | K59: 1 | L59: =ROUND((T59*T$2+U59*U$2+S59*S$2+IF(P59="NR",0,P59^2*SIGN(P59))+M59*M$2)/(L$2-IF(P59="NR",0,P$2)-IF(S59,0,S$2)),0) -> 1 | M59: 0 | N59: -1 | O59: 0 | P59: -1 | Q59: 2014-08-18 | R59: -1 | S59: =VLOOKUP(AX59,[1]Sheet1!$C$8:$D$23,2,FALSE) -> 1 | T59: =MIN(ROUND(ABS(V59/AD59)*200,0),2)*SIGN(V59) -> 0 | U59: =MIN(ROUND(ABS(X59),0),2)*IFERROR(SIGN(X59),0) -> 2 | V59: =_xll.BDP(AC59 & " Equity",$V$3) -> -0.1004741192 | W59: =_xll.BDP(AC59 & " Equity",$W$3) -> 38.30251881 | X59: =IFERROR(10*LN((100+Z59)/(100+$Z$1))+2*LN((100+$W$2)/(100+W59)),0) -> 1.904834101 | Y59: =_xll.BDP(AC59 & " Equity",$Y$2) -> 5.82735 | Z59: =_xll.BDP(AC59 & " Equity",$Z$2) -> 36.02572 | AA59: =_xll.BDP(AC59 & " Equity",$AA$2) -> 0.9122962 | AB59: =_xll.BDP(AC59 & " Equity",$AB$2) -> PFPT US | AC59: =_xll.BDP(B59,$AC$2) -> EQ0000000004410407 | AD59: =_xll.BDP(AC59 & " Equity",$AD$2) -> 47.29 | AE59: 50 | AF59: 47 | AG59: =_xll.BDP(B59,$AG$2) -> USD | AH59: =_xll.BDP(B59,$AH$2) -> 201250000 | AI59: =IFERROR(VLOOKUP(A59,'Fisch Holding'!$A$5:$C$1245,3,FALSE)/AH59,"-") -> - | AJ59: =IFERROR(VLOOKUP(A59,'BM Weight'!$A$7:$D$1020,3,FALSE),"-") -> - | AK59: =IFERROR(VLOOKUP(A59,'BM Weight'!$A$7:$D$1020,4,FALSE),"- ") -> - | AL59: =IFERROR(VLOOKUP(A59,'Implied Rating'!$B$7:$C$1179,2,FALSE),"-") -> BB | AM59: =IFERROR(VLOOKUP(A59,'ICV Rating'!$B$5:$E$1306,2,FALSE),"-") -> CCC | AN59: =_xll.BDP(B59,$AN$2) -> #N/A N/A | AO59: =_xll.BDP(B59,$AO$2) -> #N/A N/A | AP59: =_xll.BDP(B59,$AP$2) -> #N/A N/A | AQ59: =_xll.BDP(B59,$AQ$2) -> N | AR59: =_xll.BDP(B59,$AR$2) -> Optionally | AS59: =_xll.BDP(B59,$AS$2) -> N | AT59: =_xll.BDP(B59,$AT$2) -> #N/A N/A | AU59: =_xll.BDP(B59,$AU$2) -> N | AV59: =_xll.BDP(B59,$AV$2) -> N | AW59: =_xll.BDP(B59,$AW$2) -> US | AX59: =_xll.BDP(AC59 & " Equity",$AX$2) -> Information Technology | AY59: =_xll.BDP(AC59 & " Equity",$AY$2) -> Software & Services | AZ59: =_xll.BDP(AC59 & " Equity",$AZ$2) -> Software | BB59: 0 | BC59: =_xll.BDP(B59,$BC$2) -> 3.967007659 | BD59: =_xll.BDP(B59,$BD$2) -> 0.7322889077 | BE59: =_xll.BDP(B59,$BE$2) -> -826.5114118 | BF59: =_xll.BDP(B59,$BF$2) -> -6.97 | BG59: =_xll.BDP(B59,$BG$2) -> 1.247036761 | BH59: =_xll.BDP(B59,$BH$2) -> 2.803918192 | BI59: =_xll.BDP(B59,$BI$2) -> 20.57346132 | BK59: =_xll.BDP(B59,$BK$2) -> 137.3547 | BL59: =_xll.BDP(B59,$BL$2) -> #N/A Field Not Applicable | BM59: =_xll.BDP(B59,$BM$2) -> 86.77643648 | BN59: =_xll.BDP(B59,$BN$2) -> 0.002391328482 | BO59: =_xll.BDP(B59,$BO$2) -> 10.31685169 | BP59: =_xll.BDP(AC59 & " Equity",$BP$2) -> #N/A N/A | BQ59: =_xll.BDP(AC59 & " Equity",$BQ$2) -> 29.01.2015 | BR59: =_xll.BDP(AC59 & " Equity",$BR$2) -> 47.99550109 | BT59: 2014-02-03
A60: US747906AG03 | B60: =A60 & " Corp" -> US747906AG03 Corp | C60: QUANTUM CORP | D60: =_xll.BDP(B60,$D$2) -> QUANTUM CORP | E60: =_xll.BDP(B60,$E$2) -> 3.5 | F60: =_xll.BDP(B60,$F$2) -> 15.11.2015 | G60: =_xll.BDP(B60,$G$2) -> #N/A Field Not Applicable | H60: =_xll.BDP(B60,$H$2) -> #N/A Field Not Applicable | I60: 2012-10-30 | J60: I-CV: Overweight (Nov. 2010) | K60: -1 | L60: =ROUND((T60*T$2+U60*U$2+S60*S$2+IF(P60="NR",0,P60^2*SIGN(P60))+M60*M$2)/(L$2-IF(P60="NR",0,P$2)-IF(S60,0,S$2)),0) -> 0 | M60: -1 | N60: 0 | O60: -2 | P60: 1 | Q60: 2012-10-30 | R60: -2 | S60: =VLOOKUP(AX60,[1]Sheet1!$C$8:$D$23,2,FALSE) -> 1 | T60: =MIN(ROUND(ABS(V60/AD60)*200,0),2)*SIGN(V60) -> -2 | U60: =MIN(ROUND(ABS(X60),0),2)*IFERROR(SIGN(X60),0) -> 2 | V60: =_xll.BDP(AC60 & " Equity",$V$3) -> -0.02047080174 | W60: =_xll.BDP(AC60 & " Equity",$W$3) -> 53.27608559 | X60: =IFERROR(10*LN((100+Z60)/(100+$Z$1))+2*LN((100+$W$2)/(100+W60)),0) -> 2.708256115 | Y60: =_xll.BDP(AC60 & " Equity",$Y$2) -> -4.733731 | Z60: =_xll.BDP(AC60 & " Equity",$Z$2) -> 50.46728 | AA60: =_xll.BDP(AC60 & " Equity",$AA$2) -> -8.522727 | AB60: =_xll.BDP(AC60 & " Equity",$AB$2) -> QTM US | AC60: =_xll.BDP(B60,$AC$2) -> EQ0010175900001000 | AD60: =_xll.BDP(AC60 & " Equity",$AD$2) -> 1.58 | AE60: 1.75 | AF60: 1.2 | AG60: =_xll.BDP(B60,$AG$2) -> USD | AH60: =_xll.BDP(B60,$AH$2) -> 135000000 | AI60: =IFERROR(VLOOKUP(A60,'Fisch Holding'!$A$5:$C$1245,3,FALSE)/AH60,"-") -> - | AJ60: =IFERROR(VLOOKUP(A60,'BM Weight'!$A$7:$D$1020,3,FALSE),"-") -> - | AK60: =IFERROR(VLOOKUP(A60,'BM Weight'!$A$7:$D$1020,4,FALSE),"- ") -> - | AL60: =IFERROR(VLOOKUP(A60,'Implied Rating'!$B$7:$C$1179,2,FALSE),"-") -> CCC+ | AM60: =IFERROR(VLOOKUP(A60,'ICV Rating'!$B$5:$E$1306,2,FALSE),"-") -> CCC | AN60: =_xll.BDP(B60,$AN$2) -> #N/A N/A | AO60: =_xll.BDP(B60,$AO$2) -> #N/A N/A | AP60: =_xll.BDP(B60,$AP$2) -> NR | AQ60: =_xll.BDP(B60,$AQ$2) -> N | AR60: =_xll.BDP(B60,$AR$2) -> Optionally | AS60: =_xll.BDP(B60,$AS$2) -> Y | AT60: =_xll.BDP(B60,$AT$2) -> N | AU60: =_xll.BDP(B60,$AU$2) -> N | AV60: =_xll.BDP(B60,$AV$2) -> N | AW60: =_xll.BDP(B60,$AW$2) -> US | AX60: =_xll.BDP(AC60 & " Equity",$AX$2) -> Information Technology | AY60: =_xll.BDP(AC60 & " Equity",$AY$2) -> Technology Hardware & Equipmen | AZ60: =_xll.BDP(AC60 & " Equity",$AZ$2) -> Technology Hardware, Storage & | BB60: 0 | BC60: =_xll.BDP(B60,$BC$2) -> 0.7941865793 | BD60: =_xll.BDP(B60,$BD$2) -> 0.7054532281 | BE60: =_xll.BDP(B60,$BE$2) -> 191.1106259 | BF60: =_xll.BDP(B60,$BF$2) -> 2.254 | BG60: =_xll.BDP(B60,$BG$2) -> 0 | BH60: =_xll.BDP(B60,$BH$2) -> 0 | BI60: =_xll.BDP(B60,$BI$2) -> 0 | BK60: =_xll.BDP(B60,$BK$2) -> 100 | BL60: =_xll.BDP(B60,$BL$2) -> #N/A Field Not Applicable | BM60: =_xll.BDP(B60,$BM$2) -> 37.08059735 | BN60: =_xll.BDP(B60,$BN$2) -> 0.003584419622 | BO60: =_xll.BDP(B60,$BO$2) -> 171.8060535 | BP60: =_xll.BDP(AC60 & " Equity",$BP$2) -> #N/A N/A | BQ60: =_xll.BDP(AC60 & " Equity",$BQ$2) -> 29.01.2015 | BR60: =_xll.BDP(AC60 & " Equity",$BR$2) -> 47.04567197
A61: US747906AJ42 | B61: =A61 & " Corp" -> US747906AJ42 Corp | C61: QUANTUM CORP | D61: =_xll.BDP(B61,$D$2) -> QUANTUM CORP | E61: =_xll.BDP(B61,$E$2) -> 4.5 | F61: =_xll.BDP(B61,$F$2) -> 15.11.2017 | G61: =_xll.BDP(B61,$G$2) -> #N/A Field Not Applicable | H61: =_xll.BDP(B61,$H$2) -> #N/A Field Not Applicable | I61: 2012-10-30 | J61: nur USD 70 Mio | K61: -1 | L61: =ROUND((T61*T$2+U61*U$2+S61*S$2+IF(P61="NR",0,P61^2*SIGN(P61))+M61*M$2)/(L$2-IF(P61="NR",0,P$2)-IF(S61,0,S$2)),0) -> 0 | M61: 0 | N61: -1 | O61: 0 | P61: 1 | Q61: 2012-10-30 | R61: -2 | S61: =VLOOKUP(AX61,[1]Sheet1!$C$8:$D$23,2,FALSE) -> 1 | T61: =MIN(ROUND(ABS(V61/AD61)*200,0),2)*SIGN(V61) -> -2 | U61: =MIN(ROUND(ABS(X61),0),2)*IFERROR(SIGN(X61),0) -> 2 | V61: =_xll.BDP(AC61 & " Equity",$V$3) -> -0.02047080174 | W61: =_xll.BDP(AC61 & " Equity",$W$3) -> 53.27608559 | X61: =IFERROR(10*LN((100+Z61)/(100+$Z$1))+2*LN((100+$W$2)/(100+W61)),0) -> 2.708256115 | Y61: =_xll.BDP(AC61 & " Equity",$Y$2) -> -4.733731 | Z61: =_xll.BDP(AC61 & " Equity",$Z$2) -> 50.46728 | AA61: =_xll.BDP(AC61 & " Equity",$AA$2) -> -8.522727 | AB61: =_xll.BDP(AC61 & " Equity",$AB$2) -> QTM US | AC61: =_xll.BDP(B61,$AC$2) -> EQ0010175900001000 | AD61: =_xll.BDP(AC61 & " Equity",$AD$2) -> 1.58 | AE61: 1.75 | AF61: 1.2 | AG61: =_xll.BDP(B61,$AG$2) -> USD | AH61: =_xll.BDP(B61,$AH$2) -> 70000000 | AI61: =IFERROR(VLOOKUP(A61,'Fisch Holding'!$A$5:$C$1245,3,FALSE)/AH61,"-") -> - | AJ61: =IFERROR(VLOOKUP(A61,'BM Weight'!$A$7:$D$1020,3,FALSE),"-") -> - | AK61: =IFERROR(VLOOKUP(A61,'BM Weight'!$A$7:$D$1020,4,FALSE),"- ") -> - | AL61: =IFERROR(VLOOKUP(A61,'Implied Rating'!$B$7:$C$1179,2,FALSE),"-") -> - | AM61: =IFERROR(VLOOKUP(A61,'ICV Rating'!$B$5:$E$1306,2,FALSE),"-") -> - | AN61: =_xll.BDP(B61,$AN$2) -> #N/A N/A | AO61: =_xll.BDP(B61,$AO$2) -> #N/A N/A | AP61: =_xll.BDP(B61,$AP$2) -> NR | AQ61: =_xll.BDP(B61,$AQ$2) -> N | AR61: =_xll.BDP(B61,$AR$2) -> Optionally | AS61: =_xll.BDP(B61,$AS$2) -> Y | AT61: =_xll.BDP(B61,$AT$2) -> #N/A N/A | AU61: =_xll.BDP(B61,$AU$2) -> N | AV61: =_xll.BDP(B61,$AV$2) -> N | AW61: =_xll.BDP(B61,$AW$2) -> US | AX61: =_xll.BDP(AC61 & " Equity",$AX$2) -> Information Technology | AY61: =_xll.BDP(AC61 & " Equity",$AY$2) -> Technology Hardware & Equipmen | AZ61: =_xll.BDP(AC61 & " Equity",$AZ$2) -> Technology Hardware, Storage & | BB61: 0 | BC61: =_xll.BDP(B61,$BC$2) -> 2.693213651 | BD61: =_xll.BDP(B61,$BD$2) -> 0.5591469424 | BE61: =_xll.BDP(B61,$BE$2) -> -296.3525566 | BF61: =_xll.BDP(B61,$BF$2) -> -1.955 | BG61: =_xll.BDP(B61,$BG$2) -> -0.8998010286 | BH61: =_xll.BDP(B61,$BH$2) -> -3.586794268 | BI61: =_xll.BDP(B61,$BI$2) -> 20.19491398 | BK61: =_xll.BDP(B61,$BK$2) -> 117.5914 | BL61: =_xll.BDP(B61,$BL$2) -> #N/A Field Not Applicable | BM61: =_xll.BDP(B61,$BM$2) -> 93.52292864 | BN61: =_xll.BDP(B61,$BN$2) -> 0.0006963890062 | BO61: =_xll.BDP(B61,$BO$2) -> 21.51996377 | BP61: =_xll.BDP(AC61 & " Equity",$BP$2) -> #N/A N/A | BQ61: =_xll.BDP(AC61 & " Equity",$BQ$2) -> 29.01.2015 | BR61: =_xll.BDP(AC61 & " Equity",$BR$2) -> 47.04567197
A62: US750917AE63 | B62: =A62 & " Corp" -> US750917AE63 Corp | C62: RAMBUS INC | D62: =_xll.BDP(B62,$D$2) -> RAMBUS INC | E62: =_xll.BDP(B62,$E$2) -> 1.125 | F62: =_xll.BDP(B62,$F$2) -> 15.08.2018 | G62: =_xll.BDP(B62,$G$2) -> #N/A Field Not Applicable | H62: =_xll.BDP(B62,$H$2) -> #N/A Field Not Applicable | I62: 2014-06-12 | J62: NE 8.13; PP; Lizenztroll | K62: 0 | L62: =ROUND((T62*T$2+U62*U$2+S62*S$2+IF(P62="NR",0,P62^2*SIGN(P62))+M62*M$2)/(L$2-IF(P62="NR",0,P$2)-IF(S62,0,S$2)),0) -> 0 | M62: 0 | N62: -1 | O62: 0 | P62: NR | Q62: 2014-06-12 | R62: -2 | S62: =VLOOKUP(AX62,[1]Sheet1!$C$8:$D$23,2,FALSE) -> 1 | T62: =MIN(ROUND(ABS(V62/AD62)*200,0),2)*SIGN(V62) -> -1 | U62: =MIN(ROUND(ABS(X62),0),2)*IFERROR(SIGN(X62),0) -> -1 | V62: =_xll.BDP(AC62 & " Equity",$V$3) -> -0.04744865 | W62: =_xll.BDP(AC62 & " Equity",$W$3) -> 33.40044964 | X62: =IFERROR(10*LN((100+Z62)/(100+$Z$1))+2*LN((100+$W$2)/(100+W62)),0) -> -0.9493496708 | Y62: =_xll.BDP(AC62 & " Equity",$Y$2) -> -4.371098 | Z62: =_xll.BDP(AC62 & " Equity",$Z$2) -> 1.515147 | AA62: =_xll.BDP(AC62 & " Equity",$AA$2) -> -3.33634 | AB62: =_xll.BDP(AC62 & " Equity",$AB$2) -> RMBS US | AC62: =_xll.BDP(B62,$AC$2) -> EQ0021711500001000 | AD62: =_xll.BDP(AC62 & " Equity",$AD$2) -> 10.45 | AE62: 12 | AF62: 10 | AG62: =_xll.BDP(B62,$AG$2) -> USD | AH62: =_xll.BDP(B62,$AH$2) -> 138000000 | AI62: =IFERROR(VLOOKUP(A62,'Fisch Holding'!$A$5:$C$1245,3,FALSE)/AH62,"-") -> - | AJ62: =IFERROR(VLOOKUP(A62,'BM Weight'!$A$7:$D$1020,3,FALSE),"-") -> - | AK62: =IFERROR(VLOOKUP(A62,'BM Weight'!$A$7:$D$1020,4,FALSE),"- ") -> - | AL62: =IFERROR(VLOOKUP(A62,'Implied Rating'!$B$7:$C$1179,2,FALSE),"-") -> - | AM62: =IFERROR(VLOOKUP(A62,'ICV Rating'!$B$5:$E$1306,2,FALSE),"-") -> - | AN62: =_xll.BDP(B62,$AN$2) -> #N/A N/A | AO62: =_xll.BDP(B62,$AO$2) -> #N/A N/A | AP62: =_xll.BDP(B62,$AP$2) -> #N/A N/A | AQ62: =_xll.BDP(B62,$AQ$2) -> N | AR62: =_xll.BDP(B62,$AR$2) -> Optionally | AS62: =_xll.BDP(B62,$AS$2) -> N | AT62: =_xll.BDP(B62,$AT$2) -> #N/A N/A | AU62: =_xll.BDP(B62,$AU$2) -> N | AV62: =_xll.BDP(B62,$AV$2) -> N | AW62: =_xll.BDP(B62,$AW$2) -> US | AX62: =_xll.BDP(AC62 & " Equity",$AX$2) -> Information Technology | AY62: =_xll.BDP(AC62 & " Equity",$AY$2) -> Semiconductors & Semiconductor | AZ62: =_xll.BDP(AC62 & " Equity",$AZ$2) -> Semiconductors & Semiconductor | BB62: 0 | BC62: =_xll.BDP(B62,$BC$2) -> 3.530257573 | BD62: =_xll.BDP(B62,$BD$2) -> 1.533384471 | BE62: =_xll.BDP(B62,$BE$2) -> -341.8933853 | BF62: =_xll.BDP(B62,$BF$2) -> -2.202 | BG62: =_xll.BDP(B62,$BG$2) -> -1.104322422 | BH62: =_xll.BDP(B62,$BH$2) -> -2.442085629 | BI62: =_xll.BDP(B62,$BI$2) -> 0.4493534791 | BK62: =_xll.BDP(B62,$BK$2) -> 111.6279 | BL62: =_xll.BDP(B62,$BL$2) -> #N/A Field Not Applicable | BM62: =_xll.BDP(B62,$BM$2) -> 71.89072323 | BN62: =_xll.BDP(B62,$BN$2) -> 0.004221078312 | BO62: =_xll.BDP(B62,$BO$2) -> 26.60130782 | BP62: =_xll.BDP(AC62 & " Equity",$BP$2) -> #N/A N/A | BQ62: =_xll.BDP(AC62 & " Equity",$BQ$2) -> 27.01.2015 | BR62: =_xll.BDP(AC62 & " Equity",$BR$2) -> 40.92512228
A63: US756577AC63 | B63: =A63 & " Corp" -> US756577AC63 Corp | C63: Red Hat | D63: =_xll.BDP(B63,$D$2) -> RED HAT INC | E63: =_xll.BDP(B63,$E$2) -> 0.25 | F63: =_xll.BDP(B63,$F$2) -> 01.10.2019 | G63: =_xll.BDP(B63,$G$2) -> #N/A Field Not Applicable | H63: =_xll.BDP(B63,$H$2) -> #N/A Field Not Applicable | I63: 2015-01-08 | K63: 1 | L63: =ROUND((T63*T$2+U63*U$2+S63*S$2+IF(P63="NR",0,P63^2*SIGN(P63))+M63*M$2)/(L$2-IF(P63="NR",0,P$2)-IF(S63,0,S$2)),0) -> 1 | M63: 1 | N63: 1 | O63: 1 | P63: NR | Q63: 2014-04-23 | R63: 1 | S63: =VLOOKUP(AX63,[1]Sheet1!$C$8:$D$23,2,FALSE) -> 1 | T63: =MIN(ROUND(ABS(V63/AD63)*200,0),2)*SIGN(V63) -> -1 | U63: =MIN(ROUND(ABS(X63),0),2)*IFERROR(SIGN(X63),0) -> 1 | V63: =_xll.BDP(AC63 & " Equity",$V$3) -> -0.4496142864 | W63: =_xll.BDP(AC63 & " Equity",$W$3) -> 30.13865956 | X63: =IFERROR(10*LN((100+Z63)/(100+$Z$1))+2*LN((100+$W$2)/(100+W63)),0) -> 0.8540730369 | Y63: =_xll.BDP(AC63 & " Equity",$Y$2) -> 12.6039 | Z63: =_xll.BDP(AC63 & " Equity",$Z$2) -> 20.97686 | AA63: =_xll.BDP(AC63 & " Equity",$AA$2) -> -3.9919 | AB63: =_xll.BDP(AC63 & " Equity",$AB$2) -> RHT US | AC63: =_xll.BDP(B63,$AC$2) -> EQ0086120900001000 | AD63: =_xll.BDP(AC63 & " Equity",$AD$2) -> 65.77 | AE63: 70 | AF63: 65 | AG63: =_xll.BDP(B63,$AG$2) -> USD | AH63: =_xll.BDP(B63,$AH$2) -> 805000000 | AI63: =IFERROR(VLOOKUP(A63,'Fisch Holding'!$A$5:$C$1245,3,FALSE)/AH63,"-") -> 0.129068323 | AJ63: =IFERROR(VLOOKUP(A63,'BM Weight'!$A$7:$D$1020,3,FALSE),"-") -> 0.8254571019 | AK63: =IFERROR(VLOOKUP(A63,'BM Weight'!$A$7:$D$1020,4,FALSE),"- ") -> 2.925167203 | AL63: =IFERROR(VLOOKUP(A63,'Implied Rating'!$B$7:$C$1179,2,FALSE),"-") -> A+ | AM63: =IFERROR(VLOOKUP(A63,'ICV Rating'!$B$5:$E$1306,2,FALSE),"-") -> 0 | AN63: =_xll.BDP(B63,$AN$2) -> NR | AO63: =_xll.BDP(B63,$AO$2) -> #N/A N/A | AP63: =_xll.BDP(B63,$AP$2) -> BBB | AQ63: =_xll.BDP(B63,$AQ$2) -> N | AR63: =_xll.BDP(B63,$AR$2) -> Optionally | AS63: =_xll.BDP(B63,$AS$2) -> N | AT63: =_xll.BDP(B63,$AT$2) -> N | AU63: =_xll.BDP(B63,$AU$2) -> N | AV63: =_xll.BDP(B63,$AV$2) -> N | AW63: =_xll.BDP(B63,$AW$2) -> US | AX63: =_xll.BDP(AC63 & " Equity",$AX$2) -> Information Technology | AY63: =_xll.BDP(AC63 & " Equity",$AY$2) -> Software & Services | AZ63: =_xll.BDP(AC63 & " Equity",$AZ$2) -> Software | BB63: 0 | BC63: =_xll.BDP(B63,$BC$2) -> 4.735681221 | BD63: =_xll.BDP(B63,$BD$2) -> 2.553881377 | BE63: =_xll.BDP(B63,$BE$2) -> -430.0332704 | BF63: =_xll.BDP(B63,$BF$2) -> -2.844 | BG63: =_xll.BDP(B63,$BG$2) -> -2.60408362 | BH63: =_xll.BDP(B63,$BH$2) -> 6.527941711 | BI63: =_xll.BDP(B63,$BI$2) -> 13.88486783 | BK63: =_xll.BDP(B63,$BK$2) -> 115.4644 | BL63: =_xll.BDP(B63,$BL$2) -> #N/A Field Not Applicable | BM63: =_xll.BDP(B63,$BM$2) -> 61.342565 | BN63: =_xll.BDP(B63,$BN$2) -> 0.005923951257 | BO63: =_xll.BDP(B63,$BO$2) -> 27.90668701 | BP63: =_xll.BDP(AC63 & " Equity",$BP$2) -> #N/A N/A | BQ63: =_xll.BDP(AC63 & " Equity",$BQ$2) -> 27.03.2015 | BR63: =_xll.BDP(AC63 & " Equity",$BR$2) -> 29.92384095
A64: US75971TAA16 | B64: =A64 & " Corp" -> US75971TAA16 Corp | C64: RENESOLA LTD | D64: =_xll.BDP(B64,$D$2) -> RENESOLA LTD | E64: =_xll.BDP(B64,$E$2) -> 4.125 | F64: =_xll.BDP(B64,$F$2) -> 15.03.2018 | G64: =_xll.BDP(B64,$G$2) -> 15.03.2016 | H64: =_xll.BDP(B64,$H$2) -> #N/A Field Not Applicable | I64: 2013-10-01 | J64: NO GO I-CV Sept. 13 | K64: -2 | L64: =ROUND((T64*T$2+U64*U$2+S64*S$2+IF(P64="NR",0,P64^2*SIGN(P64))+M64*M$2)/(L$2-IF(P64="NR",0,P$2)-IF(S64,0,S$2)),0) -> -1 | M64: -1 | N64: 0 | O64: -1 | P64: -2 | Q64: 2013-10-01 | R64: -2 | S64: =VLOOKUP(AX64,[1]Sheet1!$C$8:$D$23,2,FALSE) -> 1 | T64: =MIN(ROUND(ABS(V64/AD64)*200,0),2)*SIGN(V64) -> 1 | U64: =MIN(ROUND(ABS(X64),0),2)*IFERROR(SIGN(X64),0) -> -2 | V64: =_xll.BDP(AC64 & " Equity",$V$3) -> 0.008613474667 | W64: =_xll.BDP(AC64 & " Equity",$W$3) -> 71.95912704 | X64: =IFERROR(10*LN((100+Z64)/(100+$Z$1))+2*LN((100+$W$2)/(100+W64)),0) -> -7.7855087 | Y64: =_xll.BDP(AC64 & " Equity",$Y$2) -> -0.8 | Z64: =_xll.BDP(AC64 & " Equity",$Z$2) -> -46.08696 | AA64: =_xll.BDP(AC64 & " Equity",$AA$2) -> -12.05674 | AB64: =_xll.BDP(AC64 & " Equity",$AB$2) -> SOL US | AC64: =_xll.BDP(B64,$AC$2) -> EQ0000000005422778 | AD64: =_xll.BDP(AC64 & " Equity",$AD$2) -> 1.22 | AE64: 3 | AF64: 1 | AG64: =_xll.BDP(B64,$AG$2) -> USD | AH64: =_xll.BDP(B64,$AH$2) -> 111616000 | AI64: =IFERROR(VLOOKUP(A64,'Fisch Holding'!$A$5:$C$1245,3,FALSE)/AH64,"-") -> - | AJ64: =IFERROR(VLOOKUP(A64,'BM Weight'!$A$7:$D$1020,3,FALSE),"-") -> - | AK64: =IFERROR(VLOOKUP(A64,'BM Weight'!$A$7:$D$1020,4,FALSE),"- ") -> - | AL64: =IFERROR(VLOOKUP(A64,'Implied Rating'!$B$7:$C$1179,2,FALSE),"-") -> - | AM64: =IFERROR(VLOOKUP(A64,'ICV Rating'!$B$5:$E$1306,2,FALSE),"-") -> - | AN64: =_xll.BDP(B64,$AN$2) -> #N/A N/A | AO64: =_xll.BDP(B64,$AO$2) -> #N/A N/A | AP64: =_xll.BDP(B64,$AP$2) -> #N/A N/A | AQ64: =_xll.BDP(B64,$AQ$2) -> N | AR64: =_xll.BDP(B64,$AR$2) -> Optionally | AS64: =_xll.BDP(B64,$AS$2) -> N | AT64: =_xll.BDP(B64,$AT$2) -> #N/A N/A | AU64: =_xll.BDP(B64,$AU$2) -> N | AV64: =_xll.BDP(B64,$AV$2) -> N | AW64: =_xll.BDP(B64,$AW$2) -> CN | AX64: =_xll.BDP(AC64 & " Equity",$AX$2) -> Information Technology | AY64: =_xll.BDP(AC64 & " Equity",$AY$2) -> Semiconductors & Semiconductor | AZ64: =_xll.BDP(AC64 & " Equity",$AZ$2) -> Semiconductors & Semiconductor | BB64: 0 | BC64: =_xll.BDP(B64,$BC$2) -> 0.8520428597 | BD64: =_xll.BDP(B64,$BD$2) -> 1.0922366 | BE64: =_xll.BDP(B64,$BE$2) -> 5906.544768 | BF64: =_xll.BDP(B64,$BF$2) -> 59.505 | BG64: =_xll.BDP(B64,$BG$2) -> #N/A N/A | BH64: =_xll.BDP(B64,$BH$2) -> #N/A N/A | BI64: =_xll.BDP(B64,$BI$2) -> #N/A N/A | BK64: =_xll.BDP(B64,$BK$2) -> 58 | BL64: =_xll.BDP(B64,$BL$2) -> #N/A Field Not Applicable | BM64: =_xll.BDP(B64,$BM$2) -> 19.9967919 | BN64: =_xll.BDP(B64,$BN$2) -> 0.002646115953 | BO64: =_xll.BDP(B64,$BO$2) -> 393.3393367 | BP64: =_xll.BDP(AC64 & " Equity",$BP$2) -> #N/A N/A | BQ64: =_xll.BDP(AC64 & " Equity",$BQ$2) -> 24.03.2015 | BR64: =_xll.BDP(AC64 & " Equity",$BR$2) -> 71.06960012
A65: US779376AB85 | B65: =A65 & " Corp" -> US779376AB85 Corp | C65: ROVI CORP | D65: =_xll.BDP(B65,$D$2) -> ROVI CORP | E65: =_xll.BDP(B65,$E$2) -> 2.625 | F65: =_xll.BDP(B65,$F$2) -> 15.02.2040 | G65: =_xll.BDP(B65,$G$2) -> 20.02.2015 | H65: =_xll.BDP(B65,$H$2) -> 20.02.2015 | I65: 2012-07-18 | K65: -1 | L65: =ROUND((T65*T$2+U65*U$2+S65*S$2+IF(P65="NR",0,P65^2*SIGN(P65))+M65*M$2)/(L$2-IF(P65="NR",0,P$2)-IF(S65,0,S$2)),0) -> 0 | M65: -1 | N65: -1 | O65: -2 | P65: 1 | Q65: 2012-07-18 | R65: -1 | S65: =VLOOKUP(AX65,[1]Sheet1!$C$8:$D$23,2,FALSE) -> 1 | T65: =MIN(ROUND(ABS(V65/AD65)*200,0),2)*SIGN(V65) -> 0 | U65: =MIN(ROUND(ABS(X65),0),2)*IFERROR(SIGN(X65),0) -> 1 | V65: =_xll.BDP(AC65 & " Equity",$V$3) -> 0.0563531816 | W65: =_xll.BDP(AC65 & " Equity",$W$3) -> 27.18066903 | X65: =IFERROR(10*LN((100+Z65)/(100+$Z$1))+2*LN((100+$W$2)/(100+W65)),0) -> 1.142396209 | Y65: =_xll.BDP(AC65 & " Equity",$Y$2) -> 11.65142 | Z65: =_xll.BDP(AC65 & " Equity",$Z$2) -> 23.94442 | AA65: =_xll.BDP(AC65 & " Equity",$AA$2) -> 2.656042 | AB65: =_xll.BDP(AC65 & " Equity",$AB$2) -> ROVI US | AC65: =_xll.BDP(B65,$AC$2) -> EQ0020269500001000 | AD65: =_xll.BDP(AC65 & " Equity",$AD$2) -> 22.7 | AE65: 25 | AF65: 20 | AG65: =_xll.BDP(B65,$AG$2) -> USD | AH65: =_xll.BDP(B65,$AH$2) -> 290990000 | AI65: =IFERROR(VLOOKUP(A65,'Fisch Holding'!$A$5:$C$1245,3,FALSE)/AH65,"-") -> - | AJ65: =IFERROR(VLOOKUP(A65,'BM Weight'!$A$7:$D$1020,3,FALSE),"-") -> - | AK65: =IFERROR(VLOOKUP(A65,'BM Weight'!$A$7:$D$1020,4,FALSE),"- ") -> - | AL65: =IFERROR(VLOOKUP(A65,'Implied Rating'!$B$7:$C$1179,2,FALSE),"-") -> BB | AM65: =IFERROR(VLOOKUP(A65,'ICV Rating'!$B$5:$E$1306,2,FALSE),"-") -> 0 | AN65: =_xll.BDP(B65,$AN$2) -> #N/A N/A | AO65: =_xll.BDP(B65,$AO$2) -> Ba3 | AP65: =_xll.BDP(B65,$AP$2) -> B+ | AQ65: =_xll.BDP(B65,$AQ$2) -> N | AR65: =_xll.BDP(B65,$AR$2) -> Optionally | AS65: =_xll.BDP(B65,$AS$2) -> N | AT65: =_xll.BDP(B65,$AT$2) -> N | AU65: =_xll.BDP(B65,$AU$2) -> N | AV65: =_xll.BDP(B65,$AV$2) -> Y | AW65: =_xll.BDP(B65,$AW$2) -> US | AX65: =_xll.BDP(AC65 & " Equity",$AX$2) -> Information Technology | AY65: =_xll.BDP(AC65 & " Equity",$AY$2) -> Software & Services | AZ65: =_xll.BDP(AC65 & " Equity",$AZ$2) -> Software | BB65: 0 | BC65: =_xll.BDP(B65,$BC$2) -> 0.08003115451 | BD65: =_xll.BDP(B65,$BD$2) -> 0.08363710115 | BE65: =_xll.BDP(B65,$BE$2) -> -287.589093 | BF65: =_xll.BDP(B65,$BF$2) -> -2.614 | BG65: =_xll.BDP(B65,$BG$2) -> 0.1452737224 | BH65: =_xll.BDP(B65,$BH$2) -> -0.01891665258 | BI65: =_xll.BDP(B65,$BI$2) -> -0.255638446 | BK65: =_xll.BDP(B65,$BK$2) -> 100.1414 | BL65: =_xll.BDP(B65,$BL$2) -> #N/A Field Not Applicable | BM65: =_xll.BDP(B65,$BM$2) -> 0.04492481644 | BN65: =_xll.BDP(B65,$BN$2) -> 8.162703191e-05 | BO65: =_xll.BDP(B65,$BO$2) -> 105.0956161 | BP65: =_xll.BDP(AC65 & " Equity",$BP$2) -> #N/A N/A | BQ65: =_xll.BDP(AC65 & " Equity",$BQ$2) -> 12.02.2015 | BR65: =_xll.BDP(AC65 & " Equity",$BR$2) -> 29.85153057
A66: US781268AA59 | B66: =A66 & " Corp" -> US781268AA59 Corp | C66: WEBMD HEALTH CORP | D66: =_xll.BDP(B66,$D$2) -> RUDOLPH TECHNOLOGIES INC | E66: =_xll.BDP(B66,$E$2) -> 3.75 | F66: =_xll.BDP(B66,$F$2) -> 15.07.2016 | G66: =_xll.BDP(B66,$G$2) -> #N/A Field Not Applicable | H66: =_xll.BDP(B66,$H$2) -> #N/A Field Not Applicable | I66: 2014-05-05 | J66: nur USD 60 Mio outstanding | K66: 0 | L66: =ROUND((T66*T$2+U66*U$2+S66*S$2+IF(P66="NR",0,P66^2*SIGN(P66))+M66*M$2)/(L$2-IF(P66="NR",0,P$2)-IF(S66,0,S$2)),0) -> 0 | M66: 0 | N66: -1 | O66: 0 | Q66: 2014-05-05 | R66: -2 | S66: =VLOOKUP(AX66,[1]Sheet1!$C$8:$D$23,2,FALSE) -> 1 | T66: =MIN(ROUND(ABS(V66/AD66)*200,0),2)*SIGN(V66) -> -1 | U66: =MIN(ROUND(ABS(X66),0),2)*IFERROR(SIGN(X66),0) -> 1 | V66: =_xll.BDP(AC66 & " Equity",$V$3) -> -0.05374322832 | W66: =_xll.BDP(AC66 & " Equity",$W$3) -> 28.22679799 | X66: =IFERROR(10*LN((100+Z66)/(100+$Z$1))+2*LN((100+$W$2)/(100+W66)),0) -> 0.5762628123 | Y66: =_xll.BDP(AC66 & " Equity",$Y$2) -> 5.732483 | Z66: =_xll.BDP(AC66 & " Equity",$Z$2) -> 17.31449 | AA66: =_xll.BDP(AC66 & " Equity",$AA$2) -> -2.639292 | AB66: =_xll.BDP(AC66 & " Equity",$AB$2) -> RTEC US | AC66: =_xll.BDP(B66,$AC$2) -> EQ0039605800001000 | AD66: =_xll.BDP(AC66 & " Equity",$AD$2) -> 9.85 | AE66: 10 | AF66: 9.2 | AG66: =_xll.BDP(B66,$AG$2) -> USD | AH66: =_xll.BDP(B66,$AH$2) -> 60000000 | AI66: =IFERROR(VLOOKUP(A66,'Fisch Holding'!$A$5:$C$1245,3,FALSE)/AH66,"-") -> - | AJ66: =IFERROR(VLOOKUP(A66,'BM Weight'!$A$7:$D$1020,3,FALSE),"-") -> - | AK66: =IFERROR(VLOOKUP(A66,'BM Weight'!$A$7:$D$1020,4,FALSE),"- ") -> - | AL66: =IFERROR(VLOOKUP(A66,'Implied Rating'!$B$7:$C$1179,2,FALSE),"-") -> - | AM66: =IFERROR(VLOOKUP(A66,'ICV Rating'!$B$5:$E$1306,2,FALSE),"-") -> - | AN66: =_xll.BDP(B66,$AN$2) -> #N/A N/A | AO66: =_xll.BDP(B66,$AO$2) -> #N/A N/A | AP66: =_xll.BDP(B66,$AP$2) -> #N/A N/A | AQ66: =_xll.BDP(B66,$AQ$2) -> N | AR66: =_xll.BDP(B66,$AR$2) -> Optionally | AS66: =_xll.BDP(B66,$AS$2) -> N | AT66: =_xll.BDP(B66,$AT$2) -> N | AU66: =_xll.BDP(B66,$AU$2) -> N | AV66: =_xll.BDP(B66,$AV$2) -> N | AW66: =_xll.BDP(B66,$AW$2) -> US | AX66: =_xll.BDP(AC66 & " Equity",$AX$2) -> Information Technology | AY66: =_xll.BDP(AC66 & " Equity",$AY$2) -> Semiconductors & Semiconductor | AZ66: =_xll.BDP(AC66 & " Equity",$AZ$2) -> Semiconductors & Semiconductor | BB66: 0 | BC66: =_xll.BDP(B66,$BC$2) -> 1.456381981 | BD66: =_xll.BDP(B66,$BD$2) -> 1.090395856 | BE66: =_xll.BDP(B66,$BE$2) -> -101.308026 | BF66: =_xll.BDP(B66,$BF$2) -> -0.455 | BG66: =_xll.BDP(B66,$BG$2) -> -0.001313373997 | BH66: =_xll.BDP(B66,$BH$2) -> 1.419044691 | BI66: =_xll.BDP(B66,$BI$2) -> 3.044931587 | BK66: =_xll.BDP(B66,$BK$2) -> 105.4957 | BL66: =_xll.BDP(B66,$BL$2) -> #N/A Field Not Applicable | BM66: =_xll.BDP(B66,$BM$2) -> 35.08559539 | BN66: =_xll.BDP(B66,$BN$2) -> 0.009765595761 | BO66: =_xll.BDP(B66,$BO$2) -> 38.12971178 | BP66: =_xll.BDP(AC66 & " Equity",$BP$2) -> #N/A N/A | BQ66: =_xll.BDP(AC66 & " Equity",$BQ$2) -> 03.02.2015 | BR66: =_xll.BDP(AC66 & " Equity",$BR$2) -> 32.7328032
A67: US79466LAD64 | B67: =A67 & " Corp" -> US79466LAD64 Corp | C67: SALESFORCE.COM INC | D67: =_xll.BDP(B67,$D$2) -> SALESFORCE.COM INC | E67: =_xll.BDP(B67,$E$2) -> 0.25 | F67: =_xll.BDP(B67,$F$2) -> 01.04.2018 | G67: =_xll.BDP(B67,$G$2) -> #N/A Field Not Applicable | H67: =_xll.BDP(B67,$H$2) -> #N/A Field Not Applicable | I67: 2014-10-29 | K67: 1 | L67: =ROUND((T67*T$2+U67*U$2+S67*S$2+IF(P67="NR",0,P67^2*SIGN(P67))+M67*M$2)/(L$2-IF(P67="NR",0,P$2)-IF(S67,0,S$2)),0) -> 1 | M67: 1 | N67: -1 | O67: 0 | P67: -1 | Q67: 2014-06-19 | R67: 0 | S67: =VLOOKUP(AX67,[1]Sheet1!$C$8:$D$23,2,FALSE) -> 1 | T67: =MIN(ROUND(ABS(V67/AD67)*200,0),2)*SIGN(V67) -> 0 | U67: =MIN(ROUND(ABS(X67),0),2)*IFERROR(SIGN(X67),0) -> 0 | V67: =_xll.BDP(AC67 & " Equity",$V$3) -> -0.124523595 | W67: =_xll.BDP(AC67 & " Equity",$W$3) -> 30.950353 | X67: =IFERROR(10*LN((100+Z67)/(100+$Z$1))+2*LN((100+$W$2)/(100+W67)),0) -> -0.3082630233 | Y67: =_xll.BDP(AC67 & " Equity",$Y$2) -> 3.320701 | Z67: =_xll.BDP(AC67 & " Equity",$Z$2) -> 7.83575 | AA67: =_xll.BDP(AC67 & " Equity",$AA$2) -> -3.473278 | AB67: =_xll.BDP(AC67 & " Equity",$AB$2) -> CRM US | AC67: =_xll.BDP(B67,$AC$2) -> EQ0108460500001000 | AD67: =_xll.BDP(AC67 & " Equity",$AD$2) -> 56.81 | AE67: 60 | AF67: 55 | AG67: =_xll.BDP(B67,$AG$2) -> USD | AH67: =_xll.BDP(B67,$AH$2) -> 1150000000 | AI67: =IFERROR(VLOOKUP(A67,'Fisch Holding'!$A$5:$C$1245,3,FALSE)/AH67,"-") -> 0.03317391304 | AJ67: =IFERROR(VLOOKUP(A67,'BM Weight'!$A$7:$D$1020,3,FALSE),"-") -> 1.149978152 | AK67: =IFERROR(VLOOKUP(A67,'BM Weight'!$A$7:$D$1020,4,FALSE),"- ") -> 0 | AL67: =IFERROR(VLOOKUP(A67,'Implied Rating'!$B$7:$C$1179,2,FALSE),"-") -> A+ | AM67: =IFERROR(VLOOKUP(A67,'ICV Rating'!$B$5:$E$1306,2,FALSE),"-") -> BB+ | AN67: =_xll.BDP(B67,$AN$2) -> NR | AO67: =_xll.BDP(B67,$AO$2) -> #N/A N/A | AP67: =_xll.BDP(B67,$AP$2) -> NR | AQ67: =_xll.BDP(B67,$AQ$2) -> N | AR67: =_xll.BDP(B67,$AR$2) -> Optionally | AS67: =_xll.BDP(B67,$AS$2) -> N | AT67: =_xll.BDP(B67,$AT$2) -> #N/A N/A | AU67: =_xll.BDP(B67,$AU$2) -> N | AV67: =_xll.BDP(B67,$AV$2) -> N | AW67: =_xll.BDP(B67,$AW$2) -> US | AX67: =_xll.BDP(AC67 & " Equity",$AX$2) -> Information Technology | AY67: =_xll.BDP(AC67 & " Equity",$AY$2) -> Software & Services | AZ67: =_xll.BDP(AC67 & " Equity",$AZ$2) -> Software | BB67: 0 | BC67: =_xll.BDP(B67,$BC$2) -> 3.239709501 | BD67: =_xll.BDP(B67,$BD$2) -> 1.816944858 | BE67: =_xll.BDP(B67,$BE$2) -> -471.3283722 | BF67: =_xll.BDP(B67,$BF$2) -> -3.58 | BG67: =_xll.BDP(B67,$BG$2) -> 0.07714213354 | BH67: =_xll.BDP(B67,$BH$2) -> 2.443883041 | BI67: =_xll.BDP(B67,$BI$2) -> 5.379884722 | BK67: =_xll.BDP(B67,$BK$2) -> 112.9339 | BL67: =_xll.BDP(B67,$BL$2) -> #N/A Field Not Applicable | BM67: =_xll.BDP(B67,$BM$2) -> 56.86278108 | BN67: =_xll.BDP(B67,$BN$2) -> 0.006284249892 | BO67: =_xll.BDP(B67,$BO$2) -> 31.24111406 | BP67: =_xll.BDP(AC67 & " Equity",$BP$2) -> #N/A N/A | BQ67: =_xll.BDP(AC67 & " Equity",$BQ$2) -> 27.02.2015 | BR67: =_xll.BDP(AC67 & " Equity",$BR$2) -> 30.87652189 | BT67: 2014-01-21
A68: US79466LAB09 | B68: =A68 & " Corp" -> US79466LAB09 Corp | C68: SALESFORCE.COM INC | D68: =_xll.BDP(B68,$D$2) -> SALESFORCE.COM INC | E68: =_xll.BDP(B68,$E$2) -> 0.75 | F68: =_xll.BDP(B68,$F$2) -> 15.01.2015 | G68: =_xll.BDP(B68,$G$2) -> #N/A Field Not Applicable | H68: =_xll.BDP(B68,$H$2) -> #N/A Field Not Applicable | I68: 2013-03-05 | K68: -1 | L68: =ROUND((T68*T$2+U68*U$2+S68*S$2+IF(P68="NR",0,P68^2*SIGN(P68))+M68*M$2)/(L$2-IF(P68="NR",0,P$2)-IF(S68,0,S$2)),0) -> -1 | M68: -1 | N68: 0 | O68: -2 | P68: -1 | Q68: 2013-03-05 | R68: 0 | S68: =VLOOKUP(AX68,[1]Sheet1!$C$8:$D$23,2,FALSE) -> 1 | T68: =MIN(ROUND(ABS(V68/AD68)*200,0),2)*SIGN(V68) -> 0 | U68: =MIN(ROUND(ABS(X68),0),2)*IFERROR(SIGN(X68),0) -> 0 | V68: =_xll.BDP(AC68 & " Equity",$V$3) -> -0.124523595 | W68: =_xll.BDP(AC68 & " Equity",$W$3) -> 30.950353 | X68: =IFERROR(10*LN((100+Z68)/(100+$Z$1))+2*LN((100+$W$2)/(100+W68)),0) -> -0.3082630233 | Y68: =_xll.BDP(AC68 & " Equity",$Y$2) -> 3.320701 | Z68: =_xll.BDP(AC68 & " Equity",$Z$2) -> 7.83575 | AA68: =_xll.BDP(AC68 & " Equity",$AA$2) -> -3.473278 | AB68: =_xll.BDP(AC68 & " Equity",$AB$2) -> CRM US | AC68: =_xll.BDP(B68,$AC$2) -> EQ0108460500001000 | AD68: =_xll.BDP(AC68 & " Equity",$AD$2) -> 56.81 | AE68: 60 | AF68: 55 | AG68: =_xll.BDP(B68,$AG$2) -> USD | AH68: =_xll.BDP(B68,$AH$2) -> 163850000 | AI68: =IFERROR(VLOOKUP(A68,'Fisch Holding'!$A$5:$C$1245,3,FALSE)/AH68,"-") -> - | AJ68: =IFERROR(VLOOKUP(A68,'BM Weight'!$A$7:$D$1020,3,FALSE),"-") -> - | AK68: =IFERROR(VLOOKUP(A68,'BM Weight'!$A$7:$D$1020,4,FALSE),"- ") -> - | AL68: =IFERROR(VLOOKUP(A68,'Implied Rating'!$B$7:$C$1179,2,FALSE),"-") -> A | AM68: =IFERROR(VLOOKUP(A68,'ICV Rating'!$B$5:$E$1306,2,FALSE),"-") -> BB+ | AN68: =_xll.BDP(B68,$AN$2) -> #N/A N/A | AO68: =_xll.BDP(B68,$AO$2) -> #N/A N/A | AP68: =_xll.BDP(B68,$AP$2) -> NR | AQ68: =_xll.BDP(B68,$AQ$2) -> N | AR68: =_xll.BDP(B68,$AR$2) -> Optionally | AS68: =_xll.BDP(B68,$AS$2) -> N | AT68: =_xll.BDP(B68,$AT$2) -> #N/A N/A | AU68: =_xll.BDP(B68,$AU$2) -> N | AV68: =_xll.BDP(B68,$AV$2) -> N | AW68: =_xll.BDP(B68,$AW$2) -> US | AX68: =_xll.BDP(AC68 & " Equity",$AX$2) -> Information Technology | AY68: =_xll.BDP(AC68 & " Equity",$AY$2) -> Software & Services | AZ68: =_xll.BDP(AC68 & " Equity",$AZ$2) -> Software | BB68: 0 | BC68: =_xll.BDP(B68,$BC$2) -> 0.00746195978 | BD68: =_xll.BDP(B68,$BD$2) -> #N/A N/A | BE68: =_xll.BDP(B68,$BE$2) -> #N/A N/A | BF68: =_xll.BDP(B68,$BF$2) -> -22648.212 | BG68: =_xll.BDP(B68,$BG$2) -> 0.5699041076 | BH68: =_xll.BDP(B68,$BH$2) -> 4.240177686 | BI68: =_xll.BDP(B68,$BI$2) -> 8.592896993 | BK68: =_xll.BDP(B68,$BK$2) -> 269.2649 | BL68: =_xll.BDP(B68,$BL$2) -> #N/A Field Not Applicable | BM68: =_xll.BDP(B68,$BM$2) -> #N/A N/A | BN68: =_xll.BDP(B68,$BN$2) -> #N/A N/A | BO68: =_xll.BDP(B68,$BO$2) -> 0.7449215278 | BP68: =_xll.BDP(AC68 & " Equity",$BP$2) -> #N/A N/A | BQ68: =_xll.BDP(AC68 & " Equity",$BQ$2) -> 27.02.2015 | BR68: =_xll.BDP(AC68 & " Equity",$BR$2) -> 30.87652189
A69: US80004CAF86 | B69: =A69 & " Corp" -> US80004CAF86 Corp | C69: SANDISK CORP | D69: =_xll.BDP(B69,$D$2) -> SANDISK CORP | E69: =_xll.BDP(B69,$E$2) -> 0.5 | F69: =_xll.BDP(B69,$F$2) -> 15.10.2020 | G69: =_xll.BDP(B69,$G$2) -> #N/A Field Not Applicable | H69: =_xll.BDP(B69,$H$2) -> #N/A Field Not Applicable | I69: 2015-01-15 | K69: 0 | L69: =ROUND((T69*T$2+U69*U$2+S69*S$2+IF(P69="NR",0,P69^2*SIGN(P69))+M69*M$2)/(L$2-IF(P69="NR",0,P$2)-IF(S69,0,S$2)),0) -> -1 | M69: 0 | N69: 0 | O69: 0 | P69: 0 | Q69: 2014-07-21 | R69: 0 | S69: =VLOOKUP(AX69,[1]Sheet1!$C$8:$D$23,2,FALSE) -> 1 | T69: =MIN(ROUND(ABS(V69/AD69)*200,0),2)*SIGN(V69) -> -2 | U69: =MIN(ROUND(ABS(X69),0),2)*IFERROR(SIGN(X69),0) -> -2 | V69: =_xll.BDP(AC69 & " Equity",$V$3) -> -2.135080576 | W69: =_xll.BDP(AC69 & " Equity",$W$3) -> 40.24994188 | X69: =IFERROR(10*LN((100+Z69)/(100+$Z$1))+2*LN((100+$W$2)/(100+W69)),0) -> -1.731851169 | Y69: =_xll.BDP(AC69 & " Equity",$Y$2) -> -18.02808 | Z69: =_xll.BDP(AC69 & " Equity",$Z$2) -> -5.180793 | AA69: =_xll.BDP(AC69 & " Equity",$AA$2) -> -18.3711 | AB69: =_xll.BDP(AC69 & " Equity",$AB$2) -> SNDK US | AC69: =_xll.BDP(B69,$AC$2) -> EQ0017093100001000 | AD69: =_xll.BDP(AC69 & " Equity",$AD$2) -> 80.02 | AE69: 88 | AF69: 78 | AG69: =_xll.BDP(B69,$AG$2) -> USD | AH69: =_xll.BDP(B69,$AH$2) -> 1500000000 | AI69: =IFERROR(VLOOKUP(A69,'Fisch Holding'!$A$5:$C$1245,3,FALSE)/AH69,"-") -> 0.01846666667 | AJ69: =IFERROR(VLOOKUP(A69,'BM Weight'!$A$7:$D$1020,3,FALSE),"-") -> 1.449934214 | AK69: =IFERROR(VLOOKUP(A69,'BM Weight'!$A$7:$D$1020,4,FALSE),"- ") -> 0 | AL69: =IFERROR(VLOOKUP(A69,'Implied Rating'!$B$7:$C$1179,2,FALSE),"-") -> A | AM69: =IFERROR(VLOOKUP(A69,'ICV Rating'!$B$5:$E$1306,2,FALSE),"-") -> BB- | AN69: =_xll.BDP(B69,$AN$2) -> NR | AO69: =_xll.BDP(B69,$AO$2) -> #N/A N/A | AP69: =_xll.BDP(B69,$AP$2) -> BB+ | AQ69: =_xll.BDP(B69,$AQ$2) -> N | AR69: =_xll.BDP(B69,$AR$2) -> Optionally | AS69: =_xll.BDP(B69,$AS$2) -> N | AT69: =_xll.BDP(B69,$AT$2) -> #N/A N/A | AU69: =_xll.BDP(B69,$AU$2) -> N | AV69: =_xll.BDP(B69,$AV$2) -> N | AW69: =_xll.BDP(B69,$AW$2) -> US | AX69: =_xll.BDP(AC69 & " Equity",$AX$2) -> Information Technology | AY69: =_xll.BDP(AC69 & " Equity",$AY$2) -> Technology Hardware & Equipmen | AZ69: =_xll.BDP(AC69 & " Equity",$AZ$2) -> Technology Hardware, Storage & | BB69: 0 | BC69: =_xll.BDP(B69,$BC$2) -> 5.684007714 | BD69: =_xll.BDP(B69,$BD$2) -> 2.817370381 | BE69: =_xll.BDP(B69,$BE$2) -> -262.7444469 | BF69: =_xll.BDP(B69,$BF$2) -> -1.005 | BG69: =_xll.BDP(B69,$BG$2) -> -8.332066624 | BH69: =_xll.BDP(B69,$BH$2) -> -9.014466449 | BI69: =_xll.BDP(B69,$BI$2) -> -0.4932900547 | BK69: =_xll.BDP(B69,$BK$2) -> 108.7555 | BL69: =_xll.BDP(B69,$BL$2) -> #N/A Field Not Applicable | BM69: =_xll.BDP(B69,$BM$2) -> 66.57019735 | BN69: =_xll.BDP(B69,$BN$2) -> 0.004793494183 | BO69: =_xll.BDP(B69,$BO$2) -> 25.32931045 | BP69: =_xll.BDP(AC69 & " Equity",$BP$2) -> 1.500375153 | BQ69: =_xll.BDP(AC69 & " Equity",$BQ$2) -> 21.01.2015 | BR69: =_xll.BDP(AC69 & " Equity",$BR$2) -> 39.13873481
A70: US80004CAD39 | B70: =A70 & " Corp" -> US80004CAD39 Corp | C70: SANDISK CORP | D70: =_xll.BDP(B70,$D$2) -> SANDISK CORP | E70: =_xll.BDP(B70,$E$2) -> 1.5 | F70: =_xll.BDP(B70,$F$2) -> 15.08.2017 | G70: =_xll.BDP(B70,$G$2) -> #N/A Field Not Applicable | H70: =_xll.BDP(B70,$H$2) -> #N/A Field Not Applicable | I70: 2014-10-07 | K70: -1 | L70: =ROUND((T70*T$2+U70*U$2+S70*S$2+IF(P70="NR",0,P70^2*SIGN(P70))+M70*M$2)/(L$2-IF(P70="NR",0,P$2)-IF(S70,0,S$2)),0) -> -1 | M70: -1 | N70: 0 | O70: -1 | P70: 0 | Q70: 2014-07-21 | R70: 0 | S70: =VLOOKUP(AX70,[1]Sheet1!$C$8:$D$23,2,FALSE) -> 1 | T70: =MIN(ROUND(ABS(V70/AD70)*200,0),2)*SIGN(V70) -> -2 | U70: =MIN(ROUND(ABS(X70),0),2)*IFERROR(SIGN(X70),0) -> -2 | V70: =_xll.BDP(AC70 & " Equity",$V$3) -> -2.135080576 | W70: =_xll.BDP(AC70 & " Equity",$W$3) -> 40.24994188 | X70: =IFERROR(10*LN((100+Z70)/(100+$Z$1))+2*LN((100+$W$2)/(100+W70)),0) -> -1.731851169 | Y70: =_xll.BDP(AC70 & " Equity",$Y$2) -> -18.02808 | Z70: =_xll.BDP(AC70 & " Equity",$Z$2) -> -5.180793 | AA70: =_xll.BDP(AC70 & " Equity",$AA$2) -> -18.3711 | AB70: =_xll.BDP(AC70 & " Equity",$AB$2) -> SNDK US | AC70: =_xll.BDP(B70,$AC$2) -> EQ0017093100001000 | AD70: =_xll.BDP(AC70 & " Equity",$AD$2) -> 80.02 | AE70: 88 | AF70: 78 | AG70: =_xll.BDP(B70,$AG$2) -> USD | AH70: =_xll.BDP(B70,$AH$2) -> 1000000000 | AI70: =IFERROR(VLOOKUP(A70,'Fisch Holding'!$A$5:$C$1245,3,FALSE)/AH70,"-") -> - | AJ70: =IFERROR(VLOOKUP(A70,'BM Weight'!$A$7:$D$1020,3,FALSE),"-") -> - | AK70: =IFERROR(VLOOKUP(A70,'BM Weight'!$A$7:$D$1020,4,FALSE),"- ") -> - | AL70: =IFERROR(VLOOKUP(A70,'Implied Rating'!$B$7:$C$1179,2,FALSE),"-") -> BB+ | AM70: =IFERROR(VLOOKUP(A70,'ICV Rating'!$B$5:$E$1306,2,FALSE),"-") -> BB- | AN70: =_xll.BDP(B70,$AN$2) -> NR | AO70: =_xll.BDP(B70,$AO$2) -> #N/A N/A | AP70: =_xll.BDP(B70,$AP$2) -> BB+ | AQ70: =_xll.BDP(B70,$AQ$2) -> N | AR70: =_xll.BDP(B70,$AR$2) -> Optionally | AS70: =_xll.BDP(B70,$AS$2) -> N | AT70: =_xll.BDP(B70,$AT$2) -> N | AU70: =_xll.BDP(B70,$AU$2) -> N | AV70: =_xll.BDP(B70,$AV$2) -> N | AW70: =_xll.BDP(B70,$AW$2) -> US | AX70: =_xll.BDP(AC70 & " Equity",$AX$2) -> Information Technology | AY70: =_xll.BDP(AC70 & " Equity",$AY$2) -> Technology Hardware & Equipmen | AZ70: =_xll.BDP(AC70 & " Equity",$AZ$2) -> Technology Hardware, Storage & | BB70: 0 | BC70: =_xll.BDP(B70,$BC$2) -> 2.7557604 | BD70: =_xll.BDP(B70,$BD$2) -> 0.1769317328 | BE70: =_xll.BDP(B70,$BE$2) -> -1757.629924 | BF70: =_xll.BDP(B70,$BF$2) -> -16.634 | BG70: =_xll.BDP(B70,$BG$2) -> -13.28961973 | BH70: =_xll.BDP(B70,$BH$2) -> -15.8056776 | BI70: =_xll.BDP(B70,$BI$2) -> -4.472592792 | BK70: =_xll.BDP(B70,$BK$2) -> 161.1108 | BL70: =_xll.BDP(B70,$BL$2) -> #N/A Field Not Applicable | BM70: =_xll.BDP(B70,$BM$2) -> 95.06126412 | BN70: =_xll.BDP(B70,$BN$2) -> 0.00174363815 | BO70: =_xll.BDP(B70,$BO$2) -> 3.532175114 | BP70: =_xll.BDP(AC70 & " Equity",$BP$2) -> 1.500375153 | BQ70: =_xll.BDP(AC70 & " Equity",$BQ$2) -> 21.01.2015 | BR70: =_xll.BDP(AC70 & " Equity",$BR$2) -> 39.13873481
A71: US81762PAB85 | B71: =A71 & " Corp" -> US81762PAB85 Corp | C71: SERVICENOW INC | D71: =_xll.BDP(B71,$D$2) -> SERVICENOW INC | E71: =_xll.BDP(B71,$E$2) -> 0 | F71: =_xll.BDP(B71,$F$2) -> 01.11.2018 | G71: =_xll.BDP(B71,$G$2) -> #N/A Field Not Applicable | H71: =_xll.BDP(B71,$H$2) -> #N/A Field Not Applicable | I71: 2015-01-08 | K71: 1 | L71: =ROUND((T71*T$2+U71*U$2+S71*S$2+IF(P71="NR",0,P71^2*SIGN(P71))+M71*M$2)/(L$2-IF(P71="NR",0,P$2)-IF(S71,0,S$2)),0) -> 1 | M71: 1 | N71: 0 | O71: 0 | P71: -1 | Q71: 2014-06-19 | R71: -1 | S71: =VLOOKUP(AX71,[1]Sheet1!$C$8:$D$23,2,FALSE) -> 1 | T71: =MIN(ROUND(ABS(V71/AD71)*200,0),2)*SIGN(V71) -> -1 | U71: =MIN(ROUND(ABS(X71),0),2)*IFERROR(SIGN(X71),0) -> 0 | V71: =_xll.BDP(AC71 & " Equity",$V$3) -> -0.2641070485 | W71: =_xll.BDP(AC71 & " Equity",$W$3) -> 36.95054446 | X71: =IFERROR(10*LN((100+Z71)/(100+$Z$1))+2*LN((100+$W$2)/(100+W71)),0) -> 0.2952303175 | Y71: =_xll.BDP(AC71 & " Equity",$Y$2) -> 4.571251 | Z71: =_xll.BDP(AC71 & " Equity",$Z$2) -> 15.57491 | AA71: =_xll.BDP(AC71 & " Equity",$AA$2) -> -2.225495 | AB71: =_xll.BDP(AC71 & " Equity",$AB$2) -> NOW US | AC71: =_xll.BDP(B71,$AC$2) -> EQ0000000008461599 | AD71: =_xll.BDP(AC71 & " Equity",$AD$2) -> 65.43 | AE71: 69 | AF71: 64 | AG71: =_xll.BDP(B71,$AG$2) -> USD | AH71: =_xll.BDP(B71,$AH$2) -> 575000000 | AI71: =IFERROR(VLOOKUP(A71,'Fisch Holding'!$A$5:$C$1245,3,FALSE)/AH71,"-") -> 0.00852173913 | AJ71: =IFERROR(VLOOKUP(A71,'BM Weight'!$A$7:$D$1020,3,FALSE),"-") -> 0.5745586738 | AK71: =IFERROR(VLOOKUP(A71,'BM Weight'!$A$7:$D$1020,4,FALSE),"- ") -> 0 | AL71: =IFERROR(VLOOKUP(A71,'Implied Rating'!$B$7:$C$1179,2,FALSE),"-") -> BB+ | AM71: =IFERROR(VLOOKUP(A71,'ICV Rating'!$B$5:$E$1306,2,FALSE),"-") -> CCC | AN71: =_xll.BDP(B71,$AN$2) -> #N/A N/A | AO71: =_xll.BDP(B71,$AO$2) -> #N/A N/A | AP71: =_xll.BDP(B71,$AP$2) -> #N/A N/A | AQ71: =_xll.BDP(B71,$AQ$2) -> N | AR71: =_xll.BDP(B71,$AR$2) -> Optionally | AS71: =_xll.BDP(B71,$AS$2) -> N | AT71: =_xll.BDP(B71,$AT$2) -> #N/A N/A | AU71: =_xll.BDP(B71,$AU$2) -> N | AV71: =_xll.BDP(B71,$AV$2) -> N | AW71: =_xll.BDP(B71,$AW$2) -> US | AX71: =_xll.BDP(AC71 & " Equity",$AX$2) -> Information Technology | AY71: =_xll.BDP(AC71 & " Equity",$AY$2) -> Software & Services | AZ71: =_xll.BDP(AC71 & " Equity",$AZ$2) -> Software | BB71: 0 | BC71: =_xll.BDP(B71,$BC$2) -> 3.837748982 | BD71: =_xll.BDP(B71,$BD$2) -> 1.735737581 | BE71: =_xll.BDP(B71,$BE$2) -> -447.7191046 | BF71: =_xll.BDP(B71,$BF$2) -> -3.203 | BG71: =_xll.BDP(B71,$BG$2) -> -0.7073524452 | BH71: =_xll.BDP(B71,$BH$2) -> 2.536785058 | BI71: =_xll.BDP(B71,$BI$2) -> 8.040541689 | BK71: =_xll.BDP(B71,$BK$2) -> 112.6374 | BL71: =_xll.BDP(B71,$BL$2) -> #N/A Field Not Applicable | BM71: =_xll.BDP(B71,$BM$2) -> 70.45453269 | BN71: =_xll.BDP(B71,$BN$2) -> 0.004181306672 | BO71: =_xll.BDP(B71,$BO$2) -> 25.8098527 | BP71: =_xll.BDP(AC71 & " Equity",$BP$2) -> #N/A N/A | BQ71: =_xll.BDP(AC71 & " Equity",$BQ$2) -> 28.01.2015 | BR71: =_xll.BDP(AC71 & " Equity",$BR$2) -> 38.80907823
A72: US81763UAB61 | B72: =A72 & " Corp" -> US81763UAB61 Corp | C72: SERVICESOURCE INTL INC | D72: =_xll.BDP(B72,$D$2) -> SERVICESOURCE INTL INC | E72: =_xll.BDP(B72,$E$2) -> 1.5 | F72: =_xll.BDP(B72,$F$2) -> 01.08.2018 | G72: =_xll.BDP(B72,$G$2) -> #N/A Field Not Applicable | H72: =_xll.BDP(B72,$H$2) -> #N/A Field Not Applicable | I72: 2013-11-05 | J72: NE 8.13 - 150 Mio; Cloud | K72: -1 | L72: =ROUND((T72*T$2+U72*U$2+S72*S$2+IF(P72="NR",0,P72^2*SIGN(P72))+M72*M$2)/(L$2-IF(P72="NR",0,P$2)-IF(S72,0,S$2)),0) -> 0 | M72: -1 | N72: -1 | O72: -1 | P72: NR | Q72: 2013-11-05 | R72: -1 | S72: =VLOOKUP(AX72,[1]Sheet1!$C$8:$D$23,2,FALSE) -> 1 | T72: =MIN(ROUND(ABS(V72/AD72)*200,0),2)*SIGN(V72) -> -2 | U72: =MIN(ROUND(ABS(X72),0),2)*IFERROR(SIGN(X72),0) -> 1 | V72: =_xll.BDP(AC72 & " Equity",$V$3) -> -0.04925747216 | W72: =_xll.BDP(AC72 & " Equity",$W$3) -> 64.86399691 | X72: =IFERROR(10*LN((100+Z72)/(100+$Z$1))+2*LN((100+$W$2)/(100+W72)),0) -> 1.067496812 | Y72: =_xll.BDP(AC72 & " Equity",$Y$2) -> 8.142492 | Z72: =_xll.BDP(AC72 & " Equity",$Z$2) -> 29.57317 | AA72: =_xll.BDP(AC72 & " Equity",$AA$2) -> -9.188031 | AB72: =_xll.BDP(AC72 & " Equity",$AB$2) -> SREV US | AC72: =_xll.BDP(B72,$AC$2) -> EQ0000000015600300 | AD72: =_xll.BDP(AC72 & " Equity",$AD$2) -> 4.25 | AE72: 4.5 | AF72: 3 | AG72: =_xll.BDP(B72,$AG$2) -> USD | AH72: =_xll.BDP(B72,$AH$2) -> 150000000 | AI72: =IFERROR(VLOOKUP(A72,'Fisch Holding'!$A$5:$C$1245,3,FALSE)/AH72,"-") -> - | AJ72: =IFERROR(VLOOKUP(A72,'BM Weight'!$A$7:$D$1020,3,FALSE),"-") -> - | AK72: =IFERROR(VLOOKUP(A72,'BM Weight'!$A$7:$D$1020,4,FALSE),"- ") -> - | AL72: =IFERROR(VLOOKUP(A72,'Implied Rating'!$B$7:$C$1179,2,FALSE),"-") -> B | AM72: =IFERROR(VLOOKUP(A72,'ICV Rating'!$B$5:$E$1306,2,FALSE),"-") -> 0 | AN72: =_xll.BDP(B72,$AN$2) -> #N/A N/A | AO72: =_xll.BDP(B72,$AO$2) -> #N/A N/A | AP72: =_xll.BDP(B72,$AP$2) -> #N/A N/A | AQ72: =_xll.BDP(B72,$AQ$2) -> N | AR72: =_xll.BDP(B72,$AR$2) -> Optionally | AS72: =_xll.BDP(B72,$AS$2) -> N | AT72: =_xll.BDP(B72,$AT$2) -> #N/A N/A | AU72: =_xll.BDP(B72,$AU$2) -> N | AV72: =_xll.BDP(B72,$AV$2) -> N | AW72: =_xll.BDP(B72,$AW$2) -> US | AX72: =_xll.BDP(AC72 & " Equity",$AX$2) -> Information Technology | AY72: =_xll.BDP(AC72 & " Equity",$AY$2) -> Software & Services | AZ72: =_xll.BDP(AC72 & " Equity",$AZ$2) -> IT Services | BB72: 0 | BC72: =_xll.BDP(B72,$BC$2) -> 3.239427212 | BD72: =_xll.BDP(B72,$BD$2) -> 2.217160498 | BE72: =_xll.BDP(B72,$BE$2) -> 855.9568666 | BF72: =_xll.BDP(B72,$BF$2) -> 9.763 | BG72: =_xll.BDP(B72,$BG$2) -> 0.0891937913 | BH72: =_xll.BDP(B72,$BH$2) -> -1.496283503 | BI72: =_xll.BDP(B72,$BI$2) -> 1.624124855 | BK72: =_xll.BDP(B72,$BK$2) -> 75.12939 | BL72: =_xll.BDP(B72,$BL$2) -> #N/A Field Not Applicable | BM72: =_xll.BDP(B72,$BM$2) -> 97.94762729 | BN72: =_xll.BDP(B72,$BN$2) -> 0.0001221561135 | BO72: =_xll.BDP(B72,$BO$2) -> 189.283163 | BP72: =_xll.BDP(AC72 & " Equity",$BP$2) -> #N/A N/A | BQ72: =_xll.BDP(AC72 & " Equity",$BQ$2) -> 06.02.2015 | BR72: =_xll.BDP(AC72 & " Equity",$BR$2) -> 64.04557819
A73: US84649PAL94 | B73: =A73 & " Corp" -> US84649PAL94 Corp | C73: SPANSION LLC | D73: =_xll.BDP(B73,$D$2) -> SPANSION LLC | E73: =_xll.BDP(B73,$E$2) -> 2 | F73: =_xll.BDP(B73,$F$2) -> 01.09.2020 | G73: =_xll.BDP(B73,$G$2) -> #N/A Field Not Applicable | H73: =_xll.BDP(B73,$H$2) -> #N/A Field Not Applicable | I73: 2014-12-04 | J73: NE 8.13 ; Flash Memories | K73: 0 | L73: =ROUND((T73*T$2+U73*U$2+S73*S$2+IF(P73="NR",0,P73^2*SIGN(P73))+M73*M$2)/(L$2-IF(P73="NR",0,P$2)-IF(S73,0,S$2)),0) -> 0 | M73: -1 | N73: -1 | O73: -1 | P73: NR | Q73: 2014-06-03 | R73: -1 | S73: =VLOOKUP(AX73,[1]Sheet1!$C$8:$D$23,2,FALSE) -> 1 | T73: =MIN(ROUND(ABS(V73/AD73)*200,0),2)*SIGN(V73) -> -2 | U73: =MIN(ROUND(ABS(X73),0),2)*IFERROR(SIGN(X73),0) -> 2 | V73: =_xll.BDP(AC73 & " Equity",$V$3) -> -0.3983225822 | W73: =_xll.BDP(AC73 & " Equity",$W$3) -> 70.82986589 | X73: =IFERROR(10*LN((100+Z73)/(100+$Z$1))+2*LN((100+$W$2)/(100+W73)),0) -> 5.770246663 | Y73: =_xll.BDP(AC73 & " Equity",$Y$2) -> 4.6875 | Z73: =_xll.BDP(AC73 & " Equity",$Z$2) -> 108.8529 | AA73: =_xll.BDP(AC73 & " Equity",$AA$2) -> -2.104036 | AB73: =_xll.BDP(AC73 & " Equity",$AB$2) -> CODE US | AC73: =_xll.BDP(B73,$AC$2) -> EQ0000000010287264 | AD73: =_xll.BDP(AC73 & " Equity",$AD$2) -> 33.59 | AE73: 36 | AF73: 33 | AG73: =_xll.BDP(B73,$AG$2) -> USD | AH73: =_xll.BDP(B73,$AH$2) -> 150000000 | AI73: =IFERROR(VLOOKUP(A73,'Fisch Holding'!$A$5:$C$1245,3,FALSE)/AH73,"-") -> - | AJ73: =IFERROR(VLOOKUP(A73,'BM Weight'!$A$7:$D$1020,3,FALSE),"-") -> - | AK73: =IFERROR(VLOOKUP(A73,'BM Weight'!$A$7:$D$1020,4,FALSE),"- ") -> - | AL73: =IFERROR(VLOOKUP(A73,'Implied Rating'!$B$7:$C$1179,2,FALSE),"-") -> B- | AM73: =IFERROR(VLOOKUP(A73,'ICV Rating'!$B$5:$E$1306,2,FALSE),"-") -> 0 | AN73: =_xll.BDP(B73,$AN$2) -> #N/A N/A | AO73: =_xll.BDP(B73,$AO$2) -> B1 | AP73: =_xll.BDP(B73,$AP$2) -> #N/A N/A | AQ73: =_xll.BDP(B73,$AQ$2) -> N | AR73: =_xll.BDP(B73,$AR$2) -> Optionally | AS73: =_xll.BDP(B73,$AS$2) -> N | AT73: =_xll.BDP(B73,$AT$2) -> #N/A N/A | AU73: =_xll.BDP(B73,$AU$2) -> N | AV73: =_xll.BDP(B73,$AV$2) -> N | AW73: =_xll.BDP(B73,$AW$2) -> US | AX73: =_xll.BDP(AC73 & " Equity",$AX$2) -> Information Technology | AY73: =_xll.BDP(AC73 & " Equity",$AY$2) -> Semiconductors & Semiconductor | AZ73: =_xll.BDP(AC73 & " Equity",$AZ$2) -> Semiconductors & Semiconductor | BB73: 0 | BC73: =_xll.BDP(B73,$BC$2) -> 5.83924678 | BD73: =_xll.BDP(B73,$BD$2) -> -0.007294020309 | BE73: =_xll.BDP(B73,$BE$2) -> -1555.262075 | BF73: =_xll.BDP(B73,$BF$2) -> -13.956 | BG73: =_xll.BDP(B73,$BG$2) -> 0.03521162298 | BH73: =_xll.BDP(B73,$BH$2) -> 2.206053181 | BI73: =_xll.BDP(B73,$BI$2) -> 84.36461543 | BK73: =_xll.BDP(B73,$BK$2) -> 242.773 | BL73: =_xll.BDP(B73,$BL$2) -> #N/A Field Not Applicable | BM73: =_xll.BDP(B73,$BM$2) -> 100 | BN73: =_xll.BDP(B73,$BN$2) -> -5.665282057e-16 | BO73: =_xll.BDP(B73,$BO$2) -> 0.6723435183 | BP73: =_xll.BDP(AC73 & " Equity",$BP$2) -> #N/A N/A | BQ73: =_xll.BDP(AC73 & " Equity",$BQ$2) -> 04.02.2015 | BR73: =_xll.BDP(AC73 & " Equity",$BR$2) -> 70.47291576 | BT73: 2014-02-10
A74: US86732YAB56 | B74: =A74 & " Corp" -> US86732YAB56 Corp | C74: SUNEDISON INC | D74: =_xll.BDP(B74,$D$2) -> SUNEDISON INC | E74: =_xll.BDP(B74,$E$2) -> 2.75 | F74: =_xll.BDP(B74,$F$2) -> 01.01.2021 | G74: =_xll.BDP(B74,$G$2) -> #N/A Field Not Applicable | H74: =_xll.BDP(B74,$H$2) -> #N/A Field Not Applicable | I74: 2014-10-07 | J74: NE Dez. 13; USD 600 Mio, B; Solar + Semic. | K74: 0 | L74: =ROUND((T74*T$2+U74*U$2+S74*S$2+IF(P74="NR",0,P74^2*SIGN(P74))+M74*M$2)/(L$2-IF(P74="NR",0,P$2)-IF(S74,0,S$2)),0) -> 0 | M74: -1 | N74: -1 | O74: -2 | P74: -1 | Q74: 2014-06-19 | R74: -1 | S74: =VLOOKUP(AX74,[1]Sheet1!$C$8:$D$23,2,FALSE) -> 1 | T74: =MIN(ROUND(ABS(V74/AD74)*200,0),2)*SIGN(V74) -> 2 | U74: =MIN(ROUND(ABS(X74),0),2)*IFERROR(SIGN(X74),0) -> 2 | V74: =_xll.BDP(AC74 & " Equity",$V$3) -> 0.1997802556 | W74: =_xll.BDP(AC74 & " Equity",$W$3) -> 71.66097953 | X74: =IFERROR(10*LN((100+Z74)/(100+$Z$1))+2*LN((100+$W$2)/(100+W74)),0) -> 1.635078564 | Y74: =_xll.BDP(AC74 & " Equity",$Y$2) -> 16.05556 | Z74: =_xll.BDP(AC74 & " Equity",$Z$2) -> 38.25282 | AA74: =_xll.BDP(AC74 & " Equity",$AA$2) -> 7.073294 | AB74: =_xll.BDP(AC74 & " Equity",$AB$2) -> SUNE US | AC74: =_xll.BDP(B74,$AC$2) -> EQ0017059400001000 | AD74: =_xll.BDP(AC74 & " Equity",$AD$2) -> 20.295 | AE74: 21 | AF74: 19 | AG74: =_xll.BDP(B74,$AG$2) -> USD | AH74: =_xll.BDP(B74,$AH$2) -> 600000000 | AI74: =IFERROR(VLOOKUP(A74,'Fisch Holding'!$A$5:$C$1245,3,FALSE)/AH74,"-") -> - | AJ74: =IFERROR(VLOOKUP(A74,'BM Weight'!$A$7:$D$1020,3,FALSE),"-") -> - | AK74: =IFERROR(VLOOKUP(A74,'BM Weight'!$A$7:$D$1020,4,FALSE),"- ") -> - | AL74: =IFERROR(VLOOKUP(A74,'Implied Rating'!$B$7:$C$1179,2,FALSE),"-") -> BB- | AM74: =IFERROR(VLOOKUP(A74,'ICV Rating'!$B$5:$E$1306,2,FALSE),"-") -> CCC | AN74: =_xll.BDP(B74,$AN$2) -> #N/A N/A | AO74: =_xll.BDP(B74,$AO$2) -> #N/A N/A | AP74: =_xll.BDP(B74,$AP$2) -> NR | AQ74: =_xll.BDP(B74,$AQ$2) -> N | AR74: =_xll.BDP(B74,$AR$2) -> Optionally | AS74: =_xll.BDP(B74,$AS$2) -> N | AT74: =_xll.BDP(B74,$AT$2) -> #N/A N/A | AU74: =_xll.BDP(B74,$AU$2) -> N | AV74: =_xll.BDP(B74,$AV$2) -> N | AW74: =_xll.BDP(B74,$AW$2) -> US | AX74: =_xll.BDP(AC74 & " Equity",$AX$2) -> Information Technology | AY74: =_xll.BDP(AC74 & " Equity",$AY$2) -> Semiconductors & Semiconductor | AZ74: =_xll.BDP(AC74 & " Equity",$AZ$2) -> Semiconductors & Semiconductor | BB74: 0 | BC74: =_xll.BDP(B74,$BC$2) -> 5.777846302 | BD74: =_xll.BDP(B74,$BD$2) -> 0.6349589714 | BE74: =_xll.BDP(B74,$BE$2) -> -705.4385484 | BF74: =_xll.BDP(B74,$BF$2) -> -5.42 | BG74: =_xll.BDP(B74,$BG$2) -> 11.50808542 | BH74: =_xll.BDP(B74,$BH$2) -> 11.34074042 | BI74: =_xll.BDP(B74,$BI$2) -> 26.98365899 | BK74: =_xll.BDP(B74,$BK$2) -> 158.1029 | BL74: =_xll.BDP(B74,$BL$2) -> #N/A Field Not Applicable | BM74: =_xll.BDP(B74,$BM$2) -> 95.20279923 | BN74: =_xll.BDP(B74,$BN$2) -> 0.0008219965088 | BO74: =_xll.BDP(B74,$BO$2) -> 10.77043082 | BP74: =_xll.BDP(AC74 & " Equity",$BP$2) -> #N/A N/A | BQ74: =_xll.BDP(AC74 & " Equity",$BQ$2) -> 19.02.2015 | BR74: =_xll.BDP(AC74 & " Equity",$BR$2) -> 70.6942031 | BT74: 2014-02-24
A75: US86732YAE95 | B75: =A75 & " Corp" -> US86732YAE95 Corp | C75: SUNEDISON INC | D75: =_xll.BDP(B75,$D$2) -> SUNEDISON INC | E75: =_xll.BDP(B75,$E$2) -> 0.25 | F75: =_xll.BDP(B75,$F$2) -> 15.01.2020 | G75: =_xll.BDP(B75,$G$2) -> #N/A Field Not Applicable | H75: =_xll.BDP(B75,$H$2) -> #N/A Field Not Applicable | I75: 2015-01-15 | J75: NE Dez. 13; USD 600 Mio, B; Solar + Semic. | K75: 0 | L75: =ROUND((T75*T$2+U75*U$2+S75*S$2+IF(P75="NR",0,P75^2*SIGN(P75))+M75*M$2)/(L$2-IF(P75="NR",0,P$2)-IF(S75,0,S$2)),0) -> 1 | M75: 1 | N75: -1 | O75: -1 | P75: -1 | Q75: 2014-08-05 | R75: -1 | S75: =VLOOKUP(AX75,[1]Sheet1!$C$8:$D$23,2,FALSE) -> 1 | T75: =MIN(ROUND(ABS(V75/AD75)*200,0),2)*SIGN(V75) -> 2 | U75: =MIN(ROUND(ABS(X75),0),2)*IFERROR(SIGN(X75),0) -> 2 | V75: =_xll.BDP(AC75 & " Equity",$V$3) -> 0.1997802556 | W75: =_xll.BDP(AC75 & " Equity",$W$3) -> 71.66097953 | X75: =IFERROR(10*LN((100+Z75)/(100+$Z$1))+2*LN((100+$W$2)/(100+W75)),0) -> 1.635078564 | Y75: =_xll.BDP(AC75 & " Equity",$Y$2) -> 16.05556 | Z75: =_xll.BDP(AC75 & " Equity",$Z$2) -> 38.25282 | AA75: =_xll.BDP(AC75 & " Equity",$AA$2) -> 7.073294 | AB75: =_xll.BDP(AC75 & " Equity",$AB$2) -> SUNE US | AC75: =_xll.BDP(B75,$AC$2) -> EQ0017059400001000 | AD75: =_xll.BDP(AC75 & " Equity",$AD$2) -> 20.295 | AE75: 21 | AF75: 19 | AG75: =_xll.BDP(B75,$AG$2) -> USD | AH75: =_xll.BDP(B75,$AH$2) -> 600000000 | AI75: =IFERROR(VLOOKUP(A75,'Fisch Holding'!$A$5:$C$1245,3,FALSE)/AH75,"-") -> 0.015 | AJ75: =IFERROR(VLOOKUP(A75,'BM Weight'!$A$7:$D$1020,3,FALSE),"-") -> 0.5396385487 | AK75: =IFERROR(VLOOKUP(A75,'BM Weight'!$A$7:$D$1020,4,FALSE),"- ") -> 0 | AL75: =IFERROR(VLOOKUP(A75,'Implied Rating'!$B$7:$C$1179,2,FALSE),"-") -> B | AM75: =IFERROR(VLOOKUP(A75,'ICV Rating'!$B$5:$E$1306,2,FALSE),"-") -> CCC | AN75: =_xll.BDP(B75,$AN$2) -> #N/A N/A | AO75: =_xll.BDP(B75,$AO$2) -> #N/A N/A | AP75: =_xll.BDP(B75,$AP$2) -> NR | AQ75: =_xll.BDP(B75,$AQ$2) -> N | AR75: =_xll.BDP(B75,$AR$2) -> Optionally | AS75: =_xll.BDP(B75,$AS$2) -> N | AT75: =_xll.BDP(B75,$AT$2) -> N | AU75: =_xll.BDP(B75,$AU$2) -> N | AV75: =_xll.BDP(B75,$AV$2) -> N | AW75: =_xll.BDP(B75,$AW$2) -> US | AX75: =_xll.BDP(AC75 & " Equity",$AX$2) -> Information Technology | AY75: =_xll.BDP(AC75 & " Equity",$AY$2) -> Semiconductors & Semiconductor | AZ75: =_xll.BDP(AC75 & " Equity",$AZ$2) -> Semiconductors & Semiconductor | BB75: 0 | BC75: =_xll.BDP(B75,$BC$2) -> 4.951583353 | BD75: =_xll.BDP(B75,$BD$2) -> 2.003310869 | BE75: =_xll.BDP(B75,$BE$2) -> -139.59459 | BF75: =_xll.BDP(B75,$BF$2) -> 0.116 | BG75: =_xll.BDP(B75,$BG$2) -> 7.013684266 | BH75: =_xll.BDP(B75,$BH$2) -> 6.350229602 | BI75: =_xll.BDP(B75,$BI$2) -> 16.6916373 | BK75: =_xll.BDP(B75,$BK$2) -> 100.4714 | BL75: =_xll.BDP(B75,$BL$2) -> #N/A Field Not Applicable | BM75: =_xll.BDP(B75,$BM$2) -> 75.97195547 | BN75: =_xll.BDP(B75,$BN$2) -> 0.003284465752 | BO75: =_xll.BDP(B75,$BO$2) -> 29.49032587 | BP75: =_xll.BDP(AC75 & " Equity",$BP$2) -> #N/A N/A | BQ75: =_xll.BDP(AC75 & " Equity",$BQ$2) -> 19.02.2015 | BR75: =_xll.BDP(AC75 & " Equity",$BR$2) -> 70.6942031 | BT75: 2014-02-24
A76: US86732YAA73 | B76: =A76 & " Corp" -> US86732YAA73 Corp | C76: SUNEDISON INC | D76: =_xll.BDP(B76,$D$2) -> SUNEDISON INC | E76: =_xll.BDP(B76,$E$2) -> 2 | F76: =_xll.BDP(B76,$F$2) -> 01.10.2018 | G76: =_xll.BDP(B76,$G$2) -> #N/A Field Not Applicable | H76: =_xll.BDP(B76,$H$2) -> #N/A Field Not Applicable | I76: 2014-10-07 | J76: NE Dez. 13; USD 600 Mio, B; Solar + Semic. | K76: 0 | L76: =ROUND((T76*T$2+U76*U$2+S76*S$2+IF(P76="NR",0,P76^2*SIGN(P76))+M76*M$2)/(L$2-IF(P76="NR",0,P$2)-IF(S76,0,S$2)),0) -> 0 | M76: -1 | N76: -1 | O76: -1 | P76: -1 | Q76: 2014-06-19 | R76: -1 | S76: =VLOOKUP(AX76,[1]Sheet1!$C$8:$D$23,2,FALSE) -> 1 | T76: =MIN(ROUND(ABS(V76/AD76)*200,0),2)*SIGN(V76) -> 2 | U76: =MIN(ROUND(ABS(X76),0),2)*IFERROR(SIGN(X76),0) -> 2 | V76: =_xll.BDP(AC76 & " Equity",$V$3) -> 0.1997802556 | W76: =_xll.BDP(AC76 & " Equity",$W$3) -> 71.66097953 | X76: =IFERROR(10*LN((100+Z76)/(100+$Z$1))+2*LN((100+$W$2)/(100+W76)),0) -> 1.635078564 | Y76: =_xll.BDP(AC76 & " Equity",$Y$2) -> 16.05556 | Z76: =_xll.BDP(AC76 & " Equity",$Z$2) -> 38.25282 | AA76: =_xll.BDP(AC76 & " Equity",$AA$2) -> 7.073294 | AB76: =_xll.BDP(AC76 & " Equity",$AB$2) -> SUNE US | AC76: =_xll.BDP(B76,$AC$2) -> EQ0017059400001000 | AD76: =_xll.BDP(AC76 & " Equity",$AD$2) -> 20.295 | AE76: 21 | AF76: 19 | AG76: =_xll.BDP(B76,$AG$2) -> USD | AH76: =_xll.BDP(B76,$AH$2) -> 600000000 | AI76: =IFERROR(VLOOKUP(A76,'Fisch Holding'!$A$5:$C$1245,3,FALSE)/AH76,"-") -> - | AJ76: =IFERROR(VLOOKUP(A76,'BM Weight'!$A$7:$D$1020,3,FALSE),"-") -> - | AK76: =IFERROR(VLOOKUP(A76,'BM Weight'!$A$7:$D$1020,4,FALSE),"- ") -> - | AL76: =IFERROR(VLOOKUP(A76,'Implied Rating'!$B$7:$C$1179,2,FALSE),"-") -> BB | AM76: =IFERROR(VLOOKUP(A76,'ICV Rating'!$B$5:$E$1306,2,FALSE),"-") -> CCC | AN76: =_xll.BDP(B76,$AN$2) -> #N/A N/A | AO76: =_xll.BDP(B76,$AO$2) -> #N/A N/A | AP76: =_xll.BDP(B76,$AP$2) -> NR | AQ76: =_xll.BDP(B76,$AQ$2) -> N | AR76: =_xll.BDP(B76,$AR$2) -> Optionally | AS76: =_xll.BDP(B76,$AS$2) -> N | AT76: =_xll.BDP(B76,$AT$2) -> #N/A N/A | AU76: =_xll.BDP(B76,$AU$2) -> N | AV76: =_xll.BDP(B76,$AV$2) -> N | AW76: =_xll.BDP(B76,$AW$2) -> US | AX76: =_xll.BDP(AC76 & " Equity",$AX$2) -> Information Technology | AY76: =_xll.BDP(AC76 & " Equity",$AY$2) -> Semiconductors & Semiconductor | AZ76: =_xll.BDP(AC76 & " Equity",$AZ$2) -> Semiconductors & Semiconductor | BB76: 0 | BC76: =_xll.BDP(B76,$BC$2) -> 3.779725323 | BD76: =_xll.BDP(B76,$BD$2) -> 0.4819297186 | BE76: =_xll.BDP(B76,$BE$2) -> -1123.032414 | BF76: =_xll.BDP(B76,$BF$2) -> -9.987 | BG76: =_xll.BDP(B76,$BG$2) -> 11.25981123 | BH76: =_xll.BDP(B76,$BH$2) -> 10.80810132 | BI76: =_xll.BDP(B76,$BI$2) -> 25.58854232 | BK76: =_xll.BDP(B76,$BK$2) -> 154.8096 | BL76: =_xll.BDP(B76,$BL$2) -> #N/A Field Not Applicable | BM76: =_xll.BDP(B76,$BM$2) -> 92.74084946 | BN76: =_xll.BDP(B76,$BN$2) -> 0.001368589648 | BO76: =_xll.BDP(B76,$BO$2) -> 8.668851894 | BP76: =_xll.BDP(AC76 & " Equity",$BP$2) -> #N/A N/A | BQ76: =_xll.BDP(AC76 & " Equity",$BQ$2) -> 19.02.2015 | BR76: =_xll.BDP(AC76 & " Equity",$BR$2) -> 70.6942031 | BT76: 2014-02-24
A77: US867652AG47 | B77: =A77 & " Corp" -> US867652AG47 Corp | C77: SUNPOWER CORP | D77: =_xll.BDP(B77,$D$2) -> SUNPOWER CORP | E77: =_xll.BDP(B77,$E$2) -> 0.75 | F77: =_xll.BDP(B77,$F$2) -> 01.06.2018 | G77: =_xll.BDP(B77,$G$2) -> #N/A Field Not Applicable | H77: =_xll.BDP(B77,$H$2) -> #N/A Field Not Applicable | I77: 2014-10-07 | J77: NE Mai 13 - 200 von 300 Mio fest platziert | K77: 0 | L77: =ROUND((T77*T$2+U77*U$2+S77*S$2+IF(P77="NR",0,P77^2*SIGN(P77))+M77*M$2)/(L$2-IF(P77="NR",0,P$2)-IF(S77,0,S$2)),0) -> -1 | M77: -1 | N77: -1 | O77: -1 | P77: 1 | Q77: 2014-06-19 | R77: -1 | S77: =VLOOKUP(AX77,[1]Sheet1!$C$8:$D$23,2,FALSE) -> 1 | T77: =MIN(ROUND(ABS(V77/AD77)*200,0),2)*SIGN(V77) -> 2 | U77: =MIN(ROUND(ABS(X77),0),2)*IFERROR(SIGN(X77),0) -> -2 | V77: =_xll.BDP(AC77 & " Equity",$V$3) -> 0.2982546687 | W77: =_xll.BDP(AC77 & " Equity",$W$3) -> 48.07313806 | X77: =IFERROR(10*LN((100+Z77)/(100+$Z$1))+2*LN((100+$W$2)/(100+W77)),0) -> -1.856834271 | Y77: =_xll.BDP(AC77 & " Equity",$Y$2) -> 15.5417 | Z77: =_xll.BDP(AC77 & " Equity",$Z$2) -> -5.336384 | AA77: =_xll.BDP(AC77 & " Equity",$AA$2) -> 4.045684 | AB77: =_xll.BDP(AC77 & " Equity",$AB$2) -> SPWR US | AC77: =_xll.BDP(B77,$AC$2) -> EQ0000000001457310 | AD77: =_xll.BDP(AC77 & " Equity",$AD$2) -> 26.22 | AE77: 27 | AF77: 24 | AG77: =_xll.BDP(B77,$AG$2) -> USD | AH77: =_xll.BDP(B77,$AH$2) -> 300000000 | AI77: =IFERROR(VLOOKUP(A77,'Fisch Holding'!$A$5:$C$1245,3,FALSE)/AH77,"-") -> - | AJ77: =IFERROR(VLOOKUP(A77,'BM Weight'!$A$7:$D$1020,3,FALSE),"-") -> - | AK77: =IFERROR(VLOOKUP(A77,'BM Weight'!$A$7:$D$1020,4,FALSE),"- ") -> - | AL77: =IFERROR(VLOOKUP(A77,'Implied Rating'!$B$7:$C$1179,2,FALSE),"-") -> BB | AM77: =IFERROR(VLOOKUP(A77,'ICV Rating'!$B$5:$E$1306,2,FALSE),"-") -> BBB- | AN77: =_xll.BDP(B77,$AN$2) -> #N/A N/A | AO77: =_xll.BDP(B77,$AO$2) -> #N/A N/A | AP77: =_xll.BDP(B77,$AP$2) -> #N/A N/A | AQ77: =_xll.BDP(B77,$AQ$2) -> N | AR77: =_xll.BDP(B77,$AR$2) -> Optionally | AS77: =_xll.BDP(B77,$AS$2) -> N | AT77: =_xll.BDP(B77,$AT$2) -> N | AU77: =_xll.BDP(B77,$AU$2) -> N | AV77: =_xll.BDP(B77,$AV$2) -> N | AW77: =_xll.BDP(B77,$AW$2) -> FR | AX77: =_xll.BDP(AC77 & " Equity",$AX$2) -> Information Technology | AY77: =_xll.BDP(AC77 & " Equity",$AY$2) -> Semiconductors & Semiconductor | AZ77: =_xll.BDP(AC77 & " Equity",$AZ$2) -> Semiconductors & Semiconductor | BB77: 0 | BC77: =_xll.BDP(B77,$BC$2) -> 3.431958395 | BD77: =_xll.BDP(B77,$BD$2) -> 1.000181342 | BE77: =_xll.BDP(B77,$BE$2) -> -727.8792159 | BF77: =_xll.BDP(B77,$BF$2) -> -6.108 | BG77: =_xll.BDP(B77,$BG$2) -> 7.657416088 | BH77: =_xll.BDP(B77,$BH$2) -> 9.187086749 | BI77: =_xll.BDP(B77,$BI$2) -> -3.322700774 | BK77: =_xll.BDP(B77,$BK$2) -> 125.9553 | BL77: =_xll.BDP(B77,$BL$2) -> #N/A Field Not Applicable | BM77: =_xll.BDP(B77,$BM$2) -> 81.44965062 | BN77: =_xll.BDP(B77,$BN$2) -> 0.002973142049 | BO77: =_xll.BDP(B77,$BO$2) -> 16.98433637 | BP77: =_xll.BDP(AC77 & " Equity",$BP$2) -> #N/A N/A | BQ77: =_xll.BDP(AC77 & " Equity",$BQ$2) -> 12.02.2015 | BR77: =_xll.BDP(AC77 & " Equity",$BR$2) -> 48.82690428
A78: US867652AE98 | B78: =A78 & " Corp" -> US867652AE98 Corp | C78: SUNPOWER CORP | D78: =_xll.BDP(B78,$D$2) -> SUNPOWER CORP | E78: =_xll.BDP(B78,$E$2) -> 4.5 | F78: =_xll.BDP(B78,$F$2) -> 15.03.2015 | G78: =_xll.BDP(B78,$G$2) -> #N/A Field Not Applicable | H78: =_xll.BDP(B78,$H$2) -> #N/A Field Not Applicable | I78: 2014-06-19 | J78: USD 250 Mio; I-CV Sept. 13; BBB- | K78: 0 | L78: =ROUND((T78*T$2+U78*U$2+S78*S$2+IF(P78="NR",0,P78^2*SIGN(P78))+M78*M$2)/(L$2-IF(P78="NR",0,P$2)-IF(S78,0,S$2)),0) -> -1 | M78: -1 | N78: -1 | O78: -1 | P78: 1 | Q78: 2014-06-19 | R78: -1 | S78: =VLOOKUP(AX78,[1]Sheet1!$C$8:$D$23,2,FALSE) -> 1 | T78: =MIN(ROUND(ABS(V78/AD78)*200,0),2)*SIGN(V78) -> 2 | U78: =MIN(ROUND(ABS(X78),0),2)*IFERROR(SIGN(X78),0) -> -2 | V78: =_xll.BDP(AC78 & " Equity",$V$3) -> 0.2982546687 | W78: =_xll.BDP(AC78 & " Equity",$W$3) -> 48.07313806 | X78: =IFERROR(10*LN((100+Z78)/(100+$Z$1))+2*LN((100+$W$2)/(100+W78)),0) -> -1.856834271 | Y78: =_xll.BDP(AC78 & " Equity",$Y$2) -> 15.5417 | Z78: =_xll.BDP(AC78 & " Equity",$Z$2) -> -5.336384 | AA78: =_xll.BDP(AC78 & " Equity",$AA$2) -> 4.045684 | AB78: =_xll.BDP(AC78 & " Equity",$AB$2) -> SPWR US | AC78: =_xll.BDP(B78,$AC$2) -> EQ0000000001457310 | AD78: =_xll.BDP(AC78 & " Equity",$AD$2) -> 26.22 | AE78: 27 | AF78: 24 | AG78: =_xll.BDP(B78,$AG$2) -> USD | AH78: =_xll.BDP(B78,$AH$2) -> 250000000 | AI78: =IFERROR(VLOOKUP(A78,'Fisch Holding'!$A$5:$C$1245,3,FALSE)/AH78,"-") -> - | AJ78: =IFERROR(VLOOKUP(A78,'BM Weight'!$A$7:$D$1020,3,FALSE),"-") -> - | AK78: =IFERROR(VLOOKUP(A78,'BM Weight'!$A$7:$D$1020,4,FALSE),"- ") -> - | AL78: =IFERROR(VLOOKUP(A78,'Implied Rating'!$B$7:$C$1179,2,FALSE),"-") -> - | AM78: =IFERROR(VLOOKUP(A78,'ICV Rating'!$B$5:$E$1306,2,FALSE),"-") -> - | AN78: =_xll.BDP(B78,$AN$2) -> #N/A N/A | AO78: =_xll.BDP(B78,$AO$2) -> #N/A N/A | AP78: =_xll.BDP(B78,$AP$2) -> #N/A N/A | AQ78: =_xll.BDP(B78,$AQ$2) -> N | AR78: =_xll.BDP(B78,$AR$2) -> Optionally | AS78: =_xll.BDP(B78,$AS$2) -> N | AT78: =_xll.BDP(B78,$AT$2) -> Y | AU78: =_xll.BDP(B78,$AU$2) -> N | AV78: =_xll.BDP(B78,$AV$2) -> N | AW78: =_xll.BDP(B78,$AW$2) -> FR | AX78: =_xll.BDP(AC78 & " Equity",$AX$2) -> Information Technology | AY78: =_xll.BDP(AC78 & " Equity",$AY$2) -> Semiconductors & Semiconductor | AZ78: =_xll.BDP(AC78 & " Equity",$AZ$2) -> Semiconductors & Semiconductor | BB78: 0 | BC78: =_xll.BDP(B78,$BC$2) -> 0.1780621027 | BD78: =_xll.BDP(B78,$BD$2) -> -0.00890541383 | BE78: =_xll.BDP(B78,$BE$2) -> -8762.188561 | BF78: =_xll.BDP(B78,$BF$2) -> -105.499 | BG78: =_xll.BDP(B78,$BG$2) -> 8.602622289 | BH78: =_xll.BDP(B78,$BH$2) -> 8.704808325 | BI78: =_xll.BDP(B78,$BI$2) -> -6.333656328 | BK78: =_xll.BDP(B78,$BK$2) -> 119.8039 | BL78: =_xll.BDP(B78,$BL$2) -> #N/A Field Not Applicable | BM78: =_xll.BDP(B78,$BM$2) -> 96.91410138 | BN78: =_xll.BDP(B78,$BN$2) -> 0.003684914837 | BO78: =_xll.BDP(B78,$BO$2) -> 0.5134792427 | BP78: =_xll.BDP(AC78 & " Equity",$BP$2) -> #N/A N/A | BQ78: =_xll.BDP(AC78 & " Equity",$BQ$2) -> 12.02.2015 | BR78: =_xll.BDP(AC78 & " Equity",$BR$2) -> 48.82690428
A79: US867652AH20 | B79: =A79 & " Corp" -> US867652AH20 Corp | C79: SUNPOWER CORP | D79: =_xll.BDP(B79,$D$2) -> SUNPOWER CORP | E79: =_xll.BDP(B79,$E$2) -> 0.875 | F79: =_xll.BDP(B79,$F$2) -> 01.06.2021 | G79: =_xll.BDP(B79,$G$2) -> #N/A Field Not Applicable | H79: =_xll.BDP(B79,$H$2) -> #N/A Field Not Applicable | I79: 2015-01-15 | J79: NE Juni 14;Total 60%-Stake; I-CV Sept. 13 | K79: 0 | L79: =ROUND((T79*T$2+U79*U$2+S79*S$2+IF(P79="NR",0,P79^2*SIGN(P79))+M79*M$2)/(L$2-IF(P79="NR",0,P$2)-IF(S79,0,S$2)),0) -> -1 | M79: -1 | N79: -1 | O79: -1 | P79: 1 | Q79: 2014-08-05 | R79: -1 | S79: =VLOOKUP(AX79,[1]Sheet1!$C$8:$D$23,2,FALSE) -> 1 | T79: =MIN(ROUND(ABS(V79/AD79)*200,0),2)*SIGN(V79) -> 2 | U79: =MIN(ROUND(ABS(X79),0),2)*IFERROR(SIGN(X79),0) -> -2 | V79: =_xll.BDP(AC79 & " Equity",$V$3) -> 0.2982546687 | W79: =_xll.BDP(AC79 & " Equity",$W$3) -> 48.07313806 | X79: =IFERROR(10*LN((100+Z79)/(100+$Z$1))+2*LN((100+$W$2)/(100+W79)),0) -> -1.856834271 | Y79: =_xll.BDP(AC79 & " Equity",$Y$2) -> 15.5417 | Z79: =_xll.BDP(AC79 & " Equity",$Z$2) -> -5.336384 | AA79: =_xll.BDP(AC79 & " Equity",$AA$2) -> 4.045684 | AB79: =_xll.BDP(AC79 & " Equity",$AB$2) -> SPWR US | AC79: =_xll.BDP(B79,$AC$2) -> EQ0000000001457310 | AD79: =_xll.BDP(AC79 & " Equity",$AD$2) -> 26.22 | AE79: 27 | AF79: 24 | AG79: =_xll.BDP(B79,$AG$2) -> USD | AH79: =_xll.BDP(B79,$AH$2) -> 400000000 | AI79: =IFERROR(VLOOKUP(A79,'Fisch Holding'!$A$5:$C$1245,3,FALSE)/AH79,"-") -> 0.009475 | AJ79: =IFERROR(VLOOKUP(A79,'BM Weight'!$A$7:$D$1020,3,FALSE),"-") -> - | AK79: =IFERROR(VLOOKUP(A79,'BM Weight'!$A$7:$D$1020,4,FALSE),"- ") -> - | AL79: =IFERROR(VLOOKUP(A79,'Implied Rating'!$B$7:$C$1179,2,FALSE),"-") -> BB | AM79: =IFERROR(VLOOKUP(A79,'ICV Rating'!$B$5:$E$1306,2,FALSE),"-") -> BBB- | AN79: =_xll.BDP(B79,$AN$2) -> #N/A N/A | AO79: =_xll.BDP(B79,$AO$2) -> #N/A N/A | AP79: =_xll.BDP(B79,$AP$2) -> #N/A N/A | AQ79: =_xll.BDP(B79,$AQ$2) -> N | AR79: =_xll.BDP(B79,$AR$2) -> Optionally | AS79: =_xll.BDP(B79,$AS$2) -> N | AT79: =_xll.BDP(B79,$AT$2) -> N | AU79: =_xll.BDP(B79,$AU$2) -> N | AV79: =_xll.BDP(B79,$AV$2) -> N | AW79: =_xll.BDP(B79,$AW$2) -> FR | AX79: =_xll.BDP(AC79 & " Equity",$AX$2) -> Information Technology | AY79: =_xll.BDP(AC79 & " Equity",$AY$2) -> Semiconductors & Semiconductor | AZ79: =_xll.BDP(AC79 & " Equity",$AZ$2) -> Semiconductors & Semiconductor | BB79: 0 | BC79: =_xll.BDP(B79,$BC$2) -> 6.109949252 | BD79: =_xll.BDP(B79,$BD$2) -> 3.654267656 | BE79: =_xll.BDP(B79,$BE$2) -> 65.93320861 | BF79: =_xll.BDP(B79,$BF$2) -> 2.359 | BG79: =_xll.BDP(B79,$BG$2) -> 3.514854324 | BH79: =_xll.BDP(B79,$BH$2) -> 3.901204886 | BI79: =_xll.BDP(B79,$BI$2) -> -9.887148065 | BK79: =_xll.BDP(B79,$BK$2) -> 91.032 | BL79: =_xll.BDP(B79,$BL$2) -> #N/A Field Not Applicable | BM79: =_xll.BDP(B79,$BM$2) -> 64.49557519 | BN79: =_xll.BDP(B79,$BN$2) -> 0.003970722298 | BO79: =_xll.BDP(B79,$BO$2) -> 65.62749169 | BP79: =_xll.BDP(AC79 & " Equity",$BP$2) -> #N/A N/A | BQ79: =_xll.BDP(AC79 & " Equity",$BQ$2) -> 12.02.2015 | BR79: =_xll.BDP(AC79 & " Equity",$BR$2) -> 48.82690428
A80: US87157BAA17 | B80: =A80 & " Corp" -> US87157BAA17 Corp | C80: Synchronoss Techn. | D80: =_xll.BDP(B80,$D$2) -> SYNCHRONOSS TECHNOLOGIES | E80: =_xll.BDP(B80,$E$2) -> 0.75 | F80: =_xll.BDP(B80,$F$2) -> 15.08.2019 | G80: =_xll.BDP(B80,$G$2) -> #N/A Field Not Applicable | H80: =_xll.BDP(B80,$H$2) -> #N/A Field Not Applicable | I80: 2014-11-20 | K80: 0 | L80: =ROUND((T80*T$2+U80*U$2+S80*S$2+IF(P80="NR",0,P80^2*SIGN(P80))+M80*M$2)/(L$2-IF(P80="NR",0,P$2)-IF(S80,0,S$2)),0) -> 0 | M80: 1 | N80: -1 | O80: 0 | P80: NR | Q80: 2014-08-11 | R80: -1 | S80: =VLOOKUP(AX80,[1]Sheet1!$C$8:$D$23,2,FALSE) -> 1 | T80: =MIN(ROUND(ABS(V80/AD80)*200,0),2)*SIGN(V80) -> 0 | U80: =MIN(ROUND(ABS(X80),0),2)*IFERROR(SIGN(X80),0) -> -2 | V80: =_xll.BDP(AC80 & " Equity",$V$3) -> 0.04232376814 | W80: =_xll.BDP(AC80 & " Equity",$W$3) -> 48.64526153 | X80: =IFERROR(10*LN((100+Z80)/(100+$Z$1))+2*LN((100+$W$2)/(100+W80)),0) -> -2.064380219 | Y80: =_xll.BDP(AC80 & " Equity",$Y$2) -> -0.2998512 | Z80: =_xll.BDP(AC80 & " Equity",$Z$2) -> -7.209302 | AA80: =_xll.BDP(AC80 & " Equity",$AA$2) -> -4.682276 | AB80: =_xll.BDP(AC80 & " Equity",$AB$2) -> SNCR US | AC80: =_xll.BDP(B80,$AC$2) -> EQ0000000002347187 | AD80: =_xll.BDP(AC80 & " Equity",$AD$2) -> 39.595 | AE80: 43 | AF80: 37 | AG80: =_xll.BDP(B80,$AG$2) -> USD | AH80: =_xll.BDP(B80,$AH$2) -> 230000000 | AI80: =IFERROR(VLOOKUP(A80,'Fisch Holding'!$A$5:$C$1245,3,FALSE)/AH80,"-") -> - | AJ80: =IFERROR(VLOOKUP(A80,'BM Weight'!$A$7:$D$1020,3,FALSE),"-") -> - | AK80: =IFERROR(VLOOKUP(A80,'BM Weight'!$A$7:$D$1020,4,FALSE),"- ") -> - | AL80: =IFERROR(VLOOKUP(A80,'Implied Rating'!$B$7:$C$1179,2,FALSE),"-") -> BB | AM80: =IFERROR(VLOOKUP(A80,'ICV Rating'!$B$5:$E$1306,2,FALSE),"-") -> 0 | AN80: =_xll.BDP(B80,$AN$2) -> #N/A N/A | AO80: =_xll.BDP(B80,$AO$2) -> #N/A N/A | AP80: =_xll.BDP(B80,$AP$2) -> #N/A N/A | AQ80: =_xll.BDP(B80,$AQ$2) -> N | AR80: =_xll.BDP(B80,$AR$2) -> Optionally | AS80: =_xll.BDP(B80,$AS$2) -> N | AT80: =_xll.BDP(B80,$AT$2) -> N | AU80: =_xll.BDP(B80,$AU$2) -> N | AV80: =_xll.BDP(B80,$AV$2) -> N | AW80: =_xll.BDP(B80,$AW$2) -> US | AX80: =_xll.BDP(AC80 & " Equity",$AX$2) -> Information Technology | AY80: =_xll.BDP(AC80 & " Equity",$AY$2) -> Software & Services | AZ80: =_xll.BDP(AC80 & " Equity",$AZ$2) -> Software | BB80: 0 | BC80: =_xll.BDP(B80,$BC$2) -> 4.485048601 | BD80: =_xll.BDP(B80,$BD$2) -> 2.268794298 | BE80: =_xll.BDP(B80,$BE$2) -> -146.5509458 | BF80: =_xll.BDP(B80,$BF$2) -> -0.038 | BG80: =_xll.BDP(B80,$BG$2) -> 2.140151801 | BH80: =_xll.BDP(B80,$BH$2) -> 0.5012532314 | BI80: =_xll.BDP(B80,$BI$2) -> -2.632690162 | BK80: =_xll.BDP(B80,$BK$2) -> 103.4202 | BL80: =_xll.BDP(B80,$BL$2) -> #N/A Field Not Applicable | BM80: =_xll.BDP(B80,$BM$2) -> 70.9690433 | BN80: =_xll.BDP(B80,$BN$2) -> 0.00347509542 | BO80: =_xll.BDP(B80,$BO$2) -> 38.05968945 | BP80: =_xll.BDP(AC80 & " Equity",$BP$2) -> #N/A N/A | BQ80: =_xll.BDP(AC80 & " Equity",$BQ$2) -> 05.02.2015 | BR80: =_xll.BDP(AC80 & " Equity",$BR$2) -> 43.91900526
A81: US874054AD16 | B81: =A81 & " Corp" -> US874054AD16 Corp | C81: TAKE-TWO INTERACTIVE SOF | D81: =_xll.BDP(B81,$D$2) -> TAKE-TWO INTERACTIVE SOF | E81: =_xll.BDP(B81,$E$2) -> 1 | F81: =_xll.BDP(B81,$F$2) -> 01.07.2018 | G81: =_xll.BDP(B81,$G$2) -> #N/A Field Not Applicable | H81: =_xll.BDP(B81,$H$2) -> #N/A Field Not Applicable | I81: 2014-11-06 | K81: 1 | L81: =ROUND((T81*T$2+U81*U$2+S81*S$2+IF(P81="NR",0,P81^2*SIGN(P81))+M81*M$2)/(L$2-IF(P81="NR",0,P$2)-IF(S81,0,S$2)),0) -> 1 | M81: 0 | N81: 0 | O81: 0 | P81: 0 | Q81: 2014-06-30 | R81: -1 | S81: =VLOOKUP(AX81,[1]Sheet1!$C$8:$D$23,2,FALSE) -> 1 | T81: =MIN(ROUND(ABS(V81/AD81)*200,0),2)*SIGN(V81) -> -1 | U81: =MIN(ROUND(ABS(X81),0),2)*IFERROR(SIGN(X81),0) -> 2 | V81: =_xll.BDP(AC81 & " Equity",$V$3) -> -0.1379716992 | W81: =_xll.BDP(AC81 & " Equity",$W$3) -> 37.85808779 | X81: =IFERROR(10*LN((100+Z81)/(100+$Z$1))+2*LN((100+$W$2)/(100+W81)),0) -> 1.563977441 | Y81: =_xll.BDP(AC81 & " Equity",$Y$2) -> -0.9957355 | Z81: =_xll.BDP(AC81 & " Equity",$Z$2) -> 31.38272 | AA81: =_xll.BDP(AC81 & " Equity",$AA$2) -> -0.6778476 | AB81: =_xll.BDP(AC81 & " Equity",$AB$2) -> TTWO US | AC81: =_xll.BDP(B81,$AC$2) -> EQ0022517100001000 | AD81: =_xll.BDP(AC81 & " Equity",$AD$2) -> 27.58 | AE81: 29 | AF81: 25 | AG81: =_xll.BDP(B81,$AG$2) -> USD | AH81: =_xll.BDP(B81,$AH$2) -> 287500000 | AI81: =IFERROR(VLOOKUP(A81,'Fisch Holding'!$A$5:$C$1245,3,FALSE)/AH81,"-") -> 0.001043478261 | AJ81: =IFERROR(VLOOKUP(A81,'BM Weight'!$A$7:$D$1020,3,FALSE),"-") -> - | AK81: =IFERROR(VLOOKUP(A81,'BM Weight'!$A$7:$D$1020,4,FALSE),"- ") -> - | AL81: =IFERROR(VLOOKUP(A81,'Implied Rating'!$B$7:$C$1179,2,FALSE),"-") -> BB+ | AM81: =IFERROR(VLOOKUP(A81,'ICV Rating'!$B$5:$E$1306,2,FALSE),"-") -> B+ | AN81: =_xll.BDP(B81,$AN$2) -> #N/A N/A | AO81: =_xll.BDP(B81,$AO$2) -> #N/A N/A | AP81: =_xll.BDP(B81,$AP$2) -> #N/A N/A | AQ81: =_xll.BDP(B81,$AQ$2) -> N | AR81: =_xll.BDP(B81,$AR$2) -> Optionally | AS81: =_xll.BDP(B81,$AS$2) -> N | AT81: =_xll.BDP(B81,$AT$2) -> N | AU81: =_xll.BDP(B81,$AU$2) -> N | AV81: =_xll.BDP(B81,$AV$2) -> N | AW81: =_xll.BDP(B81,$AW$2) -> US | AX81: =_xll.BDP(AC81 & " Equity",$AX$2) -> Information Technology | AY81: =_xll.BDP(AC81 & " Equity",$AY$2) -> Software & Services | AZ81: =_xll.BDP(AC81 & " Equity",$AZ$2) -> Software | BB81: 0 | BC81: =_xll.BDP(B81,$BC$2) -> 3.557054311 | BD81: =_xll.BDP(B81,$BD$2) -> 0.6321225941 | BE81: =_xll.BDP(B81,$BE$2) -> -997.9706803 | BF81: =_xll.BDP(B81,$BF$2) -> -8.791 | BG81: =_xll.BDP(B81,$BG$2) -> -0.6664269666 | BH81: =_xll.BDP(B81,$BH$2) -> -0.7340746695 | BI81: =_xll.BDP(B81,$BI$2) -> 20.40148896 | BK81: =_xll.BDP(B81,$BK$2) -> 139.9655 | BL81: =_xll.BDP(B81,$BL$2) -> #N/A Field Not Applicable | BM81: =_xll.BDP(B81,$BM$2) -> 87.76663651 | BN81: =_xll.BDP(B81,$BN$2) -> 0.002769854927 | BO81: =_xll.BDP(B81,$BO$2) -> 8.538416064 | BP81: =_xll.BDP(AC81 & " Equity",$BP$2) -> #N/A N/A | BQ81: =_xll.BDP(AC81 & " Equity",$BQ$2) -> 03.02.2015 | BR81: =_xll.BDP(AC81 & " Equity",$BR$2) -> 35.55880965 | BT81: 2014-02-03
A82: US874054AC33 | B82: =A82 & " Corp" -> US874054AC33 Corp | C82: TAKE-TWO INTERACTIVE SOF | D82: =_xll.BDP(B82,$D$2) -> TAKE-TWO INTERACTIVE SOF | E82: =_xll.BDP(B82,$E$2) -> 1.75 | F82: =_xll.BDP(B82,$F$2) -> 01.12.2016 | G82: =_xll.BDP(B82,$G$2) -> #N/A Field Not Applicable | H82: =_xll.BDP(B82,$H$2) -> #N/A Field Not Applicable | I82: 2014-02-03 | K82: -1 | L82: =ROUND((T82*T$2+U82*U$2+S82*S$2+IF(P82="NR",0,P82^2*SIGN(P82))+M82*M$2)/(L$2-IF(P82="NR",0,P$2)-IF(S82,0,S$2)),0) -> 1 | M82: 0 | N82: 0 | O82: 0 | P82: 0 | Q82: 2014-02-03 | R82: -1 | S82: =VLOOKUP(AX82,[1]Sheet1!$C$8:$D$23,2,FALSE) -> 1 | T82: =MIN(ROUND(ABS(V82/AD82)*200,0),2)*SIGN(V82) -> -1 | U82: =MIN(ROUND(ABS(X82),0),2)*IFERROR(SIGN(X82),0) -> 2 | V82: =_xll.BDP(AC82 & " Equity",$V$3) -> -0.1379716992 | W82: =_xll.BDP(AC82 & " Equity",$W$3) -> 37.85808779 | X82: =IFERROR(10*LN((100+Z82)/(100+$Z$1))+2*LN((100+$W$2)/(100+W82)),0) -> 1.563977441 | Y82: =_xll.BDP(AC82 & " Equity",$Y$2) -> -0.9957355 | Z82: =_xll.BDP(AC82 & " Equity",$Z$2) -> 31.38272 | AA82: =_xll.BDP(AC82 & " Equity",$AA$2) -> -0.6778476 | AB82: =_xll.BDP(AC82 & " Equity",$AB$2) -> TTWO US | AC82: =_xll.BDP(B82,$AC$2) -> EQ0022517100001000 | AD82: =_xll.BDP(AC82 & " Equity",$AD$2) -> 27.58 | AE82: 29 | AF82: 25 | AG82: =_xll.BDP(B82,$AG$2) -> USD | AH82: =_xll.BDP(B82,$AH$2) -> 250000000 | AI82: =IFERROR(VLOOKUP(A82,'Fisch Holding'!$A$5:$C$1245,3,FALSE)/AH82,"-") -> - | AJ82: =IFERROR(VLOOKUP(A82,'BM Weight'!$A$7:$D$1020,3,FALSE),"-") -> - | AK82: =IFERROR(VLOOKUP(A82,'BM Weight'!$A$7:$D$1020,4,FALSE),"- ") -> - | AL82: =IFERROR(VLOOKUP(A82,'Implied Rating'!$B$7:$C$1179,2,FALSE),"-") -> BB- | AM82: =IFERROR(VLOOKUP(A82,'ICV Rating'!$B$5:$E$1306,2,FALSE),"-") -> B+ | AN82: =_xll.BDP(B82,$AN$2) -> #N/A N/A | AO82: =_xll.BDP(B82,$AO$2) -> #N/A N/A | AP82: =_xll.BDP(B82,$AP$2) -> #N/A N/A | AQ82: =_xll.BDP(B82,$AQ$2) -> N | AR82: =_xll.BDP(B82,$AR$2) -> Optionally | AS82: =_xll.BDP(B82,$AS$2) -> N | AT82: =_xll.BDP(B82,$AT$2) -> Y | AU82: =_xll.BDP(B82,$AU$2) -> N | AV82: =_xll.BDP(B82,$AV$2) -> N | AW82: =_xll.BDP(B82,$AW$2) -> US | AX82: =_xll.BDP(AC82 & " Equity",$AX$2) -> Information Technology | AY82: =_xll.BDP(AC82 & " Equity",$AY$2) -> Software & Services | AZ82: =_xll.BDP(AC82 & " Equity",$AZ$2) -> Software | BB82: 0 | BC82: =_xll.BDP(B82,$BC$2) -> 2.041968859 | BD82: =_xll.BDP(B82,$BD$2) -> 0.1680677032 | BE82: =_xll.BDP(B82,$BE$2) -> -2049.078048 | BF82: =_xll.BDP(B82,$BF$2) -> -19.792 | BG82: =_xll.BDP(B82,$BG$2) -> -0.6940782807 | BH82: =_xll.BDP(B82,$BH$2) -> -0.9607907291 | BI82: =_xll.BDP(B82,$BI$2) -> 22.03228044 | BK82: =_xll.BDP(B82,$BK$2) -> 151.2363 | BL82: =_xll.BDP(B82,$BL$2) -> #N/A Field Not Applicable | BM82: =_xll.BDP(B82,$BM$2) -> 93.19879452 | BN82: =_xll.BDP(B82,$BN$2) -> 0.002353324986 | BO82: =_xll.BDP(B82,$BO$2) -> 3.959513816 | BP82: =_xll.BDP(AC82 & " Equity",$BP$2) -> #N/A N/A | BQ82: =_xll.BDP(AC82 & " Equity",$BQ$2) -> 03.02.2015 | BR82: =_xll.BDP(AC82 & " Equity",$BR$2) -> 35.55880965 | BT82: 2014-02-03
A83: US87929JAC71 | B83: =A83 & " Corp" -> US87929JAC71 Corp | C83: TELECOMMUNICATION SYSTEM | D83: =_xll.BDP(B83,$D$2) -> TELECOMMUNICATION SYSTEM | E83: =_xll.BDP(B83,$E$2) -> 7.75 | F83: =_xll.BDP(B83,$F$2) -> 30.06.2018 | G83: =_xll.BDP(B83,$G$2) -> #N/A Field Not Applicable | H83: =_xll.BDP(B83,$H$2) -> 17.02.2015 | I83: 2012-06-25 | J83: nur 50 Mio ausstehend | K83: -1 | L83: =ROUND((T83*T$2+U83*U$2+S83*S$2+IF(P83="NR",0,P83^2*SIGN(P83))+M83*M$2)/(L$2-IF(P83="NR",0,P$2)-IF(S83,0,S$2)),0) -> -1 | M83: -1 | N83: -1 | O83: -2 | P83: NR | Q83: 2012-06-25 | R83: -2 | S83: =VLOOKUP(AX83,[1]Sheet1!$C$8:$D$23,2,FALSE) -> 1 | T83: =MIN(ROUND(ABS(V83/AD83)*200,0),2)*SIGN(V83) -> -1 | U83: =MIN(ROUND(ABS(X83),0),2)*IFERROR(SIGN(X83),0) -> -1 | V83: =_xll.BDP(AC83 & " Equity",$V$3) -> -0.01984973624 | W83: =_xll.BDP(AC83 & " Equity",$W$3) -> 43.75532322 | X83: =IFERROR(10*LN((100+Z83)/(100+$Z$1))+2*LN((100+$W$2)/(100+W83)),0) -> -1.147027095 | Y83: =_xll.BDP(AC83 & " Equity",$Y$2) -> -4.530742 | Z83: =_xll.BDP(AC83 & " Equity",$Z$2) -> 1.027395 | AA83: =_xll.BDP(AC83 & " Equity",$AA$2) -> -5.448714 | AB83: =_xll.BDP(AC83 & " Equity",$AB$2) -> TSYS US | AC83: =_xll.BDP(B83,$AC$2) -> EQ0117980700001000 | AD83: =_xll.BDP(AC83 & " Equity",$AD$2) -> 2.97 | AE83: 4 | AF83: 2 | AG83: =_xll.BDP(B83,$AG$2) -> USD | AH83: =_xll.BDP(B83,$AH$2) -> 50000000 | AI83: =IFERROR(VLOOKUP(A83,'Fisch Holding'!$A$5:$C$1245,3,FALSE)/AH83,"-") -> - | AJ83: =IFERROR(VLOOKUP(A83,'BM Weight'!$A$7:$D$1020,3,FALSE),"-") -> - | AK83: =IFERROR(VLOOKUP(A83,'BM Weight'!$A$7:$D$1020,4,FALSE),"- ") -> - | AL83: =IFERROR(VLOOKUP(A83,'Implied Rating'!$B$7:$C$1179,2,FALSE),"-") -> - | AM83: =IFERROR(VLOOKUP(A83,'ICV Rating'!$B$5:$E$1306,2,FALSE),"-") -> - | AN83: =_xll.BDP(B83,$AN$2) -> #N/A N/A | AO83: =_xll.BDP(B83,$AO$2) -> #N/A N/A | AP83: =_xll.BDP(B83,$AP$2) -> #N/A N/A | AQ83: =_xll.BDP(B83,$AQ$2) -> N | AR83: =_xll.BDP(B83,$AR$2) -> Optionally | AS83: =_xll.BDP(B83,$AS$2) -> N | AT83: =_xll.BDP(B83,$AT$2) -> #N/A N/A | AU83: =_xll.BDP(B83,$AU$2) -> N | AV83: =_xll.BDP(B83,$AV$2) -> Y | AW83: =_xll.BDP(B83,$AW$2) -> US | AX83: =_xll.BDP(AC83 & " Equity",$AX$2) -> Information Technology | AY83: =_xll.BDP(AC83 & " Equity",$AY$2) -> Software & Services | AZ83: =_xll.BDP(AC83 & " Equity",$AZ$2) -> Software | BB83: 0 | BC83: =_xll.BDP(B83,$BC$2) -> 2.934451153 | BD83: =_xll.BDP(B83,$BD$2) -> 2.757999217 | BE83: =_xll.BDP(B83,$BE$2) -> 762.1648154 | BF83: =_xll.BDP(B83,$BF$2) -> 8.768 | BG83: =_xll.BDP(B83,$BG$2) -> -0.1488020692 | BH83: =_xll.BDP(B83,$BH$2) -> 3.141302885 | BI83: =_xll.BDP(B83,$BI$2) -> 2.313156459 | BK83: =_xll.BDP(B83,$BK$2) -> 96.53172 | BL83: =_xll.BDP(B83,$BL$2) -> #N/A Field Not Applicable | BM83: =_xll.BDP(B83,$BM$2) -> 7.14822468 | BN83: =_xll.BDP(B83,$BN$2) -> 0.0007762964227 | BO83: =_xll.BDP(B83,$BO$2) -> 240.3335475 | BP83: =_xll.BDP(AC83 & " Equity",$BP$2) -> #N/A N/A | BQ83: =_xll.BDP(AC83 & " Equity",$BQ$2) -> 27.01.2015 | BR83: =_xll.BDP(AC83 & " Equity",$BR$2) -> 43.50207791
A84: US888706AD00 | B84: =A84 & " Corp" -> US888706AD00 Corp | C84: TIVO INC | D84: =_xll.BDP(B84,$D$2) -> TIVO INC | E84: =_xll.BDP(B84,$E$2) -> 4 | F84: =_xll.BDP(B84,$F$2) -> 15.03.2016 | G84: =_xll.BDP(B84,$G$2) -> #N/A Field Not Applicable | H84: =_xll.BDP(B84,$H$2) -> #N/A Field Not Applicable | I84: 2014-07-07 | J84: USD 172 Mio | K84: 0 | L84: =ROUND((T84*T$2+U84*U$2+S84*S$2+IF(P84="NR",0,P84^2*SIGN(P84))+M84*M$2)/(L$2-IF(P84="NR",0,P$2)-IF(S84,0,S$2)),0) -> -1 | M84: -1 | N84: 0 | O84: 0 | P84: NR | Q84: 2014-07-07 | R84: -2 | S84: =VLOOKUP(AX84,[1]Sheet1!$C$8:$D$23,2,FALSE) -> 1 | T84: =MIN(ROUND(ABS(V84/AD84)*200,0),2)*SIGN(V84) -> -2 | U84: =MIN(ROUND(ABS(X84),0),2)*IFERROR(SIGN(X84),0) -> -2 | V84: =_xll.BDP(AC84 & " Equity",$V$3) -> -0.09717434645 | W84: =_xll.BDP(AC84 & " Equity",$W$3) -> 26.54552899 | X84: =IFERROR(10*LN((100+Z84)/(100+$Z$1))+2*LN((100+$W$2)/(100+W84)),0) -> -2.619648249 | Y84: =_xll.BDP(AC84 & " Equity",$Y$2) -> -11.90277 | Z84: =_xll.BDP(AC84 & " Equity",$Z$2) -> -15.00202 | AA84: =_xll.BDP(AC84 & " Equity",$AA$2) -> -11.23311 | AB84: =_xll.BDP(AC84 & " Equity",$AB$2) -> TIVO US | AC84: =_xll.BDP(B84,$AC$2) -> EQ0035828000001000 | AD84: =_xll.BDP(AC84 & " Equity",$AD$2) -> 10.5 | AE84: 13 | AF84: 10 | AG84: =_xll.BDP(B84,$AG$2) -> USD | AH84: =_xll.BDP(B84,$AH$2) -> 172500000 | AI84: =IFERROR(VLOOKUP(A84,'Fisch Holding'!$A$5:$C$1245,3,FALSE)/AH84,"-") -> - | AJ84: =IFERROR(VLOOKUP(A84,'BM Weight'!$A$7:$D$1020,3,FALSE),"-") -> - | AK84: =IFERROR(VLOOKUP(A84,'BM Weight'!$A$7:$D$1020,4,FALSE),"- ") -> - | AL84: =IFERROR(VLOOKUP(A84,'Implied Rating'!$B$7:$C$1179,2,FALSE),"-") -> B- | AM84: =IFERROR(VLOOKUP(A84,'ICV Rating'!$B$5:$E$1306,2,FALSE),"-") -> 0 | AN84: =_xll.BDP(B84,$AN$2) -> #N/A N/A | AO84: =_xll.BDP(B84,$AO$2) -> #N/A N/A | AP84: =_xll.BDP(B84,$AP$2) -> #N/A N/A | AQ84: =_xll.BDP(B84,$AQ$2) -> N | AR84: =_xll.BDP(B84,$AR$2) -> Optionally | AS84: =_xll.BDP(B84,$AS$2) -> N | AT84: =_xll.BDP(B84,$AT$2) -> #N/A N/A | AU84: =_xll.BDP(B84,$AU$2) -> N | AV84: =_xll.BDP(B84,$AV$2) -> N | AW84: =_xll.BDP(B84,$AW$2) -> US | AX84: =_xll.BDP(AC84 & " Equity",$AX$2) -> Information Technology | AY84: =_xll.BDP(AC84 & " Equity",$AY$2) -> Software & Services | AZ84: =_xll.BDP(AC84 & " Equity",$AZ$2) -> Software | BB84: 0 | BC84: =_xll.BDP(B84,$BC$2) -> 1.156582749 | BD84: =_xll.BDP(B84,$BD$2) -> 0.5716540956 | BE84: =_xll.BDP(B84,$BE$2) -> -665.2829737 | BF84: =_xll.BDP(B84,$BF$2) -> -6.213 | BG84: =_xll.BDP(B84,$BG$2) -> -1.817342773 | BH84: =_xll.BDP(B84,$BH$2) -> -6.617205563 | BI84: =_xll.BDP(B84,$BI$2) -> -9.689978738 | BK84: =_xll.BDP(B84,$BK$2) -> 111.8467 | BL84: =_xll.BDP(B84,$BL$2) -> #N/A Field Not Applicable | BM84: =_xll.BDP(B84,$BM$2) -> 58.64743017 | BN84: =_xll.BDP(B84,$BN$2) -> 0.01008548833 | BO84: =_xll.BDP(B84,$BO$2) -> 19.29113847 | BP84: =_xll.BDP(AC84 & " Equity",$BP$2) -> #N/A N/A | BQ84: =_xll.BDP(AC84 & " Equity",$BQ$2) -> 26.02.2015 | BR84: =_xll.BDP(AC84 & " Equity",$BR$2) -> 30.62165602
A85: US888706AE82 | B85: =A85 & " Corp" -> US888706AE82 Corp | C85: TIVO INC | D85: =_xll.BDP(B85,$D$2) -> TIVO INC | E85: =_xll.BDP(B85,$E$2) -> 2 | F85: =_xll.BDP(B85,$F$2) -> 01.10.2021 | G85: =_xll.BDP(B85,$G$2) -> #N/A Field Not Applicable | H85: =_xll.BDP(B85,$H$2) -> #N/A Field Not Applicable | I85: 2014-09-11 | K85: 1 | L85: =ROUND((T85*T$2+U85*U$2+S85*S$2+IF(P85="NR",0,P85^2*SIGN(P85))+M85*M$2)/(L$2-IF(P85="NR",0,P$2)-IF(S85,0,S$2)),0) -> 0 | M85: 1 | N85: 0 | O85: 0 | P85: NR | Q85: 2014-04-22 | R85: 0 | S85: =VLOOKUP(AX85,[1]Sheet1!$C$8:$D$23,2,FALSE) -> 1 | T85: =MIN(ROUND(ABS(V85/AD85)*200,0),2)*SIGN(V85) -> -2 | U85: =MIN(ROUND(ABS(X85),0),2)*IFERROR(SIGN(X85),0) -> -2 | V85: =_xll.BDP(AC85 & " Equity",$V$3) -> -0.09717434645 | W85: =_xll.BDP(AC85 & " Equity",$W$3) -> 26.54552899 | X85: =IFERROR(10*LN((100+Z85)/(100+$Z$1))+2*LN((100+$W$2)/(100+W85)),0) -> -2.619648249 | Y85: =_xll.BDP(AC85 & " Equity",$Y$2) -> -11.90277 | Z85: =_xll.BDP(AC85 & " Equity",$Z$2) -> -15.00202 | AA85: =_xll.BDP(AC85 & " Equity",$AA$2) -> -11.23311 | AB85: =_xll.BDP(AC85 & " Equity",$AB$2) -> TIVO US | AC85: =_xll.BDP(B85,$AC$2) -> EQ0035828000001000 | AD85: =_xll.BDP(AC85 & " Equity",$AD$2) -> 10.5 | AE85: 13 | AF85: 10 | AG85: =_xll.BDP(B85,$AG$2) -> USD | AH85: =_xll.BDP(B85,$AH$2) -> 230000000 | AI85: =IFERROR(VLOOKUP(A85,'Fisch Holding'!$A$5:$C$1245,3,FALSE)/AH85,"-") -> - | AJ85: =IFERROR(VLOOKUP(A85,'BM Weight'!$A$7:$D$1020,3,FALSE),"-") -> - | AK85: =IFERROR(VLOOKUP(A85,'BM Weight'!$A$7:$D$1020,4,FALSE),"- ") -> - | AL85: =IFERROR(VLOOKUP(A85,'Implied Rating'!$B$7:$C$1179,2,FALSE),"-") -> - | AM85: =IFERROR(VLOOKUP(A85,'ICV Rating'!$B$5:$E$1306,2,FALSE),"-") -> - | AN85: =_xll.BDP(B85,$AN$2) -> #N/A N/A | AO85: =_xll.BDP(B85,$AO$2) -> #N/A N/A | AP85: =_xll.BDP(B85,$AP$2) -> #N/A N/A | AQ85: =_xll.BDP(B85,$AQ$2) -> N | AR85: =_xll.BDP(B85,$AR$2) -> Optionally | AS85: =_xll.BDP(B85,$AS$2) -> N | AT85: =_xll.BDP(B85,$AT$2) -> N | AU85: =_xll.BDP(B85,$AU$2) -> N | AV85: =_xll.BDP(B85,$AV$2) -> N | AW85: =_xll.BDP(B85,$AW$2) -> US | AX85: =_xll.BDP(AC85 & " Equity",$AX$2) -> Information Technology | AY85: =_xll.BDP(AC85 & " Equity",$AY$2) -> Software & Services | AZ85: =_xll.BDP(AC85 & " Equity",$AZ$2) -> Software | BB85: 0 | BC85: =_xll.BDP(B85,$BC$2) -> 6.12967597 | BD85: =_xll.BDP(B85,$BD$2) -> 3.48972927 | BE85: =_xll.BDP(B85,$BE$2) -> 162.8764746 | BF85: =_xll.BDP(B85,$BF$2) -> 3.352 | BG85: =_xll.BDP(B85,$BG$2) -> -1.209882139 | BH85: =_xll.BDP(B85,$BH$2) -> -4.664524651 | BI85: =_xll.BDP(B85,$BI$2) -> -2.649644972 | BK85: =_xll.BDP(B85,$BK$2) -> 91.81443 | BL85: =_xll.BDP(B85,$BL$2) -> #N/A Field Not Applicable | BM85: =_xll.BDP(B85,$BM$2) -> 68.06219351 | BN85: =_xll.BDP(B85,$BN$2) -> 0.00379920926 | BO85: =_xll.BDP(B85,$BO$2) -> 55.92659371 | BP85: =_xll.BDP(AC85 & " Equity",$BP$2) -> #N/A N/A | BQ85: =_xll.BDP(AC85 & " Equity",$BQ$2) -> 26.02.2015 | BR85: =_xll.BDP(AC85 & " Equity",$BR$2) -> 30.62165602
A86: US89628EAB02 | B86: =A86 & " Corp" -> US89628EAB02 Corp | C86: Trina Solar | D86: =_xll.BDP(B86,$D$2) -> TRINA SOLAR LTD | E86: =_xll.BDP(B86,$E$2) -> 3.5 | F86: =_xll.BDP(B86,$F$2) -> 15.06.2019 | G86: =_xll.BDP(B86,$G$2) -> 15.06.2017 | H86: =_xll.BDP(B86,$H$2) -> #N/A Field Not Applicable | I86: 2014-09-11 | J86: NE Juni 14 | K86: 0 | L86: =ROUND((T86*T$2+U86*U$2+S86*S$2+IF(P86="NR",0,P86^2*SIGN(P86))+M86*M$2)/(L$2-IF(P86="NR",0,P$2)-IF(S86,0,S$2)),0) -> 0 | M86: 0 | N86: -1 | O86: -1 | P86: 0 | Q86: 2014-10-13 | R86: -2 | S86: =VLOOKUP(AX86,[1]Sheet1!$C$8:$D$23,2,FALSE) -> 1 | T86: =MIN(ROUND(ABS(V86/AD86)*200,0),2)*SIGN(V86) -> 1 | U86: =MIN(ROUND(ABS(X86),0),2)*IFERROR(SIGN(X86),0) -> -2 | V86: =_xll.BDP(AC86 & " Equity",$V$3) -> 0.05288827419 | W86: =_xll.BDP(AC86 & " Equity",$W$3) -> 56.52736257 | X86: =IFERROR(10*LN((100+Z86)/(100+$Z$1))+2*LN((100+$W$2)/(100+W86)),0) -> -2.402802593 | Y86: =_xll.BDP(AC86 & " Equity",$Y$2) -> 0.8101812 | Z86: =_xll.BDP(AC86 & " Equity",$Z$2) -> -9.365241 | AA86: =_xll.BDP(AC86 & " Equity",$AA$2) -> -5.939527 | AB86: =_xll.BDP(AC86 & " Equity",$AB$2) -> TSL US | AC86: =_xll.BDP(B86,$AC$2) -> EQ0000000003055288 | AD86: =_xll.BDP(AC86 & " Equity",$AD$2) -> 8.7 | AE86: 10 | AF86: 8 | AG86: =_xll.BDP(B86,$AG$2) -> USD | AH86: =_xll.BDP(B86,$AH$2) -> 172500000 | AI86: =IFERROR(VLOOKUP(A86,'Fisch Holding'!$A$5:$C$1245,3,FALSE)/AH86,"-") -> - | AJ86: =IFERROR(VLOOKUP(A86,'BM Weight'!$A$7:$D$1020,3,FALSE),"-") -> - | AK86: =IFERROR(VLOOKUP(A86,'BM Weight'!$A$7:$D$1020,4,FALSE),"- ") -> - | AL86: =IFERROR(VLOOKUP(A86,'Implied Rating'!$B$7:$C$1179,2,FALSE),"-") -> - | AM86: =IFERROR(VLOOKUP(A86,'ICV Rating'!$B$5:$E$1306,2,FALSE),"-") -> - | AN86: =_xll.BDP(B86,$AN$2) -> #N/A N/A | AO86: =_xll.BDP(B86,$AO$2) -> #N/A N/A | AP86: =_xll.BDP(B86,$AP$2) -> #N/A N/A | AQ86: =_xll.BDP(B86,$AQ$2) -> N | AR86: =_xll.BDP(B86,$AR$2) -> Optionally | AS86: =_xll.BDP(B86,$AS$2) -> N | AT86: =_xll.BDP(B86,$AT$2) -> N | AU86: =_xll.BDP(B86,$AU$2) -> N | AV86: =_xll.BDP(B86,$AV$2) -> N | AW86: =_xll.BDP(B86,$AW$2) -> CN | AX86: =_xll.BDP(AC86 & " Equity",$AX$2) -> Information Technology | AY86: =_xll.BDP(AC86 & " Equity",$AY$2) -> Semiconductors & Semiconductor | AZ86: =_xll.BDP(AC86 & " Equity",$AZ$2) -> Semiconductors & Semiconductor | BB86: 0 | BC86: =_xll.BDP(B86,$BC$2) -> 2.207836414 | BD86: =_xll.BDP(B86,$BD$2) -> 1.209712179 | BE86: =_xll.BDP(B86,$BE$2) -> 794.5649714 | BF86: =_xll.BDP(B86,$BF$2) -> 8.825 | BG86: =_xll.BDP(B86,$BG$2) -> 0.3703852762 | BH86: =_xll.BDP(B86,$BH$2) -> 0.191233217 | BI86: =_xll.BDP(B86,$BI$2) -> -4.373439177 | BK86: =_xll.BDP(B86,$BK$2) -> 88.10085 | BL86: =_xll.BDP(B86,$BL$2) -> #N/A Field Not Applicable | BM86: =_xll.BDP(B86,$BM$2) -> 74.70964243 | BN86: =_xll.BDP(B86,$BN$2) -> 0.003200215231 | BO86: =_xll.BDP(B86,$BO$2) -> 45.62516062 | BP86: =_xll.BDP(AC86 & " Equity",$BP$2) -> #N/A N/A | BQ86: =_xll.BDP(AC86 & " Equity",$BQ$2) -> 04.03.2015 | BR86: =_xll.BDP(AC86 & " Equity",$BR$2) -> 60.88258029
A87: US89628EAD67 | B87: =A87 & " Corp" -> US89628EAD67 Corp | C87: Trina Solar | D87: =_xll.BDP(B87,$D$2) -> TRINA SOLAR LTD | E87: =_xll.BDP(B87,$E$2) -> 4 | F87: =_xll.BDP(B87,$F$2) -> 15.10.2019 | G87: =_xll.BDP(B87,$G$2) -> 15.10.2017 | H87: =_xll.BDP(B87,$H$2) -> #N/A Field Not Applicable | I87: 2014-10-14 | J87: NE Okt. 14 | K87: 0 | L87: =ROUND((T87*T$2+U87*U$2+S87*S$2+IF(P87="NR",0,P87^2*SIGN(P87))+M87*M$2)/(L$2-IF(P87="NR",0,P$2)-IF(S87,0,S$2)),0) -> 0 | M87: 0 | N87: -1 | O87: -1 | P87: 0 | Q87: 2014-10-13 | R87: -2 | S87: =VLOOKUP(AX87,[1]Sheet1!$C$8:$D$23,2,FALSE) -> 1 | T87: =MIN(ROUND(ABS(V87/AD87)*200,0),2)*SIGN(V87) -> 1 | U87: =MIN(ROUND(ABS(X87),0),2)*IFERROR(SIGN(X87),0) -> -2 | V87: =_xll.BDP(AC87 & " Equity",$V$3) -> 0.05288827419 | W87: =_xll.BDP(AC87 & " Equity",$W$3) -> 56.52736257 | X87: =IFERROR(10*LN((100+Z87)/(100+$Z$1))+2*LN((100+$W$2)/(100+W87)),0) -> -2.402802593 | Y87: =_xll.BDP(AC87 & " Equity",$Y$2) -> 0.8101812 | Z87: =_xll.BDP(AC87 & " Equity",$Z$2) -> -9.365241 | AA87: =_xll.BDP(AC87 & " Equity",$AA$2) -> -5.939527 | AB87: =_xll.BDP(AC87 & " Equity",$AB$2) -> TSL US | AC87: =_xll.BDP(B87,$AC$2) -> EQ0000000003055288 | AD87: =_xll.BDP(AC87 & " Equity",$AD$2) -> 8.7 | AE87: 10 | AF87: 8 | AG87: =_xll.BDP(B87,$AG$2) -> USD | AH87: =_xll.BDP(B87,$AH$2) -> 115000000 | AI87: =IFERROR(VLOOKUP(A87,'Fisch Holding'!$A$5:$C$1245,3,FALSE)/AH87,"-") -> 0.03260869565 | AJ87: =IFERROR(VLOOKUP(A87,'BM Weight'!$A$7:$D$1020,3,FALSE),"-") -> - | AK87: =IFERROR(VLOOKUP(A87,'BM Weight'!$A$7:$D$1020,4,FALSE),"- ") -> - | AL87: =IFERROR(VLOOKUP(A87,'Implied Rating'!$B$7:$C$1179,2,FALSE),"-") -> - | AM87: =IFERROR(VLOOKUP(A87,'ICV Rating'!$B$5:$E$1306,2,FALSE),"-") -> - | AN87: =_xll.BDP(B87,$AN$2) -> #N/A N/A | AO87: =_xll.BDP(B87,$AO$2) -> #N/A N/A | AP87: =_xll.BDP(B87,$AP$2) -> #N/A N/A | AQ87: =_xll.BDP(B87,$AQ$2) -> N | AR87: =_xll.BDP(B87,$AR$2) -> Optionally | AS87: =_xll.BDP(B87,$AS$2) -> N | AT87: =_xll.BDP(B87,$AT$2) -> #N/A N/A | AU87: =_xll.BDP(B87,$AU$2) -> N | AV87: =_xll.BDP(B87,$AV$2) -> N | AW87: =_xll.BDP(B87,$AW$2) -> CN | AX87: =_xll.BDP(AC87 & " Equity",$AX$2) -> Information Technology | AY87: =_xll.BDP(AC87 & " Equity",$AY$2) -> Semiconductors & Semiconductor | AZ87: =_xll.BDP(AC87 & " Equity",$AZ$2) -> Semiconductors & Semiconductor | BB87: 0 | BC87: =_xll.BDP(B87,$BC$2) -> 2.450909046 | BD87: =_xll.BDP(B87,$BD$2) -> 1.274905887 | BE87: =_xll.BDP(B87,$BE$2) -> 883.8059781 | BF87: =_xll.BDP(B87,$BF$2) -> 9.82 | BG87: =_xll.BDP(B87,$BG$2) -> -0.4717770723 | BH87: =_xll.BDP(B87,$BH$2) -> -0.6486928951 | BI87: =_xll.BDP(B87,$BI$2) -> -2.54412786 | BK87: =_xll.BDP(B87,$BK$2) -> 86.074 | BL87: =_xll.BDP(B87,$BL$2) -> #N/A Field Not Applicable | BM87: =_xll.BDP(B87,$BM$2) -> 77.41037513 | BN87: =_xll.BDP(B87,$BN$2) -> 0.00289837054 | BO87: =_xll.BDP(B87,$BO$2) -> 45.56645962 | BP87: =_xll.BDP(AC87 & " Equity",$BP$2) -> #N/A N/A | BQ87: =_xll.BDP(AC87 & " Equity",$BQ$2) -> 04.03.2015 | BR87: =_xll.BDP(AC87 & " Equity",$BR$2) -> 60.88258029
A88: US897888AB94 | B88: =A88 & " Corp" -> US897888AB94 Corp | C88: TRULIA INC | D88: =_xll.BDP(B88,$D$2) -> TRULIA INC | E88: =_xll.BDP(B88,$E$2) -> 2.75 | F88: =_xll.BDP(B88,$F$2) -> 15.12.2020 | G88: =_xll.BDP(B88,$G$2) -> #N/A Field Not Applicable | H88: =_xll.BDP(B88,$H$2) -> #N/A Field Not Applicable | I88: 2014-07-28 | J88: NE Dez. 13; Real Estate Search Engine; Zillow-Takeover | K88: 0 | L88: =ROUND((T88*T$2+U88*U$2+S88*S$2+IF(P88="NR",0,P88^2*SIGN(P88))+M88*M$2)/(L$2-IF(P88="NR",0,P$2)-IF(S88,0,S$2)),0) -> 0 | M88: 0 | N88: 0 | O88: -2 | P88: NR | Q88: 2014-07-28 | R88: -2 | S88: =VLOOKUP(AX88,[1]Sheet1!$C$8:$D$23,2,FALSE) -> 1 | T88: =MIN(ROUND(ABS(V88/AD88)*200,0),2)*SIGN(V88) -> 1 | U88: =MIN(ROUND(ABS(X88),0),2)*IFERROR(SIGN(X88),0) -> -1 | V88: =_xll.BDP(AC88 & " Equity",$V$3) -> 0.1467993259 | W88: =_xll.BDP(AC88 & " Equity",$W$3) -> 50.85734315 | X88: =IFERROR(10*LN((100+Z88)/(100+$Z$1))+2*LN((100+$W$2)/(100+W88)),0) -> -1.221598362 | Y88: =_xll.BDP(AC88 & " Equity",$Y$2) -> -10.663 | Z88: =_xll.BDP(AC88 & " Equity",$Z$2) -> 1.24861 | AA88: =_xll.BDP(AC88 & " Equity",$AA$2) -> -1.346945 | AB88: =_xll.BDP(AC88 & " Equity",$AB$2) -> TRLA US | AC88: =_xll.BDP(B88,$AC$2) -> EQ0000000010085065 | AD88: =_xll.BDP(AC88 & " Equity",$AD$2) -> 43.63 | AE88: 48 | AF88: 44 | AG88: =_xll.BDP(B88,$AG$2) -> USD | AH88: =_xll.BDP(B88,$AH$2) -> 230000000 | AI88: =IFERROR(VLOOKUP(A88,'Fisch Holding'!$A$5:$C$1245,3,FALSE)/AH88,"-") -> - | AJ88: =IFERROR(VLOOKUP(A88,'BM Weight'!$A$7:$D$1020,3,FALSE),"-") -> - | AK88: =IFERROR(VLOOKUP(A88,'BM Weight'!$A$7:$D$1020,4,FALSE),"- ") -> - | AL88: =IFERROR(VLOOKUP(A88,'Implied Rating'!$B$7:$C$1179,2,FALSE),"-") -> - | AM88: =IFERROR(VLOOKUP(A88,'ICV Rating'!$B$5:$E$1306,2,FALSE),"-") -> - | AN88: =_xll.BDP(B88,$AN$2) -> #N/A N/A | AO88: =_xll.BDP(B88,$AO$2) -> #N/A N/A | AP88: =_xll.BDP(B88,$AP$2) -> #N/A N/A | AQ88: =_xll.BDP(B88,$AQ$2) -> N | AR88: =_xll.BDP(B88,$AR$2) -> Optionally | AS88: =_xll.BDP(B88,$AS$2) -> N | AT88: =_xll.BDP(B88,$AT$2) -> N | AU88: =_xll.BDP(B88,$AU$2) -> N | AV88: =_xll.BDP(B88,$AV$2) -> N | AW88: =_xll.BDP(B88,$AW$2) -> US | AX88: =_xll.BDP(AC88 & " Equity",$AX$2) -> Information Technology | AY88: =_xll.BDP(AC88 & " Equity",$AY$2) -> Software & Services | AZ88: =_xll.BDP(AC88 & " Equity",$AZ$2) -> Internet Software & Services | BB88: 0 | BC88: =_xll.BDP(B88,$BC$2) -> 5.666835613 | BD88: =_xll.BDP(B88,$BD$2) -> 0.9294860215 | BE88: =_xll.BDP(B88,$BE$2) -> -551.0846312 | BF88: =_xll.BDP(B88,$BF$2) -> -3.885 | BG88: =_xll.BDP(B88,$BG$2) -> 1.866480471 | BH88: =_xll.BDP(B88,$BH$2) -> -8.04180173 | BI88: =_xll.BDP(B88,$BI$2) -> 1.473047785 | BK88: =_xll.BDP(B88,$BK$2) -> 143.9056 | BL88: =_xll.BDP(B88,$BL$2) -> #N/A Field Not Applicable | BM88: =_xll.BDP(B88,$BM$2) -> 91.61812888 | BN88: =_xll.BDP(B88,$BN$2) -> 0.001296374254 | BO88: =_xll.BDP(B88,$BO$2) -> 14.32582826 | BP88: =_xll.BDP(AC88 & " Equity",$BP$2) -> #N/A N/A | BQ88: =_xll.BDP(AC88 & " Equity",$BQ$2) -> 13.02.2015 | BR88: =_xll.BDP(AC88 & " Equity",$BR$2) -> 48.82626797
A89: US87305RAC34 | B89: =A89 & " Corp" -> US87305RAC34 Corp | C89: TTM TECHNOLOGIES | D89: =_xll.BDP(B89,$D$2) -> TTM TECHNOLOGIES | E89: =_xll.BDP(B89,$E$2) -> 3.25 | F89: =_xll.BDP(B89,$F$2) -> 15.05.2015 | G89: =_xll.BDP(B89,$G$2) -> #N/A Field Not Applicable | H89: =_xll.BDP(B89,$H$2) -> #N/A Field Not Applicable | I89: 2013-08-27 | J89: 32 Mio; I-CV OW (12.2010); Elektronik-Produzent | K89: -1 | L89: =ROUND((T89*T$2+U89*U$2+S89*S$2+IF(P89="NR",0,P89^2*SIGN(P89))+M89*M$2)/(L$2-IF(P89="NR",0,P$2)-IF(S89,0,S$2)),0) -> 0 | M89: -1 | N89: 0 | O89: 0 | P89: 1 | Q89: 2013-08-27 | R89: -1 | S89: =VLOOKUP(AX89,[1]Sheet1!$C$8:$D$23,2,FALSE) -> 1 | T89: =MIN(ROUND(ABS(V89/AD89)*200,0),2)*SIGN(V89) -> 0 | U89: =MIN(ROUND(ABS(X89),0),2)*IFERROR(SIGN(X89),0) -> 1 | V89: =_xll.BDP(AC89 & " Equity",$V$3) -> -0.006039366126 | W89: =_xll.BDP(AC89 & " Equity",$W$3) -> 38.02865832 | X89: =IFERROR(10*LN((100+Z89)/(100+$Z$1))+2*LN((100+$W$2)/(100+W89)),0) -> 1.010725666 | Y89: =_xll.BDP(AC89 & " Equity",$Y$2) -> 7.539115 | Z89: =_xll.BDP(AC89 & " Equity",$Z$2) -> 24.34211 | AA89: =_xll.BDP(AC89 & " Equity",$AA$2) -> 0.3984036 | AB89: =_xll.BDP(AC89 & " Equity",$AB$2) -> TTMI US | AC89: =_xll.BDP(B89,$AC$2) -> EQ0118219500001000 | AD89: =_xll.BDP(AC89 & " Equity",$AD$2) -> 7.53 | AE89: 7.7 | AF89: 7 | AG89: =_xll.BDP(B89,$AG$2) -> USD | AH89: =_xll.BDP(B89,$AH$2) -> 32395000 | AI89: =IFERROR(VLOOKUP(A89,'Fisch Holding'!$A$5:$C$1245,3,FALSE)/AH89,"-") -> - | AJ89: =IFERROR(VLOOKUP(A89,'BM Weight'!$A$7:$D$1020,3,FALSE),"-") -> - | AK89: =IFERROR(VLOOKUP(A89,'BM Weight'!$A$7:$D$1020,4,FALSE),"- ") -> - | AL89: =IFERROR(VLOOKUP(A89,'Implied Rating'!$B$7:$C$1179,2,FALSE),"-") -> BB- | AM89: =IFERROR(VLOOKUP(A89,'ICV Rating'!$B$5:$E$1306,2,FALSE),"-") -> 0 | AN89: =_xll.BDP(B89,$AN$2) -> NR | AO89: =_xll.BDP(B89,$AO$2) -> B2 | AP89: =_xll.BDP(B89,$AP$2) -> BB *- | AQ89: =_xll.BDP(B89,$AQ$2) -> N | AR89: =_xll.BDP(B89,$AR$2) -> Optionally | AS89: =_xll.BDP(B89,$AS$2) -> N | AT89: =_xll.BDP(B89,$AT$2) -> Y | AU89: =_xll.BDP(B89,$AU$2) -> N | AV89: =_xll.BDP(B89,$AV$2) -> N | AW89: =_xll.BDP(B89,$AW$2) -> US | AX89: =_xll.BDP(AC89 & " Equity",$AX$2) -> Information Technology | AY89: =_xll.BDP(AC89 & " Equity",$AY$2) -> Technology Hardware & Equipmen | AZ89: =_xll.BDP(AC89 & " Equity",$AZ$2) -> Electronic Equip., Instruments | BB89: 0 | BC89: =_xll.BDP(B89,$BC$2) -> 0.3139271562 | BD89: =_xll.BDP(B89,$BD$2) -> 0.316890316 | BE89: =_xll.BDP(B89,$BE$2) -> 250.8374746 | BF89: =_xll.BDP(B89,$BF$2) -> 2.756 | BG89: =_xll.BDP(B89,$BG$2) -> 1.602922096 | BH89: =_xll.BDP(B89,$BH$2) -> 0.5522103758 | BI89: =_xll.BDP(B89,$BI$2) -> 0.3506983342 | BK89: =_xll.BDP(B89,$BK$2) -> 100.15 | BL89: =_xll.BDP(B89,$BL$2) -> #N/A Field Not Applicable | BM89: =_xll.BDP(B89,$BM$2) -> 0.2326804815 | BN89: =_xll.BDP(B89,$BN$2) -> 0.0002207663669 | BO89: =_xll.BDP(B89,$BO$2) -> 111.4674075 | BP89: =_xll.BDP(AC89 & " Equity",$BP$2) -> #N/A N/A | BQ89: =_xll.BDP(AC89 & " Equity",$BQ$2) -> 04.02.2015 | BR89: =_xll.BDP(AC89 & " Equity",$BR$2) -> 38.17894754
A90: US87305RAD17 | B90: =A90 & " Corp" -> US87305RAD17 Corp | C90: TTM TECHNOLOGIES INC | D90: =_xll.BDP(B90,$D$2) -> TTM TECHNOLOGIES INC | E90: =_xll.BDP(B90,$E$2) -> 1.75 | F90: =_xll.BDP(B90,$F$2) -> 15.12.2020 | G90: =_xll.BDP(B90,$G$2) -> #N/A Field Not Applicable | H90: =_xll.BDP(B90,$H$2) -> #N/A Field Not Applicable | I90: 2013-12-17 | J90: NE Dez. 13; 150 Mio; I-CV OW (12.2010); Elektronik-Produzent | K90: 0 | L90: =ROUND((T90*T$2+U90*U$2+S90*S$2+IF(P90="NR",0,P90^2*SIGN(P90))+M90*M$2)/(L$2-IF(P90="NR",0,P$2)-IF(S90,0,S$2)),0) -> 1 | M90: 1 | N90: 0 | O90: 0 | P90: 1 | Q90: 2013-12-17 | R90: -1 | S90: =VLOOKUP(AX90,[1]Sheet1!$C$8:$D$23,2,FALSE) -> 1 | T90: =MIN(ROUND(ABS(V90/AD90)*200,0),2)*SIGN(V90) -> 0 | U90: =MIN(ROUND(ABS(X90),0),2)*IFERROR(SIGN(X90),0) -> 1 | V90: =_xll.BDP(AC90 & " Equity",$V$3) -> -0.006039366126 | W90: =_xll.BDP(AC90 & " Equity",$W$3) -> 38.02865832 | X90: =IFERROR(10*LN((100+Z90)/(100+$Z$1))+2*LN((100+$W$2)/(100+W90)),0) -> 1.010725666 | Y90: =_xll.BDP(AC90 & " Equity",$Y$2) -> 7.539115 | Z90: =_xll.BDP(AC90 & " Equity",$Z$2) -> 24.34211 | AA90: =_xll.BDP(AC90 & " Equity",$AA$2) -> 0.3984036 | AB90: =_xll.BDP(AC90 & " Equity",$AB$2) -> TTMI US | AC90: =_xll.BDP(B90,$AC$2) -> EQ0118219500001000 | AD90: =_xll.BDP(AC90 & " Equity",$AD$2) -> 7.53 | AE90: 7.7 | AF90: 7 | AG90: =_xll.BDP(B90,$AG$2) -> USD | AH90: =_xll.BDP(B90,$AH$2) -> 250000000 | AI90: =IFERROR(VLOOKUP(A90,'Fisch Holding'!$A$5:$C$1245,3,FALSE)/AH90,"-") -> - | AJ90: =IFERROR(VLOOKUP(A90,'BM Weight'!$A$7:$D$1020,3,FALSE),"-") -> - | AK90: =IFERROR(VLOOKUP(A90,'BM Weight'!$A$7:$D$1020,4,FALSE),"- ") -> - | AL90: =IFERROR(VLOOKUP(A90,'Implied Rating'!$B$7:$C$1179,2,FALSE),"-") -> - | AM90: =IFERROR(VLOOKUP(A90,'ICV Rating'!$B$5:$E$1306,2,FALSE),"-") -> - | AN90: =_xll.BDP(B90,$AN$2) -> NR | AO90: =_xll.BDP(B90,$AO$2) -> B2 | AP90: =_xll.BDP(B90,$AP$2) -> BB *- | AQ90: =_xll.BDP(B90,$AQ$2) -> N | AR90: =_xll.BDP(B90,$AR$2) -> Optionally | AS90: =_xll.BDP(B90,$AS$2) -> N | AT90: =_xll.BDP(B90,$AT$2) -> N | AU90: =_xll.BDP(B90,$AU$2) -> N | AV90: =_xll.BDP(B90,$AV$2) -> N | AW90: =_xll.BDP(B90,$AW$2) -> US | AX90: =_xll.BDP(AC90 & " Equity",$AX$2) -> Information Technology | AY90: =_xll.BDP(AC90 & " Equity",$AY$2) -> Technology Hardware & Equipmen | AZ90: =_xll.BDP(AC90 & " Equity",$AZ$2) -> Electronic Equip., Instruments | BB90: 0 | BC90: =_xll.BDP(B90,$BC$2) -> 5.551482989 | BD90: =_xll.BDP(B90,$BD$2) -> 1.793721437 | BE90: =_xll.BDP(B90,$BE$2) -> 65.07900964 | BF90: =_xll.BDP(B90,$BF$2) -> 2.282 | BG90: =_xll.BDP(B90,$BG$2) -> 1.047302996 | BH90: =_xll.BDP(B90,$BH$2) -> 3.18409556 | BI90: =_xll.BDP(B90,$BI$2) -> 6.577458086 | BK90: =_xll.BDP(B90,$BK$2) -> 96.83014 | BL90: =_xll.BDP(B90,$BL$2) -> #N/A Field Not Applicable | BM90: =_xll.BDP(B90,$BM$2) -> 82.58641742 | BN90: =_xll.BDP(B90,$BN$2) -> 0.002796434174 | BO90: =_xll.BDP(B90,$BO$2) -> 23.75269814 | BP90: =_xll.BDP(AC90 & " Equity",$BP$2) -> #N/A N/A | BQ90: =_xll.BDP(AC90 & " Equity",$BQ$2) -> 04.02.2015 | BR90: =_xll.BDP(AC90 & " Equity",$BR$2) -> 38.17894754
A91: US90184LAA08 | B91: =A91 & " Corp" -> US90184LAA08 Corp | C91: Twitter | D91: =_xll.BDP(B91,$D$2) -> TWITTER INC | E91: =_xll.BDP(B91,$E$2) -> 0.25 | F91: =_xll.BDP(B91,$F$2) -> 15.09.2019 | G91: =_xll.BDP(B91,$G$2) -> #N/A Field Not Applicable | H91: =_xll.BDP(B91,$H$2) -> #N/A Field Not Applicable | I91: 2014-11-20 | K91: 0 | L91: =ROUND((T91*T$2+U91*U$2+S91*S$2+IF(P91="NR",0,P91^2*SIGN(P91))+M91*M$2)/(L$2-IF(P91="NR",0,P$2)-IF(S91,0,S$2)),0) -> -1 | M91: -1 | N91: 0 | O91: 0 | P91: NR | Q91: 2014-04-22 | R91: 0 | S91: =VLOOKUP(AX91,[1]Sheet1!$C$8:$D$23,2,FALSE) -> 1 | T91: =MIN(ROUND(ABS(V91/AD91)*200,0),2)*SIGN(V91) -> 2 | U91: =MIN(ROUND(ABS(X91),0),2)*IFERROR(SIGN(X91),0) -> -2 | V91: =_xll.BDP(AC91 & " Equity",$V$3) -> 0.5254077315 | W91: =_xll.BDP(AC91 & " Equity",$W$3) -> 49.85043089 | X91: =IFERROR(10*LN((100+Z91)/(100+$Z$1))+2*LN((100+$W$2)/(100+W91)),0) -> -3.599298532 | Y91: =_xll.BDP(AC91 & " Equity",$Y$2) -> 8.141117 | Z91: =_xll.BDP(AC91 & " Equity",$Z$2) -> -20.28406 | AA91: =_xll.BDP(AC91 & " Equity",$AA$2) -> 11.09563 | AB91: =_xll.BDP(AC91 & " Equity",$AB$2) -> TWTR US | AC91: =_xll.BDP(B91,$AC$2) -> EQ0000000006576122 | AD91: =_xll.BDP(AC91 & " Equity",$AD$2) -> 38.715 | AE91: 40 | AF91: 37 | AG91: =_xll.BDP(B91,$AG$2) -> USD | AH91: =_xll.BDP(B91,$AH$2) -> 935000000 | AI91: =IFERROR(VLOOKUP(A91,'Fisch Holding'!$A$5:$C$1245,3,FALSE)/AH91,"-") -> - | AJ91: =IFERROR(VLOOKUP(A91,'BM Weight'!$A$7:$D$1020,3,FALSE),"-") -> 0.759093679 | AK91: =IFERROR(VLOOKUP(A91,'BM Weight'!$A$7:$D$1020,4,FALSE),"- ") -> 0 | AL91: =IFERROR(VLOOKUP(A91,'Implied Rating'!$B$7:$C$1179,2,FALSE),"-") -> BBB- | AM91: =IFERROR(VLOOKUP(A91,'ICV Rating'!$B$5:$E$1306,2,FALSE),"-") -> 0 | AN91: =_xll.BDP(B91,$AN$2) -> NR | AO91: =_xll.BDP(B91,$AO$2) -> #N/A N/A | AP91: =_xll.BDP(B91,$AP$2) -> BB-u | AQ91: =_xll.BDP(B91,$AQ$2) -> N | AR91: =_xll.BDP(B91,$AR$2) -> Optionally | AS91: =_xll.BDP(B91,$AS$2) -> N | AT91: =_xll.BDP(B91,$AT$2) -> #N/A N/A | AU91: =_xll.BDP(B91,$AU$2) -> N | AV91: =_xll.BDP(B91,$AV$2) -> N | AW91: =_xll.BDP(B91,$AW$2) -> US | AX91: =_xll.BDP(AC91 & " Equity",$AX$2) -> Information Technology | AY91: =_xll.BDP(AC91 & " Equity",$AY$2) -> Software & Services | AZ91: =_xll.BDP(AC91 & " Equity",$AZ$2) -> Internet Software & Services | BB91: 0 | BC91: =_xll.BDP(B91,$BC$2) -> 4.571113072 | BD91: =_xll.BDP(B91,$BD$2) -> 3.393034722 | BE91: =_xll.BDP(B91,$BE$2) -> 66.77326813 | BF91: =_xll.BDP(B91,$BF$2) -> 2.116 | BG91: =_xll.BDP(B91,$BG$2) -> 2.850235552 | BH91: =_xll.BDP(B91,$BH$2) -> 4.390452961 | BI91: =_xll.BDP(B91,$BI$2) -> -4.788947442 | BK91: =_xll.BDP(B91,$BK$2) -> 91.61703 | BL91: =_xll.BDP(B91,$BL$2) -> #N/A Field Not Applicable | BM91: =_xll.BDP(B91,$BM$2) -> 51.55035982 | BN91: =_xll.BDP(B91,$BN$2) -> 0.004501696481 | BO91: =_xll.BDP(B91,$BO$2) -> 78.81884642 | BP91: =_xll.BDP(AC91 & " Equity",$BP$2) -> #N/A N/A | BQ91: =_xll.BDP(AC91 & " Equity",$BQ$2) -> 05.02.2015 | BR91: =_xll.BDP(AC91 & " Equity",$BR$2) -> 49.71407707
A92: US90184LAC63 | B92: =A92 & " Corp" -> US90184LAC63 Corp | C92: Twitter | D92: =_xll.BDP(B92,$D$2) -> TWITTER INC | E92: =_xll.BDP(B92,$E$2) -> 1 | F92: =_xll.BDP(B92,$F$2) -> 15.09.2021 | G92: =_xll.BDP(B92,$G$2) -> #N/A Field Not Applicable | H92: =_xll.BDP(B92,$H$2) -> #N/A Field Not Applicable | I92: 2014-11-20 | K92: 0 | L92: =ROUND((T92*T$2+U92*U$2+S92*S$2+IF(P92="NR",0,P92^2*SIGN(P92))+M92*M$2)/(L$2-IF(P92="NR",0,P$2)-IF(S92,0,S$2)),0) -> -1 | M92: -1 | N92: 0 | O92: 0 | P92: NR | Q92: 2014-04-22 | R92: 0 | S92: =VLOOKUP(AX92,[1]Sheet1!$C$8:$D$23,2,FALSE) -> 1 | T92: =MIN(ROUND(ABS(V92/AD92)*200,0),2)*SIGN(V92) -> 2 | U92: =MIN(ROUND(ABS(X92),0),2)*IFERROR(SIGN(X92),0) -> -2 | V92: =_xll.BDP(AC92 & " Equity",$V$3) -> 0.5254077315 | W92: =_xll.BDP(AC92 & " Equity",$W$3) -> 49.85043089 | X92: =IFERROR(10*LN((100+Z92)/(100+$Z$1))+2*LN((100+$W$2)/(100+W92)),0) -> -3.599298532 | Y92: =_xll.BDP(AC92 & " Equity",$Y$2) -> 8.141117 | Z92: =_xll.BDP(AC92 & " Equity",$Z$2) -> -20.28406 | AA92: =_xll.BDP(AC92 & " Equity",$AA$2) -> 11.09563 | AB92: =_xll.BDP(AC92 & " Equity",$AB$2) -> TWTR US | AC92: =_xll.BDP(B92,$AC$2) -> EQ0000000006576122 | AD92: =_xll.BDP(AC92 & " Equity",$AD$2) -> 38.715 | AE92: 40 | AF92: 37 | AG92: =_xll.BDP(B92,$AG$2) -> USD | AH92: =_xll.BDP(B92,$AH$2) -> 954000000 | AI92: =IFERROR(VLOOKUP(A92,'Fisch Holding'!$A$5:$C$1245,3,FALSE)/AH92,"-") -> 0.002201257862 | AJ92: =IFERROR(VLOOKUP(A92,'BM Weight'!$A$7:$D$1020,3,FALSE),"-") -> 0.7839214155 | AK92: =IFERROR(VLOOKUP(A92,'BM Weight'!$A$7:$D$1020,4,FALSE),"- ") -> 0 | AL92: =IFERROR(VLOOKUP(A92,'Implied Rating'!$B$7:$C$1179,2,FALSE),"-") -> BB | AM92: =IFERROR(VLOOKUP(A92,'ICV Rating'!$B$5:$E$1306,2,FALSE),"-") -> 0 | AN92: =_xll.BDP(B92,$AN$2) -> NR | AO92: =_xll.BDP(B92,$AO$2) -> #N/A N/A | AP92: =_xll.BDP(B92,$AP$2) -> BB-u | AQ92: =_xll.BDP(B92,$AQ$2) -> N | AR92: =_xll.BDP(B92,$AR$2) -> Optionally | AS92: =_xll.BDP(B92,$AS$2) -> N | AT92: =_xll.BDP(B92,$AT$2) -> N | AU92: =_xll.BDP(B92,$AU$2) -> N | AV92: =_xll.BDP(B92,$AV$2) -> N | AW92: =_xll.BDP(B92,$AW$2) -> US | AX92: =_xll.BDP(AC92 & " Equity",$AX$2) -> Information Technology | AY92: =_xll.BDP(AC92 & " Equity",$AY$2) -> Software & Services | AZ92: =_xll.BDP(AC92 & " Equity",$AZ$2) -> Internet Software & Services | BB92: 0 | BC92: =_xll.BDP(B92,$BC$2) -> 6.340690582 | BD92: =_xll.BDP(B92,$BD$2) -> 4.188635484 | BE92: =_xll.BDP(B92,$BE$2) -> 58.28220135 | BF92: =_xll.BDP(B92,$BF$2) -> 2.316 | BG92: =_xll.BDP(B92,$BG$2) -> 2.979052974 | BH92: =_xll.BDP(B92,$BH$2) -> 4.856093301 | BI92: =_xll.BDP(B92,$BI$2) -> -4.60617857 | BK92: =_xll.BDP(B92,$BK$2) -> 91.72389 | BL92: =_xll.BDP(B92,$BL$2) -> #N/A Field Not Applicable | BM92: =_xll.BDP(B92,$BM$2) -> 61.86876039 | BN92: =_xll.BDP(B92,$BN$2) -> 0.003767072098 | BO92: =_xll.BDP(B92,$BO$2) -> 79.12474615 | BP92: =_xll.BDP(AC92 & " Equity",$BP$2) -> #N/A N/A | BQ92: =_xll.BDP(AC92 & " Equity",$BQ$2) -> 05.02.2015 | BR92: =_xll.BDP(AC92 & " Equity",$BR$2) -> 49.71407707
A93: US92343XAA81 | B93: =A93 & " Corp" -> US92343XAA81 Corp | C93: Verint Systems | D93: =_xll.BDP(B93,$D$2) -> VERINT SYSTEMS INC | E93: =_xll.BDP(B93,$E$2) -> 1.5 | F93: =_xll.BDP(B93,$F$2) -> 01.06.2021 | G93: =_xll.BDP(B93,$G$2) -> #N/A Field Not Applicable | H93: =_xll.BDP(B93,$H$2) -> #N/A Field Not Applicable | I93: 2015-01-15 | J93: NE Juni 14; communication analytics | K93: 1 | L93: =ROUND((T93*T$2+U93*U$2+S93*S$2+IF(P93="NR",0,P93^2*SIGN(P93))+M93*M$2)/(L$2-IF(P93="NR",0,P$2)-IF(S93,0,S$2)),0) -> 1 | M93: 1 | N93: 0 | O93: 0 | Q93: 2014-06-19 | R93: -1 | S93: =VLOOKUP(AX93,[1]Sheet1!$C$8:$D$23,2,FALSE) -> 1 | T93: =MIN(ROUND(ABS(V93/AD93)*200,0),2)*SIGN(V93) -> -1 | U93: =MIN(ROUND(ABS(X93),0),2)*IFERROR(SIGN(X93),0) -> 0 | V93: =_xll.BDP(AC93 & " Equity",$V$3) -> -0.3114318848 | W93: =_xll.BDP(AC93 & " Equity",$W$3) -> 16.82512602 | X93: =IFERROR(10*LN((100+Z93)/(100+$Z$1))+2*LN((100+$W$2)/(100+W93)),0) -> -0.3209652886 | Y93: =_xll.BDP(AC93 & " Equity",$Y$2) -> -2.36373 | Z93: =_xll.BDP(AC93 & " Equity",$Z$2) -> 5.268159 | AA93: =_xll.BDP(AC93 & " Equity",$AA$2) -> -5.027452 | AB93: =_xll.BDP(AC93 & " Equity",$AB$2) -> VRNT US | AC93: =_xll.BDP(B93,$AC$2) -> EQ0000000000109380 | AD93: =_xll.BDP(AC93 & " Equity",$AD$2) -> 54.69 | AE93: 60 | AF93: 55 | AG93: =_xll.BDP(B93,$AG$2) -> USD | AH93: =_xll.BDP(B93,$AH$2) -> 400000000 | AI93: =IFERROR(VLOOKUP(A93,'Fisch Holding'!$A$5:$C$1245,3,FALSE)/AH93,"-") -> 0.01025 | AJ93: =IFERROR(VLOOKUP(A93,'BM Weight'!$A$7:$D$1020,3,FALSE),"-") -> - | AK93: =IFERROR(VLOOKUP(A93,'BM Weight'!$A$7:$D$1020,4,FALSE),"- ") -> - | AL93: =IFERROR(VLOOKUP(A93,'Implied Rating'!$B$7:$C$1179,2,FALSE),"-") -> BBB- | AM93: =IFERROR(VLOOKUP(A93,'ICV Rating'!$B$5:$E$1306,2,FALSE),"-") -> 0 | AN93: =_xll.BDP(B93,$AN$2) -> NR | AO93: =_xll.BDP(B93,$AO$2) -> Ba3 | AP93: =_xll.BDP(B93,$AP$2) -> BB | AQ93: =_xll.BDP(B93,$AQ$2) -> N | AR93: =_xll.BDP(B93,$AR$2) -> Optionally | AS93: =_xll.BDP(B93,$AS$2) -> N | AT93: =_xll.BDP(B93,$AT$2) -> N | AU93: =_xll.BDP(B93,$AU$2) -> N | AV93: =_xll.BDP(B93,$AV$2) -> N | AW93: =_xll.BDP(B93,$AW$2) -> US | AX93: =_xll.BDP(AC93 & " Equity",$AX$2) -> Information Technology | AY93: =_xll.BDP(AC93 & " Equity",$AY$2) -> Software & Services | AZ93: =_xll.BDP(AC93 & " Equity",$AZ$2) -> Software | BB93: 0 | BC93: =_xll.BDP(B93,$BC$2) -> 6.083323482 | BD93: =_xll.BDP(B93,$BD$2) -> 2.382215794 | BE93: =_xll.BDP(B93,$BE$2) -> -144.4829644 | BF93: =_xll.BDP(B93,$BF$2) -> 0.248 | BG93: =_xll.BDP(B93,$BG$2) -> -1.639899816 | BH93: =_xll.BDP(B93,$BH$2) -> -1.638371655 | BI93: =_xll.BDP(B93,$BI$2) -> 1.829679263 | BK93: =_xll.BDP(B93,$BK$2) -> 107.7136 | BL93: =_xll.BDP(B93,$BL$2) -> #N/A Field Not Applicable | BM93: =_xll.BDP(B93,$BM$2) -> 75.92122652 | BN93: =_xll.BDP(B93,$BN$2) -> 0.004118993119 | BO93: =_xll.BDP(B93,$BO$2) -> 25.65932958 | BP93: =_xll.BDP(AC93 & " Equity",$BP$2) -> #N/A N/A | BQ93: =_xll.BDP(AC93 & " Equity",$BQ$2) -> 31.03.2015 | BR93: =_xll.BDP(AC93 & " Equity",$BR$2) -> 22.98813138
A94: US92343EAC66 | B94: =A94 & " Corp" -> US92343EAC66 Corp | C94: VERISIGN INC | D94: =_xll.BDP(B94,$D$2) -> VERISIGN INC | E94: =_xll.BDP(B94,$E$2) -> 4.08612 | F94: =_xll.BDP(B94,$F$2) -> 15.08.2037 | G94: =_xll.BDP(B94,$G$2) -> #N/A Field Not Applicable | H94: =_xll.BDP(B94,$H$2) -> #N/A Field Not Applicable | I94: 2013-09-24 | J94: Call August 2017 | K94: -1 | L94: =ROUND((T94*T$2+U94*U$2+S94*S$2+IF(P94="NR",0,P94^2*SIGN(P94))+M94*M$2)/(L$2-IF(P94="NR",0,P$2)-IF(S94,0,S$2)),0) -> 0 | M94: -1 | N94: 1 | O94: -1 | P94: NR | Q94: 2013-09-24 | R94: -1 | S94: =VLOOKUP(AX94,[1]Sheet1!$C$8:$D$23,2,FALSE) -> 1 | T94: =MIN(ROUND(ABS(V94/AD94)*200,0),2)*SIGN(V94) -> 0 | U94: =MIN(ROUND(ABS(X94),0),2)*IFERROR(SIGN(X94),0) -> 0 | V94: =_xll.BDP(AC94 & " Equity",$V$3) -> -0.01236870885 | W94: =_xll.BDP(AC94 & " Equity",$W$3) -> 19.82979626 | X94: =IFERROR(10*LN((100+Z94)/(100+$Z$1))+2*LN((100+$W$2)/(100+W94)),0) -> -0.313734275 | Y94: =_xll.BDP(AC94 & " Equity",$Y$2) -> -0.3983035 | Z94: =_xll.BDP(AC94 & " Equity",$Z$2) -> 5.880694 | AA94: =_xll.BDP(AC94 & " Equity",$AA$2) -> -1.289474 | AB94: =_xll.BDP(AC94 & " Equity",$AB$2) -> VRSN US | AC94: =_xll.BDP(B94,$AC$2) -> EQ0030298300001000 | AD94: =_xll.BDP(AC94 & " Equity",$AD$2) -> 56.07 | AE94: 61 | AF94: 55 | AG94: =_xll.BDP(B94,$AG$2) -> USD | AH94: =_xll.BDP(B94,$AH$2) -> 1250000000 | AI94: =IFERROR(VLOOKUP(A94,'Fisch Holding'!$A$5:$C$1245,3,FALSE)/AH94,"-") -> - | AJ94: =IFERROR(VLOOKUP(A94,'BM Weight'!$A$7:$D$1020,3,FALSE),"-") -> - | AK94: =IFERROR(VLOOKUP(A94,'BM Weight'!$A$7:$D$1020,4,FALSE),"- ") -> - | AL94: =IFERROR(VLOOKUP(A94,'Implied Rating'!$B$7:$C$1179,2,FALSE),"-") -> - | AM94: =IFERROR(VLOOKUP(A94,'ICV Rating'!$B$5:$E$1306,2,FALSE),"-") -> - | AN94: =_xll.BDP(B94,$AN$2) -> NR | AO94: =_xll.BDP(B94,$AO$2) -> Ba2 | AP94: =_xll.BDP(B94,$AP$2) -> BB+ | AQ94: =_xll.BDP(B94,$AQ$2) -> N | AR94: =_xll.BDP(B94,$AR$2) -> Optionally | AS94: =_xll.BDP(B94,$AS$2) -> Y | AT94: =_xll.BDP(B94,$AT$2) -> N | AU94: =_xll.BDP(B94,$AU$2) -> N | AV94: =_xll.BDP(B94,$AV$2) -> N | AW94: =_xll.BDP(B94,$AW$2) -> US | AX94: =_xll.BDP(AC94 & " Equity",$AX$2) -> Information Technology | AY94: =_xll.BDP(AC94 & " Equity",$AY$2) -> Software & Services | AZ94: =_xll.BDP(AC94 & " Equity",$AZ$2) -> Internet Software & Services | BB94: 0 | BC94: =_xll.BDP(B94,$BC$2) -> 17.62200376 | BD94: =_xll.BDP(B94,$BD$2) -> 0.03291516641 | BE94: =_xll.BDP(B94,$BE$2) -> -222.3584957 | BF94: =_xll.BDP(B94,$BF$2) -> 0.146 | BG94: =_xll.BDP(B94,$BG$2) -> 0.8628499351 | BH94: =_xll.BDP(B94,$BH$2) -> -0.744137316 | BI94: =_xll.BDP(B94,$BI$2) -> 3.534132707 | BK94: =_xll.BDP(B94,$BK$2) -> 168.7713 | BL94: =_xll.BDP(B94,$BL$2) -> #N/A Field Not Applicable | BM94: =_xll.BDP(B94,$BM$2) -> 99.83737642 | BN94: =_xll.BDP(B94,$BN$2) -> 6.698157466e-05 | BO94: =_xll.BDP(B94,$BO$2) -> 3.197578683 | BP94: =_xll.BDP(AC94 & " Equity",$BP$2) -> #N/A N/A | BQ94: =_xll.BDP(AC94 & " Equity",$BQ$2) -> 05.02.2015 | BR94: =_xll.BDP(AC94 & " Equity",$BR$2) -> 19.76284807
A95: US92763AAA97 | B95: =A95 & " Corp" -> US92763AAA97 Corp | C95: Violin Memory | D95: =_xll.BDP(B95,$D$2) -> VIOLIN MEMORY INC | E95: =_xll.BDP(B95,$E$2) -> 4.25 | F95: =_xll.BDP(B95,$F$2) -> 01.10.2019 | G95: =_xll.BDP(B95,$G$2) -> #N/A Field Not Applicable | H95: =_xll.BDP(B95,$H$2) -> #N/A Field Not Applicable | I95: 2014-11-27 | J95: NE Sept. 14; nur USD 105 Mio | K95: 0 | L95: =ROUND((T95*T$2+U95*U$2+S95*S$2+IF(P95="NR",0,P95^2*SIGN(P95))+M95*M$2)/(L$2-IF(P95="NR",0,P$2)-IF(S95,0,S$2)),0) -> 0 | M95: 1 | N95: 1 | O95: -2 | P95: 0 | Q95: 2013-05-27 | R95: -1 | S95: =VLOOKUP(AX95,[1]Sheet1!$C$8:$D$23,2,FALSE) -> 1 | T95: =MIN(ROUND(ABS(V95/AD95)*200,0),2)*SIGN(V95) -> -2 | U95: =MIN(ROUND(ABS(X95),0),2)*IFERROR(SIGN(X95),0) -> -1 | V95: =_xll.BDP(AC95 & " Equity",$V$3) -> -0.03694901988 | W95: =_xll.BDP(AC95 & " Equity",$W$3) -> 45.87225309 | X95: =IFERROR(10*LN((100+Z95)/(100+$Z$1))+2*LN((100+$W$2)/(100+W95)),0) -> -0.7939556781 | Y95: =_xll.BDP(AC95 & " Equity",$Y$2) -> -1.333333 | Z95: =_xll.BDP(AC95 & " Equity",$Z$2) -> 4.964539 | AA95: =_xll.BDP(AC95 & " Equity",$AA$2) -> -7.306889 | AB95: =_xll.BDP(AC95 & " Equity",$AB$2) -> VMEM US | AC95: =_xll.BDP(B95,$AC$2) -> EQ0000000010459337 | AD95: =_xll.BDP(AC95 & " Equity",$AD$2) -> 4.24 | AE95: 5 | AF95: 4 | AG95: =_xll.BDP(B95,$AG$2) -> USD | AH95: =_xll.BDP(B95,$AH$2) -> 105000000 | AI95: =IFERROR(VLOOKUP(A95,'Fisch Holding'!$A$5:$C$1245,3,FALSE)/AH95,"-") -> - | AJ95: =IFERROR(VLOOKUP(A95,'BM Weight'!$A$7:$D$1020,3,FALSE),"-") -> - | AK95: =IFERROR(VLOOKUP(A95,'BM Weight'!$A$7:$D$1020,4,FALSE),"- ") -> - | AL95: =IFERROR(VLOOKUP(A95,'Implied Rating'!$B$7:$C$1179,2,FALSE),"-") -> - | AM95: =IFERROR(VLOOKUP(A95,'ICV Rating'!$B$5:$E$1306,2,FALSE),"-") -> - | AN95: =_xll.BDP(B95,$AN$2) -> #N/A N/A | AO95: =_xll.BDP(B95,$AO$2) -> #N/A N/A | AP95: =_xll.BDP(B95,$AP$2) -> #N/A N/A | AQ95: =_xll.BDP(B95,$AQ$2) -> N | AR95: =_xll.BDP(B95,$AR$2) -> Optionally | AS95: =_xll.BDP(B95,$AS$2) -> N | AT95: =_xll.BDP(B95,$AT$2) -> N | AU95: =_xll.BDP(B95,$AU$2) -> N | AV95: =_xll.BDP(B95,$AV$2) -> N | AW95: =_xll.BDP(B95,$AW$2) -> US | AX95: =_xll.BDP(AC95 & " Equity",$AX$2) -> Information Technology | AY95: =_xll.BDP(AC95 & " Equity",$AY$2) -> Technology Hardware & Equipmen | AZ95: =_xll.BDP(AC95 & " Equity",$AZ$2) -> Technology Hardware, Storage & | BB95: 0 | BC95: =_xll.BDP(B95,$BC$2) -> 4.164948601 | BD95: =_xll.BDP(B95,$BD$2) -> 1.23552568 | BE95: =_xll.BDP(B95,$BE$2) -> 248.4400303 | BF95: =_xll.BDP(B95,$BF$2) -> 3.905 | BG95: =_xll.BDP(B95,$BG$2) -> -3.543649294 | BH95: =_xll.BDP(B95,$BH$2) -> -2.614862842 | BI95: =_xll.BDP(B95,$BI$2) -> -0.2951031692 | BK95: =_xll.BDP(B95,$BK$2) -> 100.6889 | BL95: =_xll.BDP(B95,$BL$2) -> #N/A Field Not Applicable | BM95: =_xll.BDP(B95,$BM$2) -> 85.61324247 | BN95: =_xll.BDP(B95,$BN$2) -> 0.001799639508 | BO95: =_xll.BDP(B95,$BO$2) -> 28.48871307 | BP95: =_xll.BDP(AC95 & " Equity",$BP$2) -> #N/A N/A | BQ95: =_xll.BDP(AC95 & " Equity",$BQ$2) -> 06.03.2015 | BR95: =_xll.BDP(AC95 & " Equity",$BR$2) -> 57.68954631
A96: US928298AJ77 | B96: =A96 & " Corp" -> US928298AJ77 Corp | C96: VISHAY INTERTECHNOLOGY | D96: =_xll.BDP(B96,$D$2) -> VISHAY INTERTECHNOLOGY | E96: =_xll.BDP(B96,$E$2) -> 2.25 | F96: =_xll.BDP(B96,$F$2) -> 15.05.2041 | G96: =_xll.BDP(B96,$G$2) -> #N/A Field Not Applicable | H96: =_xll.BDP(B96,$H$2) -> #N/A Field Not Applicable | I96: 2014-06-12 | J96: USD 150 Mio ; Call Mai 21; Ba3/BB+ | K96: 0 | L96: =ROUND((T96*T$2+U96*U$2+S96*S$2+IF(P96="NR",0,P96^2*SIGN(P96))+M96*M$2)/(L$2-IF(P96="NR",0,P$2)-IF(S96,0,S$2)),0) -> 1 | M96: 1 | N96: 1 | O96: -1 | P96: 0 | Q96: 2014-06-12 | R96: -1 | S96: =VLOOKUP(AX96,[1]Sheet1!$C$8:$D$23,2,FALSE) -> 1 | T96: =MIN(ROUND(ABS(V96/AD96)*200,0),2)*SIGN(V96) -> -1 | U96: =MIN(ROUND(ABS(X96),0),2)*IFERROR(SIGN(X96),0) -> 0 | V96: =_xll.BDP(AC96 & " Equity",$V$3) -> -0.07813091576 | W96: =_xll.BDP(AC96 & " Equity",$W$3) -> 26.75873414 | X96: =IFERROR(10*LN((100+Z96)/(100+$Z$1))+2*LN((100+$W$2)/(100+W96)),0) -> -0.4995913536 | Y96: =_xll.BDP(AC96 & " Equity",$Y$2) -> 1.594532 | Z96: =_xll.BDP(AC96 & " Equity",$Z$2) -> 5.106052 | AA96: =_xll.BDP(AC96 & " Equity",$AA$2) -> -5.441694 | AB96: =_xll.BDP(AC96 & " Equity",$AB$2) -> VSH US | AC96: =_xll.BDP(B96,$AC$2) -> EQ0010160100001000 | AD96: =_xll.BDP(AC96 & " Equity",$AD$2) -> 13.31 | AE96: 14.4 | AF96: 13 | AG96: =_xll.BDP(B96,$AG$2) -> USD | AH96: =_xll.BDP(B96,$AH$2) -> 150000000 | AI96: =IFERROR(VLOOKUP(A96,'Fisch Holding'!$A$5:$C$1245,3,FALSE)/AH96,"-") -> - | AJ96: =IFERROR(VLOOKUP(A96,'BM Weight'!$A$7:$D$1020,3,FALSE),"-") -> - | AK96: =IFERROR(VLOOKUP(A96,'BM Weight'!$A$7:$D$1020,4,FALSE),"- ") -> - | AL96: =IFERROR(VLOOKUP(A96,'Implied Rating'!$B$7:$C$1179,2,FALSE),"-") -> - | AM96: =IFERROR(VLOOKUP(A96,'ICV Rating'!$B$5:$E$1306,2,FALSE),"-") -> - | AN96: =_xll.BDP(B96,$AN$2) -> NR | AO96: =_xll.BDP(B96,$AO$2) -> Ba3 | AP96: =_xll.BDP(B96,$AP$2) -> BB+ | AQ96: =_xll.BDP(B96,$AQ$2) -> N | AR96: =_xll.BDP(B96,$AR$2) -> Optionally | AS96: =_xll.BDP(B96,$AS$2) -> N | AT96: =_xll.BDP(B96,$AT$2) -> #N/A N/A | AU96: =_xll.BDP(B96,$AU$2) -> N | AV96: =_xll.BDP(B96,$AV$2) -> N | AW96: =_xll.BDP(B96,$AW$2) -> US | AX96: =_xll.BDP(AC96 & " Equity",$AX$2) -> Information Technology | AY96: =_xll.BDP(AC96 & " Equity",$AY$2) -> Technology Hardware & Equipmen | AZ96: =_xll.BDP(AC96 & " Equity",$AZ$2) -> Electronic Equip., Instruments | BB96: 0 | BC96: =_xll.BDP(B96,$BC$2) -> 19.04663016 | BD96: =_xll.BDP(B96,$BD$2) -> 1.843318245 | BE96: =_xll.BDP(B96,$BE$2) -> 57.50872598 | BF96: =_xll.BDP(B96,$BF$2) -> 2.972 | BG96: =_xll.BDP(B96,$BG$2) -> -0.43340712 | BH96: =_xll.BDP(B96,$BH$2) -> 1.790234076 | BI96: =_xll.BDP(B96,$BI$2) -> 2.484277197 | BK96: =_xll.BDP(B96,$BK$2) -> 86.31552 | BL96: =_xll.BDP(B96,$BL$2) -> #N/A Field Not Applicable | BM96: =_xll.BDP(B96,$BM$2) -> 92.53222573 | BN96: =_xll.BDP(B96,$BN$2) -> 0.0008714307379 | BO96: =_xll.BDP(B96,$BO$2) -> 21.53410045 | BP96: =_xll.BDP(AC96 & " Equity",$BP$2) -> 1.793721933 | BQ96: =_xll.BDP(AC96 & " Equity",$BQ$2) -> 05.02.2015 | BR96: =_xll.BDP(AC96 & " Equity",$BR$2) -> 29.48074624
A97: US928298AG39 | B97: =A97 & " Corp" -> US928298AG39 Corp | C97: VISHAY INTERTECHNOLOGY | D97: =_xll.BDP(B97,$D$2) -> VISHAY INTERTECHNOLOGY | E97: =_xll.BDP(B97,$E$2) -> 2.25 | F97: =_xll.BDP(B97,$F$2) -> 15.11.2040 | G97: =_xll.BDP(B97,$G$2) -> #N/A Field Not Applicable | H97: =_xll.BDP(B97,$H$2) -> #N/A Field Not Applicable | I97: 2014-06-12 | J97: USD 275 Mio; BB+; Call Nov. 20; Ba3/BB+ | K97: 0 | L97: =ROUND((T97*T$2+U97*U$2+S97*S$2+IF(P97="NR",0,P97^2*SIGN(P97))+M97*M$2)/(L$2-IF(P97="NR",0,P$2)-IF(S97,0,S$2)),0) -> 1 | M97: 1 | N97: 1 | O97: -1 | P97: 0 | Q97: 2014-06-12 | R97: -1 | S97: =VLOOKUP(AX97,[1]Sheet1!$C$8:$D$23,2,FALSE) -> 1 | T97: =MIN(ROUND(ABS(V97/AD97)*200,0),2)*SIGN(V97) -> -1 | U97: =MIN(ROUND(ABS(X97),0),2)*IFERROR(SIGN(X97),0) -> 0 | V97: =_xll.BDP(AC97 & " Equity",$V$3) -> -0.07813091576 | W97: =_xll.BDP(AC97 & " Equity",$W$3) -> 26.75873414 | X97: =IFERROR(10*LN((100+Z97)/(100+$Z$1))+2*LN((100+$W$2)/(100+W97)),0) -> -0.4995913536 | Y97: =_xll.BDP(AC97 & " Equity",$Y$2) -> 1.594532 | Z97: =_xll.BDP(AC97 & " Equity",$Z$2) -> 5.106052 | AA97: =_xll.BDP(AC97 & " Equity",$AA$2) -> -5.441694 | AB97: =_xll.BDP(AC97 & " Equity",$AB$2) -> VSH US | AC97: =_xll.BDP(B97,$AC$2) -> EQ0010160100001000 | AD97: =_xll.BDP(AC97 & " Equity",$AD$2) -> 13.31 | AE97: 14.4 | AF97: 13 | AG97: =_xll.BDP(B97,$AG$2) -> USD | AH97: =_xll.BDP(B97,$AH$2) -> 275000000 | AI97: =IFERROR(VLOOKUP(A97,'Fisch Holding'!$A$5:$C$1245,3,FALSE)/AH97,"-") -> - | AJ97: =IFERROR(VLOOKUP(A97,'BM Weight'!$A$7:$D$1020,3,FALSE),"-") -> - | AK97: =IFERROR(VLOOKUP(A97,'BM Weight'!$A$7:$D$1020,4,FALSE),"- ") -> - | AL97: =IFERROR(VLOOKUP(A97,'Implied Rating'!$B$7:$C$1179,2,FALSE),"-") -> - | AM97: =IFERROR(VLOOKUP(A97,'ICV Rating'!$B$5:$E$1306,2,FALSE),"-") -> - | AN97: =_xll.BDP(B97,$AN$2) -> NR | AO97: =_xll.BDP(B97,$AO$2) -> Ba3 | AP97: =_xll.BDP(B97,$AP$2) -> BB+ | AQ97: =_xll.BDP(B97,$AQ$2) -> N | AR97: =_xll.BDP(B97,$AR$2) -> Optionally | AS97: =_xll.BDP(B97,$AS$2) -> N | AT97: =_xll.BDP(B97,$AT$2) -> N | AU97: =_xll.BDP(B97,$AU$2) -> N | AV97: =_xll.BDP(B97,$AV$2) -> N | AW97: =_xll.BDP(B97,$AW$2) -> US | AX97: =_xll.BDP(AC97 & " Equity",$AX$2) -> Information Technology | AY97: =_xll.BDP(AC97 & " Equity",$AY$2) -> Technology Hardware & Equipmen | AZ97: =_xll.BDP(AC97 & " Equity",$AZ$2) -> Electronic Equip., Instruments | BB97: 0 | BC97: =_xll.BDP(B97,$BC$2) -> 19.65687693 | BD97: =_xll.BDP(B97,$BD$2) -> 0.3476438717 | BE97: =_xll.BDP(B97,$BE$2) -> -47.45997243 | BF97: =_xll.BDP(B97,$BF$2) -> 1.93 | BG97: =_xll.BDP(B97,$BG$2) -> -0.7111922497 | BH97: =_xll.BDP(B97,$BH$2) -> 0.4226453204 | BI97: =_xll.BDP(B97,$BI$2) -> 2.595628782 | BK97: =_xll.BDP(B97,$BK$2) -> 105.9263 | BL97: =_xll.BDP(B97,$BL$2) -> #N/A Field Not Applicable | BM97: =_xll.BDP(B97,$BM$2) -> 98.90941227 | BN97: =_xll.BDP(B97,$BN$2) -> 0.000190082094 | BO97: =_xll.BDP(B97,$BO$2) -> 8.707247886 | BP97: =_xll.BDP(AC97 & " Equity",$BP$2) -> 1.793721933 | BQ97: =_xll.BDP(AC97 & " Equity",$BQ$2) -> 05.02.2015 | BR97: =_xll.BDP(AC97 & " Equity",$BR$2) -> 29.48074624
A98: US928298AL24 | B98: =A98 & " Corp" -> US928298AL24 Corp | C98: VISHAY INTERTECHNOLOGY | D98: =_xll.BDP(B98,$D$2) -> VISHAY INTERTECHNOLOGY | E98: =_xll.BDP(B98,$E$2) -> 2.25 | F98: =_xll.BDP(B98,$F$2) -> 01.06.2042 | G98: =_xll.BDP(B98,$G$2) -> #N/A Field Not Applicable | H98: =_xll.BDP(B98,$H$2) -> #N/A Field Not Applicable | I98: 2013-05-27 | J98: USD 150 Mio | K98: 0 | L98: =ROUND((T98*T$2+U98*U$2+S98*S$2+IF(P98="NR",0,P98^2*SIGN(P98))+M98*M$2)/(L$2-IF(P98="NR",0,P$2)-IF(S98,0,S$2)),0) -> -1 | M98: -1 | N98: 1 | O98: -2 | P98: 0 | Q98: 2013-05-27 | R98: -1 | S98: =VLOOKUP(AX98,[1]Sheet1!$C$8:$D$23,2,FALSE) -> 1 | T98: =MIN(ROUND(ABS(V98/AD98)*200,0),2)*SIGN(V98) -> -1 | U98: =MIN(ROUND(ABS(X98),0),2)*IFERROR(SIGN(X98),0) -> 0 | V98: =_xll.BDP(AC98 & " Equity",$V$3) -> -0.07813091576 | W98: =_xll.BDP(AC98 & " Equity",$W$3) -> 26.75873414 | X98: =IFERROR(10*LN((100+Z98)/(100+$Z$1))+2*LN((100+$W$2)/(100+W98)),0) -> -0.4995913536 | Y98: =_xll.BDP(AC98 & " Equity",$Y$2) -> 1.594532 | Z98: =_xll.BDP(AC98 & " Equity",$Z$2) -> 5.106052 | AA98: =_xll.BDP(AC98 & " Equity",$AA$2) -> -5.441694 | AB98: =_xll.BDP(AC98 & " Equity",$AB$2) -> VSH US | AC98: =_xll.BDP(B98,$AC$2) -> EQ0010160100001000 | AD98: =_xll.BDP(AC98 & " Equity",$AD$2) -> 13.31 | AE98: 14.4 | AF98: 13 | AG98: =_xll.BDP(B98,$AG$2) -> USD | AH98: =_xll.BDP(B98,$AH$2) -> 150000000 | AI98: =IFERROR(VLOOKUP(A98,'Fisch Holding'!$A$5:$C$1245,3,FALSE)/AH98,"-") -> - | AJ98: =IFERROR(VLOOKUP(A98,'BM Weight'!$A$7:$D$1020,3,FALSE),"-") -> - | AK98: =IFERROR(VLOOKUP(A98,'BM Weight'!$A$7:$D$1020,4,FALSE),"- ") -> - | AL98: =IFERROR(VLOOKUP(A98,'Implied Rating'!$B$7:$C$1179,2,FALSE),"-") -> - | AM98: =IFERROR(VLOOKUP(A98,'ICV Rating'!$B$5:$E$1306,2,FALSE),"-") -> - | AN98: =_xll.BDP(B98,$AN$2) -> NR | AO98: =_xll.BDP(B98,$AO$2) -> Ba3 | AP98: =_xll.BDP(B98,$AP$2) -> BB+ | AQ98: =_xll.BDP(B98,$AQ$2) -> N | AR98: =_xll.BDP(B98,$AR$2) -> Optionally | AS98: =_xll.BDP(B98,$AS$2) -> N | AT98: =_xll.BDP(B98,$AT$2) -> Y | AU98: =_xll.BDP(B98,$AU$2) -> N | AV98: =_xll.BDP(B98,$AV$2) -> N | AW98: =_xll.BDP(B98,$AW$2) -> US | AX98: =_xll.BDP(AC98 & " Equity",$AX$2) -> Information Technology | AY98: =_xll.BDP(AC98 & " Equity",$AY$2) -> Technology Hardware & Equipmen | AZ98: =_xll.BDP(AC98 & " Equity",$AZ$2) -> Electronic Equip., Instruments | BB98: 0 | BC98: =_xll.BDP(B98,$BC$2) -> 21.10754329 | BD98: =_xll.BDP(B98,$BD$2) -> 0.1511138985 | BE98: =_xll.BDP(B98,$BE$2) -> -111.2853117 | BF98: =_xll.BDP(B98,$BF$2) -> 1.308 | BG98: =_xll.BDP(B98,$BG$2) -> -0.8047445674 | BH98: =_xll.BDP(B98,$BH$2) -> 1.394536865 | BI98: =_xll.BDP(B98,$BI$2) -> 3.23716382 | BK98: =_xll.BDP(B98,$BK$2) -> 121.099 | BL98: =_xll.BDP(B98,$BL$2) -> #N/A Field Not Applicable | BM98: =_xll.BDP(B98,$BM$2) -> 99.87348173 | BN98: =_xll.BDP(B98,$BN$2) -> 3.392922512e-05 | BO98: =_xll.BDP(B98,$BO$2) -> 5.587896421 | BP98: =_xll.BDP(AC98 & " Equity",$BP$2) -> 1.793721933 | BQ98: =_xll.BDP(AC98 & " Equity",$BQ$2) -> 05.02.2015 | BR98: =_xll.BDP(AC98 & " Equity",$BR$2) -> 29.48074624
A99: US94733AAA25 | B99: =A99 & " Corp" -> US94733AAA25 Corp | C99: WEB.COM GROUP INC | D99: =_xll.BDP(B99,$D$2) -> WEB.COM GROUP INC | E99: =_xll.BDP(B99,$E$2) -> 1 | F99: =_xll.BDP(B99,$F$2) -> 15.08.2018 | G99: =_xll.BDP(B99,$G$2) -> #N/A Field Not Applicable | H99: =_xll.BDP(B99,$H$2) -> #N/A Field Not Applicable | I99: 2014-04-07 | J99: NE 8.13; 259 Mio; Rating B; I-CV MW 8.13 | K99: -1 | L99: =ROUND((T99*T$2+U99*U$2+S99*S$2+IF(P99="NR",0,P99^2*SIGN(P99))+M99*M$2)/(L$2-IF(P99="NR",0,P$2)-IF(S99,0,S$2)),0) -> -1 | M99: -1 | N99: 0 | O99: 0 | P99: -1 | Q99: 2014-04-07 | R99: -1 | S99: =VLOOKUP(AX99,[1]Sheet1!$C$8:$D$23,2,FALSE) -> 1 | T99: =MIN(ROUND(ABS(V99/AD99)*200,0),2)*SIGN(V99) -> -2 | U99: =MIN(ROUND(ABS(X99),0),2)*IFERROR(SIGN(X99),0) -> -2 | V99: =_xll.BDP(AC99 & " Equity",$V$3) -> -0.2044095248 | W99: =_xll.BDP(AC99 & " Equity",$W$3) -> 81.12124365 | X99: =IFERROR(10*LN((100+Z99)/(100+$Z$1))+2*LN((100+$W$2)/(100+W99)),0) -> -2.451604378 | Y99: =_xll.BDP(AC99 & " Equity",$Y$2) -> -3.242031 | Z99: =_xll.BDP(AC99 & " Equity",$Z$2) -> -7.13519 | AA99: =_xll.BDP(AC99 & " Equity",$AA$2) -> -8.84676 | AB99: =_xll.BDP(AC99 & " Equity",$AB$2) -> WWWW US | AC99: =_xll.BDP(B99,$AC$2) -> EQ0145867600001000 | AD99: =_xll.BDP(AC99 & " Equity",$AD$2) -> 17.1 | AE99: 25 | AF99: 15 | AG99: =_xll.BDP(B99,$AG$2) -> USD | AH99: =_xll.BDP(B99,$AH$2) -> 258750000 | AI99: =IFERROR(VLOOKUP(A99,'Fisch Holding'!$A$5:$C$1245,3,FALSE)/AH99,"-") -> - | AJ99: =IFERROR(VLOOKUP(A99,'BM Weight'!$A$7:$D$1020,3,FALSE),"-") -> - | AK99: =IFERROR(VLOOKUP(A99,'BM Weight'!$A$7:$D$1020,4,FALSE),"- ") -> - | AL99: =IFERROR(VLOOKUP(A99,'Implied Rating'!$B$7:$C$1179,2,FALSE),"-") -> BB- | AM99: =IFERROR(VLOOKUP(A99,'ICV Rating'!$B$5:$E$1306,2,FALSE),"-") -> 0 | AN99: =_xll.BDP(B99,$AN$2) -> #N/A N/A | AO99: =_xll.BDP(B99,$AO$2) -> #N/A N/A | AP99: =_xll.BDP(B99,$AP$2) -> NR | AQ99: =_xll.BDP(B99,$AQ$2) -> N | AR99: =_xll.BDP(B99,$AR$2) -> Optionally | AS99: =_xll.BDP(B99,$AS$2) -> N | AT99: =_xll.BDP(B99,$AT$2) -> N | AU99: =_xll.BDP(B99,$AU$2) -> N | AV99: =_xll.BDP(B99,$AV$2) -> N | AW99: =_xll.BDP(B99,$AW$2) -> US | AX99: =_xll.BDP(AC99 & " Equity",$AX$2) -> Information Technology | AY99: =_xll.BDP(AC99 & " Equity",$AY$2) -> Software & Services | AZ99: =_xll.BDP(AC99 & " Equity",$AZ$2) -> Internet Software & Services | BB99: 0 | BC99: =_xll.BDP(B99,$BC$2) -> 3.420747559 | BD99: =_xll.BDP(B99,$BD$2) -> 2.556627223 | BE99: =_xll.BDP(B99,$BE$2) -> 278.711899 | BF99: =_xll.BDP(B99,$BF$2) -> 4.004 | BG99: =_xll.BDP(B99,$BG$2) -> -0.9589036141 | BH99: =_xll.BDP(B99,$BH$2) -> -0.5693793103 | BI99: =_xll.BDP(B99,$BI$2) -> 0.3023043578 | BK99: =_xll.BDP(B99,$BK$2) -> 89.57042 | BL99: =_xll.BDP(B99,$BL$2) -> #N/A Field Not Applicable | BM99: =_xll.BDP(B99,$BM$2) -> 47.67078905 | BN99: =_xll.BDP(B99,$BN$2) -> 0.004131052111 | BO99: =_xll.BDP(B99,$BO$2) -> 82.19429527 | BP99: =_xll.BDP(AC99 & " Equity",$BP$2) -> #N/A N/A | BQ99: =_xll.BDP(AC99 & " Equity",$BQ$2) -> 06.02.2015 | BR99: =_xll.BDP(AC99 & " Equity",$BR$2) -> 67.79031461 | BT99: 2014-02-03
A100: US94770VAH50 | B100: =A100 & " Corp" -> US94770VAH50 Corp | C100: WEBMD HEALTH CORP | D100: =_xll.BDP(B100,$D$2) -> WEBMD HEALTH CORP | E100: =_xll.BDP(B100,$E$2) -> 2.25 | F100: =_xll.BDP(B100,$F$2) -> 31.03.2016 | G100: =_xll.BDP(B100,$G$2) -> #N/A Field Not Applicable | H100: =_xll.BDP(B100,$H$2) -> #N/A Field Not Applicable | I100: 2014-07-07 | K100: -1 | L100: =ROUND((T100*T$2+U100*U$2+S100*S$2+IF(P100="NR",0,P100^2*SIGN(P100))+M100*M$2)/(L$2-IF(P100="NR",0,P$2)-IF(S100,0,S$2)),0) -> 0 | M100: -1 | N100: -1 | O100: 0 | P100: 0 | Q100: 2014-07-07 | R100: -1 | S100: =VLOOKUP(AX100,[1]Sheet1!$C$8:$D$23,2,FALSE) -> 1 | T100: =MIN(ROUND(ABS(V100/AD100)*200,0),2)*SIGN(V100) -> 1 | U100: =MIN(ROUND(ABS(X100),0),2)*IFERROR(SIGN(X100),0) -> 0 | V100: =_xll.BDP(AC100 & " Equity",$V$3) -> 0.1541267335 | W100: =_xll.BDP(AC100 & " Equity",$W$3) -> 31.6558554 | X100: =IFERROR(10*LN((100+Z100)/(100+$Z$1))+2*LN((100+$W$2)/(100+W100)),0) -> -0.08041754544 | Y100: =_xll.BDP(AC100 & " Equity",$Y$2) -> 10.10683 | Z100: =_xll.BDP(AC100 & " Equity",$Z$2) -> 10.43956 | AA100: =_xll.BDP(AC100 & " Equity",$AA$2) -> 1.643491 | AB100: =_xll.BDP(AC100 & " Equity",$AB$2) -> WBMD US | AC100: =_xll.BDP(B100,$AC$2) -> EQ0000000001753662 | AD100: =_xll.BDP(AC100 & " Equity",$AD$2) -> 39.74 | AE100: 41 | AF100: 37 | AG100: =_xll.BDP(B100,$AG$2) -> USD | AH100: =_xll.BDP(B100,$AH$2) -> 252232000 | AI100: =IFERROR(VLOOKUP(A100,'Fisch Holding'!$A$5:$C$1245,3,FALSE)/AH100,"-") -> - | AJ100: =IFERROR(VLOOKUP(A100,'BM Weight'!$A$7:$D$1020,3,FALSE),"-") -> - | AK100: =IFERROR(VLOOKUP(A100,'BM Weight'!$A$7:$D$1020,4,FALSE),"- ") -> - | AL100: =IFERROR(VLOOKUP(A100,'Implied Rating'!$B$7:$C$1179,2,FALSE),"-") -> BB | AM100: =IFERROR(VLOOKUP(A100,'ICV Rating'!$B$5:$E$1306,2,FALSE),"-") -> B+ | AN100: =_xll.BDP(B100,$AN$2) -> #N/A N/A | AO100: =_xll.BDP(B100,$AO$2) -> #N/A N/A | AP100: =_xll.BDP(B100,$AP$2) -> #N/A N/A | AQ100: =_xll.BDP(B100,$AQ$2) -> N | AR100: =_xll.BDP(B100,$AR$2) -> Optionally | AS100: =_xll.BDP(B100,$AS$2) -> N | AT100: =_xll.BDP(B100,$AT$2) -> Y | AU100: =_xll.BDP(B100,$AU$2) -> N | AV100: =_xll.BDP(B100,$AV$2) -> N | AW100: =_xll.BDP(B100,$AW$2) -> US | AX100: =_xll.BDP(AC100 & " Equity",$AX$2) -> Information Technology | AY100: =_xll.BDP(AC100 & " Equity",$AY$2) -> Software & Services | AZ100: =_xll.BDP(AC100 & " Equity",$AZ$2) -> Internet Software & Services | BB100: 0 | BC100: =_xll.BDP(B100,$BC$2) -> 1.165661307 | BD100: =_xll.BDP(B100,$BD$2) -> 1.075630509 | BE100: =_xll.BDP(B100,$BE$2) -> 79.80047766 | BF100: =_xll.BDP(B100,$BF$2) -> 1.257 | BG100: =_xll.BDP(B100,$BG$2) -> 0.1112696235 | BH100: =_xll.BDP(B100,$BH$2) -> 0.3724499788 | BI100: =_xll.BDP(B100,$BI$2) -> 0.7140464102 | BK100: =_xll.BDP(B100,$BK$2) -> 100.7353 | BL100: =_xll.BDP(B100,$BL$2) -> #N/A Field Not Applicable | BM100: =_xll.BDP(B100,$BM$2) -> 17.42135927 | BN100: =_xll.BDP(B100,$BN$2) -> 0.005479161309 | BO100: =_xll.BDP(B100,$BO$2) -> 80.79241813 | BP100: =_xll.BDP(AC100 & " Equity",$BP$2) -> #N/A N/A | BQ100: =_xll.BDP(AC100 & " Equity",$BQ$2) -> 20.02.2015 | BR100: =_xll.BDP(AC100 & " Equity",$BR$2) -> 34.3256618
A101: US94770VAF94 | B101: =A101 & " Corp" -> US94770VAF94 Corp | C101: WEBMD HEALTH CORP | D101: =_xll.BDP(B101,$D$2) -> WEBMD HEALTH CORP | E101: =_xll.BDP(B101,$E$2) -> 2.5 | F101: =_xll.BDP(B101,$F$2) -> 31.01.2018 | G101: =_xll.BDP(B101,$G$2) -> #N/A Field Not Applicable | H101: =_xll.BDP(B101,$H$2) -> #N/A Field Not Applicable | I101: 2014-07-07 | J101: yield play? | K101: 0 | L101: =ROUND((T101*T$2+U101*U$2+S101*S$2+IF(P101="NR",0,P101^2*SIGN(P101))+M101*M$2)/(L$2-IF(P101="NR",0,P$2)-IF(S101,0,S$2)),0) -> 1 | M101: 1 | N101: 0 | O101: 0 | P101: 0 | Q101: 2014-07-07 | R101: -1 | S101: =VLOOKUP(AX101,[1]Sheet1!$C$8:$D$23,2,FALSE) -> 1 | T101: =MIN(ROUND(ABS(V101/AD101)*200,0),2)*SIGN(V101) -> 1 | U101: =MIN(ROUND(ABS(X101),0),2)*IFERROR(SIGN(X101),0) -> 0 | V101: =_xll.BDP(AC101 & " Equity",$V$3) -> 0.1541267335 | W101: =_xll.BDP(AC101 & " Equity",$W$3) -> 31.6558554 | X101: =IFERROR(10*LN((100+Z101)/(100+$Z$1))+2*LN((100+$W$2)/(100+W101)),0) -> -0.08041754544 | Y101: =_xll.BDP(AC101 & " Equity",$Y$2) -> 10.10683 | Z101: =_xll.BDP(AC101 & " Equity",$Z$2) -> 10.43956 | AA101: =_xll.BDP(AC101 & " Equity",$AA$2) -> 1.643491 | AB101: =_xll.BDP(AC101 & " Equity",$AB$2) -> WBMD US | AC101: =_xll.BDP(B101,$AC$2) -> EQ0000000001753662 | AD101: =_xll.BDP(AC101 & " Equity",$AD$2) -> 39.74 | AE101: 41 | AF101: 37 | AG101: =_xll.BDP(B101,$AG$2) -> USD | AH101: =_xll.BDP(B101,$AH$2) -> 400000000 | AI101: =IFERROR(VLOOKUP(A101,'Fisch Holding'!$A$5:$C$1245,3,FALSE)/AH101,"-") -> - | AJ101: =IFERROR(VLOOKUP(A101,'BM Weight'!$A$7:$D$1020,3,FALSE),"-") -> - | AK101: =IFERROR(VLOOKUP(A101,'BM Weight'!$A$7:$D$1020,4,FALSE),"- ") -> - | AL101: =IFERROR(VLOOKUP(A101,'Implied Rating'!$B$7:$C$1179,2,FALSE),"-") -> B | AM101: =IFERROR(VLOOKUP(A101,'ICV Rating'!$B$5:$E$1306,2,FALSE),"-") -> B+ | AN101: =_xll.BDP(B101,$AN$2) -> #N/A N/A | AO101: =_xll.BDP(B101,$AO$2) -> #N/A N/A | AP101: =_xll.BDP(B101,$AP$2) -> #N/A N/A | AQ101: =_xll.BDP(B101,$AQ$2) -> N | AR101: =_xll.BDP(B101,$AR$2) -> Optionally | AS101: =_xll.BDP(B101,$AS$2) -> N | AT101: =_xll.BDP(B101,$AT$2) -> Y | AU101: =_xll.BDP(B101,$AU$2) -> N | AV101: =_xll.BDP(B101,$AV$2) -> N | AW101: =_xll.BDP(B101,$AW$2) -> US | AX101: =_xll.BDP(AC101 & " Equity",$AX$2) -> Information Technology | AY101: =_xll.BDP(AC101 & " Equity",$AY$2) -> Software & Services | AZ101: =_xll.BDP(AC101 & " Equity",$AZ$2) -> Internet Software & Services | BB101: 0 | BC101: =_xll.BDP(B101,$BC$2) -> 2.863908534 | BD101: =_xll.BDP(B101,$BD$2) -> 2.005869776 | BE101: =_xll.BDP(B101,$BE$2) -> 132.0384282 | BF101: =_xll.BDP(B101,$BF$2) -> 2.399 | BG101: =_xll.BDP(B101,$BG$2) -> 0.6040701613 | BH101: =_xll.BDP(B101,$BH$2) -> 0.9229685535 | BI101: =_xll.BDP(B101,$BI$2) -> 4.286800088 | BK101: =_xll.BDP(B101,$BK$2) -> 100.2922 | BL101: =_xll.BDP(B101,$BL$2) -> #N/A Field Not Applicable | BM101: =_xll.BDP(B101,$BM$2) -> 49.85159676 | BN101: =_xll.BDP(B101,$BN$2) -> 0.005561547247 | BO101: =_xll.BDP(B101,$BO$2) -> 60.83406526 | BP101: =_xll.BDP(AC101 & " Equity",$BP$2) -> #N/A N/A | BQ101: =_xll.BDP(AC101 & " Equity",$BQ$2) -> 20.02.2015 | BR101: =_xll.BDP(AC101 & " Equity",$BR$2) -> 34.3256618
